Workbook

Sheet Front page
C2: Immunosuppressive therapy for kidney transplantation in adults (review of technology appraisal guidance 85): Economic model
B4: Conditions of use | C4: This economic model is licensed under a Creative Commons Attribution-NonCommercial-NoDerivatives 4.0 International License. To view a copy of this license, visit
C5: https://creativecommons.org/licenses/by-nc-nd/4.0/
C6: If you would like to obtain a more permissive license (e.g., to adapt the model to your own country/setting), please contact Prof Martin Hoyle <M.W.Hoyle@exeter.ac.uk>
B8: Introduction | C8: This economic model was developed by the Assessment Group, PenTAG, to support NICE Multiple Technology Appraisal ID456: Kidney transplantation (adults) - immunosuppressive therapy (Review of TA 85).
B9: Model structure | C9: A discrete-time state transition model (semi-Markov) with three primary health states: FUNCTIONING GRAFT, GRAFT LOSS and DEATH. The main pathway of disease progression is from FUNCTIONING GRAFT to GRAFT LOSS and to DEATH, but transitions are also allowed from FUNCTIONING GRAFT to DEATH (termed death with functioning graft and a well-established clinical outcome). Retransplantations are also allowed (up to two retransplantations) which result in transitions from GRAFT LOSS to FUNCTIONING GRAFT (although retransplantations can also be unsuccessful in a small minority of cases resulting in a direct transition to GRAFT LOSS). Furthermore it is possible to have pre-emptive retransplantation upon failure of the first graft (only in a minority of cases), skipping the GRAFT LOSS state. Graft survival (censored for death with functioning graft) is extrapolated based on UK data and adjusted according to a surrogate relationship involving biopsy-proven acute rejection, new-onset diabetes after transplantation (NODAT) and graft function (eGFR) at 12 months. The rate of death with functioning graft is adjusted according to NODAT.
B10: Model diagram | C10: Key: FG, FUNCTIONING GRAFT; GL, GRAFT LOSS; Dashed arrows indicate primary non-function; Red arrows indicate pre-emptive retransplantation; Self-links omitted for clarity.
B11: Workbook layout | C11: Front page - This page
C12: Control - Switch between deterministic and probabilistic analysis, activate scenario analyses
C13: Results - Main results and additional outcomes for all regimens
C14: Frontier calculation - Calculates the cost-effectiveness frontier for base case and PSA
C15: Report-Deterministic results - Report-ready results from base case, broken down by Induction and Maintenance therapy and into respective comparisons
C16: Report-Probabilistic results - Report-ready results from PSA, broken down by Induction and Maintenance therapy and into respective comparisons
C17: PSA - PSA simulations and intermediate analyses
C18: Natural history - Parameters relating to the natural history of kidney disease in kidney transplantation patients
C19: Survival curves - Graft survival curve calculations for all regimens and death with functioning graft baseline estimation
C20: Effectiveness - Incremental effectiveness estimates for all regimens in following outcomes: Mortality, graft loss, graft function (eGFR), biopsy-proven acute rejection, NODAT, CMV infection and dyslipidaemia
C21: Head-to-head - Meta-analysis output from head-to-head studies comparing TAC-PR vs. TAC and MPS vs. MMF
C22: Adverse events - Network meta-analysis results estimating impact on NODAT, CMV and dyslipidaemia of different maintenance agents/regimens
C23: Mapping for patient survival - Regression to estimate appropriate hazard ratio of death with functioning graft to achieve desired odds ratio of mortality, given odds ratio of graft loss
C24: Costs - Resource use and unit cost parameters
C25: Dialysis unit costs - NHS Reference Costs 2013-14 relating to dialysis and some analysis to estimate average unit cost
C26: Drug costs - CMU eMit costs for drug acquisition where available and analysis
C27: Utilities - baseline utility and utility decrements according to health state
C28: Analysis - characteristics of the modelling study, including patient characteristics
C29: CsA+MMF+ST - Markov model for ciclosporin and mycophenolate mofetil regimen (CSA+MMF)
C30: Tac+MMF+ST - Markov model for immediate-release tacrolimus and mycophenolate mofetil regimen (TAC+MMF)
C31: CsA+Aza+ST - Markov model for ciclosporin and azathioprine regimen (CSA+AZA)
C32: Tac+Aza+ST - Markov model for immediate-release tacrolimus and azathioprine regimen (TAC+AZA)
C33: CsA+Evl+ST - Markov model for ciclosporin and everolimus regimen (CSA+EVL)
C34: Tac+Srl+ST - Markov model for immediate-release tacrolimus and sirolimus regimen (TAC+SRL)
C35: Tac-PR+MMF+ST - Markov model for prolonged-release tacrolimus and mycophenolate mofetil regimen (TAC-PR+MMF)
C36: Bas+CsA+MMF+ST - Markov model for basiliximab, ciclosporin and mycophenolate mofetil regimen (BAS+CSA+MMF)
C37: Bas+Tac+MMF+ST - Markov model for basiliximab, immediate-release tacrolimus and mycophenolate mofetil regimen (BAS+TAC+MMF)
C38: Bas+CsA+Aza+ST - Markov model for basiliximab, ciclosporin and azathioprine regimen (BAS+CSA+AZA)
C39: Bas+Srl+MMF+ST - Markov model for basiliximab, sirolimus and mycophenolate mofetil regimen (BAS+SRL+MMF)
C40: Bas+Bela+MMF+ST - Markov model for basiliximab, belatacept and mycophenolate mofetil regimen (BAS+BEL+MMF)
C41: Bas+CsA+EC-MPS+ST - Markov model for basiliximab, ciclosporin and mycophenolate sodium regimen (BAS+CSA+MPS)
C42: rATG+CsA+MMF+ST - Markov model for rabbit ATG, ciclosporin and mycophenolate mofetil regimen (rATG+CSA+MMF)
C43: rATG+Tac+MMF+ST - Markov model for rabbit ATG, immediate-release tacrolimus and mycophenolate mofetil regimen (rATG+TAC+MMF)
C44: rATG+CsA+Aza+ST - Markov model for rabbit ATG, ciclosporin and azathioprine regimen (rATG+CSA+AZA)
B45: Confidential information | C45: This workbook does not contain any information that has been indicated as commercial in confidence (CIC) or academic in confidence (AIC) by individuals or organisations other than PenTAG.
B46: Tips | C46: The data table in worksheet PSA can require a substantial time to recompute, so a button is provided on the worksheet to remove the data table, and a button to reinstate it when needed. It is advised that you change your calculation options to "Automatic except data tables" if the data table is left in place.
B47: Warranty | C47: This workbook is provided as is without any guarantees or warranty.

Sheet Corrections
A1: Significant corrections (affects costs and/or QALYs)
A2: Revised effectiveness estimates for induction therapies following exclusion of 4 ATG studies
A3: Corrected calculation of eGFR for TAC-PR+MMF
A4: Revised unit cost for drug administration of belatacept
A5: Resource use of sirolimus from 2-4 years corrected in BAS+SRL+MMF arm
A6: Discounting of costs corrected (half-cycle) in all Markov sheets
A9: Minor corrections (no effect or negligible effect on costs, QALYs and cost-effectiveness)
A10: In all Markov sheets, the calculation for the proportion of people dying with functioning graft in each cycle (column DV) has been corrected to remove references to column BC
A11: Resource use of ciclosporin in first cycle corrected with a small impact on costs in regimens CSA+MMF, BAS+CSA+MMF, BAS+CSA+MPS, rATG+CSA+MMF
A12: The resource use of tacrolimus in the first cycle of TAC+MMF has been corrected with a minimal impact on costs
A13: The resource use for azathioprine for 36+ months in the BAS+CSA+AZA arm has been corrected (it previously referred to 12-36 months), however there is no effect on costs or QALYs in the deterministic analysis as resource use is not different
A14: The label (A12) of cells B12:E12 has been corrected to refer to mg rather than grams
A17: Issues acknowledged but not corrected

Sheet Control
A1: Controls
A3: PSA | B3: FALSE | D3: FALSE = Deterministic analysis; TRUE = Live probabilistic analysis (i.e., one PSA sample)
A4: Hazard ratios for DWFG in first year | B4: Regression (base case; flexible)
A5: Graft survival | B5: Reference case
A6: Drug costs | B6: Reference case

Sheet Results
A1: =IF(PSA,"Live results","Deterministic results") -> Deterministic results | AB1: PSA results
A3: Summary results | AB3: Summary results
A4: Arm | B4: Total costs | D4: Total QALYs | F4: NHB | H4: ICER rank | AB4: Arm | AC4: Costs | AD4: QALYs | AE4: NHB | AG4: ICER rank
B5: Undisc. | C5: Disc. | D5: Undisc. | E5: Disc. | F5: WTP £20k | G5: WTP £30k | H5: Points | I5: Rank | L5: Regimen | M5: Costs (disc) | N5: QALYs (disc) | O5: Dominated | P5: ="ICER vs "&P23 -> ICER vs Bas+Tac+MMF+ST | Q5: D/ED | S5: Cost-effectiveness frontier | T5: Regimen | U5: Costs (disc) | V5: QALYs (disc) | W5: ICER | X5: NHB | Y5: INHB | AC5: Disc. | AD5: Disc. | AE5: WTP £20k | AF5: WTP £30k | AG5: Points | AH5: Rank | AK5: Regimen | AL5: Costs (disc) | AM5: QALYs (disc) | AN5: Dominated | AO5: ="ICER vs "&AO23 -> ICER vs Bas+Tac+MMF+ST | AP5: D/ED | AR5: Cost-effectiveness frontier | AS5: Regimen | AT5: Costs (disc) | AU5: QALYs (disc) | AV5: ICER | AW5: NHB | AX5: INHB
A6: CsA+MMF+ST | B6: =SUM('CsA+MMF+ST'!$Z$3:$Z$203) -> 151474.7331 | C6: =SUM('CsA+MMF+ST'!$AB$3:$AB$203) -> 97429.01972 | D6: =SUM('CsA+MMF+ST'!$AN$3:$AN$203) -> 16.50211672 | E6: =SUM('CsA+MMF+ST'!$AO$3:$AO$203) -> 10.91452807 | F6: =$E6-$C6/20000 -> 6.043077082 | G6: =$E6-$C6/30000 -> 7.666894077 | H6: =_xlfn.RANK.AVG(E6,$E$6:$E$21,1)*COUNTA($A$6:$A$21)+_xlfn.RANK.AVG(C6,$C$6:$C$21,1) -> 166 | I6: =_xlfn.RANK.AVG(H6,$H$6:$H$21,1) -> 10 | K6: 1 | L6: =INDEX($A$6:$A$21,MATCH(K6,$I$6:$I$21,0)) -> Tac+Srl+ST | M6: =VLOOKUP(L6,$A$6:$E$21,3,FALSE) -> 125539.25 | N6: =VLOOKUP(L6,$A$6:$E$21,5,FALSE) -> 10.6022819 | O6: =OR(M7:$M$21<M6) -> TRUE | P6: =IF(ROW()-ROW($M$6)+1=$O$23,0,(M6-INDEX($M$6:$M$21,$O$23))/(N6-INDEX($N$6:$N$21,$O$23))) -> -91097.16651 | Q6: =O6 -> TRUE | S6: =O23 -> 13 | T6: =INDEX(L$6:L$21,$S6) -> Bas+Tac+MMF+ST | U6: =INDEX(M$6:M$21,$S6) -> 90404.72967 | V6: 10.98796371 | W6: (Reference) | X6: =V6-U6/20000 -> 6.46772723 | Y6: =X6-$X$6 -> 0 | AB6: CsA+MMF+ST | AC6: =TRANSPOSE(PSA!B3:Q3) -> 98218.59386 | AD6: =TRANSPOSE(PSA!R3:AG3) -> 10.91550885 | AE6: =-AC6/20000+AD6 -> 6.004579158 | AF6: =-AC6/30000+AD6 -> 7.641555722 | AG6: =_xlfn.RANK.AVG(AD6,$AD$6:$AD$21,1)*COUNTA($AB$6:$AB$21)+_xlfn.RANK.AVG(AC6,$AC$6:$AC$21,1) -> 166 | AH6: =_xlfn.RANK.AVG(AG6,$AG$6:$AG$21,1) -> 10 | AJ6: 1 | AK6: =INDEX($AB$6:$AB$21,MATCH(AJ6,$AH$6:$AH$21,0)) -> Tac+Srl+ST | AL6: =VLOOKUP(AK6,$AB$6:$AD$21,2,FALSE) -> 126339.2792 | AM6: =VLOOKUP(AK6,$AB$6:$AD$21,3,FALSE) -> 10.59307394 | AN6: =OR($AL7:AL$21<AL6) -> TRUE | AO6: =IF(ROW()-ROW($AL$6)+1=$AN$23,0,(AL6-INDEX($AL$6:$AL$21,$AN$23))/(AM6-INDEX($AM$6:$AM$21,$AN$23))) -> -86171.00038 | AP6: =AN6 -> TRUE | AR6: =AN23 -> 13 | AS6: =INDEX(AK$6:AK$21,$AR6) -> Bas+Tac+MMF+ST | AT6: =INDEX(AL$6:AL$21,$AR6) -> 90801.56762 | AU6: =INDEX(AM$6:AM$21,$AR6) -> 11.00548312 | AV6: (Reference) | AW6: =AU6-AT6/20000 -> 6.465404735 | AX6: =AW6-$AW$6 -> 0
A7: Tac+MMF+ST | B7: =SUM('Tac+MMF+ST'!$Z$3:$Z$203) -> 143262.5904 | C7: =SUM('Tac+MMF+ST'!$AB$3:$AB$203) -> 92226.12511 | D7: =SUM('Tac+MMF+ST'!$AN$3:$AN$203) -> 16.50881705 | E7: =SUM('Tac+MMF+ST'!$AO$3:$AO$203) -> 10.88839841 | F7: 6.27709216 | G7: 7.814194245 | H7: =_xlfn.RANK.AVG(E7,$E$6:$E$21,1)*COUNTA($A$6:$A$21)+_xlfn.RANK.AVG(C7,$C$6:$C$21,1) -> 98 | I7: =_xlfn.RANK.AVG(H7,$H$6:$H$21,1) -> 6 | K7: 2 | L7: =INDEX($A$6:$A$21,MATCH(K7,$I$6:$I$21,0)) -> CsA+Aza+ST | M7: =VLOOKUP(L7,$A$6:$E$21,3,FALSE) -> 101595.3253 | N7: =VLOOKUP(L7,$A$6:$E$21,5,FALSE) -> 10.77105193 | O7: =OR(M8:$M$21<M7) -> TRUE | P7: =IF(ROW()-ROW($M$6)+1=$O$23,0,(M7-INDEX($M$6:$M$21,$O$23))/(N7-INDEX($N$6:$N$21,$O$23))) -> -51590.53959 | Q7: ='Frontier calculation'!U4 -> TRUE | S7: =MATCH(FALSE,OFFSET($Q$5,S6+1,0,COUNT($K$6:$K$21)-S6),0)+S6 -> 14 | T7: =INDEX(L$6:L$21,$S7) -> Bas+CsA+MMF+ST | U7: 95219.34775 | V7: 11.02470671 | W7: =(U7-U6)/(V7-V6) -> 131034.9877 | X7: =V7-U7/20000 -> 6.263739322 | Y7: =X7-$X$6 -> -0.2039879074 | AB7: Tac+MMF+ST | AC7: 92660.1216 | AD7: 10.89715852 | AE7: =-AC7/20000+AD7 -> 6.264152444 | AF7: =-AC7/30000+AD7 -> 7.808487804 | AG7: =_xlfn.RANK.AVG(AD7,$AD$6:$AD$21,1)*COUNTA($AB$6:$AB$21)+_xlfn.RANK.AVG(AC7,$AC$6:$AC$21,1) -> 98 | AH7: =_xlfn.RANK.AVG(AG7,$AG$6:$AG$21,1) -> 6 | AJ7: 2 | AK7: =INDEX($AB$6:$AB$21,MATCH(AJ7,$AH$6:$AH$21,0)) -> Tac-PR+MMF+ST | AL7: =VLOOKUP(AK7,$AB$6:$AD$21,2,FALSE) -> 106985.3526 | AM7: =VLOOKUP(AK7,$AB$6:$AD$21,3,FALSE) -> 10.75572915 | AN7: =OR($AL8:AL$21<AL7) -> TRUE | AO7: =IF(ROW()-ROW($AL$6)+1=$AN$23,0,(AL7-INDEX($AL$6:$AL$21,$AN$23))/(AM7-INDEX($AM$6:$AM$21,$AN$23))) -> -64798.9103 | AP7: =OR(AN7,'Frontier calculation'!U26) -> TRUE | AR7: =MATCH(FALSE,OFFSET($AP$5,AR6+1,0,COUNT($AJ$6:$AJ$21)-AR6),0)+AR6 -> 15 | AS7: =INDEX(AK$6:AK$21,$AR7) -> Bas+CsA+MMF+ST | AT7: =INDEX(AL$6:AL$21,$AR7) -> 95938.1376 | AU7: =INDEX(AM$6:AM$21,$AR7) -> 11.0308667 | AV7: =(AT7-AT6)/(AU7-AU6) -> 202357.9836 | AW7: =AU7-AT7/20000 -> 6.233959816 | AX7: =AW7-$AW$6 -> -0.2314449194
A8: CsA+Aza+ST | B8: =SUM('CsA+Aza+ST'!$Z$3:$Z$203) -> 157067.1157 | C8: =SUM('CsA+Aza+ST'!$AB$3:$AB$203) -> 101595.3253 | D8: =SUM('CsA+Aza+ST'!$AN$3:$AN$203) -> 16.2179794 | E8: =SUM('CsA+Aza+ST'!$AO$3:$AO$203) -> 10.77105193 | F8: 5.691285667 | G8: 7.38454109 | H8: 40 | I8: 2 | K8: 3 | L8: Tac-PR+MMF+ST | M8: 106529.3833 | N8: 10.79200425 | O8: =OR(M9:$M$21<M8) -> TRUE | P8: -82285.65709 | Q8: ='Frontier calculation'!U5 -> TRUE | S8: =MATCH(FALSE,OFFSET($Q$5,S7+1,0,COUNT($K$6:$K$21)-S7),0)+S7 -> 15 | T8: Bas+CsA+EC-MPS+ST | U8: 111539.8772 | V8: 11.13769131 | W8: =(U8-U7)/(V8-V7) -> 144449.1557 | X8: 5.560697444 | Y8: =X8-$X$6 -> -0.9070297852 | AB8: CsA+Aza+ST | AC8: 102504.1785 | AD8: 10.76335737 | AE8: 5.638148446 | AF8: 7.346551422 | AG8: 56 | AH8: 3 | AJ8: 3 | AK8: CsA+Aza+ST | AL8: 102504.1785 | AM8: 10.76335737 | AN8: =OR($AL9:AL$21<AL8) -> TRUE | AO8: -48332.7828 | AP8: =OR(AN8,'Frontier calculation'!U27) -> TRUE | AR8: =MATCH(FALSE,OFFSET($AP$5,AR7+1,0,COUNT($AJ$6:$AJ$21)-AR7),0)+AR7 -> 16 | AS8: Bas+Bela+MMF+ST | AT8: 209676.6216 | AU8: 11.28554661 | AV8: =(AT8-AT7)/(AU8-AU7) -> 446593.8439 | AW8: 0.8017155324 | AX8: -5.663689203
A9: Tac+Aza+ST | B9: =SUM('Tac+Aza+ST'!$Z$3:$Z$203) -> 143467.4854 | C9: =SUM('Tac+Aza+ST'!$AB$3:$AB$203) -> 93318.95629 | D9: =SUM('Tac+Aza+ST'!$AN$3:$AN$203) -> 16.49775924 | E9: =SUM('Tac+Aza+ST'!$AO$3:$AO$203) -> 10.86963348 | F9: 6.203685664 | G9: 7.759001602 | H9: 83 | I9: 5 | K9: 4 | L9: rATG+CsA+Aza+ST | M9: 104570.3304 | N9: 10.81816242 | O9: =OR(M10:$M$21<M9) -> TRUE | P9: -83424.57643 | Q9: ='Frontier calculation'!U6 -> TRUE | S9: 16 | T9: Bas+Bela+MMF+ST | U9: 209408.6974 | V9: 11.29409087 | W9: 625761.4779 | X9: 0.8236559964 | Y9: -5.644071233 | AB9: Tac+Aza+ST | AC9: 94782.70887 | AD9: 10.82700102 | AE9: 6.087865579 | AF9: 7.667577393 | AG9: 83 | AH9: 5 | AJ9: 4 | AK9: rATG+CsA+Aza+ST | AL9: 105683.1469 | AM9: 10.80484949 | AN9: =OR($AL10:AL$21<AL9) -> TRUE | AO9: -74172.90577 | AP9: =OR(AN9,'Frontier calculation'!U28) -> TRUE
A10: CsA+Evl+ST | B10: =SUM('CsA+Evl+ST'!$Z$3:$Z$203) -> 264277.5282 | C10: =SUM('CsA+Evl+ST'!$AB$3:$AB$203) -> 176154.3349 | D10: =SUM('CsA+Evl+ST'!$AN$3:$AN$203) -> 16.63229096 | E10: =SUM('CsA+Evl+ST'!$AO$3:$AO$203) -> 10.96590262 | F10: 2.15818588 | G10: 5.094091461 | H10: 207 | I10: 12 | K10: 5 | L10: Tac+Aza+ST | M10: 93318.95629 | N10: 10.86963348 | O10: =OR(M11:$M$21<M10) -> TRUE | P10: -24627.91208 | Q10: ='Frontier calculation'!U7 -> TRUE | AB10: CsA+Evl+ST | AC10: 176463.424 | AD10: 10.93950817 | AE10: 2.116336967 | AF10: 5.057394033 | AG10: 207 | AH10: 12 | AJ10: 5 | AK10: Tac+Aza+ST | AL10: 94782.70887 | AM10: 10.82700102 | AN10: =OR($AL11:AL$21<AL10) -> TRUE | AO10: -22305.54991 | AP10: =OR(AN10,'Frontier calculation'!U29) -> TRUE
A11: Tac+Srl+ST | B11: =SUM('Tac+Srl+ST'!$Z$3:$Z$203) -> 188968.2345 | C11: =SUM('Tac+Srl+ST'!$AB$3:$AB$203) -> 125539.25 | D11: =SUM('Tac+Srl+ST'!$AN$3:$AN$203) -> 15.94480896 | E11: =SUM('Tac+Srl+ST'!$AO$3:$AO$203) -> 10.6022819 | F11: 4.325319401 | G11: 6.417640234 | H11: 30 | I11: 1 | K11: 6 | L11: Tac+MMF+ST | M11: 92226.12511 | N11: 10.88839841 | O11: =OR(M12:$M$21<M11) -> TRUE | P11: -18293.47643 | Q11: ='Frontier calculation'!U8 -> TRUE | AB11: Tac+Srl+ST | AC11: 126339.2792 | AD11: 10.59307394 | AE11: 4.276109978 | AF11: 6.381764631 | AG11: 30 | AH11: 1 | AJ11: 6 | AK11: Tac+MMF+ST | AL11: 92660.1216 | AM11: 10.89715852 | AN11: =OR($AL12:AL$21<AL11) -> TRUE | AO11: -17157.26733 | AP11: =OR(AN11,'Frontier calculation'!U30) -> TRUE
A12: Tac-PR+MMF+ST | B12: =SUM('Tac-PR+MMF+ST'!$Z$3:$Z$203) -> 163632.9228 | C12: =SUM('Tac-PR+MMF+ST'!$AB$3:$AB$203) -> 106529.3833 | D12: =SUM('Tac-PR+MMF+ST'!$AN$3:$AN$203) -> 16.34841602 | E12: =SUM('Tac-PR+MMF+ST'!$AO$3:$AO$203) -> 10.79200425 | F12: 5.465535082 | G12: 7.241024803 | H12: 59 | I12: 3 | K12: 7 | L12: Bas+Srl+MMF+ST | M12: 114548.7163 | N12: 10.90102395 | O12: =OR(M13:$M$21<M12) -> TRUE | P12: -277709.3645 | Q12: ='Frontier calculation'!U9 -> TRUE | AB12: Tac-PR+MMF+ST | AC12: 106985.3526 | AD12: 10.75572915 | AE12: 5.406461517 | AF12: 7.189550728 | AG12: 43 | AH12: 2 | AJ12: 7 | AK12: Bas+Srl+MMF+ST | AL12: 115212.3877 | AM12: 10.89875862 | AN12: =OR($AL13:AL$21<AL12) -> TRUE | AO12: -228727.4397 | AP12: =OR(AN12,'Frontier calculation'!U31) -> TRUE
A13: Bas+CsA+MMF+ST | B13: =SUM('Bas+CsA+MMF+ST'!$Z$3:$Z$203) -> 147297.3012 | C13: =SUM('Bas+CsA+MMF+ST'!$AB$3:$AB$203) -> 95219.34775 | D13: =SUM('Bas+CsA+MMF+ST'!$AN$3:$AN$203) -> 16.73048511 | E13: =SUM('Bas+CsA+MMF+ST'!$AO$3:$AO$203) -> 11.02470671 | F13: 6.263739322 | G13: 7.850728451 | H13: 228 | I13: 14 | K13: 8 | L13: Bas+CsA+Aza+ST | M13: 98243.88029 | N13: 10.90292458 | O13: =OR(M14:$M$21<M13) -> TRUE | P13: -92182.86357 | Q13: ='Frontier calculation'!U10 -> TRUE | AB13: Bas+CsA+MMF+ST | AC13: 95938.1376 | AD13: 11.0308667 | AE13: 6.233959816 | AF13: 7.832928776 | AG13: 244 | AH13: 15 | AJ13: 8 | AK13: Bas+CsA+Aza+ST | AL13: 99159.0629 | AM13: 10.89892333 | AN13: =OR($AL14:AL$21<AL13) -> TRUE | AO13: -78430.10629 | AP13: =OR(AN13,'Frontier calculation'!U32) -> TRUE
A14: Bas+Tac+MMF+ST | B14: =SUM('Bas+Tac+MMF+ST'!$Z$3:$Z$203) -> 139571.3499 | C14: =SUM('Bas+Tac+MMF+ST'!$AB$3:$AB$203) -> 90404.72967 | D14: =SUM('Bas+Tac+MMF+ST'!$AN$3:$AN$203) -> 16.71734206 | E14: =SUM('Bas+Tac+MMF+ST'!$AO$3:$AO$203) -> 10.98796371 | F14: 6.46772723 | G14: 7.974472724 | H14: 209 | I14: 13 | K14: 9 | L14: rATG+Tac+MMF+ST | M14: 97146.15866 | N14: 10.90471604 | O14: =OR(M15:$M$21<M14) -> TRUE | P14: -80980.39373 | Q14: ='Frontier calculation'!U11 -> TRUE | AB14: Bas+Tac+MMF+ST | AC14: 90801.56762 | AD14: 11.00548312 | AE14: 6.465404735 | AF14: 7.978764195 | AG14: 209 | AH14: 13 | AJ14: 9 | AK14: rATG+Tac+MMF+ST | AL14: 97749.70888 | AM14: 10.90469168 | AN14: =OR($AL15:AL$21<AL14) -> TRUE | AO14: -68935.82773 | AP14: =OR(AN14,'Frontier calculation'!U33) -> TRUE
A15: Bas+CsA+Aza+ST | B15: =SUM('Bas+CsA+Aza+ST'!$Z$3:$Z$203) -> 151358.6715 | C15: =SUM('Bas+CsA+Aza+ST'!$AB$3:$AB$203) -> 98243.88029 | D15: =SUM('Bas+CsA+Aza+ST'!$AN$3:$AN$203) -> 16.48641416 | E15: =SUM('Bas+CsA+Aza+ST'!$AO$3:$AO$203) -> 10.90292458 | F15: 5.990730568 | G15: 7.628128572 | H15: 135 | I15: 8 | K15: 10 | L15: CsA+MMF+ST | M15: 97429.01972 | N15: 10.91452807 | O15: =OR(M16:$M$21<M15) -> TRUE | P15: -95652.32269 | Q15: ='Frontier calculation'!U12 -> TRUE | AB15: Bas+CsA+Aza+ST | AC15: 99159.0629 | AD15: 10.89892333 | AE15: 5.940970186 | AF15: 7.593621234 | AG15: 135 | AH15: 8 | AJ15: 10 | AK15: CsA+MMF+ST | AL15: 98218.59386 | AM15: 10.91550885 | AN15: =OR($AL16:AL$21<AL15) -> TRUE | AO15: -82434.97463 | AP15: =OR(AN15,'Frontier calculation'!U34) -> TRUE
A16: Bas+Srl+MMF+ST | B16: =SUM('Bas+Srl+MMF+ST'!$Z$3:$Z$203) -> 174165.5027 | C16: =SUM('Bas+Srl+MMF+ST'!$AB$3:$AB$203) -> 114548.7163 | D16: =SUM('Bas+Srl+MMF+ST'!$AN$3:$AN$203) -> 16.55300276 | E16: =SUM('Bas+Srl+MMF+ST'!$AO$3:$AO$203) -> 10.90102395 | F16: 5.173588132 | G16: 7.082733404 | H16: 125 | I16: 7 | K16: 11 | L16: rATG+CsA+MMF+ST | M16: 101939.7392 | N16: 10.92807497 | O16: =OR(M17:$M$21<M16) -> TRUE | P16: -192607.295 | Q16: ='Frontier calculation'!U13 -> TRUE | AB16: Bas+Srl+MMF+ST | AC16: 115212.3877 | AD16: 10.89875862 | AE16: 5.138139237 | AF16: 7.058345699 | AG16: 125 | AH16: 7 | AJ16: 11 | AK16: rATG+CsA+MMF+ST | AL16: 102831.4355 | AM16: 10.92495498 | AN16: =OR($AL17:AL$21<AL16) -> TRUE | AO16: -149387.1371 | AP16: =OR(AN16,'Frontier calculation'!U35) -> TRUE
A17: Bas+Bela+MMF+ST | B17: =SUM('Bas+Bela+MMF+ST'!$Z$3:$Z$203) -> 316209.9573 | C17: =SUM('Bas+Bela+MMF+ST'!$AB$3:$AB$203) -> 209408.6974 | D17: =SUM('Bas+Bela+MMF+ST'!$AN$3:$AN$203) -> 17.27144828 | E17: =SUM('Bas+Bela+MMF+ST'!$AO$3:$AO$203) -> 11.29409087 | F17: 0.8236559964 | G17: 4.313800953 | H17: 272 | I17: 16 | K17: 12 | L17: CsA+Evl+ST | M17: 176154.3349 | N17: 10.96590262 | O17: =OR(M18:$M$21<M17) -> TRUE | P17: -3886916.272 | Q17: ='Frontier calculation'!U14 -> TRUE | AB17: Bas+Bela+MMF+ST | AC17: 209676.6216 | AD17: 11.28554661 | AE17: 0.8017155324 | AF17: 4.296325893 | AG17: 272 | AH17: 16 | AJ17: 12 | AK17: CsA+Evl+ST | AL17: 176463.424 | AM17: 10.93950817 | AN17: =OR($AL18:AL$21<AL17) -> TRUE | AO17: -1298399.701 | AP17: =OR(AN17,'Frontier calculation'!U36) -> TRUE
A18: Bas+CsA+EC-MPS+ST | B18: =SUM('Bas+CsA+EC-MPS+ST'!$Z$3:$Z$203) -> 171175.2825 | C18: =SUM('Bas+CsA+EC-MPS+ST'!$AB$3:$AB$203) -> 111539.8772 | D18: =SUM('Bas+CsA+EC-MPS+ST'!$AN$3:$AN$203) -> 16.94824596 | E18: =SUM('Bas+CsA+EC-MPS+ST'!$AO$3:$AO$203) -> 11.13769131 | F18: 5.560697444 | G18: 7.419695398 | H18: 252 | I18: 15 | K18: 13 | L18: Bas+Tac+MMF+ST | M18: 90404.72967 | N18: 10.98796371 | O18: =OR(M19:$M$21<M18) -> FALSE | P18: 0 | Q18: ='Frontier calculation'!U15 -> TRUE | AB18: Bas+CsA+EC-MPS+ST | AC18: 112359.5358 | AD18: 11.0243993 | AE18: 5.406422508 | AF18: 7.279081438 | AG18: 236 | AH18: 14 | AJ18: 13 | AK18: Bas+Tac+MMF+ST | AL18: 90801.56762 | AM18: 11.00548312 | AN18: =OR($AL19:AL$21<AL18) -> FALSE | AO18: 0 | AP18: =OR(AN18,'Frontier calculation'!U37) -> FALSE
A19: rATG+CsA+MMF+ST | B19: =SUM('rATG+CsA+MMF+ST'!$Z$3:$Z$203) -> 156421.8769 | C19: =SUM('rATG+CsA+MMF+ST'!$AB$3:$AB$203) -> 101939.7392 | D19: =SUM('rATG+CsA+MMF+ST'!$AN$3:$AN$203) -> 16.50640578 | E19: =SUM('rATG+CsA+MMF+ST'!$AO$3:$AO$203) -> 10.92807497 | F19: 5.831088007 | G19: 7.53008366 | H19: 185 | I19: 11 | K19: 14 | L19: Bas+CsA+MMF+ST | M19: 95219.34775 | N19: 11.02470671 | O19: =OR(M20:$M$21<M19) -> FALSE | P19: 131034.9877 | Q19: ='Frontier calculation'!U16 -> FALSE | AB19: rATG+CsA+MMF+ST | AC19: 102831.4355 | AD19: 10.92495498 | AE19: 5.783383205 | AF19: 7.497240463 | AG19: 185 | AH19: 11 | AJ19: 14 | AK19: Bas+CsA+EC-MPS+ST | AL19: 112359.5358 | AM19: 11.0243993 | AN19: =OR($AL20:AL$21<AL19) -> TRUE | AO19: 1139657.386 | AP19: =OR(AN19,'Frontier calculation'!U38) -> TRUE
A20: rATG+Tac+MMF+ST | B20: =SUM('rATG+Tac+MMF+ST'!$Z$3:$Z$203) -> 148822.3841 | C20: =SUM('rATG+Tac+MMF+ST'!$AB$3:$AB$203) -> 97146.15866 | D20: =SUM('rATG+Tac+MMF+ST'!$AN$3:$AN$203) -> 16.51260239 | E20: =SUM('rATG+Tac+MMF+ST'!$AO$3:$AO$203) -> 10.90471604 | F20: 6.047408111 | G20: 7.666510756 | H20: 149 | I20: 9 | K20: 15 | L20: Bas+CsA+EC-MPS+ST | M20: 111539.8772 | N20: 11.13769131 | O20: =OR(M21:$M$21<M20) -> FALSE | P20: 141157.3327 | Q20: ='Frontier calculation'!U17 -> FALSE | AB20: rATG+Tac+MMF+ST | AC20: 97749.70888 | AD20: 10.90469168 | AE20: 6.017206234 | AF20: 7.646368048 | AG20: 149 | AH20: 9 | AJ20: 15 | AK20: Bas+CsA+MMF+ST | AL20: 95938.1376 | AM20: 11.0308667 | AN20: =OR($AL21:AL$21<AL20) -> FALSE | AO20: 202357.9836 | AP20: =OR(AN20,'Frontier calculation'!U39) -> FALSE
A21: rATG+CsA+Aza+ST | B21: =SUM('rATG+CsA+Aza+ST'!$Z$3:$Z$203) -> 159905.1895 | C21: =SUM('rATG+CsA+Aza+ST'!$AB$3:$AB$203) -> 104570.3304 | D21: =SUM('rATG+CsA+Aza+ST'!$AN$3:$AN$203) -> 16.28984025 | E21: =SUM('rATG+CsA+Aza+ST'!$AO$3:$AO$203) -> 10.81816242 | F21: 5.589645901 | G21: 7.332484741 | H21: 74 | I21: 4 | K21: 16 | L21: Bas+Bela+MMF+ST | M21: 209408.6974 | N21: 11.29409087 | O21: =FALSE -> FALSE | P21: 388740.3213 | Q21: =FALSE -> FALSE | AB21: rATG+CsA+Aza+ST | AC21: 105683.1469 | AD21: 10.80484949 | AE21: 5.520692139 | AF21: 7.282077921 | AG21: 74 | AH21: 4 | AJ21: 16 | AK21: Bas+Bela+MMF+ST | AL21: 209676.6216 | AM21: 11.28554661 | AN21: =FALSE -> FALSE | AO21: 424457.5055 | AP21: =FALSE -> FALSE
N23: Baseline for ICER | O23: =MATCH(FALSE,$O$6:$O$20,0) -> 13 | P23: =INDEX(L6:L21,O23) -> Bas+Tac+MMF+ST | AM23: Baseline for ICER | AN23: =MATCH(FALSE,$AN$6:$AN$20,0) -> 13 | AO23: =INDEX(AK6:AK21,AN23) -> Bas+Tac+MMF+ST
A24: Disaggregated costs
A25: Arm | B25: G1 | I25: G2-3 | M25: G* | Q25: TOTAL
B26: Induction | C26: Maintenance immunosuppression | D26: Acute rejection | E26: Graft loss | F26: Infection prophylaxis | G26: CMV infection | H26: Monitoring | I26: Retransplantation | J26: Immunosuppression | K26: Monitoring | L26: Graft loss | M26: Dialysis | N26: NODAT | O26: Anaemia | P26: Dyslipidaemia
A27: CsA+MMF+ST | B27: =SUMPRODUCT(INDIRECT(CONCATENATE("'",$A27,"'!$I$3:$I$203")),INDIRECT(CONCATENATE("'",$A27,"'!$AA$3:$AA$203"))) -> 0 | C27: =SUMPRODUCT(INDIRECT(CONCATENATE("'",$A27,"'!$J$3:$J$203")),INDIRECT(CONCATENATE("'",$A27,"'!$AA$3:$AA$203")))+SUMPRODUCT(INDIRECT(CONCATENATE("'",$A27,"'!$K$3:$K$203")),INDIRECT(CONCATENATE("'",$A27,"'!$AA$3:$AA$203")))+SUMPRODUCT(INDIRECT(CONCATENATE("'",$A27,"'!$L$3:$L$203")),INDIRECT(CONCATENATE("'",$A27,"'!$AA$3:$AA$203"))) -> 15970.21005 | D27: =SUMPRODUCT(INDIRECT(CONCATENATE("'",$A27,"'!$M$3")),INDIRECT(CONCATENATE("'",$A27,"'!$AA$3"))) -> 988.6045934 | E27: =SUMPRODUCT(INDIRECT(CONCATENATE("'",$A27,"'!$N$3:$N$203")),INDIRECT(CONCATENATE("'",$A27,"'!$AA$3:$AA$203"))) -> 128.3781285 | F27: =SUMPRODUCT(INDIRECT(CONCATENATE("'",$A27,"'!$O$3:$O$203")),INDIRECT(CONCATENATE("'",$A27,"'!$AA$3:$AA$203"))) -> 760.9422566 | G27: =SUMPRODUCT(INDIRECT(CONCATENATE("'",$A27,"'!$P$3")),INDIRECT(CONCATENATE("'",$A27,"'!$AA$3"))) -> 313.4965379 | H27: =SUMPRODUCT(INDIRECT(CONCATENATE("'",$A27,"'!$Q$3:$Q$203")),INDIRECT(CONCATENATE("'",$A27,"'!$AA$3:$AA$203"))) -> 16111.9515 | I27: =SUMPRODUCT(INDIRECT(CONCATENATE("'",$A27,"'!$R$3:$R$203")),INDIRECT(CONCATENATE("'",$A27,"'!$AA$3:$AA$203"))) -> 4882.488926 | J27: =SUMPRODUCT(INDIRECT(CONCATENATE("'",$A27,"'!$S$3:$S$203")),INDIRECT(CONCATENATE("'",$A27,"'!$AA$3:$AA$203"))) -> 2685.816295 | K27: =SUMPRODUCT(INDIRECT(CONCATENATE("'",$A27,"'!$T$3:$T$203")),INDIRECT(CONCATENATE("'",$A27,"'!$AA$3:$AA$203"))) -> 3685.709973 | L27: =SUMPRODUCT(INDIRECT(CONCATENATE("'",$A27,"'!$U$3:$U$203")),INDIRECT(CONCATENATE("'",$A27,"'!$AA$3:$AA$203"))) -> 18.25567792 | M27: =SUMPRODUCT(INDIRECT(CONCATENATE("'",$A27,"'!$V$3:$V$203")),INDIRECT(CONCATENATE("'",$A27,"'!$AA$3:$AA$203"))) -> 49145.07582 | N27: =SUMPRODUCT(INDIRECT(CONCATENATE("'",$A27,"'!$W$3:$W$203")),INDIRECT(CONCATENATE("'",$A27,"'!$AA$3:$AA$203"))) -> 1465.321408 | O27: =SUMPRODUCT(INDIRECT(CONCATENATE("'",$A27,"'!$X$3:$X$203")),INDIRECT(CONCATENATE("'",$A27,"'!$AA$3:$AA$203"))) -> 865.2129695 | P27: =SUMPRODUCT(INDIRECT(CONCATENATE("'",$A27,"'!$Y$3:$Y$203")),INDIRECT(CONCATENATE("'",$A27,"'!$AA$3:$AA$203"))) -> 407.5555836 | Q27: =SUM(B27:P27) -> 97429.01972 | R27: =C6 -> 97429.01972 | S27: =Q27-R27 -> 0
A28: Tac+MMF+ST | B28: =SUMPRODUCT(INDIRECT(CONCATENATE("'",$A28,"'!$I$3:$I$203")),INDIRECT(CONCATENATE("'",$A28,"'!$AA$3:$AA$203"))) -> 0 | C28: =SUMPRODUCT(INDIRECT(CONCATENATE("'",$A28,"'!$J$3:$J$203")),INDIRECT(CONCATENATE("'",$A28,"'!$AA$3:$AA$203")))+SUMPRODUCT(INDIRECT(CONCATENATE("'",$A28,"'!$K$3:$K$203")),INDIRECT(CONCATENATE("'",$A28,"'!$AA$3:$AA$203")))+SUMPRODUCT(INDIRECT(CONCATENATE("'",$A28,"'!$L$3:$L$203")),INDIRECT(CONCATENATE("'",$A28,"'!$AA$3:$AA$203"))) -> 14884.37608 | D28: =SUMPRODUCT(INDIRECT(CONCATENATE("'",$A28,"'!$M$3")),INDIRECT(CONCATENATE("'",$A28,"'!$AA$3"))) -> 867.262388 | E28: =SUMPRODUCT(INDIRECT(CONCATENATE("'",$A28,"'!$N$3:$N$203")),INDIRECT(CONCATENATE("'",$A28,"'!$AA$3:$AA$203"))) -> 116.6744347 | F28: =SUMPRODUCT(INDIRECT(CONCATENATE("'",$A28,"'!$O$3:$O$203")),INDIRECT(CONCATENATE("'",$A28,"'!$AA$3:$AA$203"))) -> 760.591958 | G28: =SUMPRODUCT(INDIRECT(CONCATENATE("'",$A28,"'!$P$3")),INDIRECT(CONCATENATE("'",$A28,"'!$AA$3"))) -> 313.4965379 | H28: =SUMPRODUCT(INDIRECT(CONCATENATE("'",$A28,"'!$Q$3:$Q$203")),INDIRECT(CONCATENATE("'",$A28,"'!$AA$3:$AA$203"))) -> 16365.28744 | I28: =SUMPRODUCT(INDIRECT(CONCATENATE("'",$A28,"'!$R$3:$R$203")),INDIRECT(CONCATENATE("'",$A28,"'!$AA$3:$AA$203"))) -> 4392.352804 | J28: =SUMPRODUCT(INDIRECT(CONCATENATE("'",$A28,"'!$S$3:$S$203")),INDIRECT(CONCATENATE("'",$A28,"'!$AA$3:$AA$203"))) -> 2402.515631 | K28: =SUMPRODUCT(INDIRECT(CONCATENATE("'",$A28,"'!$T$3:$T$203")),INDIRECT(CONCATENATE("'",$A28,"'!$AA$3:$AA$203"))) -> 3296.94024 | L28: =SUMPRODUCT(INDIRECT(CONCATENATE("'",$A28,"'!$U$3:$U$203")),INDIRECT(CONCATENATE("'",$A28,"'!$AA$3:$AA$203"))) -> 16.33521642 | M28: =SUMPRODUCT(INDIRECT(CONCATENATE("'",$A28,"'!$V$3:$V$203")),INDIRECT(CONCATENATE("'",$A28,"'!$AA$3:$AA$203"))) -> 44413.25653 | N28: =SUMPRODUCT(INDIRECT(CONCATENATE("'",$A28,"'!$W$3:$W$203")),INDIRECT(CONCATENATE("'",$A28,"'!$AA$3:$AA$203"))) -> 3113.442929 | O28: =SUMPRODUCT(INDIRECT(CONCATENATE("'",$A28,"'!$X$3:$X$203")),INDIRECT(CONCATENATE("'",$A28,"'!$AA$3:$AA$203"))) -> 876.6916891 | P28: =SUMPRODUCT(INDIRECT(CONCATENATE("'",$A28,"'!$Y$3:$Y$203")),INDIRECT(CONCATENATE("'",$A28,"'!$AA$3:$AA$203"))) -> 406.9012228 | Q28: =SUM(B28:P28) -> 92226.12511 | R28: =C7 -> 92226.12511 | S28: =Q28-R28 -> 0
A29: CsA+Aza+ST | B29: 0 | C29: 13518.98424 | D29: 1652.588744 | E29: 154.2104117 | F29: 755.4572544 | G29: 313.4965379 | H29: 15621.82491 | I29: 5453.822949 | J29: 3011.072461 | K29: 4132.054682 | L29: 20.46233412 | M29: 54263.76129 | N29: 1451.676346 | O29: 842.0264025 | P29: 403.8867891 | Q29: 101595.3253 | R29: 101595.3253 | S29: 0
A30: Tac+Aza+ST | B30: 0 | C30: 13346.60267 | D30: 1149.306755 | E30: 151.4140948 | F30: 751.4763102 | G30: 313.4965379 | H30: 16099.42574 | I30: 4651.778894 | J30: 2566.682991 | K30: 3522.224924 | L30: 17.44298936 | M30: 46357.9349 | N30: 3113.101286 | O30: 871.2013951 | P30: 406.8668113 | Q30: 93318.95629 | R30: 93318.95629 | S30: 0
A31: CsA+Evl+ST | B31: 0 | C31: 96482.00258 | D31: 964.8239485 | E31: 113.7001851 | F31: 762.3971164 | G31: 106.8209624 | H31: 18890.83992 | I31: 4495.024396 | J31: 2468.683255 | K31: 3387.741189 | L31: 16.78131347 | M31: 45572.20453 | N31: 1397.030318 | O31: 876.9304775 | P31: 619.3547036 | Q31: 176154.3349 | R31: 176154.3349 | S31: 0
A32: Tac+Srl+ST | B32: 0 | C32: 34841.44544 | D32: 842.2573101 | E32: 163.0812231 | F32: 750.921058 | G32: 106.8209624 | H32: 17976.97281 | I32: 5308.519052 | J32: 2908.477014 | K32: 3991.264315 | L32: 19.77352177 | M32: 52561.23747 | N32: 4622.511343 | O32: 838.4284881 | P32: 607.5399748 | Q32: 125539.25 | R32: 125539.25 | S32: 1.164153218e-10
A33: Tac-PR+MMF+ST | B33: 0 | C33: 27837.57371 | D33: 850.4023512 | E33: 127.5208982 | F33: 756.5151145 | G33: 313.4965379 | H33: 16175.96706 | I33: 4499.175412 | J33: 2463.452516 | K33: 3380.563116 | L33: 16.74858913 | M33: 45243.6457 | N33: 3592.470333 | O33: 867.6802019 | P33: 404.1717167 | Q33: 106529.3833 | R33: 106529.3833 | S33: 0
A34: Bas+CsA+MMF+ST | B34: 2187.819105 | C34: 16558.11275 | D34: 581.686529 | E34: 112.5343264 | F34: 763.8272993 | G34: 313.4965379 | H34: 16465.81016 | I34: 4453.954672 | J34: 2445.18068 | K34: 3355.488918 | L34: 16.62190776 | M34: 45195.48743 | N34: 1475.848886 | O34: 883.0940065 | P34: 410.3845373 | Q34: 95219.34775 | R34: 95219.34775 | S34: -1.164153218e-10
A35: Bas+Tac+MMF+ST | B35: 2187.819105 | C35: 15358.19661 | D35: 502.293547 | E35: 102.1140701 | F35: 763.2685537 | G35: 313.4965379 | H35: 16684.30233 | I35: 4009.506696 | J35: 2189.105046 | K35: 3004.079732 | L35: 14.88570856 | M35: 40839.50453 | N35: 3133.792127 | O35: 892.8941514 | P35: 409.4709285 | Q35: 90404.72967 | R35: 90404.72967 | S35: -1.455191523e-10
A36: Bas+CsA+Aza+ST | B36: 2187.819105 | C36: 14143.18021 | D36: 1065.156467 | E36: 134.0488872 | F36: 759.2649103 | G36: 313.4965379 | H36: 16056.55146 | I36: 4925.448951 | J36: 2713.048824 | K36: 3723.080809 | L36: 18.43942291 | M36: 49469.38834 | N36: 1464.168102 | O36: 863.5448005 | P36: 407.2434666 | Q36: 98243.88029 | R36: 98243.88029 | S36: 0
A37: Bas+Srl+MMF+ST | B37: 2187.819105 | C37: 35557.00064 | D37: 544.4059642 | E37: 128.146953 | F37: 756.7573759 | G37: 149.9718174 | H37: 16282.63044 | I37: 4439.03678 | J37: 2441.046685 | K37: 3349.815892 | L37: 16.59227403 | M37: 44684.11041 | N37: 2518.320187 | O37: 875.8688836 | P37: 617.1929147 | Q37: 114548.7163 | R37: 114548.7163 | S37: 0
A38: Bas+Bela+MMF+ST | B38: 2187.819105 | C38: 140512.1678 | D38: 903.6186057 | E38: 95.61775523 | F38: 767.3395546 | G38: 313.4965379 | H38: 14425.87998 | I38: 3838.16743 | J38: 2111.058914 | K38: 2896.978064 | L38: 14.34911986 | M38: 39349.6081 | N38: 658.0002515 | O38: 916.9949557 | P38: 417.6012154 | Q38: 209408.6974 | R38: 209408.6974 | S38: 0
A39: Bas+CsA+EC-MPS+ST | B39: 2187.819105 | C39: 35617.02471 | D39: 809.1854713 | E39: 102.6030607 | F39: 766.4652436 | G39: 313.4965379 | H39: 16744.11543 | I39: 4180.753929 | J39: 2292.886967 | K39: 3146.498282 | L39: 15.58751343 | M39: 42660.2832 | N39: 1391.433183 | O39: 898.0912702 | P39: 413.6333204 | Q39: 111539.8772 | R39: 111539.8772 | S39: 0
A40: rATG+CsA+MMF+ST | B40: 4255.488848 | C40: 16025.55894 | D40: 422.9716971 | E40: 115.8044265 | F40: 1691.562855 | G40: 313.4965379 | H40: 16200.26256 | I40: 4846.523391 | J40: 2657.119094 | K40: 3646.329185 | L40: 18.0639787 | M40: 49005.1196 | N40: 1466.838262 | O40: 866.6294899 | P40: 407.9703214 | Q40: 101939.7392 | R40: 101939.7392 | S40: 0
A41: rATG+Tac+MMF+ST | B41: 4255.488848 | C41: 14914.05966 | D41: 363.0225373 | E41: 105.5456871 | F41: 1690.885856 | G41: 313.4965379 | H41: 16441.78403 | I41: 4387.849331 | J41: 2391.366054 | K41: 3281.639823 | L41: 16.26269891 | M41: 44581.38717 | N41: 3118.139397 | O41: 877.7244279 | P41: 407.5065998 | Q41: 97146.15866 | R41: 97146.15866 | S41: 0
A42: rATG+CsA+Aza+ST | B42: 4255.488848 | C42: 13728.29148 | D42: 804.46717 | E42: 135.839782 | F42: 1683.148905 | G42: 313.4965379 | H42: 15823.46521 | I42: 5284.328872 | J42: 2906.666726 | K42: 3988.78008 | L42: 19.75688843 | M42: 52916.16869 | N42: 1456.381214 | O42: 848.8915661 | P42: 405.1584683 | Q42: 104570.3304 | R42: 104570.3304 | S42: 1.309672371e-10
A44: Other outcomes
A45: Arm | B45: Pts receiving retransplant | E45: Undiscounted LYs | I45: Mortality within 12 months | K45: Graft survival at 12 months
B46: 2nd | C46: % pre-emptive | D46: 3rd | E46: Functioning graft | G46: Graft loss | H46: Total | J46: OR vs baseline | K46: Censored for DWFG | L46: Odds of DCGL | M46: OR vs baseline
A47: CsA+MMF+ST | B47: =SUM('CsA+MMF+ST'!$BB$3:$BC$203,'CsA+MMF+ST'!$BJ$3:$BK$203) -> 0.237749952 | C47: =SUM('CsA+MMF+ST'!$BB$3:$BC$203)/SUM('CsA+MMF+ST'!$BB$3:$BC$203,'CsA+MMF+ST'!$BJ$3:$BK$203) -> 0.1051802883 | D47: =SUM('CsA+MMF+ST'!$BQ$3:$BR$203) -> 0.02666891988 | E47: =SUM('CsA+MMF+ST'!$DZ$3:$DZ$203,'CsA+MMF+ST'!$EB$3:$EB$203,'CsA+MMF+ST'!$ED$3:$ED$203)*cycle_length -> 19.07047767 | G47: =SUM('CsA+MMF+ST'!$EA$3:$EA$203,'CsA+MMF+ST'!$EC$3:$EC$203,'CsA+MMF+ST'!$EE$3:$EE$203)*cycle_length -> 3.326478244 | H47: =SUM(E47:G47) -> 22.39695592 | I47: ='CsA+MMF+ST'!$G$7 -> 0.009648665468 | J47: =(I47/(1-I47))/(I$55/(1-I$55)) -> 0.6350183493 | K47: =INDIRECT(CONCATENATE("'",A47,"'!$DW$7")) -> 0.9537763243 | L47: =(1-K47)/K47 -> 0.04846385309 | M47: =L47/$L$55 -> 1.329291095
A48: Tac+MMF+ST | B48: =SUM('Tac+MMF+ST'!$BB$3:$BC$203,'Tac+MMF+ST'!$BJ$3:$BK$203) -> 0.2139379847 | C48: =SUM('Tac+MMF+ST'!$BB$3:$BC$203)/SUM('Tac+MMF+ST'!$BB$3:$BC$203,'Tac+MMF+ST'!$BJ$3:$BK$203) -> 0.104786164 | D48: =SUM('Tac+MMF+ST'!$BQ$3:$BR$203) -> 0.02393696326 | E48: =SUM('Tac+MMF+ST'!$DZ$3:$DZ$203,'Tac+MMF+ST'!$EB$3:$EB$203,'Tac+MMF+ST'!$ED$3:$ED$203)*cycle_length -> 19.40674822 | G48: =SUM('Tac+MMF+ST'!$EA$3:$EA$203,'Tac+MMF+ST'!$EC$3:$EC$203,'Tac+MMF+ST'!$EE$3:$EE$203)*cycle_length -> 3.014202214 | H48: 22.42095043 | I48: ='Tac+MMF+ST'!$G$7 -> 0.01520859645 | J48: 1.006591374 | K48: =INDIRECT(CONCATENATE("'",A48,"'!$DW$7")) -> 0.9572829978 | L48: =(1-K48)/K48 -> 0.04462317026 | M48: =L48/$L$55 -> 1.223946902
A49: CsA+Aza+ST | B49: =SUM('CsA+Aza+ST'!$BB$3:$BC$203,'CsA+Aza+ST'!$BJ$3:$BK$203) -> 0.2630455299 | C49: =SUM('CsA+Aza+ST'!$BB$3:$BC$203)/SUM('CsA+Aza+ST'!$BB$3:$BC$203,'CsA+Aza+ST'!$BJ$3:$BK$203) -> 0.1054691659 | D49: =SUM('CsA+Aza+ST'!$BQ$3:$BR$203) -> 0.0301457383 | E49: =SUM('CsA+Aza+ST'!$DZ$3:$DZ$203,'CsA+Aza+ST'!$EB$3:$EB$203,'CsA+Aza+ST'!$ED$3:$ED$203)*cycle_length -> 18.4710027 | G49: =SUM('CsA+Aza+ST'!$EA$3:$EA$203,'CsA+Aza+ST'!$EC$3:$EC$203,'CsA+Aza+ST'!$EE$3:$EE$203)*cycle_length -> 3.630606562 | H49: 22.10160926 | I49: ='CsA+Aza+ST'!$G$7 -> 0.01019001298 | J49: 0.6710134453 | K49: 0.938768217 | L49: 0.06522566684 | M49: 1.789042607
A50: Tac+Aza+ST | B50: =SUM('Tac+Aza+ST'!$BB$3:$BC$203,'Tac+Aza+ST'!$BJ$3:$BK$203) -> 0.2216155204 | C50: =SUM('Tac+Aza+ST'!$BB$3:$BC$203)/SUM('Tac+Aza+ST'!$BB$3:$BC$203,'Tac+Aza+ST'!$BJ$3:$BK$203) -> 0.1051961195 | D50: =SUM('Tac+Aza+ST'!$BQ$3:$BR$203) -> 0.02604822194 | E50: =SUM('Tac+Aza+ST'!$DZ$3:$DZ$203,'Tac+Aza+ST'!$EB$3:$EB$203,'Tac+Aza+ST'!$ED$3:$ED$203)*cycle_length -> 19.34195443 | G50: =SUM('Tac+Aza+ST'!$EA$3:$EA$203,'Tac+Aza+ST'!$EC$3:$EC$203,'Tac+Aza+ST'!$EE$3:$EE$203)*cycle_length -> 3.087752532 | H50: 22.42970696 | I50: ='Tac+Aza+ST'!$G$7 -> 0.01380209179 | J50: 0.912198074 | K50: 0.9305501117 | L50: 0.07463315237 | M50: 2.047075882
A51: CsA+Evl+ST | B51: =SUM('CsA+Evl+ST'!$BB$3:$BC$203,'CsA+Evl+ST'!$BJ$3:$BK$203) -> 0.21995391 | C51: =SUM('CsA+Evl+ST'!$BB$3:$BC$203)/SUM('CsA+Evl+ST'!$BB$3:$BC$203,'CsA+Evl+ST'!$BJ$3:$BK$203) -> 0.1049174929 | D51: =SUM('CsA+Evl+ST'!$BQ$3:$BR$203) -> 0.02440389766 | E51: =SUM('CsA+Evl+ST'!$DZ$3:$DZ$203,'CsA+Evl+ST'!$EB$3:$EB$203,'CsA+Evl+ST'!$ED$3:$ED$203)*cycle_length -> 19.40367274 | G51: =SUM('CsA+Evl+ST'!$EA$3:$EA$203,'CsA+Evl+ST'!$EC$3:$EC$203,'CsA+Evl+ST'!$EE$3:$EE$203)*cycle_length -> 3.105104025 | H51: 22.50877676 | I51: ='CsA+Evl+ST'!$G$7 -> 0.01394212118 | J51: 0.9215836526 | K51: 0.9613877193 | L51: 0.0401630684 | M51: 1.10161297
A52: Tac+Srl+ST | B52: =SUM('Tac+Srl+ST'!$BB$3:$BC$203,'Tac+Srl+ST'!$BJ$3:$BK$203) -> 0.2539231294 | C52: =SUM('Tac+Srl+ST'!$BB$3:$BC$203)/SUM('Tac+Srl+ST'!$BB$3:$BC$203,'Tac+Srl+ST'!$BJ$3:$BK$203) -> 0.1053851907 | D52: =SUM('Tac+Srl+ST'!$BQ$3:$BR$203) -> 0.029525569 | E52: =SUM('Tac+Srl+ST'!$DZ$3:$DZ$203,'Tac+Srl+ST'!$EB$3:$EB$203,'Tac+Srl+ST'!$ED$3:$ED$203)*cycle_length -> 18.39511407 | G52: =SUM('Tac+Srl+ST'!$EA$3:$EA$203,'Tac+Srl+ST'!$EC$3:$EC$203,'Tac+Srl+ST'!$EE$3:$EE$203)*cycle_length -> 3.490955375 | H52: 21.88606944 | I52: ='Tac+Srl+ST'!$G$7 -> 0.01382092808 | J52: 0.9134604359 | K52: 0.9290226662 | L52: 0.07640000224 | M52: 2.095537935
A53: Tac-PR+MMF+ST | B53: =SUM('Tac-PR+MMF+ST'!$BB$3:$BC$203,'Tac-PR+MMF+ST'!$BJ$3:$BK$203) -> 0.2176353672 | C53: =SUM('Tac-PR+MMF+ST'!$BB$3:$BC$203)/SUM('Tac-PR+MMF+ST'!$BB$3:$BC$203,'Tac-PR+MMF+ST'!$BJ$3:$BK$203) -> 0.1048827413 | D53: =SUM('Tac-PR+MMF+ST'!$BQ$3:$BR$203) -> 0.02471588248 | E53: =SUM('Tac-PR+MMF+ST'!$DZ$3:$DZ$203,'Tac-PR+MMF+ST'!$EB$3:$EB$203,'Tac-PR+MMF+ST'!$ED$3:$ED$203)*cycle_length -> 19.19753919 | G53: =SUM('Tac-PR+MMF+ST'!$EA$3:$EA$203,'Tac-PR+MMF+ST'!$EC$3:$EC$203,'Tac-PR+MMF+ST'!$EE$3:$EE$203)*cycle_length -> 3.050590667 | H53: 22.24812986 | I53: ='Tac-PR+MMF+ST'!$G$7 -> 0.01940859532 | J53: 1.290073159 | K53: 0.9491525637 | L53: 0.05357140495 | M53: 1.469383613
A54: Bas+CsA+MMF+ST | B54: =SUM('Bas+CsA+MMF+ST'!$BB$3:$BC$203,'Bas+CsA+MMF+ST'!$BJ$3:$BK$203) -> 0.2180285946 | C54: =SUM('Bas+CsA+MMF+ST'!$BB$3:$BC$203)/SUM('Bas+CsA+MMF+ST'!$BB$3:$BC$203,'Bas+CsA+MMF+ST'!$BJ$3:$BK$203) -> 0.1049052719 | D54: =SUM('Bas+CsA+MMF+ST'!$BQ$3:$BR$203) -> 0.02416704393 | E54: =SUM('Bas+CsA+MMF+ST'!$DZ$3:$DZ$203,'Bas+CsA+MMF+ST'!$EB$3:$EB$203,'Bas+CsA+MMF+ST'!$ED$3:$ED$203)*cycle_length -> 19.55387403 | G54: =SUM('Bas+CsA+MMF+ST'!$EA$3:$EA$203,'Bas+CsA+MMF+ST'!$EC$3:$EC$203,'Bas+CsA+MMF+ST'!$EE$3:$EE$203)*cycle_length -> 3.081653574 | H54: =SUM(E54:G54) -> 22.6355276 | I54: ='Bas+CsA+MMF+ST'!$G$7 -> 0.009570953066 | J54: =(I54/(1-I54))/(I$55/(1-I$55)) -> 0.6298543521 | K54: 0.961912246 | L54: 0.03959587178 | M54: 1.086055614
A55: Bas+Tac+MMF+ST | B55: =SUM('Bas+Tac+MMF+ST'!$BB$3:$BC$203,'Bas+Tac+MMF+ST'!$BJ$3:$BK$203) -> 0.1962206539 | C55: =SUM('Bas+Tac+MMF+ST'!$BB$3:$BC$203)/SUM('Bas+Tac+MMF+ST'!$BB$3:$BC$203,'Bas+Tac+MMF+ST'!$BJ$3:$BK$203) -> 0.1044058169 | D55: =SUM('Bas+Tac+MMF+ST'!$BQ$3:$BR$203) -> 0.02172042348 | E55: =SUM('Bas+Tac+MMF+ST'!$DZ$3:$DZ$203,'Bas+Tac+MMF+ST'!$EB$3:$EB$203,'Bas+Tac+MMF+ST'!$ED$3:$ED$203)*cycle_length -> 19.85007693 | G55: =SUM('Bas+Tac+MMF+ST'!$EA$3:$EA$203,'Bas+Tac+MMF+ST'!$EC$3:$EC$203,'Bas+Tac+MMF+ST'!$EE$3:$EE$203)*cycle_length -> 2.789782825 | H55: 22.63985976 | I55: ='Bas+Tac+MMF+ST'!$G$7 -> 0.01511051218 | J55: 1 | K55: 0.9648240399 | L55: 0.03645842004 | M55: 1
A56: Bas+CsA+Aza+ST | B56: =SUM('Bas+CsA+Aza+ST'!$BB$3:$BC$203,'Bas+CsA+Aza+ST'!$BJ$3:$BK$203) -> 0.2390362647 | C56: =SUM('Bas+CsA+Aza+ST'!$BB$3:$BC$203)/SUM('Bas+CsA+Aza+ST'!$BB$3:$BC$203,'Bas+CsA+Aza+ST'!$BJ$3:$BK$203) -> 0.1052406603 | D56: =SUM('Bas+CsA+Aza+ST'!$BQ$3:$BR$203) -> 0.02701711039 | E56: =SUM('Bas+CsA+Aza+ST'!$DZ$3:$DZ$203,'Bas+CsA+Aza+ST'!$EB$3:$EB$203,'Bas+CsA+Aza+ST'!$ED$3:$ED$203)*cycle_length -> 19.04128734 | G56: =SUM('Bas+CsA+Aza+ST'!$EA$3:$EA$203,'Bas+CsA+Aza+ST'!$EC$3:$EC$203,'Bas+CsA+Aza+ST'!$EE$3:$EE$203)*cycle_length -> 3.338998827 | H56: 22.38028617 | I56: ='Bas+CsA+Aza+ST'!$G$7 -> 0.01011027194 | J56: 0.6657088587 | K56: 0.9494057306 | L56: 0.05329046138 | M56: 1.46167775
A57: Bas+Srl+MMF+ST | B57: =SUM('Bas+Srl+MMF+ST'!$BB$3:$BC$203,'Bas+Srl+MMF+ST'!$BJ$3:$BK$203) -> 0.2144245389 | C57: =SUM('Bas+Srl+MMF+ST'!$BB$3:$BC$203)/SUM('Bas+Srl+MMF+ST'!$BB$3:$BC$203,'Bas+Srl+MMF+ST'!$BJ$3:$BK$203) -> 0.1049304325 | D57: =SUM('Bas+Srl+MMF+ST'!$BQ$3:$BR$203) -> 0.02446036933 | E57: =SUM('Bas+Srl+MMF+ST'!$DZ$3:$DZ$203,'Bas+Srl+MMF+ST'!$EB$3:$EB$203,'Bas+Srl+MMF+ST'!$ED$3:$ED$203)*cycle_length -> 19.43434784 | G57: =SUM('Bas+Srl+MMF+ST'!$EA$3:$EA$203,'Bas+Srl+MMF+ST'!$EC$3:$EC$203,'Bas+Srl+MMF+ST'!$EE$3:$EE$203)*cycle_length -> 3.013685535 | H57: 22.44803338 | I57: ='Bas+Srl+MMF+ST'!$G$7 -> 0.01700436222 | J57: 1.127501358 | K57: 0.9478932578 | L57: 0.05497110748 | M57: 1.507775362
A58: Bas+Bela+MMF+ST | B58: =SUM('Bas+Bela+MMF+ST'!$BB$3:$BC$203,'Bas+Bela+MMF+ST'!$BJ$3:$BK$203) -> 0.1884252094 | C58: =SUM('Bas+Bela+MMF+ST'!$BB$3:$BC$203)/SUM('Bas+Bela+MMF+ST'!$BB$3:$BC$203,'Bas+Bela+MMF+ST'!$BJ$3:$BK$203) -> 0.1044011906 | D58: =SUM('Bas+Bela+MMF+ST'!$BQ$3:$BR$203) -> 0.02077160188 | E58: =SUM('Bas+Bela+MMF+ST'!$DZ$3:$DZ$203,'Bas+Bela+MMF+ST'!$EB$3:$EB$203,'Bas+Bela+MMF+ST'!$ED$3:$ED$203)*cycle_length -> 20.50237081 | G58: =SUM('Bas+Bela+MMF+ST'!$EA$3:$EA$203,'Bas+Bela+MMF+ST'!$EC$3:$EC$203,'Bas+Bela+MMF+ST'!$EE$3:$EE$203)*cycle_length -> 2.703729236 | H58: 23.20610005 | I58: ='Bas+Bela+MMF+ST'!$G$7 -> 0.005207800024 | J58: 0.3412166734 | K58: 0.968408829 | L58: 0.03262172968 | M58: 0.8947653146
A59: Bas+CsA+EC-MPS+ST | B59: =SUM('Bas+CsA+EC-MPS+ST'!$BB$3:$BC$203,'Bas+CsA+EC-MPS+ST'!$BJ$3:$BK$203) -> 0.2053725097 | C59: =SUM('Bas+CsA+EC-MPS+ST'!$BB$3:$BC$203)/SUM('Bas+CsA+EC-MPS+ST'!$BB$3:$BC$203,'Bas+CsA+EC-MPS+ST'!$BJ$3:$BK$203) -> 0.1046925023 | D59: =SUM('Bas+CsA+EC-MPS+ST'!$BQ$3:$BR$203) -> 0.02258655946 | E59: =SUM('Bas+CsA+EC-MPS+ST'!$DZ$3:$DZ$203,'Bas+CsA+EC-MPS+ST'!$EB$3:$EB$203,'Bas+CsA+EC-MPS+ST'!$ED$3:$ED$203)*cycle_length -> 19.95329673 | G59: =SUM('Bas+CsA+EC-MPS+ST'!$EA$3:$EA$203,'Bas+CsA+EC-MPS+ST'!$EC$3:$EC$203,'Bas+CsA+EC-MPS+ST'!$EE$3:$EE$203)*cycle_length -> 2.923208888 | H59: =SUM(E59:G59) -> 22.87650562 | I59: ='Bas+CsA+EC-MPS+ST'!$G$7 -> 0.006502961823 | J59: 0.4266315259 | K59: 0.9669569445 | L59: 0.03417220975 | M59: 0.937292667
A60: rATG+CsA+MMF+ST | B60: =SUM('rATG+CsA+MMF+ST'!$BB$3:$BC$203,'rATG+CsA+MMF+ST'!$BJ$3:$BK$203) -> 0.2379823343 | C60: =SUM('rATG+CsA+MMF+ST'!$BB$3:$BC$203)/SUM('rATG+CsA+MMF+ST'!$BB$3:$BC$203,'rATG+CsA+MMF+ST'!$BJ$3:$BK$203) -> 0.1050557392 | D60: =SUM('rATG+CsA+MMF+ST'!$BQ$3:$BR$203) -> 0.02619288448 | E60: =SUM('rATG+CsA+MMF+ST'!$DZ$3:$DZ$203,'rATG+CsA+MMF+ST'!$EB$3:$EB$203,'rATG+CsA+MMF+ST'!$ED$3:$ED$203)*cycle_length -> 19.06504874 | G60: =SUM('rATG+CsA+MMF+ST'!$EA$3:$EA$203,'rATG+CsA+MMF+ST'!$EC$3:$EC$203,'rATG+CsA+MMF+ST'!$EE$3:$EE$203)*cycle_length -> 3.338308577 | H60: =SUM(E60:G60) -> 22.40335732 | I60: ='rATG+CsA+MMF+ST'!$G$7 -> 0.008184208589 | J60: =(I60/(1-I60))/(I$55/(1-I$55)) -> 0.5378411014 | K60: 0.9642706787 | L60: 0.03705320724 | M60: 1.016314125
A61: rATG+Tac+MMF+ST | B61: =SUM('rATG+Tac+MMF+ST'!$BB$3:$BC$203,'rATG+Tac+MMF+ST'!$BJ$3:$BK$203) -> 0.215641548 | C61: =SUM('rATG+Tac+MMF+ST'!$BB$3:$BC$203)/SUM('rATG+Tac+MMF+ST'!$BB$3:$BC$203,'rATG+Tac+MMF+ST'!$BJ$3:$BK$203) -> 0.1047000446 | D61: =SUM('rATG+Tac+MMF+ST'!$BQ$3:$BR$203) -> 0.02364177482 | E61: =SUM('rATG+Tac+MMF+ST'!$DZ$3:$DZ$203,'rATG+Tac+MMF+ST'!$EB$3:$EB$203,'rATG+Tac+MMF+ST'!$ED$3:$ED$203)*cycle_length -> 19.38537669 | G61: =SUM('rATG+Tac+MMF+ST'!$EA$3:$EA$203,'rATG+Tac+MMF+ST'!$EC$3:$EC$203,'rATG+Tac+MMF+ST'!$EE$3:$EE$203)*cycle_length -> 3.046204442 | H61: =SUM(E61:G61) -> 22.43158113 | I61: ='rATG+Tac+MMF+ST'!$G$7 -> 0.01277509972 | J61: =(I61/(1-I61))/(I$55/(1-I$55)) -> 0.843444508 | K61: 0.9670036278 | L61: 0.03412228383 | M61: 0.9359232734
A62: rATG+CsA+Aza+ST | B62: =SUM('rATG+CsA+Aza+ST'!$BB$3:$BC$203,'rATG+CsA+Aza+ST'!$BJ$3:$BK$203) -> 0.2572962374 | C62: =SUM('rATG+CsA+Aza+ST'!$BB$3:$BC$203)/SUM('rATG+CsA+Aza+ST'!$BB$3:$BC$203,'rATG+CsA+Aza+ST'!$BJ$3:$BK$203) -> 0.1052894482 | D62: =SUM('rATG+CsA+Aza+ST'!$BQ$3:$BR$203) -> 0.02886705019 | E62: =SUM('rATG+CsA+Aza+ST'!$DZ$3:$DZ$203,'rATG+CsA+Aza+ST'!$EB$3:$EB$203,'rATG+CsA+Aza+ST'!$ED$3:$ED$203)*cycle_length -> 18.60858638 | G62: =SUM('rATG+CsA+Aza+ST'!$EA$3:$EA$203,'rATG+CsA+Aza+ST'!$EC$3:$EC$203,'rATG+CsA+Aza+ST'!$EE$3:$EE$203)*cycle_length -> 3.569686894 | H62: 22.17827328 | I62: ='rATG+CsA+Aza+ST'!$G$7 -> 0.008649862612 | J62: =(I62/(1-I62))/(I$55/(1-I$55)) -> 0.5687094635 | K62: 0.9524997026 | L62: 0.0498690942 | M62: 1.367834759

Sheet Frontier calculation
A1: DETERMINISTIC | C1: Versus
C2: =TRANSPOSE(Results!L6:L21) -> Tac+Srl+ST | D2: CsA+Aza+ST | E2: Tac-PR+MMF+ST | F2: rATG+CsA+Aza+ST | G2: Tac+Aza+ST | H2: Tac+MMF+ST | I2: Bas+Srl+MMF+ST | J2: Bas+CsA+Aza+ST | K2: rATG+Tac+MMF+ST | L2: CsA+MMF+ST | M2: rATG+CsA+MMF+ST | N2: CsA+Evl+ST | O2: Bas+Tac+MMF+ST | P2: Bas+CsA+MMF+ST | Q2: Bas+CsA+EC-MPS+ST | R2: Bas+Bela+MMF+ST | S2: MAX | T2: ED | U2: D/ED
A3: ICER of | B3: =Results!L6:L21 -> Tac+Srl+ST
B4: CsA+Aza+ST | C4: =(VLOOKUP($B4,Results!$A$6:$E$21,3,FALSE)-VLOOKUP(C$2,Results!$A$6:$E$21,3,FALSE))/(VLOOKUP($B4,Results!$A$6:$E$21,5,FALSE)-VLOOKUP(C$2,Results!$A$6:$E$21,5,FALSE)) -> -141873.0801 | S4: =MAX(C4:R4) -> -141873.0801 | T4: =S4:S17>TRANSPOSE(D20:Q20) -> FALSE | U4: =OR(T4,Results!O6) -> TRUE
B5: Tac-PR+MMF+ST | C5: =(VLOOKUP($B5,Results!$A$6:$E$21,3,FALSE)-VLOOKUP(C$2,Results!$A$6:$E$21,3,FALSE))/(VLOOKUP($B5,Results!$A$6:$E$21,5,FALSE)-VLOOKUP(C$2,Results!$A$6:$E$21,5,FALSE)) -> -100198.3544 | D5: =(VLOOKUP($B5,Results!$A$6:$E$21,3,FALSE)-VLOOKUP(D$2,Results!$A$6:$E$21,3,FALSE))/(VLOOKUP($B5,Results!$A$6:$E$21,5,FALSE)-VLOOKUP(D$2,Results!$A$6:$E$21,5,FALSE)) -> 235489.9233 | S5: 235489.9233 | T5: TRUE | U5: =OR(T5,Results!O7) -> TRUE
B6: rATG+CsA+Aza+ST | C6: =(VLOOKUP($B6,Results!$A$6:$E$21,3,FALSE)-VLOOKUP(C$2,Results!$A$6:$E$21,3,FALSE))/(VLOOKUP($B6,Results!$A$6:$E$21,5,FALSE)-VLOOKUP(C$2,Results!$A$6:$E$21,5,FALSE)) -> -97132.05881 | D6: =(VLOOKUP($B6,Results!$A$6:$E$21,3,FALSE)-VLOOKUP(D$2,Results!$A$6:$E$21,3,FALSE))/(VLOOKUP($B6,Results!$A$6:$E$21,5,FALSE)-VLOOKUP(D$2,Results!$A$6:$E$21,5,FALSE)) -> 63149.52887 | E6: =(VLOOKUP($B6,Results!$A$6:$E$21,3,FALSE)-VLOOKUP(E$2,Results!$A$6:$E$21,3,FALSE))/(VLOOKUP($B6,Results!$A$6:$E$21,5,FALSE)-VLOOKUP(E$2,Results!$A$6:$E$21,5,FALSE)) -> -74892.55888 | S6: 63149.52887 | T6: TRUE | U6: =OR(T6,Results!O8) -> TRUE
B7: Tac+Aza+ST | C7: =(VLOOKUP($B7,Results!$A$6:$E$21,3,FALSE)-VLOOKUP(C$2,Results!$A$6:$E$21,3,FALSE))/(VLOOKUP($B7,Results!$A$6:$E$21,5,FALSE)-VLOOKUP(C$2,Results!$A$6:$E$21,5,FALSE)) -> -120516.5645 | D7: =(VLOOKUP($B7,Results!$A$6:$E$21,3,FALSE)-VLOOKUP(D$2,Results!$A$6:$E$21,3,FALSE))/(VLOOKUP($B7,Results!$A$6:$E$21,5,FALSE)-VLOOKUP(D$2,Results!$A$6:$E$21,5,FALSE)) -> -83954.5495 | E7: =(VLOOKUP($B7,Results!$A$6:$E$21,3,FALSE)-VLOOKUP(E$2,Results!$A$6:$E$21,3,FALSE))/(VLOOKUP($B7,Results!$A$6:$E$21,5,FALSE)-VLOOKUP(E$2,Results!$A$6:$E$21,5,FALSE)) -> -170173.3539 | F7: =(VLOOKUP($B7,Results!$A$6:$E$21,3,FALSE)-VLOOKUP(F$2,Results!$A$6:$E$21,3,FALSE))/(VLOOKUP($B7,Results!$A$6:$E$21,5,FALSE)-VLOOKUP(F$2,Results!$A$6:$E$21,5,FALSE)) -> -218596.1398 | S7: -83954.5495 | T7: FALSE | U7: =OR(T7,Results!O9) -> TRUE
B8: Tac+MMF+ST | C8: =(VLOOKUP($B8,Results!$A$6:$E$21,3,FALSE)-VLOOKUP(C$2,Results!$A$6:$E$21,3,FALSE))/(VLOOKUP($B8,Results!$A$6:$E$21,5,FALSE)-VLOOKUP(C$2,Results!$A$6:$E$21,5,FALSE)) -> -116432.024 | D8: =(VLOOKUP($B8,Results!$A$6:$E$21,3,FALSE)-VLOOKUP(D$2,Results!$A$6:$E$21,3,FALSE))/(VLOOKUP($B8,Results!$A$6:$E$21,5,FALSE)-VLOOKUP(D$2,Results!$A$6:$E$21,5,FALSE)) -> -79842.19248 | E8: =(VLOOKUP($B8,Results!$A$6:$E$21,3,FALSE)-VLOOKUP(E$2,Results!$A$6:$E$21,3,FALSE))/(VLOOKUP($B8,Results!$A$6:$E$21,5,FALSE)-VLOOKUP(E$2,Results!$A$6:$E$21,5,FALSE)) -> -148383.0212 | F8: =(VLOOKUP($B8,Results!$A$6:$E$21,3,FALSE)-VLOOKUP(F$2,Results!$A$6:$E$21,3,FALSE))/(VLOOKUP($B8,Results!$A$6:$E$21,5,FALSE)-VLOOKUP(F$2,Results!$A$6:$E$21,5,FALSE)) -> -175753.2693 | G8: =(VLOOKUP($B8,Results!$A$6:$E$21,3,FALSE)-VLOOKUP(G$2,Results!$A$6:$E$21,3,FALSE))/(VLOOKUP($B8,Results!$A$6:$E$21,5,FALSE)-VLOOKUP(G$2,Results!$A$6:$E$21,5,FALSE)) -> -58237.93618 | S8: -58237.93618 | T8: FALSE | U8: =OR(T8,Results!O10) -> TRUE
B9: Bas+Srl+MMF+ST | C9: =(VLOOKUP($B9,Results!$A$6:$E$21,3,FALSE)-VLOOKUP(C$2,Results!$A$6:$E$21,3,FALSE))/(VLOOKUP($B9,Results!$A$6:$E$21,5,FALSE)-VLOOKUP(C$2,Results!$A$6:$E$21,5,FALSE)) -> -36789.37634 | D9: =(VLOOKUP($B9,Results!$A$6:$E$21,3,FALSE)-VLOOKUP(D$2,Results!$A$6:$E$21,3,FALSE))/(VLOOKUP($B9,Results!$A$6:$E$21,5,FALSE)-VLOOKUP(D$2,Results!$A$6:$E$21,5,FALSE)) -> 99662.92425 | E9: =(VLOOKUP($B9,Results!$A$6:$E$21,3,FALSE)-VLOOKUP(E$2,Results!$A$6:$E$21,3,FALSE))/(VLOOKUP($B9,Results!$A$6:$E$21,5,FALSE)-VLOOKUP(E$2,Results!$A$6:$E$21,5,FALSE)) -> 73558.56594 | F9: =(VLOOKUP($B9,Results!$A$6:$E$21,3,FALSE)-VLOOKUP(F$2,Results!$A$6:$E$21,3,FALSE))/(VLOOKUP($B9,Results!$A$6:$E$21,5,FALSE)-VLOOKUP(F$2,Results!$A$6:$E$21,5,FALSE)) -> 120422.4241 | G9: =(VLOOKUP($B9,Results!$A$6:$E$21,3,FALSE)-VLOOKUP(G$2,Results!$A$6:$E$21,3,FALSE))/(VLOOKUP($B9,Results!$A$6:$E$21,5,FALSE)-VLOOKUP(G$2,Results!$A$6:$E$21,5,FALSE)) -> 676312.2566 | H9: =(VLOOKUP($B9,Results!$A$6:$E$21,3,FALSE)-VLOOKUP(H$2,Results!$A$6:$E$21,3,FALSE))/(VLOOKUP($B9,Results!$A$6:$E$21,5,FALSE)-VLOOKUP(H$2,Results!$A$6:$E$21,5,FALSE)) -> 1768051.261 | S9: 1768051.261 | T9: TRUE | U9: =OR(T9,Results!O11) -> TRUE
B10: Bas+CsA+Aza+ST | C10: =(VLOOKUP($B10,Results!$A$6:$E$21,3,FALSE)-VLOOKUP(C$2,Results!$A$6:$E$21,3,FALSE))/(VLOOKUP($B10,Results!$A$6:$E$21,5,FALSE)-VLOOKUP(C$2,Results!$A$6:$E$21,5,FALSE)) -> -90790.06861 | D10: =(VLOOKUP($B10,Results!$A$6:$E$21,3,FALSE)-VLOOKUP(D$2,Results!$A$6:$E$21,3,FALSE))/(VLOOKUP($B10,Results!$A$6:$E$21,5,FALSE)-VLOOKUP(D$2,Results!$A$6:$E$21,5,FALSE)) -> -25414.25486 | E10: =(VLOOKUP($B10,Results!$A$6:$E$21,3,FALSE)-VLOOKUP(E$2,Results!$A$6:$E$21,3,FALSE))/(VLOOKUP($B10,Results!$A$6:$E$21,5,FALSE)-VLOOKUP(E$2,Results!$A$6:$E$21,5,FALSE)) -> -74697.78041 | F10: =(VLOOKUP($B10,Results!$A$6:$E$21,3,FALSE)-VLOOKUP(F$2,Results!$A$6:$E$21,3,FALSE))/(VLOOKUP($B10,Results!$A$6:$E$21,5,FALSE)-VLOOKUP(F$2,Results!$A$6:$E$21,5,FALSE)) -> -74637.67045 | G10: =(VLOOKUP($B10,Results!$A$6:$E$21,3,FALSE)-VLOOKUP(G$2,Results!$A$6:$E$21,3,FALSE))/(VLOOKUP($B10,Results!$A$6:$E$21,5,FALSE)-VLOOKUP(G$2,Results!$A$6:$E$21,5,FALSE)) -> 147935.1369 | H10: =(VLOOKUP($B10,Results!$A$6:$E$21,3,FALSE)-VLOOKUP(H$2,Results!$A$6:$E$21,3,FALSE))/(VLOOKUP($B10,Results!$A$6:$E$21,5,FALSE)-VLOOKUP(H$2,Results!$A$6:$E$21,5,FALSE)) -> 414269.9958 | I10: =(VLOOKUP($B10,Results!$A$6:$E$21,3,FALSE)-VLOOKUP(I$2,Results!$A$6:$E$21,3,FALSE))/(VLOOKUP($B10,Results!$A$6:$E$21,5,FALSE)-VLOOKUP(I$2,Results!$A$6:$E$21,5,FALSE)) -> -8578633.979 | S10: 414269.9958 | T10: TRUE | U10: =OR(T10,Results!O12) -> TRUE
B11: rATG+Tac+MMF+ST | C11: =(VLOOKUP($B11,Results!$A$6:$E$21,3,FALSE)-VLOOKUP(C$2,Results!$A$6:$E$21,3,FALSE))/(VLOOKUP($B11,Results!$A$6:$E$21,5,FALSE)-VLOOKUP(C$2,Results!$A$6:$E$21,5,FALSE)) -> -93881.89755 | D11: =(VLOOKUP($B11,Results!$A$6:$E$21,3,FALSE)-VLOOKUP(D$2,Results!$A$6:$E$21,3,FALSE))/(VLOOKUP($B11,Results!$A$6:$E$21,5,FALSE)-VLOOKUP(D$2,Results!$A$6:$E$21,5,FALSE)) -> -33286.17313 | E11: =(VLOOKUP($B11,Results!$A$6:$E$21,3,FALSE)-VLOOKUP(E$2,Results!$A$6:$E$21,3,FALSE))/(VLOOKUP($B11,Results!$A$6:$E$21,5,FALSE)-VLOOKUP(E$2,Results!$A$6:$E$21,5,FALSE)) -> -83249.70995 | F11: =(VLOOKUP($B11,Results!$A$6:$E$21,3,FALSE)-VLOOKUP(F$2,Results!$A$6:$E$21,3,FALSE))/(VLOOKUP($B11,Results!$A$6:$E$21,5,FALSE)-VLOOKUP(F$2,Results!$A$6:$E$21,5,FALSE)) -> -85775.4025 | G11: =(VLOOKUP($B11,Results!$A$6:$E$21,3,FALSE)-VLOOKUP(G$2,Results!$A$6:$E$21,3,FALSE))/(VLOOKUP($B11,Results!$A$6:$E$21,5,FALSE)-VLOOKUP(G$2,Results!$A$6:$E$21,5,FALSE)) -> 109091.2894 | H11: =(VLOOKUP($B11,Results!$A$6:$E$21,3,FALSE)-VLOOKUP(H$2,Results!$A$6:$E$21,3,FALSE))/(VLOOKUP($B11,Results!$A$6:$E$21,5,FALSE)-VLOOKUP(H$2,Results!$A$6:$E$21,5,FALSE)) -> 301516.4418 | I11: =(VLOOKUP($B11,Results!$A$6:$E$21,3,FALSE)-VLOOKUP(I$2,Results!$A$6:$E$21,3,FALSE))/(VLOOKUP($B11,Results!$A$6:$E$21,5,FALSE)-VLOOKUP(I$2,Results!$A$6:$E$21,5,FALSE)) -> -4713463.637 | J11: =(VLOOKUP($B11,Results!$A$6:$E$21,3,FALSE)-VLOOKUP(J$2,Results!$A$6:$E$21,3,FALSE))/(VLOOKUP($B11,Results!$A$6:$E$21,5,FALSE)-VLOOKUP(J$2,Results!$A$6:$E$21,5,FALSE)) -> -612751.7259 | S11: 301516.4418 | T11: TRUE | U11: =OR(T11,Results!O13) -> TRUE
B12: CsA+MMF+ST | C12: =(VLOOKUP($B12,Results!$A$6:$E$21,3,FALSE)-VLOOKUP(C$2,Results!$A$6:$E$21,3,FALSE))/(VLOOKUP($B12,Results!$A$6:$E$21,5,FALSE)-VLOOKUP(C$2,Results!$A$6:$E$21,5,FALSE)) -> -90025.86165 | D12: =(VLOOKUP($B12,Results!$A$6:$E$21,3,FALSE)-VLOOKUP(D$2,Results!$A$6:$E$21,3,FALSE))/(VLOOKUP($B12,Results!$A$6:$E$21,5,FALSE)-VLOOKUP(D$2,Results!$A$6:$E$21,5,FALSE)) -> -29038.31842 | E12: =(VLOOKUP($B12,Results!$A$6:$E$21,3,FALSE)-VLOOKUP(E$2,Results!$A$6:$E$21,3,FALSE))/(VLOOKUP($B12,Results!$A$6:$E$21,5,FALSE)-VLOOKUP(E$2,Results!$A$6:$E$21,5,FALSE)) -> -74274.23781 | F12: =(VLOOKUP($B12,Results!$A$6:$E$21,3,FALSE)-VLOOKUP(F$2,Results!$A$6:$E$21,3,FALSE))/(VLOOKUP($B12,Results!$A$6:$E$21,5,FALSE)-VLOOKUP(F$2,Results!$A$6:$E$21,5,FALSE)) -> -74106.39633 | G12: =(VLOOKUP($B12,Results!$A$6:$E$21,3,FALSE)-VLOOKUP(G$2,Results!$A$6:$E$21,3,FALSE))/(VLOOKUP($B12,Results!$A$6:$E$21,5,FALSE)-VLOOKUP(G$2,Results!$A$6:$E$21,5,FALSE)) -> 91549.19287 | H12: =(VLOOKUP($B12,Results!$A$6:$E$21,3,FALSE)-VLOOKUP(H$2,Results!$A$6:$E$21,3,FALSE))/(VLOOKUP($B12,Results!$A$6:$E$21,5,FALSE)-VLOOKUP(H$2,Results!$A$6:$E$21,5,FALSE)) -> 199118.3986 | I12: =(VLOOKUP($B12,Results!$A$6:$E$21,3,FALSE)-VLOOKUP(I$2,Results!$A$6:$E$21,3,FALSE))/(VLOOKUP($B12,Results!$A$6:$E$21,5,FALSE)-VLOOKUP(I$2,Results!$A$6:$E$21,5,FALSE)) -> -1267738.892 | J12: =(VLOOKUP($B12,Results!$A$6:$E$21,3,FALSE)-VLOOKUP(J$2,Results!$A$6:$E$21,3,FALSE))/(VLOOKUP($B12,Results!$A$6:$E$21,5,FALSE)-VLOOKUP(J$2,Results!$A$6:$E$21,5,FALSE)) -> -70225.49858 | K12: =(VLOOKUP($B12,Results!$A$6:$E$21,3,FALSE)-VLOOKUP(K$2,Results!$A$6:$E$21,3,FALSE))/(VLOOKUP($B12,Results!$A$6:$E$21,5,FALSE)-VLOOKUP(K$2,Results!$A$6:$E$21,5,FALSE)) -> 28828.00497 | S12: 199118.3986 | T12: TRUE | U12: =OR(T12,Results!O14) -> TRUE
B13: rATG+CsA+MMF+ST | C13: =(VLOOKUP($B13,Results!$A$6:$E$21,3,FALSE)-VLOOKUP(C$2,Results!$A$6:$E$21,3,FALSE))/(VLOOKUP($B13,Results!$A$6:$E$21,5,FALSE)-VLOOKUP(C$2,Results!$A$6:$E$21,5,FALSE)) -> -72437.11811 | D13: =(VLOOKUP($B13,Results!$A$6:$E$21,3,FALSE)-VLOOKUP(D$2,Results!$A$6:$E$21,3,FALSE))/(VLOOKUP($B13,Results!$A$6:$E$21,5,FALSE)-VLOOKUP(D$2,Results!$A$6:$E$21,5,FALSE)) -> 2193.396935 | E13: =(VLOOKUP($B13,Results!$A$6:$E$21,3,FALSE)-VLOOKUP(E$2,Results!$A$6:$E$21,3,FALSE))/(VLOOKUP($B13,Results!$A$6:$E$21,5,FALSE)-VLOOKUP(E$2,Results!$A$6:$E$21,5,FALSE)) -> -33729.84307 | F13: =(VLOOKUP($B13,Results!$A$6:$E$21,3,FALSE)-VLOOKUP(F$2,Results!$A$6:$E$21,3,FALSE))/(VLOOKUP($B13,Results!$A$6:$E$21,5,FALSE)-VLOOKUP(F$2,Results!$A$6:$E$21,5,FALSE)) -> -23933.49431 | G13: =(VLOOKUP($B13,Results!$A$6:$E$21,3,FALSE)-VLOOKUP(G$2,Results!$A$6:$E$21,3,FALSE))/(VLOOKUP($B13,Results!$A$6:$E$21,5,FALSE)-VLOOKUP(G$2,Results!$A$6:$E$21,5,FALSE)) -> 147511.3516 | H13: =(VLOOKUP($B13,Results!$A$6:$E$21,3,FALSE)-VLOOKUP(H$2,Results!$A$6:$E$21,3,FALSE))/(VLOOKUP($B13,Results!$A$6:$E$21,5,FALSE)-VLOOKUP(H$2,Results!$A$6:$E$21,5,FALSE)) -> 244820.0194 | I13: =(VLOOKUP($B13,Results!$A$6:$E$21,3,FALSE)-VLOOKUP(I$2,Results!$A$6:$E$21,3,FALSE))/(VLOOKUP($B13,Results!$A$6:$E$21,5,FALSE)-VLOOKUP(I$2,Results!$A$6:$E$21,5,FALSE)) -> -466118.4068 | J13: =(VLOOKUP($B13,Results!$A$6:$E$21,3,FALSE)-VLOOKUP(J$2,Results!$A$6:$E$21,3,FALSE))/(VLOOKUP($B13,Results!$A$6:$E$21,5,FALSE)-VLOOKUP(J$2,Results!$A$6:$E$21,5,FALSE)) -> 146950.3947 | K13: =(VLOOKUP($B13,Results!$A$6:$E$21,3,FALSE)-VLOOKUP(K$2,Results!$A$6:$E$21,3,FALSE))/(VLOOKUP($B13,Results!$A$6:$E$21,5,FALSE)-VLOOKUP(K$2,Results!$A$6:$E$21,5,FALSE)) -> 205214.116 | L13: =(VLOOKUP($B13,Results!$A$6:$E$21,3,FALSE)-VLOOKUP(L$2,Results!$A$6:$E$21,3,FALSE))/(VLOOKUP($B13,Results!$A$6:$E$21,5,FALSE)-VLOOKUP(L$2,Results!$A$6:$E$21,5,FALSE)) -> 332970.6372 | S13: 332970.6372 | T13: TRUE | U13: =OR(T13,Results!O15) -> TRUE
B14: CsA+Evl+ST | C14: =(VLOOKUP($B14,Results!$A$6:$E$21,3,FALSE)-VLOOKUP(C$2,Results!$A$6:$E$21,3,FALSE))/(VLOOKUP($B14,Results!$A$6:$E$21,5,FALSE)-VLOOKUP(C$2,Results!$A$6:$E$21,5,FALSE)) -> 139197.4703 | D14: =(VLOOKUP($B14,Results!$A$6:$E$21,3,FALSE)-VLOOKUP(D$2,Results!$A$6:$E$21,3,FALSE))/(VLOOKUP($B14,Results!$A$6:$E$21,5,FALSE)-VLOOKUP(D$2,Results!$A$6:$E$21,5,FALSE)) -> 382646.8862 | E14: =(VLOOKUP($B14,Results!$A$6:$E$21,3,FALSE)-VLOOKUP(E$2,Results!$A$6:$E$21,3,FALSE))/(VLOOKUP($B14,Results!$A$6:$E$21,5,FALSE)-VLOOKUP(E$2,Results!$A$6:$E$21,5,FALSE)) -> 400377.2316 | F14: =(VLOOKUP($B14,Results!$A$6:$E$21,3,FALSE)-VLOOKUP(F$2,Results!$A$6:$E$21,3,FALSE))/(VLOOKUP($B14,Results!$A$6:$E$21,5,FALSE)-VLOOKUP(F$2,Results!$A$6:$E$21,5,FALSE)) -> 484526.2394 | G14: =(VLOOKUP($B14,Results!$A$6:$E$21,3,FALSE)-VLOOKUP(G$2,Results!$A$6:$E$21,3,FALSE))/(VLOOKUP($B14,Results!$A$6:$E$21,5,FALSE)-VLOOKUP(G$2,Results!$A$6:$E$21,5,FALSE)) -> 860456.1486 | H14: =(VLOOKUP($B14,Results!$A$6:$E$21,3,FALSE)-VLOOKUP(H$2,Results!$A$6:$E$21,3,FALSE))/(VLOOKUP($B14,Results!$A$6:$E$21,5,FALSE)-VLOOKUP(H$2,Results!$A$6:$E$21,5,FALSE)) -> 1082885.827 | I14: =(VLOOKUP($B14,Results!$A$6:$E$21,3,FALSE)-VLOOKUP(I$2,Results!$A$6:$E$21,3,FALSE))/(VLOOKUP($B14,Results!$A$6:$E$21,5,FALSE)-VLOOKUP(I$2,Results!$A$6:$E$21,5,FALSE)) -> 949551.1156 | J14: =(VLOOKUP($B14,Results!$A$6:$E$21,3,FALSE)-VLOOKUP(J$2,Results!$A$6:$E$21,3,FALSE))/(VLOOKUP($B14,Results!$A$6:$E$21,5,FALSE)-VLOOKUP(J$2,Results!$A$6:$E$21,5,FALSE)) -> 1237105.059 | K14: =(VLOOKUP($B14,Results!$A$6:$E$21,3,FALSE)-VLOOKUP(K$2,Results!$A$6:$E$21,3,FALSE))/(VLOOKUP($B14,Results!$A$6:$E$21,5,FALSE)-VLOOKUP(K$2,Results!$A$6:$E$21,5,FALSE)) -> 1291266.424 | L14: =(VLOOKUP($B14,Results!$A$6:$E$21,3,FALSE)-VLOOKUP(L$2,Results!$A$6:$E$21,3,FALSE))/(VLOOKUP($B14,Results!$A$6:$E$21,5,FALSE)-VLOOKUP(L$2,Results!$A$6:$E$21,5,FALSE)) -> 1532379.459 | M14: =(VLOOKUP($B14,Results!$A$6:$E$21,3,FALSE)-VLOOKUP(M$2,Results!$A$6:$E$21,3,FALSE))/(VLOOKUP($B14,Results!$A$6:$E$21,5,FALSE)-VLOOKUP(M$2,Results!$A$6:$E$21,5,FALSE)) -> 1961913.578 | S14: 1961913.578 | T14: TRUE | U14: =OR(T14,Results!O16) -> TRUE
B15: Bas+Tac+MMF+ST | C15: =(VLOOKUP($B15,Results!$A$6:$E$21,3,FALSE)-VLOOKUP(C$2,Results!$A$6:$E$21,3,FALSE))/(VLOOKUP($B15,Results!$A$6:$E$21,5,FALSE)-VLOOKUP(C$2,Results!$A$6:$E$21,5,FALSE)) -> -91097.16651 | D15: =(VLOOKUP($B15,Results!$A$6:$E$21,3,FALSE)-VLOOKUP(D$2,Results!$A$6:$E$21,3,FALSE))/(VLOOKUP($B15,Results!$A$6:$E$21,5,FALSE)-VLOOKUP(D$2,Results!$A$6:$E$21,5,FALSE)) -> -51590.53959 | E15: =(VLOOKUP($B15,Results!$A$6:$E$21,3,FALSE)-VLOOKUP(E$2,Results!$A$6:$E$21,3,FALSE))/(VLOOKUP($B15,Results!$A$6:$E$21,5,FALSE)-VLOOKUP(E$2,Results!$A$6:$E$21,5,FALSE)) -> -82285.65709 | F15: =(VLOOKUP($B15,Results!$A$6:$E$21,3,FALSE)-VLOOKUP(F$2,Results!$A$6:$E$21,3,FALSE))/(VLOOKUP($B15,Results!$A$6:$E$21,5,FALSE)-VLOOKUP(F$2,Results!$A$6:$E$21,5,FALSE)) -> -83424.57643 | G15: =(VLOOKUP($B15,Results!$A$6:$E$21,3,FALSE)-VLOOKUP(G$2,Results!$A$6:$E$21,3,FALSE))/(VLOOKUP($B15,Results!$A$6:$E$21,5,FALSE)-VLOOKUP(G$2,Results!$A$6:$E$21,5,FALSE)) -> -24627.91208 | H15: =(VLOOKUP($B15,Results!$A$6:$E$21,3,FALSE)-VLOOKUP(H$2,Results!$A$6:$E$21,3,FALSE))/(VLOOKUP($B15,Results!$A$6:$E$21,5,FALSE)-VLOOKUP(H$2,Results!$A$6:$E$21,5,FALSE)) -> -18293.47643 | I15: =(VLOOKUP($B15,Results!$A$6:$E$21,3,FALSE)-VLOOKUP(I$2,Results!$A$6:$E$21,3,FALSE))/(VLOOKUP($B15,Results!$A$6:$E$21,5,FALSE)-VLOOKUP(I$2,Results!$A$6:$E$21,5,FALSE)) -> -277709.3645 | J15: =(VLOOKUP($B15,Results!$A$6:$E$21,3,FALSE)-VLOOKUP(J$2,Results!$A$6:$E$21,3,FALSE))/(VLOOKUP($B15,Results!$A$6:$E$21,5,FALSE)-VLOOKUP(J$2,Results!$A$6:$E$21,5,FALSE)) -> -92182.86357 | K15: =(VLOOKUP($B15,Results!$A$6:$E$21,3,FALSE)-VLOOKUP(K$2,Results!$A$6:$E$21,3,FALSE))/(VLOOKUP($B15,Results!$A$6:$E$21,5,FALSE)-VLOOKUP(K$2,Results!$A$6:$E$21,5,FALSE)) -> -80980.39373 | L15: =(VLOOKUP($B15,Results!$A$6:$E$21,3,FALSE)-VLOOKUP(L$2,Results!$A$6:$E$21,3,FALSE))/(VLOOKUP($B15,Results!$A$6:$E$21,5,FALSE)-VLOOKUP(L$2,Results!$A$6:$E$21,5,FALSE)) -> -95652.32269 | M15: =(VLOOKUP($B15,Results!$A$6:$E$21,3,FALSE)-VLOOKUP(M$2,Results!$A$6:$E$21,3,FALSE))/(VLOOKUP($B15,Results!$A$6:$E$21,5,FALSE)-VLOOKUP(M$2,Results!$A$6:$E$21,5,FALSE)) -> -192607.295 | N15: =(VLOOKUP($B15,Results!$A$6:$E$21,3,FALSE)-VLOOKUP(N$2,Results!$A$6:$E$21,3,FALSE))/(VLOOKUP($B15,Results!$A$6:$E$21,5,FALSE)-VLOOKUP(N$2,Results!$A$6:$E$21,5,FALSE)) -> -3886916.272 | S15: -18293.47643 | T15: FALSE | U15: =OR(T15,Results!O17) -> TRUE
B16: Bas+CsA+MMF+ST | C16: =(VLOOKUP($B16,Results!$A$6:$E$21,3,FALSE)-VLOOKUP(C$2,Results!$A$6:$E$21,3,FALSE))/(VLOOKUP($B16,Results!$A$6:$E$21,5,FALSE)-VLOOKUP(C$2,Results!$A$6:$E$21,5,FALSE)) -> -71775.85593 | D16: =(VLOOKUP($B16,Results!$A$6:$E$21,3,FALSE)-VLOOKUP(D$2,Results!$A$6:$E$21,3,FALSE))/(VLOOKUP($B16,Results!$A$6:$E$21,5,FALSE)-VLOOKUP(D$2,Results!$A$6:$E$21,5,FALSE)) -> -25136.43835 | E16: =(VLOOKUP($B16,Results!$A$6:$E$21,3,FALSE)-VLOOKUP(E$2,Results!$A$6:$E$21,3,FALSE))/(VLOOKUP($B16,Results!$A$6:$E$21,5,FALSE)-VLOOKUP(E$2,Results!$A$6:$E$21,5,FALSE)) -> -48602.98985 | F16: =(VLOOKUP($B16,Results!$A$6:$E$21,3,FALSE)-VLOOKUP(F$2,Results!$A$6:$E$21,3,FALSE))/(VLOOKUP($B16,Results!$A$6:$E$21,5,FALSE)-VLOOKUP(F$2,Results!$A$6:$E$21,5,FALSE)) -> -45273.49952 | G16: =(VLOOKUP($B16,Results!$A$6:$E$21,3,FALSE)-VLOOKUP(G$2,Results!$A$6:$E$21,3,FALSE))/(VLOOKUP($B16,Results!$A$6:$E$21,5,FALSE)-VLOOKUP(G$2,Results!$A$6:$E$21,5,FALSE)) -> 12254.80014 | H16: =(VLOOKUP($B16,Results!$A$6:$E$21,3,FALSE)-VLOOKUP(H$2,Results!$A$6:$E$21,3,FALSE))/(VLOOKUP($B16,Results!$A$6:$E$21,5,FALSE)-VLOOKUP(H$2,Results!$A$6:$E$21,5,FALSE)) -> 21959.2113 | I16: =(VLOOKUP($B16,Results!$A$6:$E$21,3,FALSE)-VLOOKUP(I$2,Results!$A$6:$E$21,3,FALSE))/(VLOOKUP($B16,Results!$A$6:$E$21,5,FALSE)-VLOOKUP(I$2,Results!$A$6:$E$21,5,FALSE)) -> -156281.8334 | J16: =(VLOOKUP($B16,Results!$A$6:$E$21,3,FALSE)-VLOOKUP(J$2,Results!$A$6:$E$21,3,FALSE))/(VLOOKUP($B16,Results!$A$6:$E$21,5,FALSE)-VLOOKUP(J$2,Results!$A$6:$E$21,5,FALSE)) -> -24835.60277 | K16: =(VLOOKUP($B16,Results!$A$6:$E$21,3,FALSE)-VLOOKUP(K$2,Results!$A$6:$E$21,3,FALSE))/(VLOOKUP($B16,Results!$A$6:$E$21,5,FALSE)-VLOOKUP(K$2,Results!$A$6:$E$21,5,FALSE)) -> -16058.0068 | L16: =(VLOOKUP($B16,Results!$A$6:$E$21,3,FALSE)-VLOOKUP(L$2,Results!$A$6:$E$21,3,FALSE))/(VLOOKUP($B16,Results!$A$6:$E$21,5,FALSE)-VLOOKUP(L$2,Results!$A$6:$E$21,5,FALSE)) -> -20055.35682 | M16: =(VLOOKUP($B16,Results!$A$6:$E$21,3,FALSE)-VLOOKUP(M$2,Results!$A$6:$E$21,3,FALSE))/(VLOOKUP($B16,Results!$A$6:$E$21,5,FALSE)-VLOOKUP(M$2,Results!$A$6:$E$21,5,FALSE)) -> -69546.41634 | N16: =(VLOOKUP($B16,Results!$A$6:$E$21,3,FALSE)-VLOOKUP(N$2,Results!$A$6:$E$21,3,FALSE))/(VLOOKUP($B16,Results!$A$6:$E$21,5,FALSE)-VLOOKUP(N$2,Results!$A$6:$E$21,5,FALSE)) -> -1376349.736 | O16: =(VLOOKUP($B16,Results!$A$6:$E$21,3,FALSE)-VLOOKUP(O$2,Results!$A$6:$E$21,3,FALSE))/(VLOOKUP($B16,Results!$A$6:$E$21,5,FALSE)-VLOOKUP(O$2,Results!$A$6:$E$21,5,FALSE)) -> 131034.9877 | S16: 131034.9877 | T16: FALSE | U16: =OR(T16,Results!O18) -> FALSE
B17: Bas+CsA+EC-MPS+ST | C17: =(VLOOKUP($B17,Results!$A$6:$E$21,3,FALSE)-VLOOKUP(C$2,Results!$A$6:$E$21,3,FALSE))/(VLOOKUP($B17,Results!$A$6:$E$21,5,FALSE)-VLOOKUP(C$2,Results!$A$6:$E$21,5,FALSE)) -> -26147.04306 | D17: =(VLOOKUP($B17,Results!$A$6:$E$21,3,FALSE)-VLOOKUP(D$2,Results!$A$6:$E$21,3,FALSE))/(VLOOKUP($B17,Results!$A$6:$E$21,5,FALSE)-VLOOKUP(D$2,Results!$A$6:$E$21,5,FALSE)) -> 27123.5243 | E17: =(VLOOKUP($B17,Results!$A$6:$E$21,3,FALSE)-VLOOKUP(E$2,Results!$A$6:$E$21,3,FALSE))/(VLOOKUP($B17,Results!$A$6:$E$21,5,FALSE)-VLOOKUP(E$2,Results!$A$6:$E$21,5,FALSE)) -> 14494.30579 | F17: =(VLOOKUP($B17,Results!$A$6:$E$21,3,FALSE)-VLOOKUP(F$2,Results!$A$6:$E$21,3,FALSE))/(VLOOKUP($B17,Results!$A$6:$E$21,5,FALSE)-VLOOKUP(F$2,Results!$A$6:$E$21,5,FALSE)) -> 21811.94615 | G17: =(VLOOKUP($B17,Results!$A$6:$E$21,3,FALSE)-VLOOKUP(G$2,Results!$A$6:$E$21,3,FALSE))/(VLOOKUP($B17,Results!$A$6:$E$21,5,FALSE)-VLOOKUP(G$2,Results!$A$6:$E$21,5,FALSE)) -> 67973.84404 | H17: =(VLOOKUP($B17,Results!$A$6:$E$21,3,FALSE)-VLOOKUP(H$2,Results!$A$6:$E$21,3,FALSE))/(VLOOKUP($B17,Results!$A$6:$E$21,5,FALSE)-VLOOKUP(H$2,Results!$A$6:$E$21,5,FALSE)) -> 77474.13931 | I17: =(VLOOKUP($B17,Results!$A$6:$E$21,3,FALSE)-VLOOKUP(I$2,Results!$A$6:$E$21,3,FALSE))/(VLOOKUP($B17,Results!$A$6:$E$21,5,FALSE)-VLOOKUP(I$2,Results!$A$6:$E$21,5,FALSE)) -> -12713.36765 | J17: =(VLOOKUP($B17,Results!$A$6:$E$21,3,FALSE)-VLOOKUP(J$2,Results!$A$6:$E$21,3,FALSE))/(VLOOKUP($B17,Results!$A$6:$E$21,5,FALSE)-VLOOKUP(J$2,Results!$A$6:$E$21,5,FALSE)) -> 56634.92998 | K17: =(VLOOKUP($B17,Results!$A$6:$E$21,3,FALSE)-VLOOKUP(K$2,Results!$A$6:$E$21,3,FALSE))/(VLOOKUP($B17,Results!$A$6:$E$21,5,FALSE)-VLOOKUP(K$2,Results!$A$6:$E$21,5,FALSE)) -> 61782.17593 | L17: =(VLOOKUP($B17,Results!$A$6:$E$21,3,FALSE)-VLOOKUP(L$2,Results!$A$6:$E$21,3,FALSE))/(VLOOKUP($B17,Results!$A$6:$E$21,5,FALSE)-VLOOKUP(L$2,Results!$A$6:$E$21,5,FALSE)) -> 63231.10228 | M17: =(VLOOKUP($B17,Results!$A$6:$E$21,3,FALSE)-VLOOKUP(M$2,Results!$A$6:$E$21,3,FALSE))/(VLOOKUP($B17,Results!$A$6:$E$21,5,FALSE)-VLOOKUP(M$2,Results!$A$6:$E$21,5,FALSE)) -> 45798.61514 | N17: =(VLOOKUP($B17,Results!$A$6:$E$21,3,FALSE)-VLOOKUP(N$2,Results!$A$6:$E$21,3,FALSE))/(VLOOKUP($B17,Results!$A$6:$E$21,5,FALSE)-VLOOKUP(N$2,Results!$A$6:$E$21,5,FALSE)) -> -376127.5614 | O17: =(VLOOKUP($B17,Results!$A$6:$E$21,3,FALSE)-VLOOKUP(O$2,Results!$A$6:$E$21,3,FALSE))/(VLOOKUP($B17,Results!$A$6:$E$21,5,FALSE)-VLOOKUP(O$2,Results!$A$6:$E$21,5,FALSE)) -> 141157.3327 | P17: =(VLOOKUP($B17,Results!$A$6:$E$21,3,FALSE)-VLOOKUP(P$2,Results!$A$6:$E$21,3,FALSE))/(VLOOKUP($B17,Results!$A$6:$E$21,5,FALSE)-VLOOKUP(P$2,Results!$A$6:$E$21,5,FALSE)) -> 144449.1557 | S17: 144449.1557 | T17: FALSE | U17: =OR(T17,Results!O19) -> FALSE
B18: Bas+Bela+MMF+ST | C18: =(VLOOKUP($B18,Results!$A$6:$E$21,3,FALSE)-VLOOKUP(C$2,Results!$A$6:$E$21,3,FALSE))/(VLOOKUP($B18,Results!$A$6:$E$21,5,FALSE)-VLOOKUP(C$2,Results!$A$6:$E$21,5,FALSE)) -> 121232.0909 | D18: =(VLOOKUP($B18,Results!$A$6:$E$21,3,FALSE)-VLOOKUP(D$2,Results!$A$6:$E$21,3,FALSE))/(VLOOKUP($B18,Results!$A$6:$E$21,5,FALSE)-VLOOKUP(D$2,Results!$A$6:$E$21,5,FALSE)) -> 206128.771 | E18: =(VLOOKUP($B18,Results!$A$6:$E$21,3,FALSE)-VLOOKUP(E$2,Results!$A$6:$E$21,3,FALSE))/(VLOOKUP($B18,Results!$A$6:$E$21,5,FALSE)-VLOOKUP(E$2,Results!$A$6:$E$21,5,FALSE)) -> 204903.5164 | F18: =(VLOOKUP($B18,Results!$A$6:$E$21,3,FALSE)-VLOOKUP(F$2,Results!$A$6:$E$21,3,FALSE))/(VLOOKUP($B18,Results!$A$6:$E$21,5,FALSE)-VLOOKUP(F$2,Results!$A$6:$E$21,5,FALSE)) -> 220281.7848 | G18: =(VLOOKUP($B18,Results!$A$6:$E$21,3,FALSE)-VLOOKUP(G$2,Results!$A$6:$E$21,3,FALSE))/(VLOOKUP($B18,Results!$A$6:$E$21,5,FALSE)-VLOOKUP(G$2,Results!$A$6:$E$21,5,FALSE)) -> 273501.521 | H18: =(VLOOKUP($B18,Results!$A$6:$E$21,3,FALSE)-VLOOKUP(H$2,Results!$A$6:$E$21,3,FALSE))/(VLOOKUP($B18,Results!$A$6:$E$21,5,FALSE)-VLOOKUP(H$2,Results!$A$6:$E$21,5,FALSE)) -> 288845.829 | I18: =(VLOOKUP($B18,Results!$A$6:$E$21,3,FALSE)-VLOOKUP(I$2,Results!$A$6:$E$21,3,FALSE))/(VLOOKUP($B18,Results!$A$6:$E$21,5,FALSE)-VLOOKUP(I$2,Results!$A$6:$E$21,5,FALSE)) -> 241332.9053 | J18: =(VLOOKUP($B18,Results!$A$6:$E$21,3,FALSE)-VLOOKUP(J$2,Results!$A$6:$E$21,3,FALSE))/(VLOOKUP($B18,Results!$A$6:$E$21,5,FALSE)-VLOOKUP(J$2,Results!$A$6:$E$21,5,FALSE)) -> 284188.1361 | K18: =(VLOOKUP($B18,Results!$A$6:$E$21,3,FALSE)-VLOOKUP(K$2,Results!$A$6:$E$21,3,FALSE))/(VLOOKUP($B18,Results!$A$6:$E$21,5,FALSE)-VLOOKUP(K$2,Results!$A$6:$E$21,5,FALSE)) -> 288314.8384 | L18: =(VLOOKUP($B18,Results!$A$6:$E$21,3,FALSE)-VLOOKUP(L$2,Results!$A$6:$E$21,3,FALSE))/(VLOOKUP($B18,Results!$A$6:$E$21,5,FALSE)-VLOOKUP(L$2,Results!$A$6:$E$21,5,FALSE)) -> 295022.7952 | M18: =(VLOOKUP($B18,Results!$A$6:$E$21,3,FALSE)-VLOOKUP(M$2,Results!$A$6:$E$21,3,FALSE))/(VLOOKUP($B18,Results!$A$6:$E$21,5,FALSE)-VLOOKUP(M$2,Results!$A$6:$E$21,5,FALSE)) -> 293618.2782 | N18: =(VLOOKUP($B18,Results!$A$6:$E$21,3,FALSE)-VLOOKUP(N$2,Results!$A$6:$E$21,3,FALSE))/(VLOOKUP($B18,Results!$A$6:$E$21,5,FALSE)-VLOOKUP(N$2,Results!$A$6:$E$21,5,FALSE)) -> 101327.0992 | O18: =(VLOOKUP($B18,Results!$A$6:$E$21,3,FALSE)-VLOOKUP(O$2,Results!$A$6:$E$21,3,FALSE))/(VLOOKUP($B18,Results!$A$6:$E$21,5,FALSE)-VLOOKUP(O$2,Results!$A$6:$E$21,5,FALSE)) -> 388740.3213 | P18: =(VLOOKUP($B18,Results!$A$6:$E$21,3,FALSE)-VLOOKUP(P$2,Results!$A$6:$E$21,3,FALSE))/(VLOOKUP($B18,Results!$A$6:$E$21,5,FALSE)-VLOOKUP(P$2,Results!$A$6:$E$21,5,FALSE)) -> 423890.3697 | Q18: =(VLOOKUP($B18,Results!$A$6:$E$21,3,FALSE)-VLOOKUP(Q$2,Results!$A$6:$E$21,3,FALSE))/(VLOOKUP($B18,Results!$A$6:$E$21,5,FALSE)-VLOOKUP(Q$2,Results!$A$6:$E$21,5,FALSE)) -> 625761.4779
B20: MIN | D20: =MIN(D3:D18) -> -83954.5495 | E20: -170173.3539 | F20: -218596.1398 | G20: -58237.93618 | H20: -18293.47643 | I20: -8578633.979 | J20: -612751.7259 | K20: -80980.39373 | L20: -95652.32269 | M20: -192607.295 | N20: -3886916.272 | O20: 131034.9877 | P20: 144449.1557 | Q20: 625761.4779
A23: PROBABILISTIC | C23: Versus
C24: =TRANSPOSE(B25:B40) -> Tac+Srl+ST | D24: Tac-PR+MMF+ST | E24: CsA+Aza+ST | F24: rATG+CsA+Aza+ST | G24: Tac+Aza+ST | H24: Tac+MMF+ST | I24: Bas+Srl+MMF+ST | J24: Bas+CsA+Aza+ST | K24: rATG+Tac+MMF+ST | L24: CsA+MMF+ST | M24: rATG+CsA+MMF+ST | N24: CsA+Evl+ST | O24: Bas+Tac+MMF+ST | P24: Bas+CsA+EC-MPS+ST | Q24: Bas+CsA+MMF+ST | R24: Bas+Bela+MMF+ST | S24: MAX | T24: ED | U24: D/ED
A25: ICER of | B25: =Results!AK6:AK21 -> Tac+Srl+ST
B26: Tac-PR+MMF+ST | C26: =(VLOOKUP($B26,Results!$AB$6:$AD$21,2,FALSE)-VLOOKUP(C$24,Results!$AB$6:$AD$21,2,FALSE))/(VLOOKUP($B26,Results!$AB$6:$AD$21,3,FALSE)-VLOOKUP(C$24,Results!$AB$6:$AD$21,3,FALSE)) -> -118987.4363 | S26: =MAX(C26:R26) -> -118987.4363 | T26: =S26:S39>TRANSPOSE(D42:Q42) -> TRUE | U26: =OR(T26,Results!AN7) -> TRUE
B27: CsA+Aza+ST | C27: =(VLOOKUP($B27,Results!$AB$6:$AD$21,2,FALSE)-VLOOKUP(C$24,Results!$AB$6:$AD$21,2,FALSE))/(VLOOKUP($B27,Results!$AB$6:$AD$21,3,FALSE)-VLOOKUP(C$24,Results!$AB$6:$AD$21,3,FALSE)) -> -139973.1005 | D27: =(VLOOKUP($B27,Results!$AB$6:$AD$21,2,FALSE)-VLOOKUP(D$24,Results!$AB$6:$AD$21,2,FALSE))/(VLOOKUP($B27,Results!$AB$6:$AD$21,3,FALSE)-VLOOKUP(D$24,Results!$AB$6:$AD$21,3,FALSE)) -> -587446.4391 | S27: -139973.1005 | T27: FALSE | U27: =OR(T27,Results!AN8) -> TRUE
B28: rATG+CsA+Aza+ST | C28: =(VLOOKUP($B28,Results!$AB$6:$AD$21,2,FALSE)-VLOOKUP(C$24,Results!$AB$6:$AD$21,2,FALSE))/(VLOOKUP($B28,Results!$AB$6:$AD$21,3,FALSE)-VLOOKUP(C$24,Results!$AB$6:$AD$21,3,FALSE)) -> -97537.85211 | D28: =(VLOOKUP($B28,Results!$AB$6:$AD$21,2,FALSE)-VLOOKUP(D$24,Results!$AB$6:$AD$21,2,FALSE))/(VLOOKUP($B28,Results!$AB$6:$AD$21,3,FALSE)-VLOOKUP(D$24,Results!$AB$6:$AD$21,3,FALSE)) -> -26510.51902 | E28: =(VLOOKUP($B28,Results!$AB$6:$AD$21,2,FALSE)-VLOOKUP(E$24,Results!$AB$6:$AD$21,2,FALSE))/(VLOOKUP($B28,Results!$AB$6:$AD$21,3,FALSE)-VLOOKUP(E$24,Results!$AB$6:$AD$21,3,FALSE)) -> 76616.20959 | S28: 76616.20959 | T28: TRUE | U28: =OR(T28,Results!AN9) -> TRUE
B29: Tac+Aza+ST | C29: =(VLOOKUP($B29,Results!$AB$6:$AD$21,2,FALSE)-VLOOKUP(C$24,Results!$AB$6:$AD$21,2,FALSE))/(VLOOKUP($B29,Results!$AB$6:$AD$21,3,FALSE)-VLOOKUP(C$24,Results!$AB$6:$AD$21,3,FALSE)) -> -134899.1727 | D29: =(VLOOKUP($B29,Results!$AB$6:$AD$21,2,FALSE)-VLOOKUP(D$24,Results!$AB$6:$AD$21,2,FALSE))/(VLOOKUP($B29,Results!$AB$6:$AD$21,3,FALSE)-VLOOKUP(D$24,Results!$AB$6:$AD$21,3,FALSE)) -> -171212.6114 | E29: =(VLOOKUP($B29,Results!$AB$6:$AD$21,2,FALSE)-VLOOKUP(E$24,Results!$AB$6:$AD$21,2,FALSE))/(VLOOKUP($B29,Results!$AB$6:$AD$21,3,FALSE)-VLOOKUP(E$24,Results!$AB$6:$AD$21,3,FALSE)) -> -121323.4916 | F29: =(VLOOKUP($B29,Results!$AB$6:$AD$21,2,FALSE)-VLOOKUP(F$24,Results!$AB$6:$AD$21,2,FALSE))/(VLOOKUP($B29,Results!$AB$6:$AD$21,3,FALSE)-VLOOKUP(F$24,Results!$AB$6:$AD$21,3,FALSE)) -> -492084.9766 | S29: -121323.4916 | T29: FALSE | U29: =OR(T29,Results!AN10) -> TRUE
B30: Tac+MMF+ST | C30: =(VLOOKUP($B30,Results!$AB$6:$AD$21,2,FALSE)-VLOOKUP(C$24,Results!$AB$6:$AD$21,2,FALSE))/(VLOOKUP($B30,Results!$AB$6:$AD$21,3,FALSE)-VLOOKUP(C$24,Results!$AB$6:$AD$21,3,FALSE)) -> -110755.885 | D30: =(VLOOKUP($B30,Results!$AB$6:$AD$21,2,FALSE)-VLOOKUP(D$24,Results!$AB$6:$AD$21,2,FALSE))/(VLOOKUP($B30,Results!$AB$6:$AD$21,3,FALSE)-VLOOKUP(D$24,Results!$AB$6:$AD$21,3,FALSE)) -> -101288.9358 | E30: =(VLOOKUP($B30,Results!$AB$6:$AD$21,2,FALSE)-VLOOKUP(E$24,Results!$AB$6:$AD$21,2,FALSE))/(VLOOKUP($B30,Results!$AB$6:$AD$21,3,FALSE)-VLOOKUP(E$24,Results!$AB$6:$AD$21,3,FALSE)) -> -73572.28922 | F30: =(VLOOKUP($B30,Results!$AB$6:$AD$21,2,FALSE)-VLOOKUP(F$24,Results!$AB$6:$AD$21,2,FALSE))/(VLOOKUP($B30,Results!$AB$6:$AD$21,3,FALSE)-VLOOKUP(F$24,Results!$AB$6:$AD$21,3,FALSE)) -> -141080.7181 | G30: =(VLOOKUP($B30,Results!$AB$6:$AD$21,2,FALSE)-VLOOKUP(G$24,Results!$AB$6:$AD$21,2,FALSE))/(VLOOKUP($B30,Results!$AB$6:$AD$21,3,FALSE)-VLOOKUP(G$24,Results!$AB$6:$AD$21,3,FALSE)) -> -30254.60163 | S30: -30254.60163 | T30: FALSE | U30: =OR(T30,Results!AN11) -> TRUE
B31: Bas+Srl+MMF+ST | C31: =(VLOOKUP($B31,Results!$AB$6:$AD$21,2,FALSE)-VLOOKUP(C$24,Results!$AB$6:$AD$21,2,FALSE))/(VLOOKUP($B31,Results!$AB$6:$AD$21,3,FALSE)-VLOOKUP(C$24,Results!$AB$6:$AD$21,3,FALSE)) -> -36399.89822 | D31: =(VLOOKUP($B31,Results!$AB$6:$AD$21,2,FALSE)-VLOOKUP(D$24,Results!$AB$6:$AD$21,2,FALSE))/(VLOOKUP($B31,Results!$AB$6:$AD$21,3,FALSE)-VLOOKUP(D$24,Results!$AB$6:$AD$21,3,FALSE)) -> 57519.85808 | E31: =(VLOOKUP($B31,Results!$AB$6:$AD$21,2,FALSE)-VLOOKUP(E$24,Results!$AB$6:$AD$21,2,FALSE))/(VLOOKUP($B31,Results!$AB$6:$AD$21,3,FALSE)-VLOOKUP(E$24,Results!$AB$6:$AD$21,3,FALSE)) -> 93855.9226 | F31: =(VLOOKUP($B31,Results!$AB$6:$AD$21,2,FALSE)-VLOOKUP(F$24,Results!$AB$6:$AD$21,2,FALSE))/(VLOOKUP($B31,Results!$AB$6:$AD$21,3,FALSE)-VLOOKUP(F$24,Results!$AB$6:$AD$21,3,FALSE)) -> 101472.9888 | G31: =(VLOOKUP($B31,Results!$AB$6:$AD$21,2,FALSE)-VLOOKUP(G$24,Results!$AB$6:$AD$21,2,FALSE))/(VLOOKUP($B31,Results!$AB$6:$AD$21,3,FALSE)-VLOOKUP(G$24,Results!$AB$6:$AD$21,3,FALSE)) -> 284704.0406 | H31: =(VLOOKUP($B31,Results!$AB$6:$AD$21,2,FALSE)-VLOOKUP(H$24,Results!$AB$6:$AD$21,2,FALSE))/(VLOOKUP($B31,Results!$AB$6:$AD$21,3,FALSE)-VLOOKUP(H$24,Results!$AB$6:$AD$21,3,FALSE)) -> 14094295.78 | S31: 14094295.78 | T31: TRUE | U31: =OR(T31,Results!AN12) -> TRUE
B32: Bas+CsA+Aza+ST | C32: =(VLOOKUP($B32,Results!$AB$6:$AD$21,2,FALSE)-VLOOKUP(C$24,Results!$AB$6:$AD$21,2,FALSE))/(VLOOKUP($B32,Results!$AB$6:$AD$21,3,FALSE)-VLOOKUP(C$24,Results!$AB$6:$AD$21,3,FALSE)) -> -88867.97486 | D32: =(VLOOKUP($B32,Results!$AB$6:$AD$21,2,FALSE)-VLOOKUP(D$24,Results!$AB$6:$AD$21,2,FALSE))/(VLOOKUP($B32,Results!$AB$6:$AD$21,3,FALSE)-VLOOKUP(D$24,Results!$AB$6:$AD$21,3,FALSE)) -> -54655.08124 | E32: =(VLOOKUP($B32,Results!$AB$6:$AD$21,2,FALSE)-VLOOKUP(E$24,Results!$AB$6:$AD$21,2,FALSE))/(VLOOKUP($B32,Results!$AB$6:$AD$21,3,FALSE)-VLOOKUP(E$24,Results!$AB$6:$AD$21,3,FALSE)) -> -24675.18919 | F32: =(VLOOKUP($B32,Results!$AB$6:$AD$21,2,FALSE)-VLOOKUP(F$24,Results!$AB$6:$AD$21,2,FALSE))/(VLOOKUP($B32,Results!$AB$6:$AD$21,3,FALSE)-VLOOKUP(F$24,Results!$AB$6:$AD$21,3,FALSE)) -> -69350.66879 | G32: =(VLOOKUP($B32,Results!$AB$6:$AD$21,2,FALSE)-VLOOKUP(G$24,Results!$AB$6:$AD$21,2,FALSE))/(VLOOKUP($B32,Results!$AB$6:$AD$21,3,FALSE)-VLOOKUP(G$24,Results!$AB$6:$AD$21,3,FALSE)) -> 60848.35297 | H32: =(VLOOKUP($B32,Results!$AB$6:$AD$21,2,FALSE)-VLOOKUP(H$24,Results!$AB$6:$AD$21,2,FALSE))/(VLOOKUP($B32,Results!$AB$6:$AD$21,3,FALSE)-VLOOKUP(H$24,Results!$AB$6:$AD$21,3,FALSE)) -> 3682522.614 | I32: =(VLOOKUP($B32,Results!$AB$6:$AD$21,2,FALSE)-VLOOKUP(I$24,Results!$AB$6:$AD$21,2,FALSE))/(VLOOKUP($B32,Results!$AB$6:$AD$21,3,FALSE)-VLOOKUP(I$24,Results!$AB$6:$AD$21,3,FALSE)) -> -97465321.52 | S32: 3682522.614 | T32: TRUE | U32: =OR(T32,Results!AN13) -> TRUE
B33: rATG+Tac+MMF+ST | C33: =(VLOOKUP($B33,Results!$AB$6:$AD$21,2,FALSE)-VLOOKUP(C$24,Results!$AB$6:$AD$21,2,FALSE))/(VLOOKUP($B33,Results!$AB$6:$AD$21,3,FALSE)-VLOOKUP(C$24,Results!$AB$6:$AD$21,3,FALSE)) -> -91745.64399 | D33: =(VLOOKUP($B33,Results!$AB$6:$AD$21,2,FALSE)-VLOOKUP(D$24,Results!$AB$6:$AD$21,2,FALSE))/(VLOOKUP($B33,Results!$AB$6:$AD$21,3,FALSE)-VLOOKUP(D$24,Results!$AB$6:$AD$21,3,FALSE)) -> -61999.77779 | E33: =(VLOOKUP($B33,Results!$AB$6:$AD$21,2,FALSE)-VLOOKUP(E$24,Results!$AB$6:$AD$21,2,FALSE))/(VLOOKUP($B33,Results!$AB$6:$AD$21,3,FALSE)-VLOOKUP(E$24,Results!$AB$6:$AD$21,3,FALSE)) -> -33639.88458 | F33: =(VLOOKUP($B33,Results!$AB$6:$AD$21,2,FALSE)-VLOOKUP(F$24,Results!$AB$6:$AD$21,2,FALSE))/(VLOOKUP($B33,Results!$AB$6:$AD$21,3,FALSE)-VLOOKUP(F$24,Results!$AB$6:$AD$21,3,FALSE)) -> -79459.77523 | G33: =(VLOOKUP($B33,Results!$AB$6:$AD$21,2,FALSE)-VLOOKUP(G$24,Results!$AB$6:$AD$21,2,FALSE))/(VLOOKUP($B33,Results!$AB$6:$AD$21,3,FALSE)-VLOOKUP(G$24,Results!$AB$6:$AD$21,3,FALSE)) -> 38189.92129 | H33: =(VLOOKUP($B33,Results!$AB$6:$AD$21,2,FALSE)-VLOOKUP(H$24,Results!$AB$6:$AD$21,2,FALSE))/(VLOOKUP($B33,Results!$AB$6:$AD$21,3,FALSE)-VLOOKUP(H$24,Results!$AB$6:$AD$21,3,FALSE)) -> 675625.0731 | I33: =(VLOOKUP($B33,Results!$AB$6:$AD$21,2,FALSE)-VLOOKUP(I$24,Results!$AB$6:$AD$21,2,FALSE))/(VLOOKUP($B33,Results!$AB$6:$AD$21,3,FALSE)-VLOOKUP(I$24,Results!$AB$6:$AD$21,3,FALSE)) -> -2943286.432 | J33: =(VLOOKUP($B33,Results!$AB$6:$AD$21,2,FALSE)-VLOOKUP(J$24,Results!$AB$6:$AD$21,2,FALSE))/(VLOOKUP($B33,Results!$AB$6:$AD$21,3,FALSE)-VLOOKUP(J$24,Results!$AB$6:$AD$21,3,FALSE)) -> -244325.4813 | S33: 675625.0731 | T33: TRUE | U33: =OR(T33,Results!AN14) -> TRUE
B34: CsA+MMF+ST | C34: =(VLOOKUP($B34,Results!$AB$6:$AD$21,2,FALSE)-VLOOKUP(C$24,Results!$AB$6:$AD$21,2,FALSE))/(VLOOKUP($B34,Results!$AB$6:$AD$21,3,FALSE)-VLOOKUP(C$24,Results!$AB$6:$AD$21,3,FALSE)) -> -87213.52448 | D34: =(VLOOKUP($B34,Results!$AB$6:$AD$21,2,FALSE)-VLOOKUP(D$24,Results!$AB$6:$AD$21,2,FALSE))/(VLOOKUP($B34,Results!$AB$6:$AD$21,3,FALSE)-VLOOKUP(D$24,Results!$AB$6:$AD$21,3,FALSE)) -> -54867.78707 | E34: =(VLOOKUP($B34,Results!$AB$6:$AD$21,2,FALSE)-VLOOKUP(E$24,Results!$AB$6:$AD$21,2,FALSE))/(VLOOKUP($B34,Results!$AB$6:$AD$21,3,FALSE)-VLOOKUP(E$24,Results!$AB$6:$AD$21,3,FALSE)) -> -28166.56628 | F34: =(VLOOKUP($B34,Results!$AB$6:$AD$21,2,FALSE)-VLOOKUP(F$24,Results!$AB$6:$AD$21,2,FALSE))/(VLOOKUP($B34,Results!$AB$6:$AD$21,3,FALSE)-VLOOKUP(F$24,Results!$AB$6:$AD$21,3,FALSE)) -> -67455.23147 | G34: =(VLOOKUP($B34,Results!$AB$6:$AD$21,2,FALSE)-VLOOKUP(G$24,Results!$AB$6:$AD$21,2,FALSE))/(VLOOKUP($B34,Results!$AB$6:$AD$21,3,FALSE)-VLOOKUP(G$24,Results!$AB$6:$AD$21,3,FALSE)) -> 38820.12508 | H34: =(VLOOKUP($B34,Results!$AB$6:$AD$21,2,FALSE)-VLOOKUP(H$24,Results!$AB$6:$AD$21,2,FALSE))/(VLOOKUP($B34,Results!$AB$6:$AD$21,3,FALSE)-VLOOKUP(H$24,Results!$AB$6:$AD$21,3,FALSE)) -> 302908.6187 | I34: =(VLOOKUP($B34,Results!$AB$6:$AD$21,2,FALSE)-VLOOKUP(I$24,Results!$AB$6:$AD$21,2,FALSE))/(VLOOKUP($B34,Results!$AB$6:$AD$21,3,FALSE)-VLOOKUP(I$24,Results!$AB$6:$AD$21,3,FALSE)) -> -1014541.025 | J34: =(VLOOKUP($B34,Results!$AB$6:$AD$21,2,FALSE)-VLOOKUP(J$24,Results!$AB$6:$AD$21,2,FALSE))/(VLOOKUP($B34,Results!$AB$6:$AD$21,3,FALSE)-VLOOKUP(J$24,Results!$AB$6:$AD$21,3,FALSE)) -> -56704.22258 | K34: =(VLOOKUP($B34,Results!$AB$6:$AD$21,2,FALSE)-VLOOKUP(K$24,Results!$AB$6:$AD$21,2,FALSE))/(VLOOKUP($B34,Results!$AB$6:$AD$21,3,FALSE)-VLOOKUP(K$24,Results!$AB$6:$AD$21,3,FALSE)) -> 43346.34844 | S34: 302908.6187 | T34: TRUE | U34: =OR(T34,Results!AN15) -> TRUE
B35: rATG+CsA+MMF+ST | C35: =(VLOOKUP($B35,Results!$AB$6:$AD$21,2,FALSE)-VLOOKUP(C$24,Results!$AB$6:$AD$21,2,FALSE))/(VLOOKUP($B35,Results!$AB$6:$AD$21,3,FALSE)-VLOOKUP(C$24,Results!$AB$6:$AD$21,3,FALSE)) -> -70832.13774 | D35: =(VLOOKUP($B35,Results!$AB$6:$AD$21,2,FALSE)-VLOOKUP(D$24,Results!$AB$6:$AD$21,2,FALSE))/(VLOOKUP($B35,Results!$AB$6:$AD$21,3,FALSE)-VLOOKUP(D$24,Results!$AB$6:$AD$21,3,FALSE)) -> -24546.59024 | E35: =(VLOOKUP($B35,Results!$AB$6:$AD$21,2,FALSE)-VLOOKUP(E$24,Results!$AB$6:$AD$21,2,FALSE))/(VLOOKUP($B35,Results!$AB$6:$AD$21,3,FALSE)-VLOOKUP(E$24,Results!$AB$6:$AD$21,3,FALSE)) -> 2025.134773 | F35: =(VLOOKUP($B35,Results!$AB$6:$AD$21,2,FALSE)-VLOOKUP(F$24,Results!$AB$6:$AD$21,2,FALSE))/(VLOOKUP($B35,Results!$AB$6:$AD$21,3,FALSE)-VLOOKUP(F$24,Results!$AB$6:$AD$21,3,FALSE)) -> -23743.38928 | G35: =(VLOOKUP($B35,Results!$AB$6:$AD$21,2,FALSE)-VLOOKUP(G$24,Results!$AB$6:$AD$21,2,FALSE))/(VLOOKUP($B35,Results!$AB$6:$AD$21,3,FALSE)-VLOOKUP(G$24,Results!$AB$6:$AD$21,3,FALSE)) -> 82168.46838 | H35: =(VLOOKUP($B35,Results!$AB$6:$AD$21,2,FALSE)-VLOOKUP(H$24,Results!$AB$6:$AD$21,2,FALSE))/(VLOOKUP($B35,Results!$AB$6:$AD$21,3,FALSE)-VLOOKUP(H$24,Results!$AB$6:$AD$21,3,FALSE)) -> 365921.2614 | I35: =(VLOOKUP($B35,Results!$AB$6:$AD$21,2,FALSE)-VLOOKUP(I$24,Results!$AB$6:$AD$21,2,FALSE))/(VLOOKUP($B35,Results!$AB$6:$AD$21,3,FALSE)-VLOOKUP(I$24,Results!$AB$6:$AD$21,3,FALSE)) -> -472621.1603 | J35: =(VLOOKUP($B35,Results!$AB$6:$AD$21,2,FALSE)-VLOOKUP(J$24,Results!$AB$6:$AD$21,2,FALSE))/(VLOOKUP($B35,Results!$AB$6:$AD$21,3,FALSE)-VLOOKUP(J$24,Results!$AB$6:$AD$21,3,FALSE)) -> 141073.3797 | K35: =(VLOOKUP($B35,Results!$AB$6:$AD$21,2,FALSE)-VLOOKUP(K$24,Results!$AB$6:$AD$21,2,FALSE))/(VLOOKUP($B35,Results!$AB$6:$AD$21,3,FALSE)-VLOOKUP(K$24,Results!$AB$6:$AD$21,3,FALSE)) -> 250784.7282 | L35: =(VLOOKUP($B35,Results!$AB$6:$AD$21,2,FALSE)-VLOOKUP(L$24,Results!$AB$6:$AD$21,2,FALSE))/(VLOOKUP($B35,Results!$AB$6:$AD$21,3,FALSE)-VLOOKUP(L$24,Results!$AB$6:$AD$21,3,FALSE)) -> 488331.4844 | S35: 488331.4844 | T35: TRUE | U35: =OR(T35,Results!AN16) -> TRUE
B36: CsA+Evl+ST | C36: =(VLOOKUP($B36,Results!$AB$6:$AD$21,2,FALSE)-VLOOKUP(C$24,Results!$AB$6:$AD$21,2,FALSE))/(VLOOKUP($B36,Results!$AB$6:$AD$21,3,FALSE)-VLOOKUP(C$24,Results!$AB$6:$AD$21,3,FALSE)) -> 144685.8902 | D36: =(VLOOKUP($B36,Results!$AB$6:$AD$21,2,FALSE)-VLOOKUP(D$24,Results!$AB$6:$AD$21,2,FALSE))/(VLOOKUP($B36,Results!$AB$6:$AD$21,3,FALSE)-VLOOKUP(D$24,Results!$AB$6:$AD$21,3,FALSE)) -> 378052.2515 | E36: =(VLOOKUP($B36,Results!$AB$6:$AD$21,2,FALSE)-VLOOKUP(E$24,Results!$AB$6:$AD$21,2,FALSE))/(VLOOKUP($B36,Results!$AB$6:$AD$21,3,FALSE)-VLOOKUP(E$24,Results!$AB$6:$AD$21,3,FALSE)) -> 419863.2585 | F36: =(VLOOKUP($B36,Results!$AB$6:$AD$21,2,FALSE)-VLOOKUP(F$24,Results!$AB$6:$AD$21,2,FALSE))/(VLOOKUP($B36,Results!$AB$6:$AD$21,3,FALSE)-VLOOKUP(F$24,Results!$AB$6:$AD$21,3,FALSE)) -> 525627.2933 | G36: =(VLOOKUP($B36,Results!$AB$6:$AD$21,2,FALSE)-VLOOKUP(G$24,Results!$AB$6:$AD$21,2,FALSE))/(VLOOKUP($B36,Results!$AB$6:$AD$21,3,FALSE)-VLOOKUP(G$24,Results!$AB$6:$AD$21,3,FALSE)) -> 726004.7036 | H36: =(VLOOKUP($B36,Results!$AB$6:$AD$21,2,FALSE)-VLOOKUP(H$24,Results!$AB$6:$AD$21,2,FALSE))/(VLOOKUP($B36,Results!$AB$6:$AD$21,3,FALSE)-VLOOKUP(H$24,Results!$AB$6:$AD$21,3,FALSE)) -> 1978843.261 | I36: =(VLOOKUP($B36,Results!$AB$6:$AD$21,2,FALSE)-VLOOKUP(I$24,Results!$AB$6:$AD$21,2,FALSE))/(VLOOKUP($B36,Results!$AB$6:$AD$21,3,FALSE)-VLOOKUP(I$24,Results!$AB$6:$AD$21,3,FALSE)) -> 1503109.79 | J36: =(VLOOKUP($B36,Results!$AB$6:$AD$21,2,FALSE)-VLOOKUP(J$24,Results!$AB$6:$AD$21,2,FALSE))/(VLOOKUP($B36,Results!$AB$6:$AD$21,3,FALSE)-VLOOKUP(J$24,Results!$AB$6:$AD$21,3,FALSE)) -> 1904759.799 | K36: =(VLOOKUP($B36,Results!$AB$6:$AD$21,2,FALSE)-VLOOKUP(K$24,Results!$AB$6:$AD$21,2,FALSE))/(VLOOKUP($B36,Results!$AB$6:$AD$21,3,FALSE)-VLOOKUP(K$24,Results!$AB$6:$AD$21,3,FALSE)) -> 2260817.206 | L36: =(VLOOKUP($B36,Results!$AB$6:$AD$21,2,FALSE)-VLOOKUP(L$24,Results!$AB$6:$AD$21,2,FALSE))/(VLOOKUP($B36,Results!$AB$6:$AD$21,3,FALSE)-VLOOKUP(L$24,Results!$AB$6:$AD$21,3,FALSE)) -> 3260294.425 | M36: =(VLOOKUP($B36,Results!$AB$6:$AD$21,2,FALSE)-VLOOKUP(M$24,Results!$AB$6:$AD$21,2,FALSE))/(VLOOKUP($B36,Results!$AB$6:$AD$21,3,FALSE)-VLOOKUP(M$24,Results!$AB$6:$AD$21,3,FALSE)) -> 5059509.769 | S36: 5059509.769 | T36: TRUE | U36: =OR(T36,Results!AN17) -> TRUE
B37: Bas+Tac+MMF+ST | C37: =(VLOOKUP($B37,Results!$AB$6:$AD$21,2,FALSE)-VLOOKUP(C$24,Results!$AB$6:$AD$21,2,FALSE))/(VLOOKUP($B37,Results!$AB$6:$AD$21,3,FALSE)-VLOOKUP(C$24,Results!$AB$6:$AD$21,3,FALSE)) -> -86171.00038 | D37: =(VLOOKUP($B37,Results!$AB$6:$AD$21,2,FALSE)-VLOOKUP(D$24,Results!$AB$6:$AD$21,2,FALSE))/(VLOOKUP($B37,Results!$AB$6:$AD$21,3,FALSE)-VLOOKUP(D$24,Results!$AB$6:$AD$21,3,FALSE)) -> -64798.9103 | E37: =(VLOOKUP($B37,Results!$AB$6:$AD$21,2,FALSE)-VLOOKUP(E$24,Results!$AB$6:$AD$21,2,FALSE))/(VLOOKUP($B37,Results!$AB$6:$AD$21,3,FALSE)-VLOOKUP(E$24,Results!$AB$6:$AD$21,3,FALSE)) -> -48332.7828 | F37: =(VLOOKUP($B37,Results!$AB$6:$AD$21,2,FALSE)-VLOOKUP(F$24,Results!$AB$6:$AD$21,2,FALSE))/(VLOOKUP($B37,Results!$AB$6:$AD$21,3,FALSE)-VLOOKUP(F$24,Results!$AB$6:$AD$21,3,FALSE)) -> -74172.90577 | G37: =(VLOOKUP($B37,Results!$AB$6:$AD$21,2,FALSE)-VLOOKUP(G$24,Results!$AB$6:$AD$21,2,FALSE))/(VLOOKUP($B37,Results!$AB$6:$AD$21,3,FALSE)-VLOOKUP(G$24,Results!$AB$6:$AD$21,3,FALSE)) -> -22305.54991 | H37: =(VLOOKUP($B37,Results!$AB$6:$AD$21,2,FALSE)-VLOOKUP(H$24,Results!$AB$6:$AD$21,2,FALSE))/(VLOOKUP($B37,Results!$AB$6:$AD$21,3,FALSE)-VLOOKUP(H$24,Results!$AB$6:$AD$21,3,FALSE)) -> -17157.26733 | I37: =(VLOOKUP($B37,Results!$AB$6:$AD$21,2,FALSE)-VLOOKUP(I$24,Results!$AB$6:$AD$21,2,FALSE))/(VLOOKUP($B37,Results!$AB$6:$AD$21,3,FALSE)-VLOOKUP(I$24,Results!$AB$6:$AD$21,3,FALSE)) -> -228727.4397 | J37: =(VLOOKUP($B37,Results!$AB$6:$AD$21,2,FALSE)-VLOOKUP(J$24,Results!$AB$6:$AD$21,2,FALSE))/(VLOOKUP($B37,Results!$AB$6:$AD$21,3,FALSE)-VLOOKUP(J$24,Results!$AB$6:$AD$21,3,FALSE)) -> -78430.10629 | K37: =(VLOOKUP($B37,Results!$AB$6:$AD$21,2,FALSE)-VLOOKUP(K$24,Results!$AB$6:$AD$21,2,FALSE))/(VLOOKUP($B37,Results!$AB$6:$AD$21,3,FALSE)-VLOOKUP(K$24,Results!$AB$6:$AD$21,3,FALSE)) -> -68935.82773 | L37: =(VLOOKUP($B37,Results!$AB$6:$AD$21,2,FALSE)-VLOOKUP(L$24,Results!$AB$6:$AD$21,2,FALSE))/(VLOOKUP($B37,Results!$AB$6:$AD$21,3,FALSE)-VLOOKUP(L$24,Results!$AB$6:$AD$21,3,FALSE)) -> -82434.97463 | M37: =(VLOOKUP($B37,Results!$AB$6:$AD$21,2,FALSE)-VLOOKUP(M$24,Results!$AB$6:$AD$21,2,FALSE))/(VLOOKUP($B37,Results!$AB$6:$AD$21,3,FALSE)-VLOOKUP(M$24,Results!$AB$6:$AD$21,3,FALSE)) -> -149387.1371 | N37: =(VLOOKUP($B37,Results!$AB$6:$AD$21,2,FALSE)-VLOOKUP(N$24,Results!$AB$6:$AD$21,2,FALSE))/(VLOOKUP($B37,Results!$AB$6:$AD$21,3,FALSE)-VLOOKUP(N$24,Results!$AB$6:$AD$21,3,FALSE)) -> -1298399.701 | S37: -17157.26733 | T37: FALSE | U37: =OR(T37,Results!AN18) -> FALSE
B38: Bas+CsA+EC-MPS+ST | C38: =(VLOOKUP($B38,Results!$AB$6:$AD$21,2,FALSE)-VLOOKUP(C$24,Results!$AB$6:$AD$21,2,FALSE))/(VLOOKUP($B38,Results!$AB$6:$AD$21,3,FALSE)-VLOOKUP(C$24,Results!$AB$6:$AD$21,3,FALSE)) -> -32411.13216 | D38: =(VLOOKUP($B38,Results!$AB$6:$AD$21,2,FALSE)-VLOOKUP(D$24,Results!$AB$6:$AD$21,2,FALSE))/(VLOOKUP($B38,Results!$AB$6:$AD$21,3,FALSE)-VLOOKUP(D$24,Results!$AB$6:$AD$21,3,FALSE)) -> 20002.90391 | E38: =(VLOOKUP($B38,Results!$AB$6:$AD$21,2,FALSE)-VLOOKUP(E$24,Results!$AB$6:$AD$21,2,FALSE))/(VLOOKUP($B38,Results!$AB$6:$AD$21,3,FALSE)-VLOOKUP(E$24,Results!$AB$6:$AD$21,3,FALSE)) -> 37753.92499 | F38: =(VLOOKUP($B38,Results!$AB$6:$AD$21,2,FALSE)-VLOOKUP(F$24,Results!$AB$6:$AD$21,2,FALSE))/(VLOOKUP($B38,Results!$AB$6:$AD$21,3,FALSE)-VLOOKUP(F$24,Results!$AB$6:$AD$21,3,FALSE)) -> 30409.4492 | G38: =(VLOOKUP($B38,Results!$AB$6:$AD$21,2,FALSE)-VLOOKUP(G$24,Results!$AB$6:$AD$21,2,FALSE))/(VLOOKUP($B38,Results!$AB$6:$AD$21,3,FALSE)-VLOOKUP(G$24,Results!$AB$6:$AD$21,3,FALSE)) -> 89042.45366 | H38: =(VLOOKUP($B38,Results!$AB$6:$AD$21,2,FALSE)-VLOOKUP(H$24,Results!$AB$6:$AD$21,2,FALSE))/(VLOOKUP($B38,Results!$AB$6:$AD$21,3,FALSE)-VLOOKUP(H$24,Results!$AB$6:$AD$21,3,FALSE)) -> 154819.9793 | I38: =(VLOOKUP($B38,Results!$AB$6:$AD$21,2,FALSE)-VLOOKUP(I$24,Results!$AB$6:$AD$21,2,FALSE))/(VLOOKUP($B38,Results!$AB$6:$AD$21,3,FALSE)-VLOOKUP(I$24,Results!$AB$6:$AD$21,3,FALSE)) -> -22706.43514 | J38: =(VLOOKUP($B38,Results!$AB$6:$AD$21,2,FALSE)-VLOOKUP(J$24,Results!$AB$6:$AD$21,2,FALSE))/(VLOOKUP($B38,Results!$AB$6:$AD$21,3,FALSE)-VLOOKUP(J$24,Results!$AB$6:$AD$21,3,FALSE)) -> 105203.1961 | K38: =(VLOOKUP($B38,Results!$AB$6:$AD$21,2,FALSE)-VLOOKUP(K$24,Results!$AB$6:$AD$21,2,FALSE))/(VLOOKUP($B38,Results!$AB$6:$AD$21,3,FALSE)-VLOOKUP(K$24,Results!$AB$6:$AD$21,3,FALSE)) -> 122045.9206 | L38: =(VLOOKUP($B38,Results!$AB$6:$AD$21,2,FALSE)-VLOOKUP(L$24,Results!$AB$6:$AD$21,2,FALSE))/(VLOOKUP($B38,Results!$AB$6:$AD$21,3,FALSE)-VLOOKUP(L$24,Results!$AB$6:$AD$21,3,FALSE)) -> 129863.9337 | M38: =(VLOOKUP($B38,Results!$AB$6:$AD$21,2,FALSE)-VLOOKUP(M$24,Results!$AB$6:$AD$21,2,FALSE))/(VLOOKUP($B38,Results!$AB$6:$AD$21,3,FALSE)-VLOOKUP(M$24,Results!$AB$6:$AD$21,3,FALSE)) -> 95813.41909 | N38: =(VLOOKUP($B38,Results!$AB$6:$AD$21,2,FALSE)-VLOOKUP(N$24,Results!$AB$6:$AD$21,2,FALSE))/(VLOOKUP($B38,Results!$AB$6:$AD$21,3,FALSE)-VLOOKUP(N$24,Results!$AB$6:$AD$21,3,FALSE)) -> -755130.541 | O38: =(VLOOKUP($B38,Results!$AB$6:$AD$21,2,FALSE)-VLOOKUP(O$24,Results!$AB$6:$AD$21,2,FALSE))/(VLOOKUP($B38,Results!$AB$6:$AD$21,3,FALSE)-VLOOKUP(O$24,Results!$AB$6:$AD$21,3,FALSE)) -> 1139657.386 | S38: 1139657.386 | T38: TRUE | U38: =OR(T38,Results!AN19) -> TRUE
B39: Bas+CsA+MMF+ST | C39: =(VLOOKUP($B39,Results!$AB$6:$AD$21,2,FALSE)-VLOOKUP(C$24,Results!$AB$6:$AD$21,2,FALSE))/(VLOOKUP($B39,Results!$AB$6:$AD$21,3,FALSE)-VLOOKUP(C$24,Results!$AB$6:$AD$21,3,FALSE)) -> -69441.85566 | D39: =(VLOOKUP($B39,Results!$AB$6:$AD$21,2,FALSE)-VLOOKUP(D$24,Results!$AB$6:$AD$21,2,FALSE))/(VLOOKUP($B39,Results!$AB$6:$AD$21,3,FALSE)-VLOOKUP(D$24,Results!$AB$6:$AD$21,3,FALSE)) -> -40151.60815 | E39: =(VLOOKUP($B39,Results!$AB$6:$AD$21,2,FALSE)-VLOOKUP(E$24,Results!$AB$6:$AD$21,2,FALSE))/(VLOOKUP($B39,Results!$AB$6:$AD$21,3,FALSE)-VLOOKUP(E$24,Results!$AB$6:$AD$21,3,FALSE)) -> -24545.09208 | F39: =(VLOOKUP($B39,Results!$AB$6:$AD$21,2,FALSE)-VLOOKUP(F$24,Results!$AB$6:$AD$21,2,FALSE))/(VLOOKUP($B39,Results!$AB$6:$AD$21,3,FALSE)-VLOOKUP(F$24,Results!$AB$6:$AD$21,3,FALSE)) -> -43116.22715 | G39: =(VLOOKUP($B39,Results!$AB$6:$AD$21,2,FALSE)-VLOOKUP(G$24,Results!$AB$6:$AD$21,2,FALSE))/(VLOOKUP($B39,Results!$AB$6:$AD$21,3,FALSE)-VLOOKUP(G$24,Results!$AB$6:$AD$21,3,FALSE)) -> 5667.598214 | H39: =(VLOOKUP($B39,Results!$AB$6:$AD$21,2,FALSE)-VLOOKUP(H$24,Results!$AB$6:$AD$21,2,FALSE))/(VLOOKUP($B39,Results!$AB$6:$AD$21,3,FALSE)-VLOOKUP(H$24,Results!$AB$6:$AD$21,3,FALSE)) -> 24516.19788 | I39: =(VLOOKUP($B39,Results!$AB$6:$AD$21,2,FALSE)-VLOOKUP(I$24,Results!$AB$6:$AD$21,2,FALSE))/(VLOOKUP($B39,Results!$AB$6:$AD$21,3,FALSE)-VLOOKUP(I$24,Results!$AB$6:$AD$21,3,FALSE)) -> -145897.5951 | J39: =(VLOOKUP($B39,Results!$AB$6:$AD$21,2,FALSE)-VLOOKUP(J$24,Results!$AB$6:$AD$21,2,FALSE))/(VLOOKUP($B39,Results!$AB$6:$AD$21,3,FALSE)-VLOOKUP(J$24,Results!$AB$6:$AD$21,3,FALSE)) -> -24411.42307 | K39: =(VLOOKUP($B39,Results!$AB$6:$AD$21,2,FALSE)-VLOOKUP(K$24,Results!$AB$6:$AD$21,2,FALSE))/(VLOOKUP($B39,Results!$AB$6:$AD$21,3,FALSE)-VLOOKUP(K$24,Results!$AB$6:$AD$21,3,FALSE)) -> -14357.60662 | L39: =(VLOOKUP($B39,Results!$AB$6:$AD$21,2,FALSE)-VLOOKUP(L$24,Results!$AB$6:$AD$21,2,FALSE))/(VLOOKUP($B39,Results!$AB$6:$AD$21,3,FALSE)-VLOOKUP(L$24,Results!$AB$6:$AD$21,3,FALSE)) -> -19768.54088 | M39: =(VLOOKUP($B39,Results!$AB$6:$AD$21,2,FALSE)-VLOOKUP(M$24,Results!$AB$6:$AD$21,2,FALSE))/(VLOOKUP($B39,Results!$AB$6:$AD$21,3,FALSE)-VLOOKUP(M$24,Results!$AB$6:$AD$21,3,FALSE)) -> -65085.31907 | N39: =(VLOOKUP($B39,Results!$AB$6:$AD$21,2,FALSE)-VLOOKUP(N$24,Results!$AB$6:$AD$21,2,FALSE))/(VLOOKUP($B39,Results!$AB$6:$AD$21,3,FALSE)-VLOOKUP(N$24,Results!$AB$6:$AD$21,3,FALSE)) -> -881420.5534 | O39: =(VLOOKUP($B39,Results!$AB$6:$AD$21,2,FALSE)-VLOOKUP(O$24,Results!$AB$6:$AD$21,2,FALSE))/(VLOOKUP($B39,Results!$AB$6:$AD$21,3,FALSE)-VLOOKUP(O$24,Results!$AB$6:$AD$21,3,FALSE)) -> 202357.9836 | P39: =(VLOOKUP($B39,Results!$AB$6:$AD$21,2,FALSE)-VLOOKUP(P$24,Results!$AB$6:$AD$21,2,FALSE))/(VLOOKUP($B39,Results!$AB$6:$AD$21,3,FALSE)-VLOOKUP(P$24,Results!$AB$6:$AD$21,3,FALSE)) -> -2539105.074 | S39: 202357.9836 | T39: FALSE | U39: =OR(T39,Results!AN20) -> FALSE
B40: Bas+Bela+MMF+ST | C40: =(VLOOKUP($B40,Results!$AB$6:$AD$21,2,FALSE)-VLOOKUP(C$24,Results!$AB$6:$AD$21,2,FALSE))/(VLOOKUP($B40,Results!$AB$6:$AD$21,3,FALSE)-VLOOKUP(C$24,Results!$AB$6:$AD$21,3,FALSE)) -> 120347.481 | D40: =(VLOOKUP($B40,Results!$AB$6:$AD$21,2,FALSE)-VLOOKUP(D$24,Results!$AB$6:$AD$21,2,FALSE))/(VLOOKUP($B40,Results!$AB$6:$AD$21,3,FALSE)-VLOOKUP(D$24,Results!$AB$6:$AD$21,3,FALSE)) -> 193823.8647 | E40: =(VLOOKUP($B40,Results!$AB$6:$AD$21,2,FALSE)-VLOOKUP(E$24,Results!$AB$6:$AD$21,2,FALSE))/(VLOOKUP($B40,Results!$AB$6:$AD$21,3,FALSE)-VLOOKUP(E$24,Results!$AB$6:$AD$21,3,FALSE)) -> 205236.789 | F40: =(VLOOKUP($B40,Results!$AB$6:$AD$21,2,FALSE)-VLOOKUP(F$24,Results!$AB$6:$AD$21,2,FALSE))/(VLOOKUP($B40,Results!$AB$6:$AD$21,3,FALSE)-VLOOKUP(F$24,Results!$AB$6:$AD$21,3,FALSE)) -> 216338.8723 | G40: =(VLOOKUP($B40,Results!$AB$6:$AD$21,2,FALSE)-VLOOKUP(G$24,Results!$AB$6:$AD$21,2,FALSE))/(VLOOKUP($B40,Results!$AB$6:$AD$21,3,FALSE)-VLOOKUP(G$24,Results!$AB$6:$AD$21,3,FALSE)) -> 250561.59 | H40: =(VLOOKUP($B40,Results!$AB$6:$AD$21,2,FALSE)-VLOOKUP(H$24,Results!$AB$6:$AD$21,2,FALSE))/(VLOOKUP($B40,Results!$AB$6:$AD$21,3,FALSE)-VLOOKUP(H$24,Results!$AB$6:$AD$21,3,FALSE)) -> 301287.5596 | I40: =(VLOOKUP($B40,Results!$AB$6:$AD$21,2,FALSE)-VLOOKUP(I$24,Results!$AB$6:$AD$21,2,FALSE))/(VLOOKUP($B40,Results!$AB$6:$AD$21,3,FALSE)-VLOOKUP(I$24,Results!$AB$6:$AD$21,3,FALSE)) -> 244227.4215 | J40: =(VLOOKUP($B40,Results!$AB$6:$AD$21,2,FALSE)-VLOOKUP(J$24,Results!$AB$6:$AD$21,2,FALSE))/(VLOOKUP($B40,Results!$AB$6:$AD$21,3,FALSE)-VLOOKUP(J$24,Results!$AB$6:$AD$21,3,FALSE)) -> 285853.3445 | K40: =(VLOOKUP($B40,Results!$AB$6:$AD$21,2,FALSE)-VLOOKUP(K$24,Results!$AB$6:$AD$21,2,FALSE))/(VLOOKUP($B40,Results!$AB$6:$AD$21,3,FALSE)-VLOOKUP(K$24,Results!$AB$6:$AD$21,3,FALSE)) -> 293883.3182 | L40: =(VLOOKUP($B40,Results!$AB$6:$AD$21,2,FALSE)-VLOOKUP(L$24,Results!$AB$6:$AD$21,2,FALSE))/(VLOOKUP($B40,Results!$AB$6:$AD$21,3,FALSE)-VLOOKUP(L$24,Results!$AB$6:$AD$21,3,FALSE)) -> 301207.1706 | M40: =(VLOOKUP($B40,Results!$AB$6:$AD$21,2,FALSE)-VLOOKUP(M$24,Results!$AB$6:$AD$21,2,FALSE))/(VLOOKUP($B40,Results!$AB$6:$AD$21,3,FALSE)-VLOOKUP(M$24,Results!$AB$6:$AD$21,3,FALSE)) -> 296305.2261 | N40: =(VLOOKUP($B40,Results!$AB$6:$AD$21,2,FALSE)-VLOOKUP(N$24,Results!$AB$6:$AD$21,2,FALSE))/(VLOOKUP($B40,Results!$AB$6:$AD$21,3,FALSE)-VLOOKUP(N$24,Results!$AB$6:$AD$21,3,FALSE)) -> 95981.23485 | O40: =(VLOOKUP($B40,Results!$AB$6:$AD$21,2,FALSE)-VLOOKUP(O$24,Results!$AB$6:$AD$21,2,FALSE))/(VLOOKUP($B40,Results!$AB$6:$AD$21,3,FALSE)-VLOOKUP(O$24,Results!$AB$6:$AD$21,3,FALSE)) -> 424457.5055 | P40: =(VLOOKUP($B40,Results!$AB$6:$AD$21,2,FALSE)-VLOOKUP(P$24,Results!$AB$6:$AD$21,2,FALSE))/(VLOOKUP($B40,Results!$AB$6:$AD$21,3,FALSE)-VLOOKUP(P$24,Results!$AB$6:$AD$21,3,FALSE)) -> 372652.0632 | Q40: =(VLOOKUP($B40,Results!$AB$6:$AD$21,2,FALSE)-VLOOKUP(Q$24,Results!$AB$6:$AD$21,2,FALSE))/(VLOOKUP($B40,Results!$AB$6:$AD$21,3,FALSE)-VLOOKUP(Q$24,Results!$AB$6:$AD$21,3,FALSE)) -> 446593.8439
B42: MIN | D42: =MIN(D25:D40) -> -587446.4391 | E42: -121323.4916 | F42: -492084.9766 | G42: -30254.60163 | H42: -17157.26733 | I42: -97465321.52 | J42: -244325.4813 | K42: -68935.82773 | L42: -82434.97463 | M42: -149387.1371 | N42: -1298399.701 | O42: 202357.9836 | P42: -2539105.074 | Q42: 446593.8439

Sheet Graft survival scenario (hidden)
A1: N | B1: 1 | C1: 2 | D1: 3 | E1: 4 | F1: 5 | G1: 6 | H1: 7 | I1: 8 | J1: 9 | K1: 10 | L1: 11 | M1: 12 | N1: 13 | O1: 14 | P1: 15 | Q1: 16 | R1: 17 | S1: 18 | T1: 19 | U1: 20
A2: CSA+MMF | B2: 6.577985659 | C2: 6.54973972 | D2: 6.508887082 | E2: 6.46878126 | F2: 6.430722249 | G2: 6.394674695 | H2: 6.360970444 | I2: 6.329734383 | J2: 6.300939573 | K2: 6.274533673 | L2: 6.250373836 | M2: 6.22829579 | N2: 6.208182824 | O2: 6.189888342 | P2: 6.173278643 | Q2: 6.157943005 | R2: 6.143909318 | S2: 6.131193945 | T2: 6.119749025 | U2: 6.109503915
A3: TAC+MMF | B3: 6.495244604 | C3: 6.484092072 | D3: 6.467920469 | E3: 6.451993184 | F3: 6.436827385 | G3: 6.42241466 | H3: 6.408890259 | I3: 6.396309191 | J3: 6.384667821 | K3: 6.373952588 | L3: 6.364111587 | M3: 6.355083898 | N3: 6.346828455 | O3: 6.339290852 | P3: 6.332421623 | Q3: 6.32605681 | R3: 6.320210423 | S3: 6.314892844 | T3: 6.310088423 | U3: 6.305771298
A4: CSA+AZA | B4: 6.509929561 | C4: 6.465075961 | D4: 6.400384358 | E4: 6.337102382 | F4: 6.27727935 | G4: 6.220850002 | H4: 6.168306089 | I4: 6.11981292 | J4: 6.075298894 | K4: 6.034652621 | L4: 5.997625655 | M4: 5.963939074 | N4: 5.933387984 | O4: 5.905724886 | P4: 5.880724284 | Q4: 5.857753376 | R4: 5.83683325 | S4: 5.817968313 | T4: 5.801068686 | U4: 5.786012459
A5: TAC+AZA | B5: 6.334113149 | C5: 6.327513098 | D5: 6.317930628 | E5: 6.308479951 | F5: 6.299472149 | G5: 6.290904008 | H5: 6.282856127 | I5: 6.275361883 | J5: 6.268420089 | K5: 6.26202364 | L5: 6.256142719 | M5: 6.25074207 | N5: 6.245798043 | O5: 6.241279024 | P5: 6.237156256 | Q5: 6.233332816 | R5: 6.229817423 | S5: 6.226616655 | T5: 6.223721634 | U5: 6.221117338
A6: CSA+EVL | B6: 2.343792528 | C6: 2.334968975 | D6: 2.321889355 | E6: 2.308871173 | F6: 2.296457601 | G6: 2.284537335 | H6: 2.273289368 | I6: 2.262794957 | J6: 2.253058868 | K6: 2.244080825 | L6: 2.235810473 | M6: 2.228187524 | N6: 2.221185524 | O6: 2.214757981 | P6: 2.208863871 | Q6: 2.203287109 | R6: 2.198084421 | S6: 2.193303804 | T6: 2.188949736 | U6: 2.185012559
A7: TAC+SRL | B7: 4.875361515 | C7: 4.846454415 | D7: 4.804434764 | E7: 4.762934879 | F7: 4.72339139 | G7: 4.685798173 | H7: 4.650692993 | I7: 4.618216165 | J7: 4.588337658 | K7: 4.561003729 | L7: 4.536049084 | M7: 4.513287109 | N7: 4.492595818 | O7: 4.473814985 | P7: 4.456800349 | Q7: 4.441095442 | R7: 4.426733336 | S7: 4.413739473 | T7: 4.402067706 | U7: 4.39164449
A8: TAC-PR+MMF | B8: 5.67590726 | C8: 5.665184661 | D8: 5.649629078 | E8: 5.634299944 | F8: 5.619704914 | G8: 5.605824443 | H8: 5.592795176 | I8: 5.580673439 | J8: 5.56945665 | K8: 5.559133144 | L8: 5.549651512 | M8: 5.540951497 | N8: 5.532994484 | O8: 5.52572769 | P8: 5.519103358 | Q8: 5.512954961 | R8: 5.507300145 | S8: 5.502152969 | T8: 5.497500276 | U8: 5.493318284
A9: BAS+CSA+MMF | B9: 6.557103698 | C9: 6.54206477 | D9: 6.520264164 | E9: 6.498800684 | F9: 6.478371056 | G9: 6.458960573 | H9: 6.440753763 | I9: 6.423825032 | J9: 6.408167417 | K9: 6.393760305 | L9: 6.380533523 | M9: 6.368404629 | N9: 6.357316628 | O9: 6.347195521 | P9: 6.337973767 | Q9: 6.329428723 | R9: 6.321580913 | S9: 6.314444425 | T9: 6.307997456 | U9: 6.302205054
A10: BAS+TAC+MMF | B10: 6.46772723 | C10: 6.46772723 | D10: 6.46772723 | E10: 6.46772723 | F10: 6.46772723 | G10: 6.46772723 | H10: 6.46772723 | I10: 6.46772723 | J10: 6.46772723 | K10: 6.46772723 | L10: 6.46772723 | M10: 6.46772723 | N10: 6.46772723 | O10: 6.46772723 | P10: 6.46772723 | Q10: 6.46772723 | R10: 6.46772723 | S10: 6.46772723 | T10: 6.46772723 | U10: 6.46772723
A11: BAS+CSA+AZA | B11: 6.519932876 | C11: 6.492003816 | D11: 6.451602978 | E11: 6.411935027 | F11: 6.374287952 | G11: 6.338631972 | H11: 6.305292798 | I11: 6.274392877 | J11: 6.245905685 | K11: 6.21977943 | L11: 6.1958736 | M11: 6.174026543 | N11: 6.154122839 | O11: 6.13601787 | P11: 6.119579671 | Q11: 6.104405308 | R11: 6.090520818 | S11: 6.077941036 | T11: 6.066618123 | U11: 6.056481904
A12: BAS+SRL+MMF | B12: 5.313433851 | C12: 5.306443663 | D12: 5.296275298 | E12: 5.286221085 | F12: 5.276622273 | G12: 5.267476436 | H12: 5.258878406 | I12: 5.25086814 | J12: 5.243445256 | K12: 5.236603439 | L12: 5.230309941 | M12: 5.224525889 | N12: 5.219226926 | O12: 5.214379122 | P12: 5.209951752 | Q12: 5.205831355 | R12: 5.202032833 | S12: 5.198568088 | T12: 5.195429794 | U12: 5.1926034
A13: BAS+BEL+MMF | B13: 0.7740577828 | C13: 0.776153966 | D13: 0.7792459109 | E13: 0.782355377 | F13: 0.7853446436 | G13: 0.7882733148 | H13: 0.7910754632 | I13: 0.793718115 | J13: 0.7961954766 | K13: 0.79850187 | L13: 0.8006499407 | M13: 0.8026558418 | N13: 0.8045219178 | O13: 0.8062586278 | P13: 0.8078747701 | Q13: 0.8094517903 | R13: 0.8109588552 | S13: 0.812369013 | T13: 0.8136737187 | U13: 0.8148700667
A14: BAS+CSA+MPS | B14: 5.67518957 | C14: 5.669486824 | D14: 5.661199673 | E14: 5.653015722 | F14: 5.645208239 | G14: 5.637763454 | H14: 5.630759369 | I14: 5.624229435 | J14: 5.61817363 | K14: 5.612587017 | L14: 5.607443761 | M14: 5.602712926 | N14: 5.598374884 | O14: 5.594402422 | P14: 5.590770812 | Q14: 5.587387037 | R14: 5.584264426 | S14: 5.581413341 | T14: 5.578828096 | U14: 5.576497203
A15: rATG+CSA+MMF | B15: 6.444698667 | C15: 6.412008215 | D15: 6.364760068 | E15: 6.31841603 | F15: 6.274477491 | G15: 6.232900678 | H15: 6.194064374 | I15: 6.158107819 | J15: 6.12499492 | K15: 6.094660297 | L15: 6.06693474 | M15: 6.041624834 | N15: 6.018592139 | O15: 5.997664361 | P15: 5.978684409 | Q15: 5.961179473 | R15: 5.945178197 | S15: 5.930696094 | T15: 5.917675458 | U15: 5.906032874
A16: rATG+TAC+MMF | B16: 6.359477528 | C16: 6.343352417 | D16: 6.31998935 | E16: 6.297002758 | F16: 6.275138713 | G16: 6.254383514 | H16: 6.234929765 | I16: 6.216854015 | J16: 6.200148195 | K16: 6.184789916 | L16: 6.170701885 | M16: 6.157794097 | N16: 6.146005178 | O16: 6.135254889 | P16: 6.12547028 | Q16: 6.116415793 | R16: 6.108109505 | S16: 6.100564329 | T16: 6.093756179 | U16: 6.087646603
A17: rATG+CSA+AZA | B17: 6.419877395 | C17: 6.374397346 | D17: 6.308801229 | E17: 6.244633218 | F17: 6.18397136 | G17: 6.126749576 | H17: 6.073466653 | I17: 6.024290376 | J17: 5.9791483 | K17: 5.93792763 | L17: 5.900376568 | M17: 5.8662124 | N17: 5.835227474 | O17: 5.807170905 | P17: 5.781814118 | Q17: 5.758515394 | R17: 5.737296224 | S17: 5.718161174 | T17: 5.701019173 | U17: 5.685746655
A40: ln_gamma_offset | B40: 0 | C40: -0.1 | D40: -0.2 | E40: -0.3 | F40: -0.4 | G40: -0.5 | H40: -0.6 | I40: -0.7 | J40: -0.8 | K40: -0.9 | L40: -1 | M40: -1.2 | N40: -1.4 | O40: -1.6 | P40: -1.8 | Q40: -2
A41: Bas+Tac+MMF+ST | B41: 0 | C41: 0 | D41: 0 | E41: 0 | F41: 0 | G41: 0 | H41: 0 | I41: 0 | J41: 0 | K41: 0 | L41: 0 | M41: 0 | N41: 0 | O41: 0 | P41: 0 | Q41: 0
A42: Bas+CsA+Aza+ST | B42: -0.4769966619 | C42: -0.4769966619 | D42: -0.4769966619 | E42: -0.4769966619 | F42: -0.4769966619 | G42: -0.4769966619 | H42: -0.4769966619 | I42: -0.4769966619 | J42: -0.4769966619 | K42: -0.4769966619 | L42: -0.4769966619 | M42: -0.4769966619 | N42: -0.4769966619 | O42: -0.4769966619 | P42: -0.4769966619 | Q42: -0.4769966619
A43: Bas+Srl+MMF+ST | B43: -1.294139097 | C43: -0.8020367972 | D43: -0.4223791476 | E43: -0.1342185777 | F43: 0.0839245762 | G43: 0.2499183775 | H43: 0.3774042794 | I43: 0.4764144088 | J43: 0.5542220533 | K43: 0.6160888218 | L43: 0.6658376186 | M43: 0.7394503005 | N43: 0.7898812146 | O43: 0.8255526485 | P43: 0.8514609145 | Q43: 0.8706922108
A44: Bas+Bela+MMF+ST | B44: -5.644071233 | C44: -5.438754977 | D44: -5.282663081 | E44: -5.165700607 | F44: -5.078132214 | G44: -5.012132842 | H44: -4.96186582 | I44: -4.923112342 | J44: -4.892855148 | K44: -4.86893578 | L44: -4.849800771 | M44: -4.821670533 | N44: -4.802543937 | O44: -4.789097482 | P44: -4.779379556 | Q44: -4.772195065
A45: ln_gamma_offset | B45: 0 | C45: -0.1 | D45: -0.2 | E45: -0.3 | F45: -0.4 | G45: -0.5 | H45: -0.6 | I45: -0.7 | J45: -0.8 | K45: -0.9 | L45: -1 | M45: -1.2 | N45: -1.4 | O45: -1.6 | P45: -1.8 | Q45: -2
A46: Bas+Tac+MMF+ST | B46: 0 | C46: 0 | D46: 0 | E46: 0 | F46: 0 | G46: 0 | H46: 0 | I46: 0 | J46: 0 | K46: 0 | L46: 0 | M46: 0 | N46: 0 | O46: 0 | P46: 0 | Q46: 0
A47: Bas+CsA+Aza+ST | B47: -0.3463441516 | C47: -0.3463441516 | D47: -0.3463441516 | E47: -0.3463441516 | F47: -0.3463441516 | G47: -0.3463441516 | H47: -0.3463441516 | I47: -0.3463441516 | J47: -0.3463441516 | K47: -0.3463441516 | L47: -0.3463441516 | M47: -0.3463441516 | N47: -0.3463441516 | O47: -0.3463441516 | P47: -0.3463441516 | Q47: -0.3463441516
A48: Bas+Srl+MMF+ST | B48: -0.8917393196 | C48: -0.4929104397 | D48: -0.1849705013 | E48: 0.04874846087 | F48: 0.2255919889 | G48: 0.3600610174 | H48: 0.4632477166 | I48: 0.5433145309 | J48: 0.6061790751 | K48: 0.6561206271 | L48: 0.696246578 | M48: 0.755554188 | N48: 0.7961292018 | O48: 0.8247957283 | P48: 0.8455958661 | Q48: 0.8610228276
A49: Bas+Bela+MMF+ST | B49: -3.660671771 | C49: -3.454349241 | D49: -3.297494625 | E49: -3.179987839 | F49: -3.092042458 | G49: -3.025786115 | H49: -2.975345676 | I49: -2.936476192 | J49: -2.906142242 | K49: -2.882172922 | L49: -2.863006266 | M49: -2.834846249 | N49: -2.815713828 | O49: -2.802272224 | P49: -2.792563424 | Q49: -2.78538925

Sheet Report-Deterministic results
A1: Induction agent | B1: Discounted costs | D1: Discounted QALYs | F1: ICER | G1: Incremental net health benefit | P1: Total costs | Q1: Total QALYs | R1: ICER points | S1: ICER rank | V1: Regimen | W1: Total costs | X1: Total QALYs | Y1: Dominated | Z1: Referent strategy | AA1: ICER vs referent | AB1: D/ED | AD1: CE frontier | AE1: Regimen | AF1: Costs | AG1: QALYs | AH1: ICER
B2: Total | C2: Incremental | D2: Total | E2: Incremental | G2: £20k/QALY | H2: £30k/QALY
A3: With CSA+AZA | G3: =CONCATENATE("vs. ",VLOOKUP(INDEX(V4:V6,Z3),N4:O6,2,FALSE)) -> vs. Basiliximab | Z3: =MATCH(FALSE,Y4:Y6,0) -> 3
A4: =VLOOKUP(V4,N4:O6,2,FALSE) -> No induction | B4: =W4 -> 101595.3253 | C4: — | D4: =X4 -> 10.77105193 | E4: — | F4: =IF(Y4,"Dominated",IF(AB4,"Extended dominated",VLOOKUP(V4,AE4:AH6,4,FALSE))) -> Dominated | G4: =IF(U4=Z3,"—",-(W4-INDEX(W4:W6,Z3))/20000+(X4-INDEX(X4:X6,Z3))) -> -0.2994449002 | H4: =IF(U4=Z3,"—",-(W4-INDEX(W4:W6,Z3))/30000+(X4-INDEX(X4:X6,Z3))) -> -0.2435874825 | N4: CsA+Aza+ST | O4: No induction | P4: =VLOOKUP(N4,Results!$A$6:$H$21,3,FALSE) -> 101595.3253 | Q4: =VLOOKUP(N4,Results!$A$6:$H$21,5,FALSE) -> 10.77105193 | R4: =VLOOKUP(N4,Results!$A$6:$H$21,8,FALSE) -> 40 | S4: =_xlfn.RANK.AVG(R4,R4:R6,1) -> 1 | U4: 1 | V4: =INDEX(N4:N6,MATCH(U4,S4:S6,0)) -> CsA+Aza+ST | W4: =INDEX(P4:P6,MATCH(U4,S4:S6,0)) -> 101595.3253 | X4: =INDEX(Q4:Q6,MATCH(U4,S4:S6,0)) -> 10.77105193 | Y4: =OR(W5:W6<W4) -> TRUE | AA4: =IF(U4=Z3,0,(W4-INDEX(W4:W6,Z3))/(X4-INDEX(X4:X6,Z3))) -> -25414.25486 | AB4: =OR(Y4,AA4>AA4:AA6) -> TRUE | AD4: =Z3 -> 3 | AE4: =INDEX(V4:V6,AD4) -> Bas+CsA+Aza+ST | AF4: =INDEX(W4:W6,AD4) -> 98243.88029 | AG4: =INDEX(X4:X6,AD4) -> 10.90292458 | AH4: —
A5: =VLOOKUP(V5,N4:O6,2,FALSE) -> Rabbit ATG | B5: =W5 -> 104570.3304 | C5: =B5-B4 -> 2975.005082 | D5: =X5 -> 10.81816242 | E5: =D5-D4 -> 0.04711048737 | F5: =IF(Y5,"Dominated",IF(AB5,"Extended dominated",VLOOKUP(V5,AE4:AH6,4,FALSE))) -> Dominated | G5: =IF(U5=Z3,"—",-(W5-INDEX(W4:W6,Z3))/20000+(X5-INDEX(X4:X6,Z3))) -> -0.401084667 | H5: =IF(U5=Z3,"—",-(W5-INDEX(W4:W6,Z3))/30000+(X5-INDEX(X4:X6,Z3))) -> -0.2956438312 | N5: Bas+CsA+Aza+ST | O5: Basiliximab | P5: =VLOOKUP(N5,Results!$A$6:$H$21,3,FALSE) -> 98243.88029 | Q5: =VLOOKUP(N5,Results!$A$6:$H$21,5,FALSE) -> 10.90292458 | R5: =VLOOKUP(N5,Results!$A$6:$H$21,8,FALSE) -> 135 | S5: =_xlfn.RANK.AVG(R5,R4:R6,1) -> 3 | U5: 2 | V5: =INDEX(N4:N6,MATCH(U5,S4:S6,0)) -> rATG+CsA+Aza+ST | W5: =INDEX(P4:P6,MATCH(U5,S4:S6,0)) -> 104570.3304 | X5: =INDEX(Q4:Q6,MATCH(U5,S4:S6,0)) -> 10.81816242 | Y5: =OR(W6:W6<W5) -> TRUE | AA5: =IF(U5=Z3,0,(W5-INDEX(W4:W6,Z3))/(X5-INDEX(X4:X6,Z3))) -> -74637.67045 | AB5: =OR(Y5,AA5>AA5:AA6) -> TRUE | AD5: =MATCH(FALSE,OFFSET(AB3,AD4+1,0,COUNT(U4:U6)-AD4),0)+AD4 ->  | AE5: =INDEX(V4:V6,AD5) ->  | AF5: =INDEX(W4:W6,AD5) ->  | AG5: =INDEX(X4:X6,AD5) ->  | AH5: =(AF5-AF4)/(AG5-AG4) -> 
A6: =VLOOKUP(V6,N4:O6,2,FALSE) -> Basiliximab | B6: =W6 -> 98243.88029 | C6: =B6-B5 -> -6326.450145 | D6: =X6 -> 10.90292458 | E6: =D6-D5 -> 0.08476215973 | F6: =IF(Y6,"Dominated",IF(AB6,"Extended dominated",VLOOKUP(V6,AE4:AH6,4,FALSE))) -> — | G6: =IF(U6=Z3,"—",-(W6-INDEX(W4:W6,Z3))/20000+(X6-INDEX(X4:X6,Z3))) -> — | H6: =IF(U6=Z3,"—",-(W6-INDEX(W4:W6,Z3))/30000+(X6-INDEX(X4:X6,Z3))) -> — | N6: rATG+CsA+Aza+ST | O6: Rabbit ATG | P6: =VLOOKUP(N6,Results!$A$6:$H$21,3,FALSE) -> 104570.3304 | Q6: =VLOOKUP(N6,Results!$A$6:$H$21,5,FALSE) -> 10.81816242 | R6: =VLOOKUP(N6,Results!$A$6:$H$21,8,FALSE) -> 74 | S6: =_xlfn.RANK.AVG(R6,R4:R6,1) -> 2 | U6: 3 | V6: =INDEX(N4:N6,MATCH(U6,S4:S6,0)) -> Bas+CsA+Aza+ST | W6: =INDEX(P4:P6,MATCH(U6,S4:S6,0)) -> 98243.88029 | X6: =INDEX(Q4:Q6,MATCH(U6,S4:S6,0)) -> 10.90292458 | Y6: =OR(W6:W6<W6) -> FALSE | AA6: =IF(U6=Z3,0,(W6-INDEX(W4:W6,Z3))/(X6-INDEX(X4:X6,Z3))) -> 0 | AB6: =OR(Y6,AA6>AA6:AA6) -> FALSE | AD6: =MATCH(FALSE,OFFSET(AB3,AD5+1,0,COUNT(U4:U6)-AD5),0)+AD5 ->  | AE6: =INDEX(V4:V6,AD6) ->  | AF6: =INDEX(W4:W6,AD6) ->  | AG6: =INDEX(X4:X6,AD6) ->  | AH6: =(AF6-AF5)/(AG6-AG5) -> 
A7: With CSA+MMF | G7: =CONCATENATE("vs. ",VLOOKUP(INDEX(V8:V10,Z7),N8:O10,2,FALSE)) -> vs. Basiliximab | Z7: =MATCH(FALSE,Y8:Y10,0) -> 3
A8: =VLOOKUP(V8,N8:O10,2,FALSE) -> No induction | B8: =W8 -> 97429.01972 | C8: — | D8: =X8 -> 10.91452807 | E8: — | F8: =IF(Y8,"Dominated",IF(AB8,"Extended dominated",VLOOKUP(V8,AE8:AH10,4,FALSE))) -> Dominated | G8: =IF(U8=Z7,"—",-(W8-INDEX(W8:W10,Z7))/20000+(X8-INDEX(X8:X10,Z7))) -> -0.2206622405 | H8: =IF(U8=Z7,"—",-(W8-INDEX(W8:W10,Z7))/30000+(X8-INDEX(X8:X10,Z7))) -> -0.1838343742 | N8: CsA+MMF+ST | O8: No induction | P8: =VLOOKUP(N8,Results!$A$6:$H$21,3,FALSE) -> 97429.01972 | Q8: =VLOOKUP(N8,Results!$A$6:$H$21,5,FALSE) -> 10.91452807 | R8: =VLOOKUP(N8,Results!$A$6:$H$21,8,FALSE) -> 166 | S8: =_xlfn.RANK.AVG(R8,R8:R10,1) -> 1 | U8: 1 | V8: =INDEX(N8:N10,MATCH(U8,S8:S10,0)) -> CsA+MMF+ST | W8: =INDEX(P8:P10,MATCH(U8,S8:S10,0)) -> 97429.01972 | X8: =INDEX(Q8:Q10,MATCH(U8,S8:S10,0)) -> 10.91452807 | Y8: =OR(W9:W10<W8) -> TRUE | AA8: =IF(U8=Z7,0,(W8-INDEX(W8:W10,Z7))/(X8-INDEX(X8:X10,Z7))) -> -20055.35682 | AB8: =OR(Y8,AA8>AA8:AA10) -> TRUE | AD8: =Z7 -> 3 | AE8: =INDEX(V8:V10,AD8) -> Bas+CsA+MMF+ST | AF8: =INDEX(W8:W10,AD8) -> 95219.34775 | AG8: =INDEX(X8:X10,AD8) -> 11.02470671 | AH8: —
A9: =VLOOKUP(V9,N8:O10,2,FALSE) -> Rabbit ATG | B9: =W9 -> 101939.7392 | C9: =B9-B8 -> 4510.719465 | D9: =X9 -> 10.92807497 | E9: =D9-D8 -> 0.01354689862 | F9: =IF(Y9,"Dominated",IF(AB9,"Extended dominated",VLOOKUP(V9,AE8:AH10,4,FALSE))) -> Dominated | G9: =IF(U9=Z7,"—",-(W9-INDEX(W8:W10,Z7))/20000+(X9-INDEX(X8:X10,Z7))) -> -0.4326513151 | H9: =IF(U9=Z7,"—",-(W9-INDEX(W8:W10,Z7))/30000+(X9-INDEX(X8:X10,Z7))) -> -0.3206447911 | N9: Bas+CsA+MMF+ST | O9: Basiliximab | P9: =VLOOKUP(N9,Results!$A$6:$H$21,3,FALSE) -> 95219.34775 | Q9: =VLOOKUP(N9,Results!$A$6:$H$21,5,FALSE) -> 11.02470671 | R9: =VLOOKUP(N9,Results!$A$6:$H$21,8,FALSE) -> 228 | S9: =_xlfn.RANK.AVG(R9,R8:R10,1) -> 3 | U9: 2 | V9: =INDEX(N8:N10,MATCH(U9,S8:S10,0)) -> rATG+CsA+MMF+ST | W9: =INDEX(P8:P10,MATCH(U9,S8:S10,0)) -> 101939.7392 | X9: =INDEX(Q8:Q10,MATCH(U9,S8:S10,0)) -> 10.92807497 | Y9: =OR(W10:W10<W9) -> TRUE | AA9: =IF(U9=Z7,0,(W9-INDEX(W8:W10,Z7))/(X9-INDEX(X8:X10,Z7))) -> -69546.41634 | AB9: =OR(Y9,AA9>AA9:AA10) -> TRUE | AD9: =MATCH(FALSE,OFFSET(AB7,AD8+1,0,COUNT(U8:U10)-AD8),0)+AD8 ->  | AE9: =INDEX(V8:V10,AD9) ->  | AF9: =INDEX(W8:W10,AD9) ->  | AG9: =INDEX(X8:X10,AD9) ->  | AH9: =(AF9-AF8)/(AG9-AG8) -> 
A10: =VLOOKUP(V10,N8:O10,2,FALSE) -> Basiliximab | B10: =W10 -> 95219.34775 | C10: =B10-B9 -> -6720.391439 | D10: =X10 -> 11.02470671 | E10: =D10-D9 -> 0.09663174313 | F10: =IF(Y10,"Dominated",IF(AB10,"Extended dominated",VLOOKUP(V10,AE8:AH10,4,FALSE))) -> — | G10: =IF(U10=Z7,"—",-(W10-INDEX(W8:W10,Z7))/20000+(X10-INDEX(X8:X10,Z7))) -> — | H10: =IF(U10=Z7,"—",-(W10-INDEX(W8:W10,Z7))/30000+(X10-INDEX(X8:X10,Z7))) -> — | N10: rATG+CsA+MMF+ST | O10: Rabbit ATG | P10: =VLOOKUP(N10,Results!$A$6:$H$21,3,FALSE) -> 101939.7392 | Q10: =VLOOKUP(N10,Results!$A$6:$H$21,5,FALSE) -> 10.92807497 | R10: =VLOOKUP(N10,Results!$A$6:$H$21,8,FALSE) -> 185 | S10: =_xlfn.RANK.AVG(R10,R8:R10,1) -> 2 | U10: 3 | V10: =INDEX(N8:N10,MATCH(U10,S8:S10,0)) -> Bas+CsA+MMF+ST | W10: =INDEX(P8:P10,MATCH(U10,S8:S10,0)) -> 95219.34775 | X10: =INDEX(Q8:Q10,MATCH(U10,S8:S10,0)) -> 11.02470671 | Y10: =OR(W10:W10<W10) -> FALSE | AA10: =IF(U10=Z7,0,(W10-INDEX(W8:W10,Z7))/(X10-INDEX(X8:X10,Z7))) -> 0 | AB10: =OR(Y10,AA10>AA10:AA10) -> FALSE | AD10: =MATCH(FALSE,OFFSET(AB7,AD9+1,0,COUNT(U8:U10)-AD9),0)+AD9 ->  | AE10: =INDEX(V8:V10,AD10) ->  | AF10: =INDEX(W8:W10,AD10) ->  | AG10: =INDEX(X8:X10,AD10) ->  | AH10: =(AF10-AF9)/(AG10-AG9) -> 
A11: With TAC+MMF | G11: =CONCATENATE("vs. ",VLOOKUP(INDEX(V12:V14,Z11),N12:O14,2,FALSE)) -> vs. Basiliximab | Z11: =MATCH(FALSE,Y12:Y14,0) -> 3
A12: =VLOOKUP(V12,N12:O14,2,FALSE) -> No induction | B12: =W12 -> 92226.12511 | C12: — | D12: =X12 -> 10.88839841 | E12: — | F12: =IF(Y12,"Dominated",IF(AB12,"Extended dominated",VLOOKUP(V12,AE12:AH14,4,FALSE))) -> Dominated | G12: =IF(U12=Z11,"—",-(W12-INDEX(W12:W14,Z11))/20000+(X12-INDEX(X12:X14,Z11))) -> -0.1906350699 | H12: =IF(U12=Z11,"—",-(W12-INDEX(W12:W14,Z11))/30000+(X12-INDEX(X12:X14,Z11))) -> -0.1602784793 | N12: Tac+MMF+ST | O12: No induction | P12: =VLOOKUP(N12,Results!$A$6:$H$21,3,FALSE) -> 92226.12511 | Q12: =VLOOKUP(N12,Results!$A$6:$H$21,5,FALSE) -> 10.88839841 | R12: =VLOOKUP(N12,Results!$A$6:$H$21,8,FALSE) -> 98 | S12: =_xlfn.RANK.AVG(R12,R12:R14,1) -> 1 | U12: 1 | V12: =INDEX(N12:N14,MATCH(U12,S12:S14,0)) -> Tac+MMF+ST | W12: =INDEX(P12:P14,MATCH(U12,S12:S14,0)) -> 92226.12511 | X12: =INDEX(Q12:Q14,MATCH(U12,S12:S14,0)) -> 10.88839841 | Y12: =OR(W13:W14<W12) -> TRUE | AA12: =IF(U12=Z11,0,(W12-INDEX(W12:W14,Z11))/(X12-INDEX(X12:X14,Z11))) -> -18293.47643 | AB12: =OR(Y12,AA12>AA12:AA14) -> TRUE | AD12: =Z11 -> 3 | AE12: =INDEX(V12:V14,AD12) -> Bas+Tac+MMF+ST | AF12: =INDEX(W12:W14,AD12) -> 90404.72967 | AG12: =INDEX(X12:X14,AD12) -> 10.98796371 | AH12: —
A13: =VLOOKUP(V13,N12:O14,2,FALSE) -> Rabbit ATG | B13: =W13 -> 97146.15866 | C13: =B13-B12 -> 4920.033557 | D13: =X13 -> 10.90471604 | E13: =D13-D12 -> 0.01631762941 | F13: =IF(Y13,"Dominated",IF(AB13,"Extended dominated",VLOOKUP(V13,AE12:AH14,4,FALSE))) -> Dominated | G13: =IF(U13=Z11,"—",-(W13-INDEX(W12:W14,Z11))/20000+(X13-INDEX(X12:X14,Z11))) -> -0.4203191183 | H13: =IF(U13=Z11,"—",-(W13-INDEX(W12:W14,Z11))/30000+(X13-INDEX(X12:X14,Z11))) -> -0.3079619685 | N13: Bas+Tac+MMF+ST | O13: Basiliximab | P13: =VLOOKUP(N13,Results!$A$6:$H$21,3,FALSE) -> 90404.72967 | Q13: =VLOOKUP(N13,Results!$A$6:$H$21,5,FALSE) -> 10.98796371 | R13: =VLOOKUP(N13,Results!$A$6:$H$21,8,FALSE) -> 209 | S13: =_xlfn.RANK.AVG(R13,R12:R14,1) -> 3 | U13: 2 | V13: =INDEX(N12:N14,MATCH(U13,S12:S14,0)) -> rATG+Tac+MMF+ST | W13: =INDEX(P12:P14,MATCH(U13,S12:S14,0)) -> 97146.15866 | X13: =INDEX(Q12:Q14,MATCH(U13,S12:S14,0)) -> 10.90471604 | Y13: =OR(W14:W14<W13) -> TRUE | AA13: =IF(U13=Z11,0,(W13-INDEX(W12:W14,Z11))/(X13-INDEX(X12:X14,Z11))) -> -80980.39373 | AB13: =OR(Y13,AA13>AA13:AA14) -> TRUE | AD13: =MATCH(FALSE,OFFSET(AB11,AD12+1,0,COUNT(U12:U14)-AD12),0)+AD12 ->  | AE13: =INDEX(V12:V14,AD13) ->  | AF13: =INDEX(W12:W14,AD13) ->  | AG13: =INDEX(X12:X14,AD13) ->  | AH13: =(AF13-AF12)/(AG13-AG12) -> 
A14: =VLOOKUP(V14,N12:O14,2,FALSE) -> Basiliximab | B14: =W14 -> 90404.72967 | C14: =B14-B13 -> -6741.428992 | D14: =X14 -> 10.98796371 | E14: =D14-D13 -> 0.08324766874 | F14: =IF(Y14,"Dominated",IF(AB14,"Extended dominated",VLOOKUP(V14,AE12:AH14,4,FALSE))) -> — | G14: =IF(U14=Z11,"—",-(W14-INDEX(W12:W14,Z11))/20000+(X14-INDEX(X12:X14,Z11))) -> — | H14: =IF(U14=Z11,"—",-(W14-INDEX(W12:W14,Z11))/30000+(X14-INDEX(X12:X14,Z11))) -> — | N14: rATG+Tac+MMF+ST | O14: Rabbit ATG | P14: =VLOOKUP(N14,Results!$A$6:$H$21,3,FALSE) -> 97146.15866 | Q14: =VLOOKUP(N14,Results!$A$6:$H$21,5,FALSE) -> 10.90471604 | R14: =VLOOKUP(N14,Results!$A$6:$H$21,8,FALSE) -> 149 | S14: =_xlfn.RANK.AVG(R14,R12:R14,1) -> 2 | U14: 3 | V14: =INDEX(N12:N14,MATCH(U14,S12:S14,0)) -> Bas+Tac+MMF+ST | W14: =INDEX(P12:P14,MATCH(U14,S12:S14,0)) -> 90404.72967 | X14: =INDEX(Q12:Q14,MATCH(U14,S12:S14,0)) -> 10.98796371 | Y14: =OR(W14:W14<W14) -> FALSE | AA14: =IF(U14=Z11,0,(W14-INDEX(W12:W14,Z11))/(X14-INDEX(X12:X14,Z11))) -> 0 | AB14: =OR(Y14,AA14>AA14:AA14) -> FALSE | AD14: =MATCH(FALSE,OFFSET(AB11,AD13+1,0,COUNT(U12:U14)-AD13),0)+AD13 ->  | AE14: =INDEX(V12:V14,AD14) ->  | AF14: =INDEX(W12:W14,AD14) ->  | AG14: =INDEX(X12:X14,AD14) ->  | AH14: =(AF14-AF13)/(AG14-AG13) -> 
A17: Maintenance agent | B17: Discounted costs | D17: Discounted QALYs | F17: ICER | G17: Incremental net health benefit
B18: Total | C18: Incremental | D18: Total | E18: Incremental | G18: £20k/QALY | H18: £30k/QALY
A19: With MMF | G19: =CONCATENATE("vs. ",VLOOKUP(INDEX(V20:V22,Z19),N20:O22,2,FALSE)) -> vs. TAC | Z19: =MATCH(FALSE,Y20:Y22,0) -> 2
A20: =VLOOKUP(V20,N20:O22,2,FALSE) -> TAC-PR | B20: =W20 -> 106529.3833 | C20: — | D20: =X20 -> 10.79200425 | E20: — | F20: =IF(Y20,"Dominated",IF(AB20,"Extended dominated",VLOOKUP(V20,AE20:AH22,4,FALSE))) -> Dominated | G20: =IF(U20=Z19,"—",-(W20-INDEX(W20:W22,Z19))/20000+(X20-INDEX(X20:X22,Z19))) -> -0.8115570776 | H20: =IF(U20=Z19,"—",-(W20-INDEX(W20:W22,Z19))/30000+(X20-INDEX(X20:X22,Z19))) -> -0.5731694417 | N20: CsA+MMF+ST | O20: CSA | P20: =VLOOKUP(N20,Results!$A$6:$H$21,3,FALSE) -> 97429.01972 | Q20: =VLOOKUP(N20,Results!$A$6:$H$21,5,FALSE) -> 10.91452807 | R20: =VLOOKUP(N20,Results!$A$6:$H$21,8,FALSE) -> 166 | S20: =_xlfn.RANK.AVG(R20,R20:R22,1) -> 3 | U20: 1 | V20: =INDEX(N20:N22,MATCH(U20,S20:S22,0)) -> Tac-PR+MMF+ST | W20: =INDEX(P20:P22,MATCH(U20,S20:S22,0)) -> 106529.3833 | X20: =INDEX(Q20:Q22,MATCH(U20,S20:S22,0)) -> 10.79200425 | Y20: =OR(W21:W22<W20) -> TRUE | AA20: =IF(U20=Z19,0,(W20-INDEX(W20:W22,Z19))/(X20-INDEX(X20:X22,Z19))) -> -148383.0212 | AB20: =OR(Y20,AA20>AA20:AA22) -> TRUE | AD20: =Z19 -> 2 | AE20: =INDEX(V20:V22,AD20) -> Tac+MMF+ST | AF20: =INDEX(W20:W22,AD20) -> 92226.12511 | AG20: =INDEX(X20:X22,AD20) -> 10.88839841 | AH20: —
A21: =VLOOKUP(V21,N20:O22,2,FALSE) -> TAC | B21: =W21 -> 92226.12511 | C21: =B21-B20 -> -14303.25815 | D21: =X21 -> 10.88839841 | E21: =D21-D20 -> 0.09639416986 | F21: =IF(Y21,"Dominated",IF(AB21,"Extended dominated",VLOOKUP(V21,AE20:AH22,4,FALSE))) -> — | G21: =IF(U21=Z19,"—",-(W21-INDEX(W20:W22,Z19))/20000+(X21-INDEX(X20:X22,Z19))) -> — | H21: =IF(U21=Z19,"—",-(W21-INDEX(W20:W22,Z19))/30000+(X21-INDEX(X20:X22,Z19))) -> — | N21: Tac+MMF+ST | O21: TAC | P21: =VLOOKUP(N21,Results!$A$6:$H$21,3,FALSE) -> 92226.12511 | Q21: =VLOOKUP(N21,Results!$A$6:$H$21,5,FALSE) -> 10.88839841 | R21: =VLOOKUP(N21,Results!$A$6:$H$21,8,FALSE) -> 98 | S21: =_xlfn.RANK.AVG(R21,R20:R22,1) -> 2 | U21: 2 | V21: =INDEX(N20:N22,MATCH(U21,S20:S22,0)) -> Tac+MMF+ST | W21: =INDEX(P20:P22,MATCH(U21,S20:S22,0)) -> 92226.12511 | X21: =INDEX(Q20:Q22,MATCH(U21,S20:S22,0)) -> 10.88839841 | Y21: =OR(W22:W22<W21) -> FALSE | AA21: =IF(U21=Z19,0,(W21-INDEX(W20:W22,Z19))/(X21-INDEX(X20:X22,Z19))) -> 0 | AB21: =OR(Y21,AA21>AA21:AA22) -> FALSE | AD21: =MATCH(FALSE,OFFSET(AB19,AD20+1,0,COUNT(U20:U22)-AD20),0)+AD20 -> 3 | AE21: =INDEX(V20:V22,AD21) -> CsA+MMF+ST | AF21: =INDEX(W20:W22,AD21) -> 97429.01972 | AG21: =INDEX(X20:X22,AD21) -> 10.91452807 | AH21: =(AF21-AF20)/(AG21-AG20) -> 199118.3986
A22: =VLOOKUP(V22,N20:O22,2,FALSE) -> CSA | B22: =W22 -> 97429.01972 | C22: =B22-B21 -> 5202.894615 | D22: =X22 -> 10.91452807 | E22: =D22-D21 -> 0.02612965276 | F22: =IF(Y22,"Dominated",IF(AB22,"Extended dominated",VLOOKUP(V22,AE20:AH22,4,FALSE))) -> 199118.3986 | G22: =IF(U22=Z19,"—",-(W22-INDEX(W20:W22,Z19))/20000+(X22-INDEX(X20:X22,Z19))) -> -0.234015078 | H22: =IF(U22=Z19,"—",-(W22-INDEX(W20:W22,Z19))/30000+(X22-INDEX(X20:X22,Z19))) -> -0.1473001677 | N22: Tac-PR+MMF+ST | O22: TAC-PR | P22: =VLOOKUP(N22,Results!$A$6:$H$21,3,FALSE) -> 106529.3833 | Q22: =VLOOKUP(N22,Results!$A$6:$H$21,5,FALSE) -> 10.79200425 | R22: =VLOOKUP(N22,Results!$A$6:$H$21,8,FALSE) -> 59 | S22: =_xlfn.RANK.AVG(R22,R20:R22,1) -> 1 | U22: 3 | V22: =INDEX(N20:N22,MATCH(U22,S20:S22,0)) -> CsA+MMF+ST | W22: =INDEX(P20:P22,MATCH(U22,S20:S22,0)) -> 97429.01972 | X22: =INDEX(Q20:Q22,MATCH(U22,S20:S22,0)) -> 10.91452807 | Y22: =OR(W22:W22<W22) -> FALSE | AA22: =IF(U22=Z19,0,(W22-INDEX(W20:W22,Z19))/(X22-INDEX(X20:X22,Z19))) -> 199118.3986 | AB22: =OR(Y22,AA22>AA22:AA22) -> FALSE | AD22: =MATCH(FALSE,OFFSET(AB19,AD21+1,0,COUNT(U20:U22)-AD21),0)+AD21 ->  | AE22: =INDEX(V20:V22,AD22) ->  | AF22: =INDEX(W20:W22,AD22) ->  | AG22: =INDEX(X20:X22,AD22) ->  | AH22: =(AF22-AF21)/(AG22-AG21) -> 
A23: With AZA | G23: =CONCATENATE("vs. ",VLOOKUP(INDEX(V24:V25,Z23),N24:O25,2,FALSE)) -> vs. TAC | Z23: =MATCH(FALSE,Y24:Y25,0) -> 2
A24: =VLOOKUP(V24,N24:O25,2,FALSE) -> CSA | B24: =W24 -> 101595.3253 | C24: — | D24: =X24 -> 10.77105193 | E24: — | F24: =IF(Y24,"Dominated",IF(AB24,"Extended dominated",VLOOKUP(V24,AE24:AH25,4,FALSE))) -> Dominated | G24: =IF(U24=Z23,"—",-(W24-INDEX(W24:W25,Z23))/20000+(X24-INDEX(X24:X25,Z23))) -> -0.5123999962 | H24: =IF(U24=Z23,"—",-(W24-INDEX(W24:W25,Z23))/30000+(X24-INDEX(X24:X25,Z23))) -> -0.3744605119 | N24: CsA+Aza+ST | O24: CSA | P24: =VLOOKUP(N24,Results!$A$6:$H$21,3,FALSE) -> 101595.3253 | Q24: =VLOOKUP(N24,Results!$A$6:$H$21,5,FALSE) -> 10.77105193 | R24: =VLOOKUP(N24,Results!$A$6:$H$21,8,FALSE) -> 40 | S24: =_xlfn.RANK.AVG(R24,R24:R25,1) -> 1 | U24: 1 | V24: =INDEX(N24:N25,MATCH(U24,S24:S25,0)) -> CsA+Aza+ST | W24: =INDEX(P24:P25,MATCH(U24,S24:S25,0)) -> 101595.3253 | X24: =INDEX(Q24:Q25,MATCH(U24,S24:S25,0)) -> 10.77105193 | Y24: =OR(W25:W25<W24) -> TRUE | AA24: =IF(U24=Z23,0,(W24-INDEX(W24:W25,Z23))/(X24-INDEX(X24:X25,Z23))) -> -83954.5495 | AB24: =OR(Y24,AA24>AA24:AA25) -> TRUE | AD24: =Z23 -> 2 | AE24: =INDEX(V24:V25,AD24) -> Tac+Aza+ST | AF24: =INDEX(W24:W25,AD24) -> 93318.95629 | AG24: =INDEX(X24:X25,AD24) -> 10.86963348 | AH24: —
A25: =VLOOKUP(V25,N24:O25,2,FALSE) -> TAC | B25: =W25 -> 93318.95629 | C25: =B25-B24 -> -8276.369058 | D25: =X25 -> 10.86963348 | E25: =D25-D24 -> 0.09858154332 | F25: =IF(Y25,"Dominated",IF(AB25,"Extended dominated",VLOOKUP(V25,AE24:AH25,4,FALSE))) -> — | G25: =IF(U25=Z23,"—",-(W25-INDEX(W24:W25,Z23))/20000+(X25-INDEX(X24:X25,Z23))) -> — | H25: =IF(U25=Z23,"—",-(W25-INDEX(W24:W25,Z23))/30000+(X25-INDEX(X24:X25,Z23))) -> — | N25: Tac+Aza+ST | O25: TAC | P25: =VLOOKUP(N25,Results!$A$6:$H$21,3,FALSE) -> 93318.95629 | Q25: =VLOOKUP(N25,Results!$A$6:$H$21,5,FALSE) -> 10.86963348 | R25: =VLOOKUP(N25,Results!$A$6:$H$21,8,FALSE) -> 83 | S25: =_xlfn.RANK.AVG(R25,R24:R25,1) -> 2 | U25: 2 | V25: =INDEX(N24:N25,MATCH(U25,S24:S25,0)) -> Tac+Aza+ST | W25: =INDEX(P24:P25,MATCH(U25,S24:S25,0)) -> 93318.95629 | X25: =INDEX(Q24:Q25,MATCH(U25,S24:S25,0)) -> 10.86963348 | Y25: =OR(W25:W25<W25) -> FALSE | AA25: =IF(U25=Z23,0,(W25-INDEX(W24:W25,Z23))/(X25-INDEX(X24:X25,Z23))) -> 0 | AB25: =OR(Y25,AA25>AA25:AA25) -> FALSE | AD25: =MATCH(FALSE,OFFSET(AB23,AD24+1,0,COUNT(U24:U27)-AD24),0)+AD24 ->  | AE25: =INDEX(V24:V25,AD25) ->  | AF25: =INDEX(W24:W25,AD25) ->  | AG25: =INDEX(X24:X25,AD25) ->  | AH25: =(AF25-AF24)/(AG25-AG24) -> 
A26: With BAS+MMF | G26: =CONCATENATE("vs. ",VLOOKUP(INDEX(V27:V30,Z26),N27:O30,2,FALSE)) -> vs. TAC | Z26: =MATCH(FALSE,Y27:Y30,0) -> 2
A27: =VLOOKUP(V27,N27:O30,2,FALSE) -> SRL | B27: =W27 -> 114548.7163 | C27: — | D27: =X27 -> 10.90102395 | E27: — | F27: =IF(Y27,"Dominated",IF(AB27,"Extended dominated",VLOOKUP(V27,AE27:AH30,4,FALSE))) -> Dominated | G27: =IF(U27=Z26,"—",-(W27-INDEX(W27:W30,Z26))/20000+(X27-INDEX(X27:X30,Z26))) -> -1.294139097 | H27: =IF(U27=Z26,"—",-(W27-INDEX(W27:W30,Z26))/30000+(X27-INDEX(X27:X30,Z26))) -> -0.8917393196 | N27: Bas+CsA+MMF+ST | O27: CSA | P27: =VLOOKUP(N27,Results!$A$6:$H$21,3,FALSE) -> 95219.34775 | Q27: =VLOOKUP(N27,Results!$A$6:$H$21,5,FALSE) -> 11.02470671 | R27: =VLOOKUP(N27,Results!$A$6:$H$21,8,FALSE) -> 228 | S27: =_xlfn.RANK.AVG(R27,R27:R30,1) -> 3 | U27: 1 | V27: =INDEX(N27:N30,MATCH(U27,S27:S30,0)) -> Bas+Srl+MMF+ST | W27: =INDEX(P27:P30,MATCH(U27,S27:S30,0)) -> 114548.7163 | X27: =INDEX(Q27:Q30,MATCH(U27,S27:S30,0)) -> 10.90102395 | Y27: =OR(W28:W30<W27) -> TRUE | AA27: =IF(U27=Z26,0,(W27-INDEX(W27:W30,Z26))/(X27-INDEX(X27:X30,Z26))) -> -277709.3645 | AB27: =OR(Y27,AA27>AA27:AA30) -> TRUE | AD27: =Z26 -> 2 | AE27: =INDEX(V27:V30,AD27) -> Bas+Tac+MMF+ST | AF27: =INDEX(W27:W30,AD27) -> 90404.72967 | AG27: =INDEX(X27:X30,AD27) -> 10.98796371 | AH27: —
A28: =VLOOKUP(V28,N27:O30,2,FALSE) -> TAC | B28: =W28 -> 90404.72967 | C28: =B28-B27 -> -24143.98666 | D28: =X28 -> 10.98796371 | E28: =D28-D27 -> 0.0869397642 | F28: =IF(Y28,"Dominated",IF(AB28,"Extended dominated",VLOOKUP(V28,AE27:AH30,4,FALSE))) -> — | G28: =IF(U28=Z26,"—",-(W28-INDEX(W27:W30,Z26))/20000+(X28-INDEX(X27:X30,Z26))) -> — | H28: =IF(U28=Z26,"—",-(W28-INDEX(W27:W30,Z26))/30000+(X28-INDEX(X27:X30,Z26))) -> — | N28: Bas+Tac+MMF+ST | O28: TAC | P28: =VLOOKUP(N28,Results!$A$6:$H$21,3,FALSE) -> 90404.72967 | Q28: =VLOOKUP(N28,Results!$A$6:$H$21,5,FALSE) -> 10.98796371 | R28: =VLOOKUP(N28,Results!$A$6:$H$21,8,FALSE) -> 209 | S28: =_xlfn.RANK.AVG(R28,R27:R30,1) -> 2 | U28: 2 | V28: =INDEX(N27:N30,MATCH(U28,S27:S30,0)) -> Bas+Tac+MMF+ST | W28: =INDEX(P27:P30,MATCH(U28,S27:S30,0)) -> 90404.72967 | X28: =INDEX(Q27:Q30,MATCH(U28,S27:S30,0)) -> 10.98796371 | Y28: =OR(W29:W30<W28) -> FALSE | AA28: =IF(U28=Z26,0,(W28-INDEX(W27:W30,Z26))/(X28-INDEX(X27:X30,Z26))) -> 0 | AB28: =OR(Y28,AA28>AA28:AA30) -> FALSE | AD28: =MATCH(FALSE,OFFSET(AB26,AD27+1,0,COUNT(U27:U30)-AD27),0)+AD27 -> 3 | AE28: =INDEX(V27:V30,AD28) -> Bas+CsA+MMF+ST | AF28: =INDEX(W27:W30,AD28) -> 95219.34775 | AG28: =INDEX(X27:X30,AD28) -> 11.02470671 | AH28: =(AF28-AF27)/(AG28-AG27) -> 131034.9877
A29: =VLOOKUP(V29,N27:O30,2,FALSE) -> CSA | B29: =W29 -> 95219.34775 | C29: =B29-B28 -> 4814.618076 | D29: =X29 -> 11.02470671 | E29: =D29-D28 -> 0.03674299636 | F29: =IF(Y29,"Dominated",IF(AB29,"Extended dominated",VLOOKUP(V29,AE27:AH30,4,FALSE))) -> 131034.9877 | G29: =IF(U29=Z26,"—",-(W29-INDEX(W27:W30,Z26))/20000+(X29-INDEX(X27:X30,Z26))) -> -0.2039879074 | H29: =IF(U29=Z26,"—",-(W29-INDEX(W27:W30,Z26))/30000+(X29-INDEX(X27:X30,Z26))) -> -0.1237442728 | N29: Bas+Srl+MMF+ST | O29: SRL | P29: =VLOOKUP(N29,Results!$A$6:$H$21,3,FALSE) -> 114548.7163 | Q29: =VLOOKUP(N29,Results!$A$6:$H$21,5,FALSE) -> 10.90102395 | R29: =VLOOKUP(N29,Results!$A$6:$H$21,8,FALSE) -> 125 | S29: =_xlfn.RANK.AVG(R29,R27:R30,1) -> 1 | U29: 3 | V29: =INDEX(N27:N30,MATCH(U29,S27:S30,0)) -> Bas+CsA+MMF+ST | W29: =INDEX(P27:P30,MATCH(U29,S27:S30,0)) -> 95219.34775 | X29: =INDEX(Q27:Q30,MATCH(U29,S27:S30,0)) -> 11.02470671 | Y29: =OR(W30:W30<W29) -> FALSE | AA29: =IF(U29=Z26,0,(W29-INDEX(W27:W30,Z26))/(X29-INDEX(X27:X30,Z26))) -> 131034.9877 | AB29: =OR(Y29,AA29>AA29:AA30) -> FALSE | AD29: =MATCH(FALSE,OFFSET(AB26,AD28+1,0,COUNT(U27:U30)-AD28),0)+AD28 -> 4 | AE29: =INDEX(V27:V30,AD29) -> Bas+Bela+MMF+ST | AF29: =INDEX(W27:W30,AD29) -> 209408.6974 | AG29: =INDEX(X27:X30,AD29) -> 11.29409087 | AH29: =(AF29-AF28)/(AG29-AG28) -> 423890.3697
A30: =VLOOKUP(V30,N27:O30,2,FALSE) -> BEL | B30: =W30 -> 209408.6974 | C30: =B30-B29 -> 114189.3496 | D30: =X30 -> 11.29409087 | E30: =D30-D29 -> 0.2693841564 | F30: =IF(Y30,"Dominated",IF(AB30,"Extended dominated",VLOOKUP(V30,AE27:AH30,4,FALSE))) -> 423890.3697 | G30: =IF(U30=Z26,"—",-(W30-INDEX(W27:W30,Z26))/20000+(X30-INDEX(X27:X30,Z26))) -> -5.644071233 | H30: =IF(U30=Z26,"—",-(W30-INDEX(W27:W30,Z26))/30000+(X30-INDEX(X27:X30,Z26))) -> -3.660671771 | N30: Bas+Bela+MMF+ST | O30: BEL | P30: =VLOOKUP(N30,Results!$A$6:$H$21,3,FALSE) -> 209408.6974 | Q30: =VLOOKUP(N30,Results!$A$6:$H$21,5,FALSE) -> 11.29409087 | R30: =VLOOKUP(N30,Results!$A$6:$H$21,8,FALSE) -> 272 | S30: =_xlfn.RANK.AVG(R30,R27:R30,1) -> 4 | U30: 4 | V30: =INDEX(N27:N30,MATCH(U30,S27:S30,0)) -> Bas+Bela+MMF+ST | W30: =INDEX(P27:P30,MATCH(U30,S27:S30,0)) -> 209408.6974 | X30: =INDEX(Q27:Q30,MATCH(U30,S27:S30,0)) -> 11.29409087 | Y30: =OR(W30:W30<W30) -> FALSE | AA30: =IF(U30=Z26,0,(W30-INDEX(W27:W30,Z26))/(X30-INDEX(X27:X30,Z26))) -> 388740.3213 | AB30: =OR(Y30,AA30>AA30:AA30) -> FALSE | AD30: =MATCH(FALSE,OFFSET(AB26,AD29+1,0,COUNT(U27:U30)-AD29),0)+AD29 ->  | AE30: =INDEX(V27:V30,AD30) ->  | AF30: =INDEX(W27:W30,AD30) ->  | AG30: =INDEX(X27:X30,AD30) ->  | AH30: =(AF30-AF29)/(AG30-AG29) -> 
A31: With rATG+MMF | G31: =CONCATENATE("vs. ",VLOOKUP(INDEX(V32:V33,Z31),N32:O33,2,FALSE)) -> vs. TAC | Z31: =MATCH(FALSE,Y32:Y33,0) -> 1
A32: =VLOOKUP(V32,N32:O33,2,FALSE) -> TAC | B32: =W32 -> 97146.15866 | C32: — | D32: =X32 -> 10.90471604 | E32: — | F32: =IF(Y32,"Dominated",IF(AB32,"Extended dominated",VLOOKUP(V32,AE32:AH33,4,FALSE))) -> — | G32: =IF(U32=Z31,"—",-(W32-INDEX(W32:W33,Z31))/20000+(X32-INDEX(X32:X33,Z31))) -> — | H32: =IF(U32=Z31,"—",-(W32-INDEX(W32:W33,Z31))/30000+(X32-INDEX(X32:X33,Z31))) -> — | N32: rATG+CsA+MMF+ST | O32: CSA | P32: =VLOOKUP(N32,Results!$A$6:$H$21,3,FALSE) -> 101939.7392 | Q32: =VLOOKUP(N32,Results!$A$6:$H$21,5,FALSE) -> 10.92807497 | R32: =VLOOKUP(N32,Results!$A$6:$H$21,8,FALSE) -> 185 | S32: =_xlfn.RANK.AVG(R32,R32:R33,1) -> 2 | U32: 1 | V32: =INDEX(N32:N33,MATCH(U32,S32:S33,0)) -> rATG+Tac+MMF+ST | W32: =INDEX(P32:P33,MATCH(U32,S32:S33,0)) -> 97146.15866 | X32: =INDEX(Q32:Q33,MATCH(U32,S32:S33,0)) -> 10.90471604 | Y32: =OR(W33:W33<W32) -> FALSE | AA32: =IF(U32=Z31,0,(W32-INDEX(W32:W33,Z31))/(X32-INDEX(X32:X33,Z31))) -> 0 | AB32: =OR(Y32,AA32>AA32:AA33) -> FALSE | AD32: =Z31 -> 1 | AE32: =INDEX(V32:V33,AD32) -> rATG+Tac+MMF+ST | AF32: =INDEX(W32:W33,AD32) -> 97146.15866 | AG32: =INDEX(X32:X33,AD32) -> 10.90471604 | AH32: —
A33: =VLOOKUP(V33,N32:O33,2,FALSE) -> CSA | B33: =W33 -> 101939.7392 | C33: =B33-B32 -> 4793.580523 | D33: =X33 -> 10.92807497 | E33: =D33-D32 -> 0.02335892197 | F33: =IF(Y33,"Dominated",IF(AB33,"Extended dominated",VLOOKUP(V33,AE32:AH33,4,FALSE))) -> 205214.116 | G33: =IF(U33=Z31,"—",-(W33-INDEX(W32:W33,Z31))/20000+(X33-INDEX(X32:X33,Z31))) -> -0.2163201042 | H33: =IF(U33=Z31,"—",-(W33-INDEX(W32:W33,Z31))/30000+(X33-INDEX(X32:X33,Z31))) -> -0.1364270954 | N33: rATG+Tac+MMF+ST | O33: TAC | P33: =VLOOKUP(N33,Results!$A$6:$H$21,3,FALSE) -> 97146.15866 | Q33: =VLOOKUP(N33,Results!$A$6:$H$21,5,FALSE) -> 10.90471604 | R33: =VLOOKUP(N33,Results!$A$6:$H$21,8,FALSE) -> 149 | S33: =_xlfn.RANK.AVG(R33,R32:R33,1) -> 1 | U33: 2 | V33: =INDEX(N32:N33,MATCH(U33,S32:S33,0)) -> rATG+CsA+MMF+ST | W33: =INDEX(P32:P33,MATCH(U33,S32:S33,0)) -> 101939.7392 | X33: =INDEX(Q32:Q33,MATCH(U33,S32:S33,0)) -> 10.92807497 | Y33: =OR(W33:W33<W33) -> FALSE | AA33: =IF(U33=Z31,0,(W33-INDEX(W32:W33,Z31))/(X33-INDEX(X32:X33,Z31))) -> 205214.116 | AB33: =OR(Y33,AA33>AA33:AA33) -> FALSE | AD33: =MATCH(FALSE,OFFSET(AB31,AD32+1,0,COUNT(U32:U35)-AD32),0)+AD32 -> 2 | AE33: =INDEX(V32:V33,AD33) -> rATG+CsA+MMF+ST | AF33: =INDEX(W32:W33,AD33) -> 101939.7392 | AG33: =INDEX(X32:X33,AD33) -> 10.92807497 | AH33: =(AF33-AF32)/(AG33-AG32) -> 205214.116
A34: With CSA | G34: =CONCATENATE("vs. ",VLOOKUP(INDEX(V35:V37,Z34),N35:O37,2,FALSE)) -> vs. MMF | Z34: =MATCH(FALSE,Y35:Y37,0) -> 2
A35: =VLOOKUP(V35,N35:O37,2,FALSE) -> AZA | B35: =W35 -> 101595.3253 | C35: — | D35: =X35 -> 10.77105193 | E35: — | F35: =IF(Y35,"Dominated",IF(AB35,"Extended dominated",VLOOKUP(V35,AE35:AH37,4,FALSE))) -> Dominated | G35: =IF(U35=Z34,"—",-(W35-INDEX(W35:W37,Z34))/20000+(X35-INDEX(X35:X37,Z34))) -> -0.3517914142 | H35: =IF(U35=Z34,"—",-(W35-INDEX(W35:W37,Z34))/30000+(X35-INDEX(X35:X37,Z34))) -> -0.2823529871 | N35: CsA+Aza+ST | O35: AZA | P35: =VLOOKUP(N35,Results!$A$6:$H$21,3,FALSE) -> 101595.3253 | Q35: =VLOOKUP(N35,Results!$A$6:$H$21,5,FALSE) -> 10.77105193 | R35: =VLOOKUP(N35,Results!$A$6:$H$21,8,FALSE) -> 40 | S35: =_xlfn.RANK.AVG(R35,R35:R37,1) -> 1 | U35: 1 | V35: =INDEX(N35:N37,MATCH(U35,S35:S37,0)) -> CsA+Aza+ST | W35: =INDEX(P35:P37,MATCH(U35,S35:S37,0)) -> 101595.3253 | X35: =INDEX(Q35:Q37,MATCH(U35,S35:S37,0)) -> 10.77105193 | Y35: =OR(W36:W37<W35) -> TRUE | AA35: =IF(U35=Z34,0,(W35-INDEX(W35:W37,Z34))/(X35-INDEX(X35:X37,Z34))) -> -29038.31842 | AB35: =OR(Y35,AA35>AA35:AA37) -> TRUE | AD35: =Z34 -> 2 | AE35: =INDEX(V35:V37,AD35) -> CsA+MMF+ST | AF35: =INDEX(W35:W37,AD35) -> 97429.01972 | AG35: =INDEX(X35:X37,AD35) -> 10.91452807 | AH35: —
A36: =VLOOKUP(V36,N35:O37,2,FALSE) -> MMF | B36: =W36 -> 97429.01972 | C36: =B36-B35 -> -4166.305629 | D36: =X36 -> 10.91452807 | E36: =D36-D35 -> 0.1434761328 | F36: =IF(Y36,"Dominated",IF(AB36,"Extended dominated",VLOOKUP(V36,AE35:AH37,4,FALSE))) -> — | G36: =IF(U36=Z34,"—",-(W36-INDEX(W35:W37,Z34))/20000+(X36-INDEX(X35:X37,Z34))) -> — | H36: =IF(U36=Z34,"—",-(W36-INDEX(W35:W37,Z34))/30000+(X36-INDEX(X35:X37,Z34))) -> — | N36: CsA+MMF+ST | O36: MMF | P36: =VLOOKUP(N36,Results!$A$6:$H$21,3,FALSE) -> 97429.01972 | Q36: =VLOOKUP(N36,Results!$A$6:$H$21,5,FALSE) -> 10.91452807 | R36: =VLOOKUP(N36,Results!$A$6:$H$21,8,FALSE) -> 166 | S36: =_xlfn.RANK.AVG(R36,R35:R37,1) -> 2 | U36: 2 | V36: =INDEX(N35:N37,MATCH(U36,S35:S37,0)) -> CsA+MMF+ST | W36: =INDEX(P35:P37,MATCH(U36,S35:S37,0)) -> 97429.01972 | X36: =INDEX(Q35:Q37,MATCH(U36,S35:S37,0)) -> 10.91452807 | Y36: =OR(W37:W37<W36) -> FALSE | AA36: =IF(U36=Z34,0,(W36-INDEX(W35:W37,Z34))/(X36-INDEX(X35:X37,Z34))) -> 0 | AB36: =OR(Y36,AA36>AA36:AA37) -> FALSE | AD36: =MATCH(FALSE,OFFSET(AB34,AD35+1,0,COUNT(U35:U37)-AD35),0)+AD35 -> 3 | AE36: =INDEX(V35:V37,AD36) -> CsA+Evl+ST | AF36: =INDEX(W35:W37,AD36) -> 176154.3349 | AG36: =INDEX(X35:X37,AD36) -> 10.96590262 | AH36: =(AF36-AF35)/(AG36-AG35) -> 1532379.459
A37: =VLOOKUP(V37,N35:O37,2,FALSE) -> EVL | B37: =W37 -> 176154.3349 | C37: =B37-B36 -> 78725.31517 | D37: =X37 -> 10.96590262 | E37: =D37-D36 -> 0.05137455654 | F37: =IF(Y37,"Dominated",IF(AB37,"Extended dominated",VLOOKUP(V37,AE35:AH37,4,FALSE))) -> 1532379.459 | G37: =IF(U37=Z34,"—",-(W37-INDEX(W35:W37,Z34))/20000+(X37-INDEX(X35:X37,Z34))) -> -3.884891202 | H37: =IF(U37=Z34,"—",-(W37-INDEX(W35:W37,Z34))/30000+(X37-INDEX(X35:X37,Z34))) -> -2.572802616 | N37: CsA+Evl+ST | O37: EVL | P37: =VLOOKUP(N37,Results!$A$6:$H$21,3,FALSE) -> 176154.3349 | Q37: =VLOOKUP(N37,Results!$A$6:$H$21,5,FALSE) -> 10.96590262 | R37: =VLOOKUP(N37,Results!$A$6:$H$21,8,FALSE) -> 207 | S37: =_xlfn.RANK.AVG(R37,R35:R37,1) -> 3 | U37: 3 | V37: =INDEX(N35:N37,MATCH(U37,S35:S37,0)) -> CsA+Evl+ST | W37: =INDEX(P35:P37,MATCH(U37,S35:S37,0)) -> 176154.3349 | X37: =INDEX(Q35:Q37,MATCH(U37,S35:S37,0)) -> 10.96590262 | Y37: =OR(W37:W37<W37) -> FALSE | AA37: =IF(U37=Z34,0,(W37-INDEX(W35:W37,Z34))/(X37-INDEX(X35:X37,Z34))) -> 1532379.459 | AB37: =OR(Y37,AA37>AA37:AA37) -> FALSE | AD37: =MATCH(FALSE,OFFSET(AB34,AD36+1,0,COUNT(U35:U37)-AD36),0)+AD36 ->  | AE37: =INDEX(V35:V37,AD37) ->  | AF37: =INDEX(W35:W37,AD37) ->  | AG37: =INDEX(X35:X37,AD37) ->  | AH37: =(AF37-AF36)/(AG37-AG36) -> 
A38: With TAC | G38: =CONCATENATE("vs. ",VLOOKUP(INDEX(V39:V41,Z38),N39:O41,2,FALSE)) -> vs. MMF | Z38: =MATCH(FALSE,Y39:Y41,0) -> 3
A39: =VLOOKUP(V39,N39:O41,2,FALSE) -> SRL | B39: =W39 -> 125539.25 | C39: — | D39: =X39 -> 10.6022819 | E39: — | F39: =IF(Y39,"Dominated",IF(AB39,"Extended dominated",VLOOKUP(V39,AE39:AH41,4,FALSE))) -> Dominated | G39: =IF(U39=Z38,"—",-(W39-INDEX(W39:W41,Z38))/20000+(X39-INDEX(X39:X41,Z38))) -> -1.951772758 | H39: =IF(U39=Z38,"—",-(W39-INDEX(W39:W41,Z38))/30000+(X39-INDEX(X39:X41,Z38))) -> -1.39655401 | N39: Tac+Aza+ST | O39: AZA | P39: =VLOOKUP(N39,Results!$A$6:$H$21,3,FALSE) -> 93318.95629 | Q39: =VLOOKUP(N39,Results!$A$6:$H$21,5,FALSE) -> 10.86963348 | R39: =VLOOKUP(N39,Results!$A$6:$H$21,8,FALSE) -> 83 | S39: =_xlfn.RANK.AVG(R39,R39:R41,1) -> 2 | U39: 1 | V39: =INDEX(N39:N41,MATCH(U39,S39:S41,0)) -> Tac+Srl+ST | W39: =INDEX(P39:P41,MATCH(U39,S39:S41,0)) -> 125539.25 | X39: =INDEX(Q39:Q41,MATCH(U39,S39:S41,0)) -> 10.6022819 | Y39: =OR(W40:W41<W39) -> TRUE | AA39: =IF(U39=Z38,0,(W39-INDEX(W39:W41,Z38))/(X39-INDEX(X39:X41,Z38))) -> -116432.024 | AB39: =OR(Y39,AA39>AA39:AA41) -> TRUE | AD39: =Z38 -> 3 | AE39: =INDEX(V39:V41,AD39) -> Tac+MMF+ST | AF39: =INDEX(W39:W41,AD39) -> 92226.12511 | AG39: =INDEX(X39:X41,AD39) -> 10.88839841 | AH39: —
A40: =VLOOKUP(V40,N39:O41,2,FALSE) -> AZA | B40: =W40 -> 93318.95629 | C40: =B40-B39 -> -32220.29369 | D40: =X40 -> 10.86963348 | E40: =D40-D39 -> 0.2673515779 | F40: =IF(Y40,"Dominated",IF(AB40,"Extended dominated",VLOOKUP(V40,AE39:AH41,4,FALSE))) -> Dominated | G40: =IF(U40=Z38,"—",-(W40-INDEX(W39:W41,Z38))/20000+(X40-INDEX(X39:X41,Z38))) -> -0.07340649597 | H40: =IF(U40=Z38,"—",-(W40-INDEX(W39:W41,Z38))/30000+(X40-INDEX(X39:X41,Z38))) -> -0.05519264288 | N40: Tac+MMF+ST | O40: MMF | P40: =VLOOKUP(N40,Results!$A$6:$H$21,3,FALSE) -> 92226.12511 | Q40: =VLOOKUP(N40,Results!$A$6:$H$21,5,FALSE) -> 10.88839841 | R40: =VLOOKUP(N40,Results!$A$6:$H$21,8,FALSE) -> 98 | S40: =_xlfn.RANK.AVG(R40,R39:R41,1) -> 3 | U40: 2 | V40: =INDEX(N39:N41,MATCH(U40,S39:S41,0)) -> Tac+Aza+ST | W40: =INDEX(P39:P41,MATCH(U40,S39:S41,0)) -> 93318.95629 | X40: =INDEX(Q39:Q41,MATCH(U40,S39:S41,0)) -> 10.86963348 | Y40: =OR(W41:W41<W40) -> TRUE | AA40: =IF(U40=Z38,0,(W40-INDEX(W39:W41,Z38))/(X40-INDEX(X39:X41,Z38))) -> -58237.93618 | AB40: =OR(Y40,AA40>AA40:AA41) -> TRUE | AD40: =MATCH(FALSE,OFFSET(AB38,AD39+1,0,COUNT(U39:U41)-AD39),0)+AD39 ->  | AE40: =INDEX(V39:V41,AD40) ->  | AF40: =INDEX(W39:W41,AD40) ->  | AG40: =INDEX(X39:X41,AD40) ->  | AH40: =(AF40-AF39)/(AG40-AG39) -> 
A41: =VLOOKUP(V41,N39:O41,2,FALSE) -> MMF | B41: =W41 -> 92226.12511 | C41: =B41-B40 -> -1092.831186 | D41: =X41 -> 10.88839841 | E41: =D41-D40 -> 0.0187649367 | F41: =IF(Y41,"Dominated",IF(AB41,"Extended dominated",VLOOKUP(V41,AE39:AH41,4,FALSE))) -> — | G41: =IF(U41=Z38,"—",-(W41-INDEX(W39:W41,Z38))/20000+(X41-INDEX(X39:X41,Z38))) -> — | H41: =IF(U41=Z38,"—",-(W41-INDEX(W39:W41,Z38))/30000+(X41-INDEX(X39:X41,Z38))) -> — | N41: Tac+Srl+ST | O41: SRL | P41: =VLOOKUP(N41,Results!$A$6:$H$21,3,FALSE) -> 125539.25 | Q41: =VLOOKUP(N41,Results!$A$6:$H$21,5,FALSE) -> 10.6022819 | R41: =VLOOKUP(N41,Results!$A$6:$H$21,8,FALSE) -> 30 | S41: =_xlfn.RANK.AVG(R41,R39:R41,1) -> 1 | U41: 3 | V41: =INDEX(N39:N41,MATCH(U41,S39:S41,0)) -> Tac+MMF+ST | W41: =INDEX(P39:P41,MATCH(U41,S39:S41,0)) -> 92226.12511 | X41: =INDEX(Q39:Q41,MATCH(U41,S39:S41,0)) -> 10.88839841 | Y41: =OR(W41:W41<W41) -> FALSE | AA41: =IF(U41=Z38,0,(W41-INDEX(W39:W41,Z38))/(X41-INDEX(X39:X41,Z38))) -> 0 | AB41: =OR(Y41,AA41>AA41:AA41) -> FALSE | AD41: =MATCH(FALSE,OFFSET(AB38,AD40+1,0,COUNT(U39:U41)-AD40),0)+AD40 ->  | AE41: =INDEX(V39:V41,AD41) ->  | AF41: =INDEX(W39:W41,AD41) ->  | AG41: =INDEX(X39:X41,AD41) ->  | AH41: =(AF41-AF40)/(AG41-AG40) -> 
A42: With BAS+CSA | G42: =CONCATENATE("vs. ",VLOOKUP(INDEX(V43:V45,Z42),N43:O45,2,FALSE)) -> vs. MMF | Z42: =MATCH(FALSE,Y43:Y45,0) -> 2
A43: =VLOOKUP(V43,N43:O45,2,FALSE) -> AZA | B43: =W43 -> 98243.88029 | C43: — | D43: =X43 -> 10.90292458 | E43: — | F43: =IF(Y43,"Dominated",IF(AB43,"Extended dominated",VLOOKUP(V43,AE43:AH45,4,FALSE))) -> Dominated | G43: =IF(U43=Z42,"—",-(W43-INDEX(W43:W45,Z42))/20000+(X43-INDEX(X43:X45,Z42))) -> -0.2730087545 | H43: =IF(U43=Z42,"—",-(W43-INDEX(W43:W45,Z42))/30000+(X43-INDEX(X43:X45,Z42))) -> -0.2225998788 | N43: Bas+CsA+Aza+ST | O43: AZA | P43: =VLOOKUP(N43,Results!$A$6:$H$21,3,FALSE) -> 98243.88029 | Q43: =VLOOKUP(N43,Results!$A$6:$H$21,5,FALSE) -> 10.90292458 | R43: =VLOOKUP(N43,Results!$A$6:$H$21,8,FALSE) -> 135 | S43: =_xlfn.RANK.AVG(R43,R43:R45,1) -> 1 | U43: 1 | V43: =INDEX(N43:N45,MATCH(U43,S43:S45,0)) -> Bas+CsA+Aza+ST | W43: =INDEX(P43:P45,MATCH(U43,S43:S45,0)) -> 98243.88029 | X43: =INDEX(Q43:Q45,MATCH(U43,S43:S45,0)) -> 10.90292458 | Y43: =OR(W44:W45<W43) -> TRUE | AA43: =IF(U43=Z42,0,(W43-INDEX(W43:W45,Z42))/(X43-INDEX(X43:X45,Z42))) -> -24835.60277 | AB43: =OR(Y43,AA43>AA43:AA45) -> TRUE | AD43: =Z42 -> 2 | AE43: =INDEX(V43:V45,AD43) -> Bas+CsA+MMF+ST | AF43: =INDEX(W43:W45,AD43) -> 95219.34775 | AG43: =INDEX(X43:X45,AD43) -> 11.02470671 | AH43: —
A44: =VLOOKUP(V44,N43:O45,2,FALSE) -> MMF | B44: =W44 -> 95219.34775 | C44: =B44-B43 -> -3024.532541 | D44: =X44 -> 11.02470671 | E44: =D44-D43 -> 0.1217821274 | F44: =IF(Y44,"Dominated",IF(AB44,"Extended dominated",VLOOKUP(V44,AE43:AH45,4,FALSE))) -> — | G44: =IF(U44=Z42,"—",-(W44-INDEX(W43:W45,Z42))/20000+(X44-INDEX(X43:X45,Z42))) -> — | H44: =IF(U44=Z42,"—",-(W44-INDEX(W43:W45,Z42))/30000+(X44-INDEX(X43:X45,Z42))) -> — | N44: Bas+CsA+MMF+ST | O44: MMF | P44: =VLOOKUP(N44,Results!$A$6:$H$21,3,FALSE) -> 95219.34775 | Q44: =VLOOKUP(N44,Results!$A$6:$H$21,5,FALSE) -> 11.02470671 | R44: =VLOOKUP(N44,Results!$A$6:$H$21,8,FALSE) -> 228 | S44: =_xlfn.RANK.AVG(R44,R43:R45,1) -> 2 | U44: 2 | V44: =INDEX(N43:N45,MATCH(U44,S43:S45,0)) -> Bas+CsA+MMF+ST | W44: =INDEX(P43:P45,MATCH(U44,S43:S45,0)) -> 95219.34775 | X44: =INDEX(Q43:Q45,MATCH(U44,S43:S45,0)) -> 11.02470671 | Y44: =OR(W45:W45<W44) -> FALSE | AA44: =IF(U44=Z42,0,(W44-INDEX(W43:W45,Z42))/(X44-INDEX(X43:X45,Z42))) -> 0 | AB44: =OR(Y44,AA44>AA44:AA45) -> FALSE | AD44: =MATCH(FALSE,OFFSET(AB42,AD43+1,0,COUNT(U43:U45)-AD43),0)+AD43 -> 3 | AE44: =INDEX(V43:V45,AD44) -> Bas+CsA+EC-MPS+ST | AF44: =INDEX(W43:W45,AD44) -> 111539.8772 | AG44: =INDEX(X43:X45,AD44) -> 11.13769131 | AH44: =(AF44-AF43)/(AG44-AG43) -> 144449.1557
A45: =VLOOKUP(V45,N43:O45,2,FALSE) -> MPS | B45: =W45 -> 111539.8772 | C45: =B45-B44 -> 16320.52947 | D45: =X45 -> 11.13769131 | E45: =D45-D44 -> 0.1129845958 | F45: =IF(Y45,"Dominated",IF(AB45,"Extended dominated",VLOOKUP(V45,AE43:AH45,4,FALSE))) -> 144449.1557 | G45: =IF(U45=Z42,"—",-(W45-INDEX(W43:W45,Z42))/20000+(X45-INDEX(X43:X45,Z42))) -> -0.7030418778 | H45: =IF(U45=Z42,"—",-(W45-INDEX(W43:W45,Z42))/30000+(X45-INDEX(X43:X45,Z42))) -> -0.4310330533 | N45: Bas+CsA+EC-MPS+ST | O45: MPS | P45: =VLOOKUP(N45,Results!$A$6:$H$21,3,FALSE) -> 111539.8772 | Q45: =VLOOKUP(N45,Results!$A$6:$H$21,5,FALSE) -> 11.13769131 | R45: =VLOOKUP(N45,Results!$A$6:$H$21,8,FALSE) -> 252 | S45: =_xlfn.RANK.AVG(R45,R43:R45,1) -> 3 | U45: 3 | V45: =INDEX(N43:N45,MATCH(U45,S43:S45,0)) -> Bas+CsA+EC-MPS+ST | W45: =INDEX(P43:P45,MATCH(U45,S43:S45,0)) -> 111539.8772 | X45: =INDEX(Q43:Q45,MATCH(U45,S43:S45,0)) -> 11.13769131 | Y45: =OR(W45:W45<W45) -> FALSE | AA45: =IF(U45=Z42,0,(W45-INDEX(W43:W45,Z42))/(X45-INDEX(X43:X45,Z42))) -> 144449.1557 | AB45: =OR(Y45,AA45>AA45:AA45) -> FALSE | AD45: =MATCH(FALSE,OFFSET(AB42,AD44+1,0,COUNT(U43:U45)-AD44),0)+AD44 ->  | AE45: =INDEX(V43:V45,AD45) ->  | AF45: =INDEX(W43:W45,AD45) ->  | AG45: =INDEX(X43:X45,AD45) ->  | AH45: =(AF45-AF44)/(AG45-AG44) -> 
A46: With rATG+CSA | G46: =CONCATENATE("vs. ",VLOOKUP(INDEX(V47:V48,Z46),N47:O48,2,FALSE)) -> vs. MMF | Z46: =MATCH(FALSE,Y47:Y48,0) -> 2
A47: =VLOOKUP(V47,N47:O48,2,FALSE) -> AZA | B47: =W47 -> 104570.3304 | C47: — | D47: =X47 -> 10.81816242 | E47: — | F47: =IF(Y47,"Dominated",IF(AB47,"Extended dominated",VLOOKUP(V47,AE47:AH48,4,FALSE))) -> Dominated | G47: =IF(U47=Z46,"—",-(W47-INDEX(W47:W48,Z46))/20000+(X47-INDEX(X47:X48,Z46))) -> -0.2414421064 | H47: =IF(U47=Z46,"—",-(W47-INDEX(W47:W48,Z46))/30000+(X47-INDEX(X47:X48,Z46))) -> -0.1975989189 | N47: rATG+CsA+Aza+ST | O47: AZA | P47: =VLOOKUP(N47,Results!$A$6:$H$21,3,FALSE) -> 104570.3304 | Q47: =VLOOKUP(N47,Results!$A$6:$H$21,5,FALSE) -> 10.81816242 | R47: =VLOOKUP(N47,Results!$A$6:$H$21,8,FALSE) -> 74 | S47: =_xlfn.RANK.AVG(R47,R47:R48,1) -> 1 | U47: 1 | V47: =INDEX(N47:N48,MATCH(U47,S47:S48,0)) -> rATG+CsA+Aza+ST | W47: =INDEX(P47:P48,MATCH(U47,S47:S48,0)) -> 104570.3304 | X47: =INDEX(Q47:Q48,MATCH(U47,S47:S48,0)) -> 10.81816242 | Y47: =OR(W48:W48<W47) -> TRUE | AA47: =IF(U47=Z46,0,(W47-INDEX(W47:W48,Z46))/(X47-INDEX(X47:X48,Z46))) -> -23933.49431 | AB47: =OR(Y47,AA47>AA47:AA48) -> TRUE | AD47: =Z46 -> 2 | AE47: =INDEX(V47:V48,AD47) -> rATG+CsA+MMF+ST | AF47: =INDEX(W47:W48,AD47) -> 101939.7392 | AG47: =INDEX(X47:X48,AD47) -> 10.92807497 | AH47: —
A48: =VLOOKUP(V48,N47:O48,2,FALSE) -> MMF | B48: =W48 -> 101939.7392 | C48: =B48-B47 -> -2630.591247 | D48: =X48 -> 10.92807497 | E48: =D48-D47 -> 0.109912544 | F48: =IF(Y48,"Dominated",IF(AB48,"Extended dominated",VLOOKUP(V48,AE47:AH48,4,FALSE))) -> — | G48: =IF(U48=Z46,"—",-(W48-INDEX(W47:W48,Z46))/20000+(X48-INDEX(X47:X48,Z46))) -> — | H48: =IF(U48=Z46,"—",-(W48-INDEX(W47:W48,Z46))/30000+(X48-INDEX(X47:X48,Z46))) -> — | N48: rATG+CsA+MMF+ST | O48: MMF | P48: =VLOOKUP(N48,Results!$A$6:$H$21,3,FALSE) -> 101939.7392 | Q48: =VLOOKUP(N48,Results!$A$6:$H$21,5,FALSE) -> 10.92807497 | R48: =VLOOKUP(N48,Results!$A$6:$H$21,8,FALSE) -> 185 | S48: =_xlfn.RANK.AVG(R48,R47:R48,1) -> 2 | U48: 2 | V48: =INDEX(N47:N48,MATCH(U48,S47:S48,0)) -> rATG+CsA+MMF+ST | W48: =INDEX(P47:P48,MATCH(U48,S47:S48,0)) -> 101939.7392 | X48: =INDEX(Q47:Q48,MATCH(U48,S47:S48,0)) -> 10.92807497 | Y48: =OR(W48:W48<W48) -> FALSE | AA48: =IF(U48=Z46,0,(W48-INDEX(W47:W48,Z46))/(X48-INDEX(X47:X48,Z46))) -> 0 | AB48: =OR(Y48,AA48>AA48:AA48) -> FALSE | AD48: =MATCH(FALSE,OFFSET(AB46,AD47+1,0,COUNT(U47:U50)-AD47),0)+AD47 ->  | AE48: =INDEX(V47:V48,AD48) ->  | AF48: =INDEX(W47:W48,AD48) ->  | AG48: =INDEX(X47:X48,AD48) ->  | AH48: =(AF48-AF47)/(AG48-AG47) -> 
A51: Regimen | B51: Discounted costs | D51: Discounted QALYs | F51: ICER | G51: Incremental net health benefit
B52: Total | C52: Incremental | D52: Total | E52: Incremental | G52: £20k/QALY | H52: £30k/QALY | Z52: =MATCH(FALSE,Y53:Y56,0) -> 1
A53: =VLOOKUP(V53,N53:O56,2,FALSE) -> BAS+TAC+MMF | B53: =W53 -> 90404.72967 | C53: — | D53: =X53 -> 10.98796371 | E53: — | F53: =IF(Y53,"Dominated",IF(AB53,"Extended dominated",VLOOKUP(V53,AE53:AH56,4,FALSE))) -> — | G53: =IF(U53=Z52,"—",-(W53-INDEX(W53:W56,Z52))/20000+(X53-INDEX(X53:X56,Z52))) -> — | H53: =IF(U53=Z52,"—",-(W53-INDEX(W53:W56,Z52))/30000+(X53-INDEX(X53:X56,Z52))) -> — | N53: Bas+Tac+MMF+ST | O53: BAS+TAC+MMF | P53: =VLOOKUP(N53,Results!$A$6:$H$21,3,FALSE) -> 90404.72967 | Q53: =VLOOKUP(N53,Results!$A$6:$H$21,5,FALSE) -> 10.98796371 | R53: =VLOOKUP(N53,Results!$A$6:$H$21,8,FALSE) -> 209 | S53: =_xlfn.RANK.AVG(R53,R53:R56,1) -> 1 | U53: 1 | V53: =INDEX(N53:N56,MATCH(U53,S53:S56,0)) -> Bas+Tac+MMF+ST | W53: =INDEX(P53:P56,MATCH(U53,S53:S56,0)) -> 90404.72967 | X53: =INDEX(Q53:Q56,MATCH(U53,S53:S56,0)) -> 10.98796371 | Y53: =OR(W54:W56<W53) -> FALSE | AA53: =IF(U53=Z52,0,(W53-INDEX(W53:W56,Z52))/(X53-INDEX(X53:X56,Z52))) -> 0 | AB53: =OR(Y53,AA53>AA53:AA56) -> FALSE | AD53: =Z52 -> 1 | AE53: =INDEX(V53:V56,AD53) -> Bas+Tac+MMF+ST | AF53: =INDEX(W53:W56,AD53) -> 90404.72967 | AG53: =INDEX(X53:X56,AD53) -> 10.98796371 | AH53: —
A54: =VLOOKUP(V54,N53:O56,2,FALSE) -> BAS+CSA+MMF | B54: =W54 -> 95219.34775 | C54: =B54-B53 -> 4814.618076 | D54: =X54 -> 11.02470671 | E54: =D54-D53 -> 0.03674299636 | F54: =IF(Y54,"Dominated",IF(AB54,"Extended dominated",VLOOKUP(V54,AE53:AH56,4,FALSE))) -> 131034.9877 | G54: =IF(U54=Z52,"—",-(W54-INDEX(W53:W56,Z52))/20000+(X54-INDEX(X53:X56,Z52))) -> -0.2039879074 | H54: =IF(U54=Z52,"—",-(W54-INDEX(W53:W56,Z52))/30000+(X54-INDEX(X53:X56,Z52))) -> -0.1237442728 | N54: Bas+CsA+MMF+ST | O54: BAS+CSA+MMF | P54: =VLOOKUP(N54,Results!$A$6:$H$21,3,FALSE) -> 95219.34775 | Q54: =VLOOKUP(N54,Results!$A$6:$H$21,5,FALSE) -> 11.02470671 | R54: =VLOOKUP(N54,Results!$A$6:$H$21,8,FALSE) -> 228 | S54: =_xlfn.RANK.AVG(R54,R53:R56,1) -> 2 | U54: 2 | V54: =INDEX(N53:N56,MATCH(U54,S53:S56,0)) -> Bas+CsA+MMF+ST | W54: =INDEX(P53:P56,MATCH(U54,S53:S56,0)) -> 95219.34775 | X54: =INDEX(Q53:Q56,MATCH(U54,S53:S56,0)) -> 11.02470671 | Y54: =OR(W55:W56<W54) -> FALSE | AA54: =IF(U54=Z52,0,(W54-INDEX(W53:W56,Z52))/(X54-INDEX(X53:X56,Z52))) -> 131034.9877 | AB54: =OR(Y54,AA54>AA54:AA56) -> FALSE | AD54: =MATCH(FALSE,OFFSET(AB52,AD53+1,0,COUNT(U53:U56)-AD53),0)+AD53 -> 2 | AE54: =INDEX(V53:V56,AD54) -> Bas+CsA+MMF+ST | AF54: =INDEX(W53:W56,AD54) -> 95219.34775 | AG54: =INDEX(X53:X56,AD54) -> 11.02470671 | AH54: =(AF54-AF53)/(AG54-AG53) -> 131034.9877
A55: =VLOOKUP(V55,N53:O56,2,FALSE) -> BAS+CSA+MPS | B55: =W55 -> 111539.8772 | C55: =B55-B54 -> 16320.52947 | D55: =X55 -> 11.13769131 | E55: =D55-D54 -> 0.1129845958 | F55: =IF(Y55,"Dominated",IF(AB55,"Extended dominated",VLOOKUP(V55,AE53:AH56,4,FALSE))) -> 144449.1557 | G55: =IF(U55=Z52,"—",-(W55-INDEX(W53:W56,Z52))/20000+(X55-INDEX(X53:X56,Z52))) -> -0.9070297852 | H55: =IF(U55=Z52,"—",-(W55-INDEX(W53:W56,Z52))/30000+(X55-INDEX(X53:X56,Z52))) -> -0.5547773261 | N55: Bas+CsA+EC-MPS+ST | O55: BAS+CSA+MPS | P55: =VLOOKUP(N55,Results!$A$6:$H$21,3,FALSE) -> 111539.8772 | Q55: =VLOOKUP(N55,Results!$A$6:$H$21,5,FALSE) -> 11.13769131 | R55: =VLOOKUP(N55,Results!$A$6:$H$21,8,FALSE) -> 252 | S55: =_xlfn.RANK.AVG(R55,R53:R56,1) -> 3 | U55: 3 | V55: =INDEX(N53:N56,MATCH(U55,S53:S56,0)) -> Bas+CsA+EC-MPS+ST | W55: =INDEX(P53:P56,MATCH(U55,S53:S56,0)) -> 111539.8772 | X55: =INDEX(Q53:Q56,MATCH(U55,S53:S56,0)) -> 11.13769131 | Y55: =OR(W56:W56<W55) -> FALSE | AA55: =IF(U55=Z52,0,(W55-INDEX(W53:W56,Z52))/(X55-INDEX(X53:X56,Z52))) -> 141157.3327 | AB55: =OR(Y55,AA55>AA55:AA56) -> FALSE | AD55: =MATCH(FALSE,OFFSET(AB52,AD54+1,0,COUNT(U53:U56)-AD54),0)+AD54 -> 3 | AE55: =INDEX(V53:V56,AD55) -> Bas+CsA+EC-MPS+ST | AF55: =INDEX(W53:W56,AD55) -> 111539.8772 | AG55: =INDEX(X53:X56,AD55) -> 11.13769131 | AH55: =(AF55-AF54)/(AG55-AG54) -> 144449.1557
A56: =VLOOKUP(V56,N53:O56,2,FALSE) -> BAS+BEL+MMF | B56: =W56 -> 209408.6974 | C56: =B56-B55 -> 97868.82017 | D56: =X56 -> 11.29409087 | E56: =D56-D55 -> 0.1563995606 | F56: =IF(Y56,"Dominated",IF(AB56,"Extended dominated",VLOOKUP(V56,AE53:AH56,4,FALSE))) -> 625761.4779 | G56: =IF(U56=Z52,"—",-(W56-INDEX(W53:W56,Z52))/20000+(X56-INDEX(X53:X56,Z52))) -> -5.644071233 | H56: =IF(U56=Z52,"—",-(W56-INDEX(W53:W56,Z52))/30000+(X56-INDEX(X53:X56,Z52))) -> -3.660671771 | N56: Bas+Bela+MMF+ST | O56: BAS+BEL+MMF | P56: =VLOOKUP(N56,Results!$A$6:$H$21,3,FALSE) -> 209408.6974 | Q56: =VLOOKUP(N56,Results!$A$6:$H$21,5,FALSE) -> 11.29409087 | R56: =VLOOKUP(N56,Results!$A$6:$H$21,8,FALSE) -> 272 | S56: =_xlfn.RANK.AVG(R56,R53:R56,1) -> 4 | U56: 4 | V56: =INDEX(N53:N56,MATCH(U56,S53:S56,0)) -> Bas+Bela+MMF+ST | W56: =INDEX(P53:P56,MATCH(U56,S53:S56,0)) -> 209408.6974 | X56: =INDEX(Q53:Q56,MATCH(U56,S53:S56,0)) -> 11.29409087 | Y56: =OR(W56:W56<W56) -> FALSE | AA56: =IF(U56=Z52,0,(W56-INDEX(W53:W56,Z52))/(X56-INDEX(X53:X56,Z52))) -> 388740.3213 | AB56: =OR(Y56,AA56>AA56:AA56) -> FALSE | AD56: =MATCH(FALSE,OFFSET(AB52,AD55+1,0,COUNT(U53:U56)-AD55),0)+AD55 -> 4 | AE56: =INDEX(V53:V56,AD56) -> Bas+Bela+MMF+ST | AF56: =INDEX(W53:W56,AD56) -> 209408.6974 | AG56: =INDEX(X53:X56,AD56) -> 11.29409087 | AH56: =(AF56-AF55)/(AG56-AG55) -> 625761.4779

Sheet Report-Probabilistic results
A1: Induction agent | B1: Discounted costs | D1: Discounted QALYs | F1: ICER | G1: Incremental net health benefit | I1: Probability cost-effective | P1: Total costs | Q1: Total QALYs | R1: ICER points | S1: ICER rank | V1: Regimen | W1: Total costs | X1: Total QALYs | Y1: Dominated | Z1: Referent strategy | AA1: ICER vs referent | AB1: D/ED | AD1: CE frontier | AE1: Regimen | AF1: Costs | AG1: QALYs | AH1: ICER
B2: Total | C2: Incremental | D2: Total | E2: Incremental | G2: £20k/QALY | H2: £30k/QALY | I2: £20k/QALY | J2: £30k/QALY
A3: With CSA+AZA | G3: =CONCATENATE("vs. ",VLOOKUP(INDEX(V4:V6,Z3),N4:O6,2,FALSE)) -> vs. Basiliximab | Z3: =MATCH(FALSE,Y4:Y6,0) -> 3
A4: =VLOOKUP(V4,N4:O6,2,FALSE) -> No induction | B4: =W4 -> 102504.1785 | C4: — | D4: =X4 -> 10.76335737 | E4: — | F4: =IF(Y4,"Dominated",IF(AB4,"Extended dominated",VLOOKUP(V4,AE4:AH6,4,FALSE))) -> Dominated | G4: =IF(U4=Z3,"—",-(W4-INDEX(W4:W6,Z3))/20000+(X4-INDEX(X4:X6,Z3))) -> -0.3028217396 | H4: =IF(U4=Z3,"—",-(W4-INDEX(W4:W6,Z3))/30000+(X4-INDEX(X4:X6,Z3))) -> -0.2470698122 | I4: =HLOOKUP($A4,PSA!$FS$10:$FU$61,1+MATCH(20000,PSA!$EV$11:$EV$61,0),FALSE) -> 0.0068 | J4: =HLOOKUP($A4,PSA!$FS$10:$FU$61,1+MATCH(30000,PSA!$EV$11:$EV$61,0),FALSE) -> 0 | N4: CsA+Aza+ST | O4: No induction | P4: =VLOOKUP(N4,Results!$AB$6:$AG$21,2,FALSE) -> 102504.1785 | Q4: =VLOOKUP(N4,Results!$AB$6:$AG$21,3,FALSE) -> 10.76335737 | R4: =VLOOKUP(N4,Results!$AB$6:$AG$21,6,FALSE) -> 56 | S4: =_xlfn.RANK.AVG(R4,R4:R6,1) -> 1 | U4: 1 | V4: =INDEX(N4:N6,MATCH(U4,S4:S6,0)) -> CsA+Aza+ST | W4: =INDEX(P4:P6,MATCH(U4,S4:S6,0)) -> 102504.1785 | X4: =INDEX(Q4:Q6,MATCH(U4,S4:S6,0)) -> 10.76335737 | Y4: =OR(W5:W6<W4) -> TRUE | AA4: =IF(U4=Z3,0,(W4-INDEX(W4:W6,Z3))/(X4-INDEX(X4:X6,Z3))) -> -24675.18919 | AB4: =OR(Y4,AA4>AA4:AA6) -> TRUE | AD4: =Z3 -> 3 | AE4: =INDEX(V4:V6,AD4) -> Bas+CsA+Aza+ST | AF4: =INDEX(W4:W6,AD4) -> 99159.0629 | AG4: =INDEX(X4:X6,AD4) -> 10.89892333 | AH4: —
A5: =VLOOKUP(V5,N4:O6,2,FALSE) -> Rabbit ATG | B5: =W5 -> 105683.1469 | C5: =B5-B4 -> 3178.968399 | D5: =X5 -> 10.80484949 | E5: =D5-D4 -> 0.04149211266 | F5: =IF(Y5,"Dominated",IF(AB5,"Extended dominated",VLOOKUP(V5,AE4:AH6,4,FALSE))) -> Dominated | G5: =IF(U5=Z3,"—",-(W5-INDEX(W4:W6,Z3))/20000+(X5-INDEX(X4:X6,Z3))) -> -0.4202780469 | H5: =IF(U5=Z3,"—",-(W5-INDEX(W4:W6,Z3))/30000+(X5-INDEX(X4:X6,Z3))) -> -0.3115433128 | I5: =HLOOKUP($A5,PSA!$FS$10:$FU$61,1+MATCH(20000,PSA!$EV$11:$EV$61,0),FALSE) -> 0.0578 | J5: =HLOOKUP($A5,PSA!$FS$10:$FU$61,1+MATCH(30000,PSA!$EV$11:$EV$61,0),FALSE) -> 0 | N5: Bas+CsA+Aza+ST | O5: Basiliximab | P5: =VLOOKUP(N5,Results!$AB$6:$AG$21,2,FALSE) -> 99159.0629 | Q5: =VLOOKUP(N5,Results!$AB$6:$AG$21,3,FALSE) -> 10.89892333 | R5: =VLOOKUP(N5,Results!$AB$6:$AG$21,6,FALSE) -> 135 | S5: =_xlfn.RANK.AVG(R5,R4:R6,1) -> 3 | U5: 2 | V5: =INDEX(N4:N6,MATCH(U5,S4:S6,0)) -> rATG+CsA+Aza+ST | W5: =INDEX(P4:P6,MATCH(U5,S4:S6,0)) -> 105683.1469 | X5: =INDEX(Q4:Q6,MATCH(U5,S4:S6,0)) -> 10.80484949 | Y5: =OR(W6:W6<W5) -> TRUE | AA5: =IF(U5=Z3,0,(W5-INDEX(W4:W6,Z3))/(X5-INDEX(X4:X6,Z3))) -> -69350.66879 | AB5: =OR(Y5,AA5>AA5:AA6) -> TRUE | AD5: =MATCH(FALSE,OFFSET(AB3,AD4+1,0,COUNT(U4:U6)-AD4),0)+AD4 ->  | AE5: =INDEX(V4:V6,AD5) ->  | AF5: =INDEX(W4:W6,AD5) ->  | AG5: =INDEX(X4:X6,AD5) ->  | AH5: =(AF5-AF4)/(AG5-AG4) -> 
A6: =VLOOKUP(V6,N4:O6,2,FALSE) -> Basiliximab | B6: =W6 -> 99159.0629 | C6: =B6-B5 -> -6524.084045 | D6: =X6 -> 10.89892333 | E6: =D6-D5 -> 0.09407384468 | F6: =IF(Y6,"Dominated",IF(AB6,"Extended dominated",VLOOKUP(V6,AE4:AH6,4,FALSE))) -> — | G6: =IF(U6=Z3,"—",-(W6-INDEX(W4:W6,Z3))/20000+(X6-INDEX(X4:X6,Z3))) -> — | H6: =IF(U6=Z3,"—",-(W6-INDEX(W4:W6,Z3))/30000+(X6-INDEX(X4:X6,Z3))) -> — | I6: =HLOOKUP($A6,PSA!$FS$10:$FU$61,1+MATCH(20000,PSA!$EV$11:$EV$61,0),FALSE) -> 0.9354 | J6: =HLOOKUP($A6,PSA!$FS$10:$FU$61,1+MATCH(30000,PSA!$EV$11:$EV$61,0),FALSE) -> 0 | N6: rATG+CsA+Aza+ST | O6: Rabbit ATG | P6: =VLOOKUP(N6,Results!$AB$6:$AG$21,2,FALSE) -> 105683.1469 | Q6: =VLOOKUP(N6,Results!$AB$6:$AG$21,3,FALSE) -> 10.80484949 | R6: =VLOOKUP(N6,Results!$AB$6:$AG$21,6,FALSE) -> 74 | S6: =_xlfn.RANK.AVG(R6,R4:R6,1) -> 2 | U6: 3 | V6: =INDEX(N4:N6,MATCH(U6,S4:S6,0)) -> Bas+CsA+Aza+ST | W6: =INDEX(P4:P6,MATCH(U6,S4:S6,0)) -> 99159.0629 | X6: =INDEX(Q4:Q6,MATCH(U6,S4:S6,0)) -> 10.89892333 | Y6: =OR(W6:W6<W6) -> FALSE | AA6: =IF(U6=Z3,0,(W6-INDEX(W4:W6,Z3))/(X6-INDEX(X4:X6,Z3))) -> 0 | AB6: =OR(Y6,AA6>AA6:AA6) -> FALSE | AD6: =MATCH(FALSE,OFFSET(AB3,AD5+1,0,COUNT(U4:U6)-AD5),0)+AD5 ->  | AE6: =INDEX(V4:V6,AD6) ->  | AF6: =INDEX(W4:W6,AD6) ->  | AG6: =INDEX(X4:X6,AD6) ->  | AH6: =(AF6-AF5)/(AG6-AG5) -> 
A7: With CSA+MMF | G7: =CONCATENATE("vs. ",VLOOKUP(INDEX(V8:V10,Z7),N8:O10,2,FALSE)) -> vs. Basiliximab | Z7: =MATCH(FALSE,Y8:Y10,0) -> 3
A8: =VLOOKUP(V8,N8:O10,2,FALSE) -> No induction | B8: =W8 -> 98218.59386 | C8: — | D8: =X8 -> 10.91550885 | E8: — | F8: =IF(Y8,"Dominated",IF(AB8,"Extended dominated",VLOOKUP(V8,AE8:AH10,4,FALSE))) -> Dominated | G8: =IF(U8=Z7,"—",-(W8-INDEX(W8:W10,Z7))/20000+(X8-INDEX(X8:X10,Z7))) -> -0.2293806577 | H8: =IF(U8=Z7,"—",-(W8-INDEX(W8:W10,Z7))/30000+(X8-INDEX(X8:X10,Z7))) -> -0.1913730533 | I8: =HLOOKUP($A8,PSA!$FM$10:$FO$61,1+MATCH(20000,PSA!$EV$11:$EV$61,0),FALSE) -> 0.0181 | J8: =HLOOKUP($A8,PSA!$FM$10:$FO$61,1+MATCH(30000,PSA!$EV$11:$EV$61,0),FALSE) -> 0 | N8: CsA+MMF+ST | O8: No induction | P8: =VLOOKUP(N8,Results!$AB$6:$AG$21,2,FALSE) -> 98218.59386 | Q8: =VLOOKUP(N8,Results!$AB$6:$AG$21,3,FALSE) -> 10.91550885 | R8: =VLOOKUP(N8,Results!$AB$6:$AG$21,6,FALSE) -> 166 | S8: =_xlfn.RANK.AVG(R8,R8:R10,1) -> 1 | U8: 1 | V8: =INDEX(N8:N10,MATCH(U8,S8:S10,0)) -> CsA+MMF+ST | W8: =INDEX(P8:P10,MATCH(U8,S8:S10,0)) -> 98218.59386 | X8: =INDEX(Q8:Q10,MATCH(U8,S8:S10,0)) -> 10.91550885 | Y8: =OR(W9:W10<W8) -> TRUE | AA8: =IF(U8=Z7,0,(W8-INDEX(W8:W10,Z7))/(X8-INDEX(X8:X10,Z7))) -> -19768.54088 | AB8: =OR(Y8,AA8>AA8:AA10) -> TRUE | AD8: =Z7 -> 3 | AE8: =INDEX(V8:V10,AD8) -> Bas+CsA+MMF+ST | AF8: =INDEX(W8:W10,AD8) -> 95938.1376 | AG8: =INDEX(X8:X10,AD8) -> 11.0308667 | AH8: —
A9: =VLOOKUP(V9,N8:O10,2,FALSE) -> Rabbit ATG | B9: =W9 -> 102831.4355 | C9: =B9-B8 -> 4612.841609 | D9: =X9 -> 10.92495498 | E9: =D9-D8 -> 0.009446127797 | F9: =IF(Y9,"Dominated",IF(AB9,"Extended dominated",VLOOKUP(V9,AE8:AH10,4,FALSE))) -> Dominated | G9: =IF(U9=Z7,"—",-(W9-INDEX(W8:W10,Z7))/20000+(X9-INDEX(X8:X10,Z7))) -> -0.4505766104 | H9: =IF(U9=Z7,"—",-(W9-INDEX(W8:W10,Z7))/30000+(X9-INDEX(X8:X10,Z7))) -> -0.3356883125 | I9: =HLOOKUP($A9,PSA!$FM$10:$FO$61,1+MATCH(20000,PSA!$EV$11:$EV$61,0),FALSE) -> 0.0329 | J9: =HLOOKUP($A9,PSA!$FM$10:$FO$61,1+MATCH(30000,PSA!$EV$11:$EV$61,0),FALSE) -> 0 | N9: Bas+CsA+MMF+ST | O9: Basiliximab | P9: =VLOOKUP(N9,Results!$AB$6:$AG$21,2,FALSE) -> 95938.1376 | Q9: =VLOOKUP(N9,Results!$AB$6:$AG$21,3,FALSE) -> 11.0308667 | R9: =VLOOKUP(N9,Results!$AB$6:$AG$21,6,FALSE) -> 244 | S9: =_xlfn.RANK.AVG(R9,R8:R10,1) -> 3 | U9: 2 | V9: =INDEX(N8:N10,MATCH(U9,S8:S10,0)) -> rATG+CsA+MMF+ST | W9: =INDEX(P8:P10,MATCH(U9,S8:S10,0)) -> 102831.4355 | X9: =INDEX(Q8:Q10,MATCH(U9,S8:S10,0)) -> 10.92495498 | Y9: =OR(W10:W10<W9) -> TRUE | AA9: =IF(U9=Z7,0,(W9-INDEX(W8:W10,Z7))/(X9-INDEX(X8:X10,Z7))) -> -65085.31907 | AB9: =OR(Y9,AA9>AA9:AA10) -> TRUE | AD9: =MATCH(FALSE,OFFSET(AB7,AD8+1,0,COUNT(U8:U10)-AD8),0)+AD8 ->  | AE9: =INDEX(V8:V10,AD9) ->  | AF9: =INDEX(W8:W10,AD9) ->  | AG9: =INDEX(X8:X10,AD9) ->  | AH9: =(AF9-AF8)/(AG9-AG8) -> 
A10: =VLOOKUP(V10,N8:O10,2,FALSE) -> Basiliximab | B10: =W10 -> 95938.1376 | C10: =B10-B9 -> -6893.297874 | D10: =X10 -> 11.0308667 | E10: =D10-D9 -> 0.1059117167 | F10: =IF(Y10,"Dominated",IF(AB10,"Extended dominated",VLOOKUP(V10,AE8:AH10,4,FALSE))) -> — | G10: =IF(U10=Z7,"—",-(W10-INDEX(W8:W10,Z7))/20000+(X10-INDEX(X8:X10,Z7))) -> — | H10: =IF(U10=Z7,"—",-(W10-INDEX(W8:W10,Z7))/30000+(X10-INDEX(X8:X10,Z7))) -> — | I10: =HLOOKUP($A10,PSA!$FM$10:$FO$61,1+MATCH(20000,PSA!$EV$11:$EV$61,0),FALSE) -> 0.949 | J10: =HLOOKUP($A10,PSA!$FM$10:$FO$61,1+MATCH(30000,PSA!$EV$11:$EV$61,0),FALSE) -> 0 | N10: rATG+CsA+MMF+ST | O10: Rabbit ATG | P10: =VLOOKUP(N10,Results!$AB$6:$AG$21,2,FALSE) -> 102831.4355 | Q10: =VLOOKUP(N10,Results!$AB$6:$AG$21,3,FALSE) -> 10.92495498 | R10: =VLOOKUP(N10,Results!$AB$6:$AG$21,6,FALSE) -> 185 | S10: =_xlfn.RANK.AVG(R10,R8:R10,1) -> 2 | U10: 3 | V10: =INDEX(N8:N10,MATCH(U10,S8:S10,0)) -> Bas+CsA+MMF+ST | W10: =INDEX(P8:P10,MATCH(U10,S8:S10,0)) -> 95938.1376 | X10: =INDEX(Q8:Q10,MATCH(U10,S8:S10,0)) -> 11.0308667 | Y10: =OR(W10:W10<W10) -> FALSE | AA10: =IF(U10=Z7,0,(W10-INDEX(W8:W10,Z7))/(X10-INDEX(X8:X10,Z7))) -> 0 | AB10: =OR(Y10,AA10>AA10:AA10) -> FALSE | AD10: =MATCH(FALSE,OFFSET(AB7,AD9+1,0,COUNT(U8:U10)-AD9),0)+AD9 ->  | AE10: =INDEX(V8:V10,AD10) ->  | AF10: =INDEX(W8:W10,AD10) ->  | AG10: =INDEX(X8:X10,AD10) ->  | AH10: =(AF10-AF9)/(AG10-AG9) -> 
A11: With TAC+MMF | G11: =CONCATENATE("vs. ",VLOOKUP(INDEX(V12:V14,Z11),N12:O14,2,FALSE)) -> vs. Basiliximab | Z11: =MATCH(FALSE,Y12:Y14,0) -> 3
A12: =VLOOKUP(V12,N12:O14,2,FALSE) -> No induction | B12: =W12 -> 92660.1216 | C12: — | D12: =X12 -> 10.89715852 | E12: — | F12: =IF(Y12,"Dominated",IF(AB12,"Extended dominated",VLOOKUP(V12,AE12:AH14,4,FALSE))) -> Dominated | G12: =IF(U12=Z11,"—",-(W12-INDEX(W12:W14,Z11))/20000+(X12-INDEX(X12:X14,Z11))) -> -0.2012522913 | H12: =IF(U12=Z11,"—",-(W12-INDEX(W12:W14,Z11))/30000+(X12-INDEX(X12:X14,Z11))) -> -0.1702763916 | I12: =HLOOKUP($A12,PSA!$FP$10:$FR$61,1+MATCH(20000,PSA!$EV$11:$EV$61,0),FALSE) -> 0.0268 | J12: =HLOOKUP($A12,PSA!$FP$10:$FR$61,1+MATCH(30000,PSA!$EV$11:$EV$61,0),FALSE) -> 0 | N12: Tac+MMF+ST | O12: No induction | P12: =VLOOKUP(N12,Results!$AB$6:$AG$21,2,FALSE) -> 92660.1216 | Q12: =VLOOKUP(N12,Results!$AB$6:$AG$21,3,FALSE) -> 10.89715852 | R12: =VLOOKUP(N12,Results!$AB$6:$AG$21,6,FALSE) -> 98 | S12: =_xlfn.RANK.AVG(R12,R12:R14,1) -> 1 | U12: 1 | V12: =INDEX(N12:N14,MATCH(U12,S12:S14,0)) -> Tac+MMF+ST | W12: =INDEX(P12:P14,MATCH(U12,S12:S14,0)) -> 92660.1216 | X12: =INDEX(Q12:Q14,MATCH(U12,S12:S14,0)) -> 10.89715852 | Y12: =OR(W13:W14<W12) -> TRUE | AA12: =IF(U12=Z11,0,(W12-INDEX(W12:W14,Z11))/(X12-INDEX(X12:X14,Z11))) -> -17157.26733 | AB12: =OR(Y12,AA12>AA12:AA14) -> TRUE | AD12: =Z11 -> 3 | AE12: =INDEX(V12:V14,AD12) -> Bas+Tac+MMF+ST | AF12: =INDEX(W12:W14,AD12) -> 90801.56762 | AG12: =INDEX(X12:X14,AD12) -> 11.00548312 | AH12: —
A13: =VLOOKUP(V13,N12:O14,2,FALSE) -> Rabbit ATG | B13: =W13 -> 97749.70888 | C13: =B13-B12 -> 5089.587273 | D13: =X13 -> 10.90469168 | E13: =D13-D12 -> 0.007533153335 | F13: =IF(Y13,"Dominated",IF(AB13,"Extended dominated",VLOOKUP(V13,AE12:AH14,4,FALSE))) -> Dominated | G13: =IF(U13=Z11,"—",-(W13-INDEX(W12:W14,Z11))/20000+(X13-INDEX(X12:X14,Z11))) -> -0.4481985017 | H13: =IF(U13=Z11,"—",-(W13-INDEX(W12:W14,Z11))/30000+(X13-INDEX(X12:X14,Z11))) -> -0.3323961474 | I13: =HLOOKUP($A13,PSA!$FP$10:$FR$61,1+MATCH(20000,PSA!$EV$11:$EV$61,0),FALSE) -> 0.0284 | J13: =HLOOKUP($A13,PSA!$FP$10:$FR$61,1+MATCH(30000,PSA!$EV$11:$EV$61,0),FALSE) -> 0 | N13: Bas+Tac+MMF+ST | O13: Basiliximab | P13: =VLOOKUP(N13,Results!$AB$6:$AG$21,2,FALSE) -> 90801.56762 | Q13: =VLOOKUP(N13,Results!$AB$6:$AG$21,3,FALSE) -> 11.00548312 | R13: =VLOOKUP(N13,Results!$AB$6:$AG$21,6,FALSE) -> 209 | S13: =_xlfn.RANK.AVG(R13,R12:R14,1) -> 3 | U13: 2 | V13: =INDEX(N12:N14,MATCH(U13,S12:S14,0)) -> rATG+Tac+MMF+ST | W13: =INDEX(P12:P14,MATCH(U13,S12:S14,0)) -> 97749.70888 | X13: =INDEX(Q12:Q14,MATCH(U13,S12:S14,0)) -> 10.90469168 | Y13: =OR(W14:W14<W13) -> TRUE | AA13: =IF(U13=Z11,0,(W13-INDEX(W12:W14,Z11))/(X13-INDEX(X12:X14,Z11))) -> -68935.82773 | AB13: =OR(Y13,AA13>AA13:AA14) -> TRUE | AD13: =MATCH(FALSE,OFFSET(AB11,AD12+1,0,COUNT(U12:U14)-AD12),0)+AD12 ->  | AE13: =INDEX(V12:V14,AD13) ->  | AF13: =INDEX(W12:W14,AD13) ->  | AG13: =INDEX(X12:X14,AD13) ->  | AH13: =(AF13-AF12)/(AG13-AG12) -> 
A14: =VLOOKUP(V14,N12:O14,2,FALSE) -> Basiliximab | B14: =W14 -> 90801.56762 | C14: =B14-B13 -> -6948.141258 | D14: =X14 -> 11.00548312 | E14: =D14-D13 -> 0.1007914387 | F14: =IF(Y14,"Dominated",IF(AB14,"Extended dominated",VLOOKUP(V14,AE12:AH14,4,FALSE))) -> — | G14: =IF(U14=Z11,"—",-(W14-INDEX(W12:W14,Z11))/20000+(X14-INDEX(X12:X14,Z11))) -> — | H14: =IF(U14=Z11,"—",-(W14-INDEX(W12:W14,Z11))/30000+(X14-INDEX(X12:X14,Z11))) -> — | I14: =HLOOKUP($A14,PSA!$FP$10:$FR$61,1+MATCH(20000,PSA!$EV$11:$EV$61,0),FALSE) -> 0.9448 | J14: =HLOOKUP($A14,PSA!$FP$10:$FR$61,1+MATCH(30000,PSA!$EV$11:$EV$61,0),FALSE) -> 0 | N14: rATG+Tac+MMF+ST | O14: Rabbit ATG | P14: =VLOOKUP(N14,Results!$AB$6:$AG$21,2,FALSE) -> 97749.70888 | Q14: =VLOOKUP(N14,Results!$AB$6:$AG$21,3,FALSE) -> 10.90469168 | R14: =VLOOKUP(N14,Results!$AB$6:$AG$21,6,FALSE) -> 149 | S14: =_xlfn.RANK.AVG(R14,R12:R14,1) -> 2 | U14: 3 | V14: =INDEX(N12:N14,MATCH(U14,S12:S14,0)) -> Bas+Tac+MMF+ST | W14: =INDEX(P12:P14,MATCH(U14,S12:S14,0)) -> 90801.56762 | X14: =INDEX(Q12:Q14,MATCH(U14,S12:S14,0)) -> 11.00548312 | Y14: =OR(W14:W14<W14) -> FALSE | AA14: =IF(U14=Z11,0,(W14-INDEX(W12:W14,Z11))/(X14-INDEX(X12:X14,Z11))) -> 0 | AB14: =OR(Y14,AA14>AA14:AA14) -> FALSE | AD14: =MATCH(FALSE,OFFSET(AB11,AD13+1,0,COUNT(U12:U14)-AD13),0)+AD13 ->  | AE14: =INDEX(V12:V14,AD14) ->  | AF14: =INDEX(W12:W14,AD14) ->  | AG14: =INDEX(X12:X14,AD14) ->  | AH14: =(AF14-AF13)/(AG14-AG13) -> 
A17: Maintenance agent | B17: Discounted costs | D17: Discounted QALYs | F17: ICER (cost per QALY) | G17: Incremental net health benefit | I17: Probability cost-effective
B18: Total | C18: Incremental | D18: Total | E18: Incremental | G18: £20k/QALY | H18: £30k/QALY | I18: £20k/QALY | J18: £30k/QALY
A19: With MMF | G19: =CONCATENATE("vs. ",VLOOKUP(INDEX(V20:V22,Z19),N20:O22,2,FALSE)) -> vs. TAC | Z19: =MATCH(FALSE,Y20:Y22,0) -> 2
A20: =VLOOKUP(V20,N20:O22,2,FALSE) -> TAC-PR | B20: =W20 -> 106985.3526 | C20: — | D20: =X20 -> 10.75572915 | E20: — | F20: =IF(Y20,"Dominated",IF(AB20,"Extended dominated",VLOOKUP(V20,AE20:AH22,4,FALSE))) -> Dominated | G20: =IF(U20=Z19,"—",-(W20-INDEX(W20:W22,Z19))/20000+(X20-INDEX(X20:X22,Z19))) -> -0.8576909265 | H20: =IF(U20=Z19,"—",-(W20-INDEX(W20:W22,Z19))/30000+(X20-INDEX(X20:X22,Z19))) -> -0.6189370764 | I20: =HLOOKUP($A20,PSA!$FV$10:$FX$61,1+MATCH(20000,PSA!$EV$11:$EV$61,0),FALSE) -> 0 | J20: =HLOOKUP($A20,PSA!$FV$10:$FX$61,1+MATCH(30000,PSA!$EV$11:$EV$61,0),FALSE) -> 0 | N20: CsA+MMF+ST | O20: CSA | P20: =VLOOKUP(N20,Results!$AB$6:$AG$21,2,FALSE) -> 98218.59386 | Q20: =VLOOKUP(N20,Results!$AB$6:$AG$21,3,FALSE) -> 10.91550885 | R20: =VLOOKUP(N20,Results!$AB$6:$AG$21,6,FALSE) -> 166 | S20: =_xlfn.RANK.AVG(R20,R20:R22,1) -> 3 | U20: 1 | V20: =INDEX(N20:N22,MATCH(U20,S20:S22,0)) -> Tac-PR+MMF+ST | W20: =INDEX(P20:P22,MATCH(U20,S20:S22,0)) -> 106985.3526 | X20: =INDEX(Q20:Q22,MATCH(U20,S20:S22,0)) -> 10.75572915 | Y20: =OR(W21:W22<W20) -> TRUE | AA20: =IF(U20=Z19,0,(W20-INDEX(W20:W22,Z19))/(X20-INDEX(X20:X22,Z19))) -> -101288.9358 | AB20: =OR(Y20,AA20>AA20:AA22) -> TRUE | AD20: =Z19 -> 2 | AE20: =INDEX(V20:V22,AD20) -> Tac+MMF+ST | AF20: =INDEX(W20:W22,AD20) -> 92660.1216 | AG20: =INDEX(X20:X22,AD20) -> 10.89715852 | AH20: —
A21: =VLOOKUP(V21,N20:O22,2,FALSE) -> TAC | B21: =W21 -> 92660.1216 | C21: =B21-B20 -> -14325.231 | D21: =X21 -> 10.89715852 | E21: =D21-D20 -> 0.1414293762 | F21: =IF(Y21,"Dominated",IF(AB21,"Extended dominated",VLOOKUP(V21,AE20:AH22,4,FALSE))) -> — | G21: =IF(U21=Z19,"—",-(W21-INDEX(W20:W22,Z19))/20000+(X21-INDEX(X20:X22,Z19))) -> — | H21: =IF(U21=Z19,"—",-(W21-INDEX(W20:W22,Z19))/30000+(X21-INDEX(X20:X22,Z19))) -> — | I21: =HLOOKUP($A21,PSA!$FV$10:$FX$61,1+MATCH(20000,PSA!$EV$11:$EV$61,0),FALSE) -> 0.8821 | J21: =HLOOKUP($A21,PSA!$FV$10:$FX$61,1+MATCH(30000,PSA!$EV$11:$EV$61,0),FALSE) -> 0 | N21: Tac+MMF+ST | O21: TAC | P21: =VLOOKUP(N21,Results!$AB$6:$AG$21,2,FALSE) -> 92660.1216 | Q21: =VLOOKUP(N21,Results!$AB$6:$AG$21,3,FALSE) -> 10.89715852 | R21: =VLOOKUP(N21,Results!$AB$6:$AG$21,6,FALSE) -> 98 | S21: =_xlfn.RANK.AVG(R21,R20:R22,1) -> 2 | U21: 2 | V21: =INDEX(N20:N22,MATCH(U21,S20:S22,0)) -> Tac+MMF+ST | W21: =INDEX(P20:P22,MATCH(U21,S20:S22,0)) -> 92660.1216 | X21: =INDEX(Q20:Q22,MATCH(U21,S20:S22,0)) -> 10.89715852 | Y21: =OR(W22:W22<W21) -> FALSE | AA21: =IF(U21=Z19,0,(W21-INDEX(W20:W22,Z19))/(X21-INDEX(X20:X22,Z19))) -> 0 | AB21: =OR(Y21,AA21>AA21:AA22) -> FALSE | AD21: =MATCH(FALSE,OFFSET(AB19,AD20+1,0,COUNT(U20:U22)-AD20),0)+AD20 -> 3 | AE21: =INDEX(V20:V22,AD21) -> CsA+MMF+ST | AF21: =INDEX(W20:W22,AD21) -> 98218.59386 | AG21: =INDEX(X20:X22,AD21) -> 10.91550885 | AH21: =(AF21-AF20)/(AG21-AG20) -> 302908.6187
A22: =VLOOKUP(V22,N20:O22,2,FALSE) -> CSA | B22: =W22 -> 98218.59386 | C22: =B22-B21 -> 5558.47226 | D22: =X22 -> 10.91550885 | E22: =D22-D21 -> 0.01835032718 | F22: =IF(Y22,"Dominated",IF(AB22,"Extended dominated",VLOOKUP(V22,AE20:AH22,4,FALSE))) -> 302908.6187 | G22: =IF(U22=Z19,"—",-(W22-INDEX(W20:W22,Z19))/20000+(X22-INDEX(X20:X22,Z19))) -> -0.2595732858 | H22: =IF(U22=Z19,"—",-(W22-INDEX(W20:W22,Z19))/30000+(X22-INDEX(X20:X22,Z19))) -> -0.1669320815 | I22: =HLOOKUP($A22,PSA!$FV$10:$FX$61,1+MATCH(20000,PSA!$EV$11:$EV$61,0),FALSE) -> 0.1179 | J22: =HLOOKUP($A22,PSA!$FV$10:$FX$61,1+MATCH(30000,PSA!$EV$11:$EV$61,0),FALSE) -> 0 | N22: Tac-PR+MMF+ST | O22: TAC-PR | P22: =VLOOKUP(N22,Results!$AB$6:$AG$21,2,FALSE) -> 106985.3526 | Q22: =VLOOKUP(N22,Results!$AB$6:$AG$21,3,FALSE) -> 10.75572915 | R22: =VLOOKUP(N22,Results!$AB$6:$AG$21,6,FALSE) -> 43 | S22: =_xlfn.RANK.AVG(R22,R20:R22,1) -> 1 | U22: 3 | V22: =INDEX(N20:N22,MATCH(U22,S20:S22,0)) -> CsA+MMF+ST | W22: =INDEX(P20:P22,MATCH(U22,S20:S22,0)) -> 98218.59386 | X22: =INDEX(Q20:Q22,MATCH(U22,S20:S22,0)) -> 10.91550885 | Y22: =OR(W22:W22<W22) -> FALSE | AA22: =IF(U22=Z19,0,(W22-INDEX(W20:W22,Z19))/(X22-INDEX(X20:X22,Z19))) -> 302908.6187 | AB22: =OR(Y22,AA22>AA22:AA22) -> FALSE | AD22: =MATCH(FALSE,OFFSET(AB19,AD21+1,0,COUNT(U20:U22)-AD21),0)+AD21 ->  | AE22: =INDEX(V20:V22,AD22) ->  | AF22: =INDEX(W20:W22,AD22) ->  | AG22: =INDEX(X20:X22,AD22) ->  | AH22: =(AF22-AF21)/(AG22-AG21) -> 
A23: With AZA | G23: =CONCATENATE("vs. ",VLOOKUP(INDEX(V24:V25,Z23),N24:O25,2,FALSE)) -> vs. TAC | Z23: =MATCH(FALSE,Y24:Y25,0) -> 2
A24: =VLOOKUP(V24,N24:O25,2,FALSE) -> CSA | B24: =W24 -> 102504.1785 | C24: — | D24: =X24 -> 10.76335737 | E24: — | F24: =IF(Y24,"Dominated",IF(AB24,"Extended dominated",VLOOKUP(V24,AE24:AH25,4,FALSE))) -> Dominated | G24: =IF(U24=Z23,"—",-(W24-INDEX(W24:W25,Z23))/20000+(X24-INDEX(X24:X25,Z23))) -> -0.4497171322 | H24: =IF(U24=Z23,"—",-(W24-INDEX(W24:W25,Z23))/30000+(X24-INDEX(X24:X25,Z23))) -> -0.321025971 | I24: =HLOOKUP($A24,PSA!$FY$10:$FZ$61,1+MATCH(20000,PSA!$EV$11:$EV$61,0),FALSE) -> 0.0629 | J24: =HLOOKUP($A24,PSA!$FY$10:$FZ$61,1+MATCH(30000,PSA!$EV$11:$EV$61,0),FALSE) -> 0 | N24: CsA+Aza+ST | O24: CSA | P24: =VLOOKUP(N24,Results!$AB$6:$AG$21,2,FALSE) -> 102504.1785 | Q24: =VLOOKUP(N24,Results!$AB$6:$AG$21,3,FALSE) -> 10.76335737 | R24: =VLOOKUP(N24,Results!$AB$6:$AG$21,6,FALSE) -> 56 | S24: =_xlfn.RANK.AVG(R24,R24:R25,1) -> 1 | U24: 1 | V24: =INDEX(N24:N25,MATCH(U24,S24:S25,0)) -> CsA+Aza+ST | W24: =INDEX(P24:P25,MATCH(U24,S24:S25,0)) -> 102504.1785 | X24: =INDEX(Q24:Q25,MATCH(U24,S24:S25,0)) -> 10.76335737 | Y24: =OR(W25:W25<W24) -> TRUE | AA24: =IF(U24=Z23,0,(W24-INDEX(W24:W25,Z23))/(X24-INDEX(X24:X25,Z23))) -> -121323.4916 | AB24: =OR(Y24,AA24>AA24:AA25) -> TRUE | AD24: =Z23 -> 2 | AE24: =INDEX(V24:V25,AD24) -> Tac+Aza+ST | AF24: =INDEX(W24:W25,AD24) -> 94782.70887 | AG24: =INDEX(X24:X25,AD24) -> 10.82700102 | AH24: —
A25: =VLOOKUP(V25,N24:O25,2,FALSE) -> TAC | B25: =W25 -> 94782.70887 | C25: =B25-B24 -> -7721.469671 | D25: =X25 -> 10.82700102 | E25: =D25-D24 -> 0.06364364865 | F25: =IF(Y25,"Dominated",IF(AB25,"Extended dominated",VLOOKUP(V25,AE24:AH25,4,FALSE))) -> — | G25: =IF(U25=Z23,"—",-(W25-INDEX(W24:W25,Z23))/20000+(X25-INDEX(X24:X25,Z23))) -> — | H25: =IF(U25=Z23,"—",-(W25-INDEX(W24:W25,Z23))/30000+(X25-INDEX(X24:X25,Z23))) -> — | I25: =HLOOKUP($A25,PSA!$FY$10:$FZ$61,1+MATCH(20000,PSA!$EV$11:$EV$61,0),FALSE) -> 0.9371 | J25: =HLOOKUP($A25,PSA!$FY$10:$FZ$61,1+MATCH(30000,PSA!$EV$11:$EV$61,0),FALSE) -> 0 | N25: Tac+Aza+ST | O25: TAC | P25: =VLOOKUP(N25,Results!$AB$6:$AG$21,2,FALSE) -> 94782.70887 | Q25: =VLOOKUP(N25,Results!$AB$6:$AG$21,3,FALSE) -> 10.82700102 | R25: =VLOOKUP(N25,Results!$AB$6:$AG$21,6,FALSE) -> 83 | S25: =_xlfn.RANK.AVG(R25,R24:R25,1) -> 2 | U25: 2 | V25: =INDEX(N24:N25,MATCH(U25,S24:S25,0)) -> Tac+Aza+ST | W25: =INDEX(P24:P25,MATCH(U25,S24:S25,0)) -> 94782.70887 | X25: =INDEX(Q24:Q25,MATCH(U25,S24:S25,0)) -> 10.82700102 | Y25: =OR(W25:W25<W25) -> FALSE | AA25: =IF(U25=Z23,0,(W25-INDEX(W24:W25,Z23))/(X25-INDEX(X24:X25,Z23))) -> 0 | AB25: =OR(Y25,AA25>AA25:AA25) -> FALSE | AD25: =MATCH(FALSE,OFFSET(AB23,AD24+1,0,COUNT(U24:U27)-AD24),0)+AD24 ->  | AE25: =INDEX(V24:V25,AD25) ->  | AF25: =INDEX(W24:W25,AD25) ->  | AG25: =INDEX(X24:X25,AD25) ->  | AH25: =(AF25-AF24)/(AG25-AG24) -> 
A26: With BAS+MMF | G26: =CONCATENATE("vs. ",VLOOKUP(INDEX(V27:V30,Z26),N27:O30,2,FALSE)) -> vs. TAC | Z26: =MATCH(FALSE,Y27:Y30,0) -> 2
A27: =VLOOKUP(V27,N27:O30,2,FALSE) -> SRL | B27: =W27 -> 115212.3877 | C27: — | D27: =X27 -> 10.89875862 | E27: — | F27: =IF(Y27,"Dominated",IF(AB27,"Extended dominated",VLOOKUP(V27,AE27:AH30,4,FALSE))) -> Dominated | G27: =IF(U27=Z26,"—",-(W27-INDEX(W27:W30,Z26))/20000+(X27-INDEX(X27:X30,Z26))) -> -1.327265498 | H27: =IF(U27=Z26,"—",-(W27-INDEX(W27:W30,Z26))/30000+(X27-INDEX(X27:X30,Z26))) -> -0.9204184965 | I27: =HLOOKUP($A27,PSA!$GA$10:$GD$61,1+MATCH(20000,PSA!$EV$11:$EV$61,0),FALSE) -> 0 | J27: =HLOOKUP($A27,PSA!$GA$10:$GD$61,1+MATCH(30000,PSA!$EV$11:$EV$61,0),FALSE) -> 0 | N27: Bas+CsA+MMF+ST | O27: CSA | P27: =VLOOKUP(N27,Results!$AB$6:$AG$21,2,FALSE) -> 95938.1376 | Q27: =VLOOKUP(N27,Results!$AB$6:$AG$21,3,FALSE) -> 11.0308667 | R27: =VLOOKUP(N27,Results!$AB$6:$AG$21,6,FALSE) -> 244 | S27: =_xlfn.RANK.AVG(R27,R27:R30,1) -> 3 | U27: 1 | V27: =INDEX(N27:N30,MATCH(U27,S27:S30,0)) -> Bas+Srl+MMF+ST | W27: =INDEX(P27:P30,MATCH(U27,S27:S30,0)) -> 115212.3877 | X27: =INDEX(Q27:Q30,MATCH(U27,S27:S30,0)) -> 10.89875862 | Y27: =OR(W28:W30<W27) -> TRUE | AA27: =IF(U27=Z26,0,(W27-INDEX(W27:W30,Z26))/(X27-INDEX(X27:X30,Z26))) -> -228727.4397 | AB27: =OR(Y27,AA27>AA27:AA30) -> TRUE | AD27: =Z26 -> 2 | AE27: =INDEX(V27:V30,AD27) -> Bas+Tac+MMF+ST | AF27: =INDEX(W27:W30,AD27) -> 90801.56762 | AG27: =INDEX(X27:X30,AD27) -> 11.00548312 | AH27: —
A28: =VLOOKUP(V28,N27:O30,2,FALSE) -> TAC | B28: =W28 -> 90801.56762 | C28: =B28-B27 -> -24410.8201 | D28: =X28 -> 11.00548312 | E28: =D28-D27 -> 0.1067244933 | F28: =IF(Y28,"Dominated",IF(AB28,"Extended dominated",VLOOKUP(V28,AE27:AH30,4,FALSE))) -> — | G28: =IF(U28=Z26,"—",-(W28-INDEX(W27:W30,Z26))/20000+(X28-INDEX(X27:X30,Z26))) -> — | H28: =IF(U28=Z26,"—",-(W28-INDEX(W27:W30,Z26))/30000+(X28-INDEX(X27:X30,Z26))) -> — | I28: =HLOOKUP($A28,PSA!$GA$10:$GD$61,1+MATCH(20000,PSA!$EV$11:$EV$61,0),FALSE) -> 0.8706 | J28: =HLOOKUP($A28,PSA!$GA$10:$GD$61,1+MATCH(30000,PSA!$EV$11:$EV$61,0),FALSE) -> 0 | N28: Bas+Tac+MMF+ST | O28: TAC | P28: =VLOOKUP(N28,Results!$AB$6:$AG$21,2,FALSE) -> 90801.56762 | Q28: =VLOOKUP(N28,Results!$AB$6:$AG$21,3,FALSE) -> 11.00548312 | R28: =VLOOKUP(N28,Results!$AB$6:$AG$21,6,FALSE) -> 209 | S28: =_xlfn.RANK.AVG(R28,R27:R30,1) -> 2 | U28: 2 | V28: =INDEX(N27:N30,MATCH(U28,S27:S30,0)) -> Bas+Tac+MMF+ST | W28: =INDEX(P27:P30,MATCH(U28,S27:S30,0)) -> 90801.56762 | X28: =INDEX(Q27:Q30,MATCH(U28,S27:S30,0)) -> 11.00548312 | Y28: =OR(W29:W30<W28) -> FALSE | AA28: =IF(U28=Z26,0,(W28-INDEX(W27:W30,Z26))/(X28-INDEX(X27:X30,Z26))) -> 0 | AB28: =OR(Y28,AA28>AA28:AA30) -> FALSE | AD28: =MATCH(FALSE,OFFSET(AB26,AD27+1,0,COUNT(U27:U30)-AD27),0)+AD27 -> 3 | AE28: =INDEX(V27:V30,AD28) -> Bas+CsA+MMF+ST | AF28: =INDEX(W27:W30,AD28) -> 95938.1376 | AG28: =INDEX(X27:X30,AD28) -> 11.0308667 | AH28: =(AF28-AF27)/(AG28-AG27) -> 202357.9836
A29: =VLOOKUP(V29,N27:O30,2,FALSE) -> CSA | B29: =W29 -> 95938.1376 | C29: =B29-B28 -> 5136.56998 | D29: =X29 -> 11.0308667 | E29: =D29-D28 -> 0.02538357958 | F29: =IF(Y29,"Dominated",IF(AB29,"Extended dominated",VLOOKUP(V29,AE27:AH30,4,FALSE))) -> 202357.9836 | G29: =IF(U29=Z26,"—",-(W29-INDEX(W27:W30,Z26))/20000+(X29-INDEX(X27:X30,Z26))) -> -0.2314449194 | H29: =IF(U29=Z26,"—",-(W29-INDEX(W27:W30,Z26))/30000+(X29-INDEX(X27:X30,Z26))) -> -0.1458354198 | I29: =HLOOKUP($A29,PSA!$GA$10:$GD$61,1+MATCH(20000,PSA!$EV$11:$EV$61,0),FALSE) -> 0.1294 | J29: =HLOOKUP($A29,PSA!$GA$10:$GD$61,1+MATCH(30000,PSA!$EV$11:$EV$61,0),FALSE) -> 0 | N29: Bas+Srl+MMF+ST | O29: SRL | P29: =VLOOKUP(N29,Results!$AB$6:$AG$21,2,FALSE) -> 115212.3877 | Q29: =VLOOKUP(N29,Results!$AB$6:$AG$21,3,FALSE) -> 10.89875862 | R29: =VLOOKUP(N29,Results!$AB$6:$AG$21,6,FALSE) -> 125 | S29: =_xlfn.RANK.AVG(R29,R27:R30,1) -> 1 | U29: 3 | V29: =INDEX(N27:N30,MATCH(U29,S27:S30,0)) -> Bas+CsA+MMF+ST | W29: =INDEX(P27:P30,MATCH(U29,S27:S30,0)) -> 95938.1376 | X29: =INDEX(Q27:Q30,MATCH(U29,S27:S30,0)) -> 11.0308667 | Y29: =OR(W30:W30<W29) -> FALSE | AA29: =IF(U29=Z26,0,(W29-INDEX(W27:W30,Z26))/(X29-INDEX(X27:X30,Z26))) -> 202357.9836 | AB29: =OR(Y29,AA29>AA29:AA30) -> FALSE | AD29: =MATCH(FALSE,OFFSET(AB26,AD28+1,0,COUNT(U27:U30)-AD28),0)+AD28 -> 4 | AE29: =INDEX(V27:V30,AD29) -> Bas+Bela+MMF+ST | AF29: =INDEX(W27:W30,AD29) -> 209676.6216 | AG29: =INDEX(X27:X30,AD29) -> 11.28554661 | AH29: =(AF29-AF28)/(AG29-AG28) -> 446593.8439
A30: =VLOOKUP(V30,N27:O30,2,FALSE) -> BEL | B30: =W30 -> 209676.6216 | C30: =B30-B29 -> 113738.484 | D30: =X30 -> 11.28554661 | E30: =D30-D29 -> 0.2546799191 | F30: =IF(Y30,"Dominated",IF(AB30,"Extended dominated",VLOOKUP(V30,AE27:AH30,4,FALSE))) -> 446593.8439 | G30: =IF(U30=Z26,"—",-(W30-INDEX(W27:W30,Z26))/20000+(X30-INDEX(X27:X30,Z26))) -> -5.663689203 | H30: =IF(U30=Z26,"—",-(W30-INDEX(W27:W30,Z26))/30000+(X30-INDEX(X27:X30,Z26))) -> -3.682438302 | I30: =HLOOKUP($A30,PSA!$GA$10:$GD$61,1+MATCH(20000,PSA!$EV$11:$EV$61,0),FALSE) -> 0 | J30: =HLOOKUP($A30,PSA!$GA$10:$GD$61,1+MATCH(30000,PSA!$EV$11:$EV$61,0),FALSE) -> 0 | N30: Bas+Bela+MMF+ST | O30: BEL | P30: =VLOOKUP(N30,Results!$AB$6:$AG$21,2,FALSE) -> 209676.6216 | Q30: =VLOOKUP(N30,Results!$AB$6:$AG$21,3,FALSE) -> 11.28554661 | R30: =VLOOKUP(N30,Results!$AB$6:$AG$21,6,FALSE) -> 272 | S30: =_xlfn.RANK.AVG(R30,R27:R30,1) -> 4 | U30: 4 | V30: =INDEX(N27:N30,MATCH(U30,S27:S30,0)) -> Bas+Bela+MMF+ST | W30: =INDEX(P27:P30,MATCH(U30,S27:S30,0)) -> 209676.6216 | X30: =INDEX(Q27:Q30,MATCH(U30,S27:S30,0)) -> 11.28554661 | Y30: =OR(W30:W30<W30) -> FALSE | AA30: =IF(U30=Z26,0,(W30-INDEX(W27:W30,Z26))/(X30-INDEX(X27:X30,Z26))) -> 424457.5055 | AB30: =OR(Y30,AA30>AA30:AA30) -> FALSE | AD30: =MATCH(FALSE,OFFSET(AB26,AD29+1,0,COUNT(U27:U30)-AD29),0)+AD29 ->  | AE30: =INDEX(V27:V30,AD30) ->  | AF30: =INDEX(W27:W30,AD30) ->  | AG30: =INDEX(X27:X30,AD30) ->  | AH30: =(AF30-AF29)/(AG30-AG29) -> 
A31: With rATG+MMF | G31: =CONCATENATE("vs. ",VLOOKUP(INDEX(V32:V33,Z31),N32:O33,2,FALSE)) -> vs. TAC | Z31: =MATCH(FALSE,Y32:Y33,0) -> 1
A32: =VLOOKUP(V32,N32:O33,2,FALSE) -> TAC | B32: =W32 -> 97749.70888 | C32: — | D32: =X32 -> 10.90469168 | E32: — | F32: =IF(Y32,"Dominated",IF(AB32,"Extended dominated",VLOOKUP(V32,AE32:AH33,4,FALSE))) -> — | G32: =IF(U32=Z31,"—",-(W32-INDEX(W32:W33,Z31))/20000+(X32-INDEX(X32:X33,Z31))) -> — | H32: =IF(U32=Z31,"—",-(W32-INDEX(W32:W33,Z31))/30000+(X32-INDEX(X32:X33,Z31))) -> — | I32: =HLOOKUP($A32,PSA!$GE$10:$GF$61,1+MATCH(20000,PSA!$EV$11:$EV$61,0),FALSE) -> 0.8759 | J32: =HLOOKUP($A32,PSA!$GE$10:$GF$61,1+MATCH(30000,PSA!$EV$11:$EV$61,0),FALSE) -> 0 | N32: rATG+CsA+MMF+ST | O32: CSA | P32: =VLOOKUP(N32,Results!$AB$6:$AG$21,2,FALSE) -> 102831.4355 | Q32: =VLOOKUP(N32,Results!$AB$6:$AG$21,3,FALSE) -> 10.92495498 | R32: =VLOOKUP(N32,Results!$AB$6:$AG$21,6,FALSE) -> 185 | S32: =_xlfn.RANK.AVG(R32,R32:R33,1) -> 2 | U32: 1 | V32: =INDEX(N32:N33,MATCH(U32,S32:S33,0)) -> rATG+Tac+MMF+ST | W32: =INDEX(P32:P33,MATCH(U32,S32:S33,0)) -> 97749.70888 | X32: =INDEX(Q32:Q33,MATCH(U32,S32:S33,0)) -> 10.90469168 | Y32: =OR(W33:W33<W32) -> FALSE | AA32: =IF(U32=Z31,0,(W32-INDEX(W32:W33,Z31))/(X32-INDEX(X32:X33,Z31))) -> 0 | AB32: =OR(Y32,AA32>AA32:AA33) -> FALSE | AD32: =Z31 -> 1 | AE32: =INDEX(V32:V33,AD32) -> rATG+Tac+MMF+ST | AF32: =INDEX(W32:W33,AD32) -> 97749.70888 | AG32: =INDEX(X32:X33,AD32) -> 10.90469168 | AH32: —
A33: =VLOOKUP(V33,N32:O33,2,FALSE) -> CSA | B33: =W33 -> 102831.4355 | C33: =B33-B32 -> 5081.726596 | D33: =X33 -> 10.92495498 | E33: =D33-D32 -> 0.02026330164 | F33: =IF(Y33,"Dominated",IF(AB33,"Extended dominated",VLOOKUP(V33,AE32:AH33,4,FALSE))) -> 250784.7282 | G33: =IF(U33=Z31,"—",-(W33-INDEX(W32:W33,Z31))/20000+(X33-INDEX(X32:X33,Z31))) -> -0.2338230281 | H33: =IF(U33=Z31,"—",-(W33-INDEX(W32:W33,Z31))/30000+(X33-INDEX(X32:X33,Z31))) -> -0.1491275849 | I33: =HLOOKUP($A33,PSA!$GE$10:$GF$61,1+MATCH(20000,PSA!$EV$11:$EV$61,0),FALSE) -> 0.1241 | J33: =HLOOKUP($A33,PSA!$GE$10:$GF$61,1+MATCH(30000,PSA!$EV$11:$EV$61,0),FALSE) -> 0 | N33: rATG+Tac+MMF+ST | O33: TAC | P33: =VLOOKUP(N33,Results!$AB$6:$AG$21,2,FALSE) -> 97749.70888 | Q33: =VLOOKUP(N33,Results!$AB$6:$AG$21,3,FALSE) -> 10.90469168 | R33: =VLOOKUP(N33,Results!$AB$6:$AG$21,6,FALSE) -> 149 | S33: =_xlfn.RANK.AVG(R33,R32:R33,1) -> 1 | U33: 2 | V33: =INDEX(N32:N33,MATCH(U33,S32:S33,0)) -> rATG+CsA+MMF+ST | W33: =INDEX(P32:P33,MATCH(U33,S32:S33,0)) -> 102831.4355 | X33: =INDEX(Q32:Q33,MATCH(U33,S32:S33,0)) -> 10.92495498 | Y33: =OR(W33:W33<W33) -> FALSE | AA33: =IF(U33=Z31,0,(W33-INDEX(W32:W33,Z31))/(X33-INDEX(X32:X33,Z31))) -> 250784.7282 | AB33: =OR(Y33,AA33>AA33:AA33) -> FALSE | AD33: =MATCH(FALSE,OFFSET(AB31,AD32+1,0,COUNT(U32:U35)-AD32),0)+AD32 -> 2 | AE33: =INDEX(V32:V33,AD33) -> rATG+CsA+MMF+ST | AF33: =INDEX(W32:W33,AD33) -> 102831.4355 | AG33: =INDEX(X32:X33,AD33) -> 10.92495498 | AH33: =(AF33-AF32)/(AG33-AG32) -> 250784.7282
A34: With CSA | G34: =CONCATENATE("vs. ",VLOOKUP(INDEX(V35:V37,Z34),N35:O37,2,FALSE)) -> vs. MMF | Z34: =MATCH(FALSE,Y35:Y37,0) -> 2
A35: =VLOOKUP(V35,N35:O37,2,FALSE) -> AZA | B35: =W35 -> 102504.1785 | C35: — | D35: =X35 -> 10.76335737 | E35: — | F35: =IF(Y35,"Dominated",IF(AB35,"Extended dominated",VLOOKUP(V35,AE35:AH37,4,FALSE))) -> Dominated | G35: =IF(U35=Z34,"—",-(W35-INDEX(W35:W37,Z34))/20000+(X35-INDEX(X35:X37,Z34))) -> -0.3664307116 | H35: =IF(U35=Z34,"—",-(W35-INDEX(W35:W37,Z34))/30000+(X35-INDEX(X35:X37,Z34))) -> -0.2950043003 | I35: =HLOOKUP($A35,PSA!$GG$10:$GI$61,1+MATCH(20000,PSA!$EV$11:$EV$61,0),FALSE) -> 0.0913 | J35: =HLOOKUP($A35,PSA!$GG$10:$GI$61,1+MATCH(30000,PSA!$EV$11:$EV$61,0),FALSE) -> 0 | N35: CsA+Aza+ST | O35: AZA | P35: =VLOOKUP(N35,Results!$AB$6:$AG$21,2,FALSE) -> 102504.1785 | Q35: =VLOOKUP(N35,Results!$AB$6:$AG$21,3,FALSE) -> 10.76335737 | R35: =VLOOKUP(N35,Results!$AB$6:$AG$21,6,FALSE) -> 56 | S35: =_xlfn.RANK.AVG(R35,R35:R37,1) -> 1 | U35: 1 | V35: =INDEX(N35:N37,MATCH(U35,S35:S37,0)) -> CsA+Aza+ST | W35: =INDEX(P35:P37,MATCH(U35,S35:S37,0)) -> 102504.1785 | X35: =INDEX(Q35:Q37,MATCH(U35,S35:S37,0)) -> 10.76335737 | Y35: =OR(W36:W37<W35) -> TRUE | AA35: =IF(U35=Z34,0,(W35-INDEX(W35:W37,Z34))/(X35-INDEX(X35:X37,Z34))) -> -28166.56628 | AB35: =OR(Y35,AA35>AA35:AA37) -> TRUE | AD35: =Z34 -> 2 | AE35: =INDEX(V35:V37,AD35) -> CsA+MMF+ST | AF35: =INDEX(W35:W37,AD35) -> 98218.59386 | AG35: =INDEX(X35:X37,AD35) -> 10.91550885 | AH35: —
A36: =VLOOKUP(V36,N35:O37,2,FALSE) -> MMF | B36: =W36 -> 98218.59386 | C36: =B36-B35 -> -4285.584679 | D36: =X36 -> 10.91550885 | E36: =D36-D35 -> 0.1521514776 | F36: =IF(Y36,"Dominated",IF(AB36,"Extended dominated",VLOOKUP(V36,AE35:AH37,4,FALSE))) -> — | G36: =IF(U36=Z34,"—",-(W36-INDEX(W35:W37,Z34))/20000+(X36-INDEX(X35:X37,Z34))) -> — | H36: =IF(U36=Z34,"—",-(W36-INDEX(W35:W37,Z34))/30000+(X36-INDEX(X35:X37,Z34))) -> — | I36: =HLOOKUP($A36,PSA!$GG$10:$GI$61,1+MATCH(20000,PSA!$EV$11:$EV$61,0),FALSE) -> 0.9087 | J36: =HLOOKUP($A36,PSA!$GG$10:$GI$61,1+MATCH(30000,PSA!$EV$11:$EV$61,0),FALSE) -> 0 | N36: CsA+MMF+ST | O36: MMF | P36: =VLOOKUP(N36,Results!$AB$6:$AG$21,2,FALSE) -> 98218.59386 | Q36: =VLOOKUP(N36,Results!$AB$6:$AG$21,3,FALSE) -> 10.91550885 | R36: =VLOOKUP(N36,Results!$AB$6:$AG$21,6,FALSE) -> 166 | S36: =_xlfn.RANK.AVG(R36,R35:R37,1) -> 2 | U36: 2 | V36: =INDEX(N35:N37,MATCH(U36,S35:S37,0)) -> CsA+MMF+ST | W36: =INDEX(P35:P37,MATCH(U36,S35:S37,0)) -> 98218.59386 | X36: =INDEX(Q35:Q37,MATCH(U36,S35:S37,0)) -> 10.91550885 | Y36: =OR(W37:W37<W36) -> FALSE | AA36: =IF(U36=Z34,0,(W36-INDEX(W35:W37,Z34))/(X36-INDEX(X35:X37,Z34))) -> 0 | AB36: =OR(Y36,AA36>AA36:AA37) -> FALSE | AD36: =MATCH(FALSE,OFFSET(AB34,AD35+1,0,COUNT(U35:U37)-AD35),0)+AD35 -> 3 | AE36: =INDEX(V35:V37,AD36) -> CsA+Evl+ST | AF36: =INDEX(W35:W37,AD36) -> 176463.424 | AG36: =INDEX(X35:X37,AD36) -> 10.93950817 | AH36: =(AF36-AF35)/(AG36-AG35) -> 3260294.425
A37: =VLOOKUP(V37,N35:O37,2,FALSE) -> EVL | B37: =W37 -> 176463.424 | C37: =B37-B36 -> 78244.8301 | D37: =X37 -> 10.93950817 | E37: =D37-D36 -> 0.02399931414 | F37: =IF(Y37,"Dominated",IF(AB37,"Extended dominated",VLOOKUP(V37,AE35:AH37,4,FALSE))) -> 3260294.425 | G37: =IF(U37=Z34,"—",-(W37-INDEX(W35:W37,Z34))/20000+(X37-INDEX(X35:X37,Z34))) -> -3.888242191 | H37: =IF(U37=Z34,"—",-(W37-INDEX(W35:W37,Z34))/30000+(X37-INDEX(X35:X37,Z34))) -> -2.584161689 | I37: =HLOOKUP($A37,PSA!$GG$10:$GI$61,1+MATCH(20000,PSA!$EV$11:$EV$61,0),FALSE) -> 0 | J37: =HLOOKUP($A37,PSA!$GG$10:$GI$61,1+MATCH(30000,PSA!$EV$11:$EV$61,0),FALSE) -> 0 | N37: CsA+Evl+ST | O37: EVL | P37: =VLOOKUP(N37,Results!$AB$6:$AG$21,2,FALSE) -> 176463.424 | Q37: =VLOOKUP(N37,Results!$AB$6:$AG$21,3,FALSE) -> 10.93950817 | R37: =VLOOKUP(N37,Results!$AB$6:$AG$21,6,FALSE) -> 207 | S37: =_xlfn.RANK.AVG(R37,R35:R37,1) -> 3 | U37: 3 | V37: =INDEX(N35:N37,MATCH(U37,S35:S37,0)) -> CsA+Evl+ST | W37: =INDEX(P35:P37,MATCH(U37,S35:S37,0)) -> 176463.424 | X37: =INDEX(Q35:Q37,MATCH(U37,S35:S37,0)) -> 10.93950817 | Y37: =OR(W37:W37<W37) -> FALSE | AA37: =IF(U37=Z34,0,(W37-INDEX(W35:W37,Z34))/(X37-INDEX(X35:X37,Z34))) -> 3260294.425 | AB37: =OR(Y37,AA37>AA37:AA37) -> FALSE | AD37: =MATCH(FALSE,OFFSET(AB34,AD36+1,0,COUNT(U35:U37)-AD36),0)+AD36 ->  | AE37: =INDEX(V35:V37,AD37) ->  | AF37: =INDEX(W35:W37,AD37) ->  | AG37: =INDEX(X35:X37,AD37) ->  | AH37: =(AF37-AF36)/(AG37-AG36) -> 
A38: With TAC | G38: =CONCATENATE("vs. ",VLOOKUP(INDEX(V39:V41,Z38),N39:O41,2,FALSE)) -> vs. MMF | Z38: =MATCH(FALSE,Y39:Y41,0) -> 3
A39: =VLOOKUP(V39,N39:O41,2,FALSE) -> SRL | B39: =W39 -> 126339.2792 | C39: — | D39: =X39 -> 10.59307394 | E39: — | F39: =IF(Y39,"Dominated",IF(AB39,"Extended dominated",VLOOKUP(V39,AE39:AH41,4,FALSE))) -> Dominated | G39: =IF(U39=Z38,"—",-(W39-INDEX(W39:W41,Z38))/20000+(X39-INDEX(X39:X41,Z38))) -> -1.988042466 | H39: =IF(U39=Z38,"—",-(W39-INDEX(W39:W41,Z38))/30000+(X39-INDEX(X39:X41,Z38))) -> -1.426723173 | I39: =HLOOKUP($A39,PSA!$GJ$10:$GL$61,1+MATCH(20000,PSA!$EV$11:$EV$61,0),FALSE) -> 0 | J39: =HLOOKUP($A39,PSA!$GJ$10:$GL$61,1+MATCH(30000,PSA!$EV$11:$EV$61,0),FALSE) -> 0 | N39: Tac+Aza+ST | O39: AZA | P39: =VLOOKUP(N39,Results!$AB$6:$AG$21,2,FALSE) -> 94782.70887 | Q39: =VLOOKUP(N39,Results!$AB$6:$AG$21,3,FALSE) -> 10.82700102 | R39: =VLOOKUP(N39,Results!$AB$6:$AG$21,6,FALSE) -> 83 | S39: =_xlfn.RANK.AVG(R39,R39:R41,1) -> 2 | U39: 1 | V39: =INDEX(N39:N41,MATCH(U39,S39:S41,0)) -> Tac+Srl+ST | W39: =INDEX(P39:P41,MATCH(U39,S39:S41,0)) -> 126339.2792 | X39: =INDEX(Q39:Q41,MATCH(U39,S39:S41,0)) -> 10.59307394 | Y39: =OR(W40:W41<W39) -> TRUE | AA39: =IF(U39=Z38,0,(W39-INDEX(W39:W41,Z38))/(X39-INDEX(X39:X41,Z38))) -> -110755.885 | AB39: =OR(Y39,AA39>AA39:AA41) -> TRUE | AD39: =Z38 -> 3 | AE39: =INDEX(V39:V41,AD39) -> Tac+MMF+ST | AF39: =INDEX(W39:W41,AD39) -> 92660.1216 | AG39: =INDEX(X39:X41,AD39) -> 10.89715852 | AH39: —
A40: =VLOOKUP(V40,N39:O41,2,FALSE) -> AZA | B40: =W40 -> 94782.70887 | C40: =B40-B39 -> -31556.57031 | D40: =X40 -> 10.82700102 | E40: =D40-D39 -> 0.2339270856 | F40: =IF(Y40,"Dominated",IF(AB40,"Extended dominated",VLOOKUP(V40,AE39:AH41,4,FALSE))) -> Dominated | G40: =IF(U40=Z38,"—",-(W40-INDEX(W39:W41,Z38))/20000+(X40-INDEX(X39:X41,Z38))) -> -0.1762868652 | H40: =IF(U40=Z38,"—",-(W40-INDEX(W39:W41,Z38))/30000+(X40-INDEX(X39:X41,Z38))) -> -0.1409104107 | I40: =HLOOKUP($A40,PSA!$GJ$10:$GL$61,1+MATCH(20000,PSA!$EV$11:$EV$61,0),FALSE) -> 0.3568 | J40: =HLOOKUP($A40,PSA!$GJ$10:$GL$61,1+MATCH(30000,PSA!$EV$11:$EV$61,0),FALSE) -> 0 | N40: Tac+MMF+ST | O40: MMF | P40: =VLOOKUP(N40,Results!$AB$6:$AG$21,2,FALSE) -> 92660.1216 | Q40: =VLOOKUP(N40,Results!$AB$6:$AG$21,3,FALSE) -> 10.89715852 | R40: =VLOOKUP(N40,Results!$AB$6:$AG$21,6,FALSE) -> 98 | S40: =_xlfn.RANK.AVG(R40,R39:R41,1) -> 3 | U40: 2 | V40: =INDEX(N39:N41,MATCH(U40,S39:S41,0)) -> Tac+Aza+ST | W40: =INDEX(P39:P41,MATCH(U40,S39:S41,0)) -> 94782.70887 | X40: =INDEX(Q39:Q41,MATCH(U40,S39:S41,0)) -> 10.82700102 | Y40: =OR(W41:W41<W40) -> TRUE | AA40: =IF(U40=Z38,0,(W40-INDEX(W39:W41,Z38))/(X40-INDEX(X39:X41,Z38))) -> -30254.60163 | AB40: =OR(Y40,AA40>AA40:AA41) -> TRUE | AD40: =MATCH(FALSE,OFFSET(AB38,AD39+1,0,COUNT(U39:U41)-AD39),0)+AD39 ->  | AE40: =INDEX(V39:V41,AD40) ->  | AF40: =INDEX(W39:W41,AD40) ->  | AG40: =INDEX(X39:X41,AD40) ->  | AH40: =(AF40-AF39)/(AG40-AG39) -> 
A41: =VLOOKUP(V41,N39:O41,2,FALSE) -> MMF | B41: =W41 -> 92660.1216 | C41: =B41-B40 -> -2122.587268 | D41: =X41 -> 10.89715852 | E41: =D41-D40 -> 0.0701575018 | F41: =IF(Y41,"Dominated",IF(AB41,"Extended dominated",VLOOKUP(V41,AE39:AH41,4,FALSE))) -> — | G41: =IF(U41=Z38,"—",-(W41-INDEX(W39:W41,Z38))/20000+(X41-INDEX(X39:X41,Z38))) -> — | H41: =IF(U41=Z38,"—",-(W41-INDEX(W39:W41,Z38))/30000+(X41-INDEX(X39:X41,Z38))) -> — | I41: =HLOOKUP($A41,PSA!$GJ$10:$GL$61,1+MATCH(20000,PSA!$EV$11:$EV$61,0),FALSE) -> 0.6432 | J41: =HLOOKUP($A41,PSA!$GJ$10:$GL$61,1+MATCH(30000,PSA!$EV$11:$EV$61,0),FALSE) -> 0 | N41: Tac+Srl+ST | O41: SRL | P41: =VLOOKUP(N41,Results!$AB$6:$AG$21,2,FALSE) -> 126339.2792 | Q41: =VLOOKUP(N41,Results!$AB$6:$AG$21,3,FALSE) -> 10.59307394 | R41: =VLOOKUP(N41,Results!$AB$6:$AG$21,6,FALSE) -> 30 | S41: =_xlfn.RANK.AVG(R41,R39:R41,1) -> 1 | U41: 3 | V41: =INDEX(N39:N41,MATCH(U41,S39:S41,0)) -> Tac+MMF+ST | W41: =INDEX(P39:P41,MATCH(U41,S39:S41,0)) -> 92660.1216 | X41: =INDEX(Q39:Q41,MATCH(U41,S39:S41,0)) -> 10.89715852 | Y41: =OR(W41:W41<W41) -> FALSE | AA41: =IF(U41=Z38,0,(W41-INDEX(W39:W41,Z38))/(X41-INDEX(X39:X41,Z38))) -> 0 | AB41: =OR(Y41,AA41>AA41:AA41) -> FALSE | AD41: =MATCH(FALSE,OFFSET(AB38,AD40+1,0,COUNT(U39:U41)-AD40),0)+AD40 ->  | AE41: =INDEX(V39:V41,AD41) ->  | AF41: =INDEX(W39:W41,AD41) ->  | AG41: =INDEX(X39:X41,AD41) ->  | AH41: =(AF41-AF40)/(AG41-AG40) -> 
A42: With BAS+CSA | G42: =CONCATENATE("vs. ",VLOOKUP(INDEX(V43:V45,Z42),N43:O45,2,FALSE)) -> vs. MMF | Z42: =MATCH(FALSE,Y43:Y45,0) -> 3
A43: =VLOOKUP(V43,N43:O45,2,FALSE) -> AZA | B43: =W43 -> 99159.0629 | C43: — | D43: =X43 -> 10.89892333 | E43: — | F43: =IF(Y43,"Dominated",IF(AB43,"Extended dominated",VLOOKUP(V43,AE43:AH45,4,FALSE))) -> Dominated | G43: =IF(U43=Z42,"—",-(W43-INDEX(W43:W45,Z42))/20000+(X43-INDEX(X43:X45,Z42))) -> -0.2929896297 | H43: =IF(U43=Z42,"—",-(W43-INDEX(W43:W45,Z42))/30000+(X43-INDEX(X43:X45,Z42))) -> -0.2393075414 | I43: =HLOOKUP($A43,PSA!$GM$10:$GO$61,1+MATCH(20000,PSA!$EV$11:$EV$61,0),FALSE) -> 0.1252 | J43: =HLOOKUP($A43,PSA!$GM$10:$GO$61,1+MATCH(30000,PSA!$EV$11:$EV$61,0),FALSE) -> 0 | N43: Bas+CsA+Aza+ST | O43: AZA | P43: =VLOOKUP(N43,Results!$AB$6:$AG$21,2,FALSE) -> 99159.0629 | Q43: =VLOOKUP(N43,Results!$AB$6:$AG$21,3,FALSE) -> 10.89892333 | R43: =VLOOKUP(N43,Results!$AB$6:$AG$21,6,FALSE) -> 135 | S43: =_xlfn.RANK.AVG(R43,R43:R45,1) -> 1 | U43: 1 | V43: =INDEX(N43:N45,MATCH(U43,S43:S45,0)) -> Bas+CsA+Aza+ST | W43: =INDEX(P43:P45,MATCH(U43,S43:S45,0)) -> 99159.0629 | X43: =INDEX(Q43:Q45,MATCH(U43,S43:S45,0)) -> 10.89892333 | Y43: =OR(W44:W45<W43) -> TRUE | AA43: =IF(U43=Z42,0,(W43-INDEX(W43:W45,Z42))/(X43-INDEX(X43:X45,Z42))) -> -24411.42307 | AB43: =OR(Y43,AA43>AA43:AA45) -> TRUE | AD43: =Z42 -> 3 | AE43: =INDEX(V43:V45,AD43) -> Bas+CsA+MMF+ST | AF43: =INDEX(W43:W45,AD43) -> 95938.1376 | AG43: =INDEX(X43:X45,AD43) -> 11.0308667 | AH43: —
A44: =VLOOKUP(V44,N43:O45,2,FALSE) -> MPS | B44: =W44 -> 112359.5358 | C44: =B44-B43 -> 13200.47294 | D44: =X44 -> 11.0243993 | E44: =D44-D43 -> 0.1254759687 | F44: =IF(Y44,"Dominated",IF(AB44,"Extended dominated",VLOOKUP(V44,AE43:AH45,4,FALSE))) -> Dominated | G44: =IF(U44=Z42,"—",-(W44-INDEX(W43:W45,Z42))/20000+(X44-INDEX(X43:X45,Z42))) -> -0.827537308 | H44: =IF(U44=Z42,"—",-(W44-INDEX(W43:W45,Z42))/30000+(X44-INDEX(X43:X45,Z42))) -> -0.5538473374 | I44: =HLOOKUP($A44,PSA!$GM$10:$GO$61,1+MATCH(20000,PSA!$EV$11:$EV$61,0),FALSE) -> 0.0011 | J44: =HLOOKUP($A44,PSA!$GM$10:$GO$61,1+MATCH(30000,PSA!$EV$11:$EV$61,0),FALSE) -> 0 | N44: Bas+CsA+MMF+ST | O44: MMF | P44: =VLOOKUP(N44,Results!$AB$6:$AG$21,2,FALSE) -> 95938.1376 | Q44: =VLOOKUP(N44,Results!$AB$6:$AG$21,3,FALSE) -> 11.0308667 | R44: =VLOOKUP(N44,Results!$AB$6:$AG$21,6,FALSE) -> 244 | S44: =_xlfn.RANK.AVG(R44,R43:R45,1) -> 3 | U44: 2 | V44: =INDEX(N43:N45,MATCH(U44,S43:S45,0)) -> Bas+CsA+EC-MPS+ST | W44: =INDEX(P43:P45,MATCH(U44,S43:S45,0)) -> 112359.5358 | X44: =INDEX(Q43:Q45,MATCH(U44,S43:S45,0)) -> 11.0243993 | Y44: =OR(W45:W45<W44) -> TRUE | AA44: =IF(U44=Z42,0,(W44-INDEX(W43:W45,Z42))/(X44-INDEX(X43:X45,Z42))) -> -2539105.074 | AB44: =OR(Y44,AA44>AA44:AA45) -> TRUE | AD44: =MATCH(FALSE,OFFSET(AB42,AD43+1,0,COUNT(U43:U45)-AD43),0)+AD43 ->  | AE44: =INDEX(V43:V45,AD44) ->  | AF44: =INDEX(W43:W45,AD44) ->  | AG44: =INDEX(X43:X45,AD44) ->  | AH44: =(AF44-AF43)/(AG44-AG43) -> 
A45: =VLOOKUP(V45,N43:O45,2,FALSE) -> MMF | B45: =W45 -> 95938.1376 | C45: =B45-B44 -> -16421.39824 | D45: =X45 -> 11.0308667 | E45: =D45-D44 -> 0.006467396093 | F45: =IF(Y45,"Dominated",IF(AB45,"Extended dominated",VLOOKUP(V45,AE43:AH45,4,FALSE))) -> — | G45: =IF(U45=Z42,"—",-(W45-INDEX(W43:W45,Z42))/20000+(X45-INDEX(X43:X45,Z42))) -> — | H45: =IF(U45=Z42,"—",-(W45-INDEX(W43:W45,Z42))/30000+(X45-INDEX(X43:X45,Z42))) -> — | I45: =HLOOKUP($A45,PSA!$GM$10:$GO$61,1+MATCH(20000,PSA!$EV$11:$EV$61,0),FALSE) -> 0.8737 | J45: =HLOOKUP($A45,PSA!$GM$10:$GO$61,1+MATCH(30000,PSA!$EV$11:$EV$61,0),FALSE) -> 0 | N45: Bas+CsA+EC-MPS+ST | O45: MPS | P45: =VLOOKUP(N45,Results!$AB$6:$AG$21,2,FALSE) -> 112359.5358 | Q45: =VLOOKUP(N45,Results!$AB$6:$AG$21,3,FALSE) -> 11.0243993 | R45: =VLOOKUP(N45,Results!$AB$6:$AG$21,6,FALSE) -> 236 | S45: =_xlfn.RANK.AVG(R45,R43:R45,1) -> 2 | U45: 3 | V45: =INDEX(N43:N45,MATCH(U45,S43:S45,0)) -> Bas+CsA+MMF+ST | W45: =INDEX(P43:P45,MATCH(U45,S43:S45,0)) -> 95938.1376 | X45: =INDEX(Q43:Q45,MATCH(U45,S43:S45,0)) -> 11.0308667 | Y45: =OR(W45:W45<W45) -> FALSE | AA45: =IF(U45=Z42,0,(W45-INDEX(W43:W45,Z42))/(X45-INDEX(X43:X45,Z42))) -> 0 | AB45: =OR(Y45,AA45>AA45:AA45) -> FALSE | AD45: =MATCH(FALSE,OFFSET(AB42,AD44+1,0,COUNT(U43:U45)-AD44),0)+AD44 ->  | AE45: =INDEX(V43:V45,AD45) ->  | AF45: =INDEX(W43:W45,AD45) ->  | AG45: =INDEX(X43:X45,AD45) ->  | AH45: =(AF45-AF44)/(AG45-AG44) -> 
A46: With rATG+CSA | G46: =CONCATENATE("vs. ",VLOOKUP(INDEX(V47:V48,Z46),N47:O48,2,FALSE)) -> vs. MMF | Z46: =MATCH(FALSE,Y47:Y48,0) -> 2
A47: =VLOOKUP(V47,N47:O48,2,FALSE) -> AZA | B47: =W47 -> 105683.1469 | C47: — | D47: =X47 -> 10.80484949 | E47: — | F47: =IF(Y47,"Dominated",IF(AB47,"Extended dominated",VLOOKUP(V47,AE47:AH48,4,FALSE))) -> Dominated | G47: =IF(U47=Z46,"—",-(W47-INDEX(W47:W48,Z46))/20000+(X47-INDEX(X47:X48,Z46))) -> -0.2626910662 | H47: =IF(U47=Z46,"—",-(W47-INDEX(W47:W48,Z46))/30000+(X47-INDEX(X47:X48,Z46))) -> -0.2151625418 | I47: =HLOOKUP($A47,PSA!$GP$10:$GQ$61,1+MATCH(20000,PSA!$EV$11:$EV$61,0),FALSE) -> 0.1447 | J47: =HLOOKUP($A47,PSA!$GP$10:$GQ$61,1+MATCH(30000,PSA!$EV$11:$EV$61,0),FALSE) -> 0 | N47: rATG+CsA+Aza+ST | O47: AZA | P47: =VLOOKUP(N47,Results!$AB$6:$AG$21,2,FALSE) -> 105683.1469 | Q47: =VLOOKUP(N47,Results!$AB$6:$AG$21,3,FALSE) -> 10.80484949 | R47: =VLOOKUP(N47,Results!$AB$6:$AG$21,6,FALSE) -> 74 | S47: =_xlfn.RANK.AVG(R47,R47:R48,1) -> 1 | U47: 1 | V47: =INDEX(N47:N48,MATCH(U47,S47:S48,0)) -> rATG+CsA+Aza+ST | W47: =INDEX(P47:P48,MATCH(U47,S47:S48,0)) -> 105683.1469 | X47: =INDEX(Q47:Q48,MATCH(U47,S47:S48,0)) -> 10.80484949 | Y47: =OR(W48:W48<W47) -> TRUE | AA47: =IF(U47=Z46,0,(W47-INDEX(W47:W48,Z46))/(X47-INDEX(X47:X48,Z46))) -> -23743.38928 | AB47: =OR(Y47,AA47>AA47:AA48) -> TRUE | AD47: =Z46 -> 2 | AE47: =INDEX(V47:V48,AD47) -> rATG+CsA+MMF+ST | AF47: =INDEX(W47:W48,AD47) -> 102831.4355 | AG47: =INDEX(X47:X48,AD47) -> 10.92495498 | AH47: —
A48: =VLOOKUP(V48,N47:O48,2,FALSE) -> MMF | B48: =W48 -> 102831.4355 | C48: =B48-B47 -> -2851.71147 | D48: =X48 -> 10.92495498 | E48: =D48-D47 -> 0.1201054928 | F48: =IF(Y48,"Dominated",IF(AB48,"Extended dominated",VLOOKUP(V48,AE47:AH48,4,FALSE))) -> — | G48: =IF(U48=Z46,"—",-(W48-INDEX(W47:W48,Z46))/20000+(X48-INDEX(X47:X48,Z46))) -> — | H48: =IF(U48=Z46,"—",-(W48-INDEX(W47:W48,Z46))/30000+(X48-INDEX(X47:X48,Z46))) -> — | I48: =HLOOKUP($A48,PSA!$GP$10:$GQ$61,1+MATCH(20000,PSA!$EV$11:$EV$61,0),FALSE) -> 0.8553 | J48: =HLOOKUP($A48,PSA!$GP$10:$GQ$61,1+MATCH(30000,PSA!$EV$11:$EV$61,0),FALSE) -> 0 | N48: rATG+CsA+MMF+ST | O48: MMF | P48: =VLOOKUP(N48,Results!$AB$6:$AG$21,2,FALSE) -> 102831.4355 | Q48: =VLOOKUP(N48,Results!$AB$6:$AG$21,3,FALSE) -> 10.92495498 | R48: =VLOOKUP(N48,Results!$AB$6:$AG$21,6,FALSE) -> 185 | S48: =_xlfn.RANK.AVG(R48,R47:R48,1) -> 2 | U48: 2 | V48: =INDEX(N47:N48,MATCH(U48,S47:S48,0)) -> rATG+CsA+MMF+ST | W48: =INDEX(P47:P48,MATCH(U48,S47:S48,0)) -> 102831.4355 | X48: =INDEX(Q47:Q48,MATCH(U48,S47:S48,0)) -> 10.92495498 | Y48: =OR(W48:W48<W48) -> FALSE | AA48: =IF(U48=Z46,0,(W48-INDEX(W47:W48,Z46))/(X48-INDEX(X47:X48,Z46))) -> 0 | AB48: =OR(Y48,AA48>AA48:AA48) -> FALSE | AD48: =MATCH(FALSE,OFFSET(AB46,AD47+1,0,COUNT(U47:U50)-AD47),0)+AD47 ->  | AE48: =INDEX(V47:V48,AD48) ->  | AF48: =INDEX(W47:W48,AD48) ->  | AG48: =INDEX(X47:X48,AD48) ->  | AH48: =(AF48-AF47)/(AG48-AG47) -> 
A51: Regimen | B51: Discounted costs | D51: Discounted QALYs | F51: ICER | G51: Incremental net health benefit | I51: Probability cost-effective
B52: Total | C52: Incremental | D52: Total | E52: Incremental | G52: £20k/QALY | H52: £30k/QALY | I52: £20k/QALY | J52: £30k/QALY | Z52: =MATCH(FALSE,Y53:Y55,0) -> 1
A53: =VLOOKUP(V53,N53:O55,2,FALSE) -> BAS+TAC+MMF | B53: =W53 -> 90801.56762 | C53: — | D53: =X53 -> 11.00548312 | E53: — | F53: =IF(Y53,"Dominated",IF(AB53,"Extended dominated",VLOOKUP(V53,AE53:AH55,4,FALSE))) -> — | G53: =IF(U53=Z52,"—",-(W53-INDEX(W53:W55,Z52))/20000+(X53-INDEX(X53:X55,Z52))) -> — | H53: =IF(U53=Z52,"—",-(W53-INDEX(W53:W55,Z52))/30000+(X53-INDEX(X53:X55,Z52))) -> — | N53: Bas+Tac+MMF+ST | O53: BAS+TAC+MMF | P53: =VLOOKUP(N53,Results!$AB$6:$AG$21,2,FALSE) -> 90801.56762 | Q53: =VLOOKUP(N53,Results!$AB$6:$AG$21,3,FALSE) -> 11.00548312 | R53: =VLOOKUP(N53,Results!$AB$6:$AG$21,6,FALSE) -> 209 | S53: =_xlfn.RANK.AVG(R53,R53:R55,1) -> 1 | U53: 1 | V53: =INDEX(N53:N55,MATCH(U53,S53:S55,0)) -> Bas+Tac+MMF+ST | W53: =INDEX(P53:P55,MATCH(U53,S53:S55,0)) -> 90801.56762 | X53: =INDEX(Q53:Q55,MATCH(U53,S53:S55,0)) -> 11.00548312 | Y53: =OR(W54:W55<W53) -> FALSE | AA53: =IF(U53=Z52,0,(W53-INDEX(W53:W55,Z52))/(X53-INDEX(X53:X55,Z52))) -> 0 | AB53: =OR(Y53,AA53>AA53:AA55) -> FALSE | AD53: =Z52 -> 1 | AE53: =INDEX(V53:V55,AD53) -> Bas+Tac+MMF+ST | AF53: =INDEX(W53:W55,AD53) -> 90801.56762 | AG53: =INDEX(X53:X55,AD53) -> 11.00548312 | AH53: —
A54: =VLOOKUP(V54,N53:O55,2,FALSE) -> BAS+CSA+MMF | B54: =W54 -> 95938.1376 | C54: =B54-B53 -> 5136.56998 | D54: =X54 -> 11.0308667 | E54: =D54-D53 -> 0.02538357958 | F54: =IF(Y54,"Dominated",IF(AB54,"Extended dominated",VLOOKUP(V54,AE53:AH55,4,FALSE))) -> 202357.9836 | G54: =IF(U54=Z52,"—",-(W54-INDEX(W53:W55,Z52))/20000+(X54-INDEX(X53:X55,Z52))) -> -0.2314449194 | H54: =IF(U54=Z52,"—",-(W54-INDEX(W53:W55,Z52))/30000+(X54-INDEX(X53:X55,Z52))) -> -0.1458354198 | N54: Bas+CsA+MMF+ST | O54: BAS+CSA+MMF | P54: =VLOOKUP(N54,Results!$AB$6:$AG$21,2,FALSE) -> 95938.1376 | Q54: =VLOOKUP(N54,Results!$AB$6:$AG$21,3,FALSE) -> 11.0308667 | R54: =VLOOKUP(N54,Results!$AB$6:$AG$21,6,FALSE) -> 244 | S54: =_xlfn.RANK.AVG(R54,R53:R55,1) -> 2 | U54: 2 | V54: =INDEX(N53:N55,MATCH(U54,S53:S55,0)) -> Bas+CsA+MMF+ST | W54: =INDEX(P53:P55,MATCH(U54,S53:S55,0)) -> 95938.1376 | X54: =INDEX(Q53:Q55,MATCH(U54,S53:S55,0)) -> 11.0308667 | Y54: =OR(W55:W55<W54) -> FALSE | AA54: =IF(U54=Z52,0,(W54-INDEX(W53:W55,Z52))/(X54-INDEX(X53:X55,Z52))) -> 202357.9836 | AB54: =OR(Y54,AA54>AA54:AA55) -> FALSE | AD54: =MATCH(FALSE,OFFSET(AB52,AD53+1,0,COUNT(U53:U55)-AD53),0)+AD53 -> 2 | AE54: =INDEX(V53:V55,AD54) -> Bas+CsA+MMF+ST | AF54: =INDEX(W53:W55,AD54) -> 95938.1376 | AG54: =INDEX(X53:X55,AD54) -> 11.0308667 | AH54: =(AF54-AF53)/(AG54-AG53) -> 202357.9836
A55: =VLOOKUP(V55,N53:O55,2,FALSE) -> BAS+BEL+MMF | B55: =W55 -> 209676.6216 | C55: =B55-B54 -> 113738.484 | D55: =X55 -> 11.28554661 | E55: =D55-D54 -> 0.2546799191 | F55: =IF(Y55,"Dominated",IF(AB55,"Extended dominated",VLOOKUP(V55,AE53:AH55,4,FALSE))) -> 446593.8439 | G55: =IF(U55=Z52,"—",-(W55-INDEX(W53:W55,Z52))/20000+(X55-INDEX(X53:X55,Z52))) -> -5.663689203 | H55: =IF(U55=Z52,"—",-(W55-INDEX(W53:W55,Z52))/30000+(X55-INDEX(X53:X55,Z52))) -> -3.682438302 | N55: Bas+Bela+MMF+ST | O55: BAS+BEL+MMF | P55: =VLOOKUP(N55,Results!$AB$6:$AG$21,2,FALSE) -> 209676.6216 | Q55: =VLOOKUP(N55,Results!$AB$6:$AG$21,3,FALSE) -> 11.28554661 | R55: =VLOOKUP(N55,Results!$AB$6:$AG$21,6,FALSE) -> 272 | S55: =_xlfn.RANK.AVG(R55,R53:R55,1) -> 3 | U55: 3 | V55: =INDEX(N53:N55,MATCH(U55,S53:S55,0)) -> Bas+Bela+MMF+ST | W55: =INDEX(P53:P55,MATCH(U55,S53:S55,0)) -> 209676.6216 | X55: =INDEX(Q53:Q55,MATCH(U55,S53:S55,0)) -> 11.28554661 | Y55: =OR(W55:W55<W55) -> FALSE | AA55: =IF(U55=Z52,0,(W55-INDEX(W53:W55,Z52))/(X55-INDEX(X53:X55,Z52))) -> 424457.5055 | AB55: =OR(Y55,AA55>AA55:AA55) -> FALSE | AD55: =MATCH(FALSE,OFFSET(AB52,AD54+1,0,COUNT(U53:U55)-AD54),0)+AD54 -> 3 | AE55: =INDEX(V53:V55,AD55) -> Bas+Bela+MMF+ST | AF55: =INDEX(W53:W55,AD55) -> 209676.6216 | AG55: =INDEX(X53:X55,AD55) -> 11.28554661 | AH55: =(AF55-AF54)/(AG55-AG54) -> 446593.8439

Sheet PSA
A1: nb_iterations | B1: 10000 | AI1: CE Threshold | AJ1: =EV11 -> 20000
A3: Mean | B3: =AVERAGE(OFFSET(B11,0,0,nb_iterations,1)) -> 98218.59386 | C3: =AVERAGE(OFFSET(C11,0,0,nb_iterations,1)) -> 92660.1216 | D3: 102504.1785 | E3: 94782.70887 | F3: 176463.424 | G3: 126339.2792 | H3: 106985.3526 | I3: 95938.1376 | J3: 90801.56762 | K3: 99159.0629 | L3: 115212.3877 | M3: 209676.6216 | N3: 112359.5358 | O3: 102831.4355 | P3: 97749.70888 | Q3: 105683.1469 | R3: 10.91550885 | S3: 10.89715852 | T3: 10.76335737 | U3: 10.82700102 | V3: 10.93950817 | W3: 10.59307394 | X3: 10.75572915 | Y3: 11.0308667 | Z3: 11.00548312 | AA3: 10.89892333 | AB3: 10.89875862 | AC3: 11.28554661 | AD3: 11.0243993 | AE3: 10.92495498 | AF3: 10.90469168 | AG3: 10.80484949 | AI3: =AVERAGE(OFFSET(AI11,0,0,nb_iterations,1)) -> 6.004579158 | AJ3: 6.264152444 | AK3: 5.638148446 | AL3: 6.087865579 | AM3: 2.116336967 | AN3: 4.276109978 | AO3: 5.406461517 | AP3: 6.233959816 | AQ3: 6.465404735 | AR3: 5.940970186 | AS3: 5.138139237 | AT3: 0.8017155324 | AU3: 5.406422508 | AV3: 5.783383205 | AW3: 6.017206234 | AX3: 5.520692139 | AY3: =AVERAGE(1*OFFSET(AY11,0,0,nb_iterations,1)) -> 0.0009 | AZ3: =AVERAGE(1*OFFSET(AZ11,0,0,nb_iterations,1)) -> 0.0155 | BA3: =AVERAGE(1*OFFSET(BA11,0,0,nb_iterations,1)) -> 0 | BB3: =AVERAGE(1*OFFSET(BB11,0,0,nb_iterations,1)) -> 0.1686 | BC3: =AVERAGE(1*OFFSET(BC11,0,0,nb_iterations,1)) -> 0 | BD3: =AVERAGE(1*OFFSET(BD11,0,0,nb_iterations,1)) -> 0 | BE3: =AVERAGE(1*OFFSET(BE11,0,0,nb_iterations,1)) -> 0 | BF3: =AVERAGE(1*OFFSET(BF11,0,0,nb_iterations,1)) -> 0.0897 | BG3: =AVERAGE(1*OFFSET(BG11,0,0,nb_iterations,1)) -> 0.6897 | BH3: =AVERAGE(1*OFFSET(BH11,0,0,nb_iterations,1)) -> 0.0096 | BI3: =AVERAGE(1*OFFSET(BI11,0,0,nb_iterations,1)) -> 0 | BJ3: =AVERAGE(1*OFFSET(BJ11,0,0,nb_iterations,1)) -> 0 | BK3: =AVERAGE(1*OFFSET(BK11,0,0,nb_iterations,1)) -> 0.0001 | BL3: =AVERAGE(1*OFFSET(BL11,0,0,nb_iterations,1)) -> 0.0033 | BM3: =AVERAGE(1*OFFSET(BM11,0,0,nb_iterations,1)) -> 0.0218 | BN3: =AVERAGE(1*OFFSET(BN11,0,0,nb_iterations,1)) -> 0.0008 | CE3: =AVERAGE(1*OFFSET(CE11,0,0,nb_iterations,1)) -> 0.0181 | CF3: =AVERAGE(1*OFFSET(CF11,0,0,nb_iterations,1)) -> 0.949 | CG3: =AVERAGE(1*OFFSET(CG11,0,0,nb_iterations,1)) -> 0.0329 | CH3: =AVERAGE(1*OFFSET(CH11,0,0,nb_iterations,1)) -> 0.0268 | CI3: =AVERAGE(1*OFFSET(CI11,0,0,nb_iterations,1)) -> 0.9448 | CJ3: =AVERAGE(1*OFFSET(CJ11,0,0,nb_iterations,1)) -> 0.0284 | CK3: =AVERAGE(1*OFFSET(CK11,0,0,nb_iterations,1)) -> 0.0068 | CL3: =AVERAGE(1*OFFSET(CL11,0,0,nb_iterations,1)) -> 0.9354 | CM3: =AVERAGE(1*OFFSET(CM11,0,0,nb_iterations,1)) -> 0.0578 | CN3: =AVERAGE(1*OFFSET(CN11,0,0,nb_iterations,1)) -> 0.1179 | CO3: =AVERAGE(1*OFFSET(CO11,0,0,nb_iterations,1)) -> 0.8821 | CP3: =AVERAGE(1*OFFSET(CP11,0,0,nb_iterations,1)) -> 0 | CQ3: =AVERAGE(1*OFFSET(CQ11,0,0,nb_iterations,1)) -> 0.0629 | CR3: =AVERAGE(1*OFFSET(CR11,0,0,nb_iterations,1)) -> 0.9371 | CS3: =AVERAGE(1*OFFSET(CS11,0,0,nb_iterations,1)) -> 0.1294 | CT3: =AVERAGE(1*OFFSET(CT11,0,0,nb_iterations,1)) -> 0.8706 | CU3: =AVERAGE(1*OFFSET(CU11,0,0,nb_iterations,1)) -> 0 | CV3: =AVERAGE(1*OFFSET(CV11,0,0,nb_iterations,1)) -> 0 | CW3: =AVERAGE(1*OFFSET(CW11,0,0,nb_iterations,1)) -> 0.1241 | CX3: =AVERAGE(1*OFFSET(CX11,0,0,nb_iterations,1)) -> 0.8759 | CY3: =AVERAGE(1*OFFSET(CY11,0,0,nb_iterations,1)) -> 0.0913 | CZ3: =AVERAGE(1*OFFSET(CZ11,0,0,nb_iterations,1)) -> 0.9087 | DA3: =AVERAGE(1*OFFSET(DA11,0,0,nb_iterations,1)) -> 0 | DB3: =AVERAGE(1*OFFSET(DB11,0,0,nb_iterations,1)) -> 0.3568 | DC3: =AVERAGE(1*OFFSET(DC11,0,0,nb_iterations,1)) -> 0.6432 | DD3: =AVERAGE(1*OFFSET(DD11,0,0,nb_iterations,1)) -> 0 | DE3: =AVERAGE(1*OFFSET(DE11,0,0,nb_iterations,1)) -> 0.1252 | DF3: =AVERAGE(1*OFFSET(DF11,0,0,nb_iterations,1)) -> 0.8737 | DG3: =AVERAGE(1*OFFSET(DG11,0,0,nb_iterations,1)) -> 0.0011 | DH3: =AVERAGE(1*OFFSET(DH11,0,0,nb_iterations,1)) -> 0.1447 | DI3: =AVERAGE(1*OFFSET(DI11,0,0,nb_iterations,1)) -> 0.8553 | DJ3: =AVERAGE(OFFSET(DJ11,0,0,nb_iterations,1)) -> -0.2293806577 | DK3: -0.4505766104 | DL3: -0.2012522913 | DM3: -0.4481985017 | DN3: -0.3028217396 | DO3: -0.4202780469 | DP3: 0.2595732858 | DQ3: -0.5981176406 | DR3: 0.2314449194 | DS3: -1.095820579 | DT3: -5.432244283 | DU3: 0.2338230281 | DV3: 0.3664307116 | DW3: -3.521811479 | DX3: 0.1762868652 | DY3: -1.811755601 | DZ3: 0.2929896297 | EA3: -0.5345476783 | EB3: 0.2626910662
A4: SD | B4: =_xlfn.STDEV.S(OFFSET(B11,0,0,nb_iterations,1)) -> 4802.946892 | C4: 4075.047214 | D4: 6109.268728 | E4: 7072.055326 | F4: 8025.683138 | G4: 5944.159094 | H4: 5245.510035 | I4: 4301.959677 | J4: 3726.25885 | K4: 5410.373637 | L4: 4765.486226 | M4: 4433.504815 | N4: 6183.848943 | O4: 5420.439818 | P4: 4993.040185 | Q4: 6407.72926 | R4: 0.658152692 | S4: 0.6650978102 | T4: 0.6553085941 | U4: 0.6845226829 | V4: 0.6711807096 | W4: 0.6658099407 | X4: 0.6801147219 | Y4: 0.6645101615 | Z4: 0.6709170526 | AA4: 0.6608676153 | AB4: 0.6651055726 | AC4: 0.6846116948 | AD4: 0.7448005465 | AE4: 0.6623291974 | AF4: 0.6703292504 | AG4: 0.6599888361 | AI4: 0.6966369316 | AJ4: 0.6902928433 | AK4: 0.734827036 | AL4: 0.7985035934 | AM4: 0.7606402589 | AN4: 0.7442074855 | AO4: 0.7220844152 | AP4: 0.6903938747 | AQ4: 0.6903907722 | AR4: 0.7197252211 | AS4: 0.7024218494 | AT4: 0.7009431988 | AU4: 0.7680412167 | AV4: 0.7229388085 | AW4: 0.7238105848 | AX4: 0.7532684278 | DJ4: =_xlfn.STDEV.S(OFFSET(DJ11,0,0,nb_iterations,1)) -> 0.1210873848 | DK4: 0.2471345521 | DL4: 0.1122905062 | DM4: 0.2438194144 | DN4: 0.1406030855 | DO4: 0.266420178 | DP4: 0.2235032208 | DQ4: 0.32594712 | DR4: 0.2080712697 | DS4: 0.2214319277 | DT4: 0.2380523913 | DU4: 0.2049524124 | DV4: 0.2835537556 | DW4: 0.4800308084 | DX4: 0.4125192053 | DY4: 0.4913742144 | DZ4: 0.2619599615 | EA4: 0.4229915332 | EB4: 0.2552142407
A5: Current value | B5: =TRANSPOSE(Results!C6:C21) -> 97429.01972 | C5: 92226.12511 | D5: 101595.3253 | E5: 93318.95629 | F5: 176154.3349 | G5: 125539.25 | H5: 106529.3833 | I5: 95219.34775 | J5: 90404.72967 | K5: 98243.88029 | L5: 114548.7163 | M5: 209408.6974 | N5: 111539.8772 | O5: 101939.7392 | P5: 97146.15866 | Q5: 104570.3304 | R5: =TRANSPOSE(Results!E6:E21) -> 10.91452807 | S5: 10.88839841 | T5: 10.77105193 | U5: 10.86963348 | V5: 10.96590262 | W5: 10.6022819 | X5: 10.79200425 | Y5: 11.02470671 | Z5: 10.98796371 | AA5: 10.90292458 | AB5: 10.90102395 | AC5: 11.29409087 | AD5: 11.13769131 | AE5: 10.92807497 | AF5: 10.90471604 | AG5: 10.81816242 | AI5: =R5 - B5/PSA_CE_THRESHOLD -> 6.043077082 | AJ5: 6.27709216 | AK5: 5.691285667 | AL5: 6.203685664 | AM5: 2.15818588 | AN5: 4.325319401 | AO5: 5.465535082 | AP5: 6.263739322 | AQ5: 6.46772723 | AR5: 5.990730568 | AS5: 5.173588132 | AT5: 0.8236559964 | AU5: 5.560697444 | AV5: 5.831088007 | AW5: 6.047408111 | AX5: 5.589645901 | DJ5: =AP5-AI5 -> 0.2206622405 | DK5: =AV5-AI5 -> -0.2119890746 | DL5: =AQ5-AJ5 -> 0.1906350699 | DM5: =AW5-AJ5 -> -0.2296840484 | DN5: =AR5-AK5 -> 0.2994449002 | DO5: =AX5-AK5 -> -0.1016397667 | DP5: =AJ5-AI5 -> 0.234015078 | DQ5: =AO5-AI5 -> -0.5775419996 | DR5: =AQ5-AP5 -> 0.2039879074 | DS5: =AS5-AP5 -> -1.09015119 | DT5: =AT5-AP5 -> -5.440083326 | DU5: =AW5-AV5 -> 0.2163201042 | DV5: =AI5-AK5 -> 0.3517914142 | DW5: =AM5-AK5 -> -3.533099788 | DX5: =AJ5-AL5 -> 0.07340649597 | DY5: =AN5-AL5 -> -1.878366262 | DZ5: =AP5-AR5 -> 0.2730087545 | EA5: =AU5-AR5 -> -0.4300331234 | EB5: =AV5-AX5 -> 0.2414421064
A6: SE | B6: =B4/SQRT(nb_iterations) -> 48.02946892 | C6: 40.75047214 | D6: 61.09268728 | E6: 70.72055326 | F6: 80.25683138 | G6: 59.44159094 | H6: 52.45510035 | I6: 43.01959677 | J6: 37.2625885 | K6: 54.10373637 | L6: 47.65486226 | M6: 44.33504815 | N6: 61.83848943 | O6: 54.20439818 | P6: 49.93040185 | Q6: 64.0772926 | R6: 0.00658152692 | S6: 0.006650978102 | T6: 0.006553085941 | U6: 0.006845226829 | V6: 0.006711807096 | W6: 0.006658099407 | X6: 0.006801147219 | Y6: 0.006645101615 | Z6: 0.006709170526 | AA6: 0.006608676153 | AB6: 0.006651055726 | AC6: 0.006846116948 | AD6: 0.007448005465 | AE6: 0.006623291974 | AF6: 0.006703292504 | AG6: 0.006599888361 | AI6: =AI4/SQRT(nb_iterations) -> 0.006966369316 | AJ6: 0.006902928433 | AK6: 0.00734827036 | AL6: 0.007985035934 | AM6: 0.007606402589 | AN6: 0.007442074855 | AO6: 0.007220844152 | AP6: 0.006903938747 | AQ6: 0.006903907722 | AR6: 0.007197252211 | AS6: 0.007024218494 | AT6: 0.007009431988 | AU6: 0.007680412167 | AV6: 0.007229388085 | AW6: 0.007238105848 | AX6: 0.007532684278 | DJ6: =SMALL(OFFSET(DJ11,0,0,nb_iterations,1),nb_iterations*0.025) -> -0.4818193801 | DK6: -0.9410417013 | DL6: -0.4284710494 | DM6: -0.9413522721 | DN6: -0.600177899 | DO6: -0.9497903021 | DP6: -0.1701620131 | DQ6: -1.253184116 | DR6: -0.1730953976 | DS6: -1.543935147 | DT6: -5.894913693 | DU6: -0.1725658054 | DV6: -0.1635755646 | DW6: -4.467425143 | DX6: -0.5187321591 | DY6: -2.720168985 | DZ6: -0.1987321702 | EA6: -1.391224626 | EB6: -0.2119926517
DJ7: =LARGE(OFFSET(DJ11,0,0,nb_iterations,1),nb_iterations*0.025) -> -0.0118933394 | DK7: 0.02648434071 | DL7: 0.004323358436 | DM7: 0.01482344144 | DN7: -0.05268969872 | DO7: 0.094833443 | DP7: 0.7057403253 | DQ7: 0.02083346176 | DR7: 0.6433675138 | DS7: -0.6732869857 | DT7: -4.964656616 | DU7: 0.6361795956 | DV7: 0.9593281318 | DW7: -2.593232295 | DX7: 1.097202426 | DY7: -0.7866758886 | DZ7: 0.8326023699 | EA7: 0.2491455768 | EB7: 0.7928818424
CE8: Probability treatment is cost-effective | DJ8: INHB
A9: i | B9: Total costs (discounted) | R9: Total QALYs (discounted) | AI9: NHB | AY9: Cost-effective | BO9: NHB rank | CE9: Induction (with CsA+MMF+ST) | CH9: Induction (with Tac+MMF+ST) | CK9: Induction (with CsA+Aza+ST) | CN9: Maintenance (with MMF+ST) | CQ9: Maintenance (with Aza+ST) | CS9: Maintenance (with Bas+MMF+ST) | CW9: Maintenance (with rATG+MMF+ST) | CY9: Maintenance (with CsA+ST) | DB9: Maintenance (with Tac+ST) | DE9: Maintenance (with Bas+CsA+ST) | DH9: Maintenance (with rATG+CsA+ST) | DJ9: Induction (with CsA+MMF+ST) | DL9: Induction (with Tac+MMF+ST) | DN9: Induction (with CsA+Aza+ST) | DP9: Maintenance (with MMF+ST) | DR9: Maintenance (with Bas+MMF+ST) | DU9: Maintenance (with rATG+MMF+ST) | DV9: Maintenance (with CsA+ST) | DX9: Maintenance (with Tac+ST) | DZ9: Maintenance (with Bas+CsA+ST) | EB9: Maintenance (with rATG+CsA+ST) | EE9: Rankogram | EV9: CE threshold | EW9: =MAX(EW12:EW61) -> 0 | EX9: =MAX(EX12:EX61) -> 0 | EY9: 0 | EZ9: 0 | FA9: 0 | FB9: 0 | FC9: 0 | FD9: 0 | FE9: 0 | FF9: 0 | FG9: 0 | FH9: 0 | FI9: 0 | FJ9: 0 | FK9: 0 | FL9: 0 | FM9: Induction (with CsA+MMF+ST) | FP9: Induction (with Tac+MMF+ST) | FS9: Induction (with CsA+Aza+ST) | FV9: Maintenance (with MMF+ST) | FY9: Maintenance (with Aza+ST) | GA9: Maintenance (with Bas+MMF+ST) | GE9: Maintenance (with rATG+MMF+ST) | GG9: Maintenance (with CsA+ST) | GJ9: Maintenance (with Tac+ST) | GM9: Maintenance (with Bas+CsA+ST) | GP9: Maintenance (with rATG+CsA+ST)
B10: CsA+MMF+ST | C10: Tac+MMF+ST | D10: CsA+Aza+ST | E10: Tac+Aza+ST | F10: CsA+Evl+ST | G10: Tac+Srl+ST | H10: Tac-PR+MMF+ST | I10: Bas+CsA+MMF+ST | J10: Bas+Tac+MMF+ST | K10: Bas+CsA+Aza+ST | L10: Bas+Srl+MMF+ST | M10: Bas+Bela+MMF+ST | N10: Bas+CsA+EC-MPS+ST | O10: rATG+CsA+MMF+ST | P10: rATG+Tac+MMF+ST | Q10: rATG+CsA+Aza+ST | R10: CsA+MMF+ST | S10: Tac+MMF+ST | T10: CsA+Aza+ST | U10: Tac+Aza+ST | V10: CsA+Evl+ST | W10: Tac+Srl+ST | X10: Tac-PR+MMF+ST | Y10: Bas+CsA+MMF+ST | Z10: Bas+Tac+MMF+ST | AA10: Bas+CsA+Aza+ST | AB10: Bas+Srl+MMF+ST | AC10: Bas+Bela+MMF+ST | AD10: Bas+CsA+EC-MPS+ST | AE10: rATG+CsA+MMF+ST | AF10: rATG+Tac+MMF+ST | AG10: rATG+CsA+Aza+ST | AI10: CsA+MMF+ST | AJ10: Tac+MMF+ST | AK10: CsA+Aza+ST | AL10: Tac+Aza+ST | AM10: CsA+Evl+ST | AN10: Tac+Srl+ST | AO10: Tac-PR+MMF+ST | AP10: Bas+CsA+MMF+ST | AQ10: Bas+Tac+MMF+ST | AR10: Bas+CsA+Aza+ST | AS10: Bas+Srl+MMF+ST | AT10: Bas+Bela+MMF+ST | AU10: Bas+CsA+EC-MPS+ST | AV10: rATG+CsA+MMF+ST | AW10: rATG+Tac+MMF+ST | AX10: rATG+CsA+Aza+ST | AY10: CsA+MMF+ST | AZ10: Tac+MMF+ST | BA10: CsA+Aza+ST | BB10: Tac+Aza+ST | BC10: CsA+Evl+ST | BD10: Tac+Srl+ST | BE10: Tac-PR+MMF+ST | BF10: Bas+CsA+MMF+ST | BG10: Bas+Tac+MMF+ST | BH10: Bas+CsA+Aza+ST | BI10: Bas+Srl+MMF+ST | BJ10: Bas+Bela+MMF+ST | BK10: Bas+CsA+EC-MPS+ST | BL10: rATG+CsA+MMF+ST | BM10: rATG+Tac+MMF+ST | BN10: rATG+CsA+Aza+ST | BO10: CsA+MMF+ST | BP10: Tac+MMF+ST | BQ10: CsA+Aza+ST | BR10: Tac+Aza+ST | BS10: CsA+Evl+ST | BT10: Tac+Srl+ST | BU10: Tac-PR+MMF+ST | BV10: Bas+CsA+MMF+ST | BW10: Bas+Tac+MMF+ST | BX10: Bas+CsA+Aza+ST | BY10: Bas+Srl+MMF+ST | BZ10: Bas+Bela+MMF+ST | CA10: Bas+CsA+EC-MPS+ST | CB10: rATG+CsA+MMF+ST | CC10: rATG+Tac+MMF+ST | CD10: rATG+CsA+Aza+ST | CE10: No induction | CF10: Bas | CG10: rATG | CH10: No induction | CI10: Bas | CJ10: rATG | CK10: No induction | CL10: Bas | CM10: rATG | CN10: CsA | CO10: Tac | CP10: Tac-PR | CQ10: CsA | CR10: Tac | CS10: CsA | CT10: Tac | CU10: Srl | CV10: Bela | CW10: CsA | CX10: Tac | CY10: Aza | CZ10: MMF | DA10: Evl | DB10: Aza | DC10: MMF | DD10: Srl | DE10: Aza | DF10: MMF | DG10: EC-MPS | DH10: Aza | DI10: MMF | DJ10: No induction | DK10: rATG | DL10: No induction | DM10: rATG | DN10: No induction | DO10: rATG | DP10: Tac | DQ10: Tac-PR | DR10: Tac | DS10: Srl | DT10: Bela | DU10: Tac | DV10: MMF | DW10: Evl | DX10: MMF | DY10: Srl | DZ10: MMF | EA10: EC-MPS | EB10: MMF | EE10: CsA+MMF+ST | EF10: Tac+MMF+ST | EG10: CsA+Aza+ST | EH10: Tac+Aza+ST | EI10: CsA+Evl+ST | EJ10: Tac+Srl+ST | EK10: Tac-PR+MMF+ST | EL10: Bas+CsA+MMF+ST | EM10: Bas+Tac+MMF+ST | EN10: Bas+CsA+Aza+ST | EO10: Bas+Srl+MMF+ST | EP10: Bas+Bela+MMF+ST | EQ10: Bas+CsA+EC-MPS+ST | ER10: rATG+CsA+MMF+ST | ES10: rATG+Tac+MMF+ST | ET10: rATG+CsA+Aza+ST | EW10: CsA+MMF+ST | EX10: Tac+MMF+ST | EY10: CsA+Aza+ST | EZ10: Tac+Aza+ST | FA10: CsA+Evl+ST | FB10: Tac+Srl+ST | FC10: Tac-PR+MMF+ST | FD10: Bas+CsA+MMF+ST | FE10: Bas+Tac+MMF+ST | FF10: Bas+CsA+Aza+ST | FG10: Bas+Srl+MMF+ST | FH10: Bas+Bela+MMF+ST | FI10: Bas+CsA+EC-MPS+ST | FJ10: rATG+CsA+MMF+ST | FK10: rATG+Tac+MMF+ST | FL10: rATG+CsA+Aza+ST | FM10: No induction | FN10: Basiliximab | FO10: Rabbit ATG | FP10: No induction | FQ10: Basiliximab | FR10: Rabbit ATG | FS10: No induction | FT10: Basiliximab | FU10: Rabbit ATG | FV10: CSA | FW10: TAC | FX10: TAC-PR | FY10: CSA | FZ10: TAC | GA10: CSA | GB10: TAC | GC10: SRL | GD10: BEL | GE10: CSA | GF10: TAC | GG10: AZA | GH10: MMF | GI10: EVL | GJ10: AZA | GK10: MMF | GL10: SRL | GM10: AZA | GN10: MMF | GO10: MPS | GP10: AZA | GQ10: MMF
A11: 1 | B11: 96592.27649 | C11: 94389.39482 | D11: 101217.6529 | E11: 96677.13198 | F11: 180598.7722 | G11: 118188.3896 | H11: 109854.1222 | I11: 94511.02395 | J11: 92300.94588 | K11: 97305.66843 | L11: 113387.1979 | M11: 209097.6802 | N11: 112089.8901 | O11: 108182.8718 | P11: 106392.562 | Q11: 110881.4902 | R11: 11.26132315 | S11: 11.14604795 | T11: 11.04554358 | U11: 11.0477038 | V11: 11.32172989 | W11: 10.96791717 | X11: 10.74795818 | Y11: 11.39187702 | Z11: 11.2737236 | AA11: 11.21684106 | AB11: 11.31425956 | AC11: 11.69796512 | AD11: 11.43235758 | AE11: 11.08484351 | AF11: 10.9691229 | AG11: 10.92783489 | AI11: =R11 - B11/PSA_CE_THRESHOLD -> 6.431709323 | AJ11: =S11 - C11/PSA_CE_THRESHOLD -> 6.42657821 | AK11: =T11 - D11/PSA_CE_THRESHOLD -> 5.984660936 | AL11: =U11 - E11/PSA_CE_THRESHOLD -> 6.2138472 | AM11: =V11 - F11/PSA_CE_THRESHOLD -> 2.291791284 | AN11: =W11 - G11/PSA_CE_THRESHOLD -> 5.058497688 | AO11: =X11 - H11/PSA_CE_THRESHOLD -> 5.255252074 | AP11: =Y11 - I11/PSA_CE_THRESHOLD -> 6.666325819 | AQ11: =Z11 - J11/PSA_CE_THRESHOLD -> 6.658676307 | AR11: =AA11 - K11/PSA_CE_THRESHOLD -> 6.351557642 | AS11: =AB11 - L11/PSA_CE_THRESHOLD -> 5.64489966 | AT11: =AC11 - M11/PSA_CE_THRESHOLD -> 1.243081112 | AU11: =AD11 - N11/PSA_CE_THRESHOLD -> 5.827863074 | AV11: =AE11 - O11/PSA_CE_THRESHOLD -> 5.675699917 | AW11: =AF11 - P11/PSA_CE_THRESHOLD -> 5.649494803 | AX11: =AG11 - Q11/PSA_CE_THRESHOLD -> 5.383760379 | AY11: =(AI11=MAX($AI11:$AX11)) -> FALSE | AZ11: =(AJ11=MAX($AI11:$AX11)) -> FALSE | BA11: FALSE | BB11: FALSE | BC11: FALSE | BD11: FALSE | BE11: FALSE | BF11: TRUE | BG11: FALSE | BH11: FALSE | BI11: FALSE | BJ11: FALSE | BK11: FALSE | BL11: FALSE | BM11: FALSE | BN11: FALSE | BO11: =_xlfn.RANK.AVG(AI11,$AI11:$AX11) -> 3 | BP11: =_xlfn.RANK.AVG(AJ11,$AI11:$AX11) -> 4 | BQ11: 7 | BR11: 6 | BS11: 15 | BT11: 14 | BU11: 13 | BV11: 1 | BW11: 2 | BX11: 5 | BY11: 11 | BZ11: 16 | CA11: 8 | CB11: 9 | CC11: 10 | CD11: 12 | CE11: =(AI11=MAX($AI11,$AP11,$AV11)) -> FALSE | CF11: =(AP11=MAX($AI11,$AP11,$AV11)) -> TRUE | CG11: =(AV11=MAX($AI11,$AP11,$AV11)) -> FALSE | CH11: =(AJ11=MAX($AJ11,$AQ11,$AW11)) -> FALSE | CI11: =(AQ11=MAX($AJ11,$AQ11,$AW11)) -> TRUE | CJ11: =(AW11=MAX($AJ11,$AQ11,$AW11)) -> FALSE | CK11: =(AK11=MAX($AK11,$AR11,$AX11)) -> FALSE | CL11: =(AR11=MAX($AK11,$AR11,$AX11)) -> TRUE | CM11: =(AX11=MAX($AK11,$AR11,$AX11)) -> FALSE | CN11: =(AI11=MAX($AI11,$AJ11,$AO11)) -> TRUE | CO11: =(AJ11=MAX($AI11,$AJ11,$AO11)) -> FALSE | CP11: =(AO11=MAX($AI11,$AJ11,$AO11)) -> FALSE | CQ11: =(AK11=MAX($AK11,$AL11)) -> FALSE | CR11: =(AL11=MAX($AK11,$AL11)) -> TRUE | CS11: =(AP11=MAX($AP11,$AQ11,$AS11,$AT11)) -> TRUE | CT11: =(AQ11=MAX($AP11,$AQ11,$AS11,$AT11)) -> FALSE | CU11: =(AR11=MAX($AP11,$AQ11,$AS11,$AT11)) -> FALSE | CV11: =(AS11=MAX($AP11,$AQ11,$AS11,$AT11)) -> FALSE | CW11: =(AV11=MAX($AV11,$AW11)) -> TRUE | CX11: =(AW11=MAX($AV11,$AW11)) -> FALSE | CY11: =(AK11=MAX($AK11,$AI11,$AM11)) -> FALSE | CZ11: =(AI11=MAX($AK11,$AI11,$AM11)) -> TRUE | DA11: =($AM11=MAX($AK11,$AI11,$AM11)) -> FALSE | DB11: =(AL11=MAX($AL11,$AJ11,$AN11)) -> FALSE | DC11: =(AJ11=MAX($AL11,$AJ11,$AN11)) -> TRUE | DD11: =($AN11=MAX($AL11,$AJ11,$AN11)) -> FALSE | DE11: =(AR11=MAX($AR11,$AP11,$AU11)) -> FALSE | DF11: =(AP11=MAX($AR11,$AP11,$AU11)) -> TRUE | DG11: =(AU11=MAX($AR11,$AP11,$AU11)) -> FALSE | DH11: =(AX11=MAX($AV11,$AX11)) -> FALSE | DI11: =(AV11=MAX($AV11,$AX11)) -> TRUE | DJ11: =-AP11+AI11 -> -0.2346164957 | DK11: =AV11-AP11 -> -0.9906259019 | DL11: =-AQ11+AJ11 -> -0.2320980976 | DM11: =AW11-AQ11 -> -1.009181504 | DN11: =-AR11+AK11 -> -0.3668967059 | DO11: =AX11-AR11 -> -0.967797263 | DP11: =AJ11-AI11 -> -0.005131113394 | DQ11: =AO11-AI11 -> -1.176457249 | DR11: =AQ11-AP11 -> -0.007649511471 | DS11: =AS11-AP11 -> -1.021426158 | DT11: =AT11-AP11 -> -5.423244706 | DU11: =AW11-AV11 -> -0.02620511337 | DV11: =AI11-AK11 -> 0.4470483868 | DW11: =AM11-AK11 -> -3.692869652 | DX11: =AJ11-AL11 -> 0.2127310092 | DY11: =AN11-AL11 -> -1.155349512 | DZ11: =AP11-AR11 -> 0.3147681767 | EA11: =AU11-AR11 -> -0.5236945681 | EB11: =AV11-AX11 -> 0.2919395377 | ED11: 1 | EE11: =COUNTIF(OFFSET(BO$11,0,0,nb_iterations,1),$ED11) -> 9 | EF11: =COUNTIF(OFFSET(BP$11,0,0,nb_iterations,1),$ED11) -> 155 | EG11: =COUNTIF(OFFSET(BQ$11,0,0,nb_iterations,1),$ED11) -> 0 | EH11: =COUNTIF(OFFSET(BR$11,0,0,nb_iterations,1),$ED11) -> 1686 | EI11: =COUNTIF(OFFSET(BS$11,0,0,nb_iterations,1),$ED11) -> 0 | EJ11: =COUNTIF(OFFSET(BT$11,0,0,nb_iterations,1),$ED11) -> 0 | EK11: =COUNTIF(OFFSET(BU$11,0,0,nb_iterations,1),$ED11) -> 0 | EL11: =COUNTIF(OFFSET(BV$11,0,0,nb_iterations,1),$ED11) -> 897 | EM11: =COUNTIF(OFFSET(BW$11,0,0,nb_iterations,1),$ED11) -> 6897 | EN11: =COUNTIF(OFFSET(BX$11,0,0,nb_iterations,1),$ED11) -> 96 | EO11: =COUNTIF(OFFSET(BY$11,0,0,nb_iterations,1),$ED11) -> 0 | EP11: =COUNTIF(OFFSET(BZ$11,0,0,nb_iterations,1),$ED11) -> 0 | EQ11: =COUNTIF(OFFSET(CA$11,0,0,nb_iterations,1),$ED11) -> 1 | ER11: =COUNTIF(OFFSET(CB$11,0,0,nb_iterations,1),$ED11) -> 33 | ES11: =COUNTIF(OFFSET(CC$11,0,0,nb_iterations,1),$ED11) -> 218 | ET11: =COUNTIF(OFFSET(CD$11,0,0,nb_iterations,1),$ED11) -> 8 | EV11: 20000 | EW11: =AY3 -> 0.0009 | EX11: 0.0155 | EY11: 0 | EZ11: 0.1686 | FA11: 0 | FB11: 0 | FC11: 0 | FD11: 0.0897 | FE11: 0.6897 | FF11: 0.0096 | FG11: 0 | FH11: 0 | FI11: 0.0001 | FJ11: 0.0033 | FK11: 0.0218 | FL11: 0.0008 | FM11: =CE3 -> 0.0181 | FN11: 0.949 | FO11: 0.0329 | FP11: 0.0268 | FQ11: 0.9448 | FR11: 0.0284 | FS11: 0.0068 | FT11: 0.9354 | FU11: 0.0578 | FV11: 0.1179 | FW11: 0.8821 | FX11: 0 | FY11: =CQ3 -> 0.0629 | FZ11: =CR3 -> 0.9371 | GA11: =CS3 -> 0.1294 | GB11: 0.8706 | GC11: 0 | GD11: 0 | GE11: 0.1241 | GF11: 0.8759 | GG11: 0.0913 | GH11: 0.9087 | GI11: 0 | GJ11: 0.3568 | GK11: 0.6432 | GL11: 0 | GM11: 0.1252 | GN11: 0.8737 | GO11: 0.0011 | GP11: 0.1447 | GQ11: 0.8553
A12: 2 | B12: 103301.1246 | C12: 95050.84672 | D12: 112095.6447 | E12: 112245.7965 | F12: 187576.5193 | G12: 131023.6407 | H12: 109040.7541 | I12: 100107.3831 | J12: 92417.42327 | K12: 106939.238 | L12: 121571.5941 | M12: 211350.2459 | N12: 118751.554 | O12: 112364.6166 | P12: 103830.3575 | Q12: 120677.2398 | R12: 11.30996747 | S12: 11.35814848 | T12: 11.12336872 | U12: 11.14003586 | V12: 11.32436137 | W12: 11.03247444 | X12: 11.3652531 | Y12: 11.42837199 | Z12: 11.45652892 | AA12: 11.28183954 | AB12: 11.36358009 | AC12: 11.60191202 | AD12: 11.49729926 | AE12: 11.18798268 | AF12: 11.23280523 | AG12: 11.02132149 | AI12: 6.144911245 | AJ12: 6.605606146 | AK12: 5.518586481 | AL12: 5.527746038 | AM12: 1.945535404 | AN12: 4.481292404 | AO12: 5.913215392 | AP12: 6.423002835 | AQ12: 6.83565776 | AR12: 5.934877644 | AS12: 5.285000388 | AT12: 1.034399727 | AU12: 5.559721564 | AV12: 5.569751851 | AW12: 6.041287356 | AX12: 4.987459504 | AY12: =(AI12=MAX($AI12:$AX12)) -> FALSE | AZ12: =(AJ12=MAX($AI12:$AX12)) -> FALSE | BA12: =(AK12=MAX($AI12:$AX12)) -> FALSE | BB12: =(AL12=MAX($AI12:$AX12)) -> FALSE | BC12: =(AM12=MAX($AI12:$AX12)) -> FALSE | BD12: =(AN12=MAX($AI12:$AX12)) -> FALSE | BE12: =(AO12=MAX($AI12:$AX12)) -> FALSE | BF12: =(AP12=MAX($AI12:$AX12)) -> FALSE | BG12: =(AQ12=MAX($AI12:$AX12)) -> TRUE | BH12: =(AR12=MAX($AI12:$AX12)) -> FALSE | BI12: =(AS12=MAX($AI12:$AX12)) -> FALSE | BJ12: =(AT12=MAX($AI12:$AX12)) -> FALSE | BK12: =(AU12=MAX($AI12:$AX12)) -> FALSE | BL12: =(AV12=MAX($AI12:$AX12)) -> FALSE | BM12: =(AW12=MAX($AI12:$AX12)) -> FALSE | BN12: =(AX12=MAX($AI12:$AX12)) -> FALSE | BO12: =_xlfn.RANK.AVG(AI12,$AI12:$AX12) -> 4 | BP12: 2 | BQ12: 11 | BR12: 10 | BS12: 15 | BT12: 14 | BU12: 7 | BV12: 3 | BW12: 1 | BX12: 6 | BY12: 12 | BZ12: 16 | CA12: 9 | CB12: 8 | CC12: 5 | CD12: 13 | CE12: =(AI12=MAX($AI12,$AP12,$AV12)) -> FALSE | CF12: =(AP12=MAX($AI12,$AP12,$AV12)) -> TRUE | CG12: =(AV12=MAX($AI12,$AP12,$AV12)) -> FALSE | CH12: =(AJ12=MAX($AJ12,$AQ12,$AW12)) -> FALSE | CI12: =(AQ12=MAX($AJ12,$AQ12,$AW12)) -> TRUE | CJ12: =(AW12=MAX($AJ12,$AQ12,$AW12)) -> FALSE | CK12: =(AK12=MAX($AK12,$AR12,$AX12)) -> FALSE | CL12: =(AR12=MAX($AK12,$AR12,$AX12)) -> TRUE | CM12: =(AX12=MAX($AK12,$AR12,$AX12)) -> FALSE | CN12: =(AI12=MAX($AI12,$AJ12,$AO12)) -> FALSE | CO12: =(AJ12=MAX($AI12,$AJ12,$AO12)) -> TRUE | CP12: =(AO12=MAX($AI12,$AJ12,$AO12)) -> FALSE | CQ12: =(AK12=MAX($AK12,$AL12)) -> FALSE | CR12: TRUE | CS12: =(AP12=MAX($AP12,$AQ12,$AS12,$AT12)) -> FALSE | CT12: =(AQ12=MAX($AP12,$AQ12,$AS12,$AT12)) -> TRUE | CU12: =(AR12=MAX($AP12,$AQ12,$AS12,$AT12)) -> FALSE | CV12: =(AS12=MAX($AP12,$AQ12,$AS12,$AT12)) -> FALSE | CW12: =(AV12=MAX($AV12,$AW12)) -> FALSE | CX12: =(AW12=MAX($AV12,$AW12)) -> TRUE | CY12: =(AK12=MAX($AK12,$AI12,$AM12)) -> FALSE | CZ12: =(AI12=MAX($AK12,$AI12,$AM12)) -> TRUE | DA12: =($AM12=MAX($AK12,$AI12,$AM12)) -> FALSE | DB12: =(AL12=MAX($AL12,$AJ12,$AN12)) -> FALSE | DC12: =(AJ12=MAX($AL12,$AJ12,$AN12)) -> TRUE | DD12: =($AN12=MAX($AL12,$AJ12,$AN12)) -> FALSE | DE12: =(AR12=MAX($AR12,$AP12,$AU12)) -> FALSE | DF12: =(AP12=MAX($AR12,$AP12,$AU12)) -> TRUE | DG12: =(AU12=MAX($AR12,$AP12,$AU12)) -> FALSE | DH12: =(AX12=MAX($AV12,$AX12)) -> FALSE | DI12: =(AV12=MAX($AV12,$AX12)) -> TRUE | DJ12: =-AP12+AI12 -> -0.27809159 | DK12: =AV12-AP12 -> -0.8532509841 | DL12: =-AQ12+AJ12 -> -0.2300516139 | DM12: =AW12-AQ12 -> -0.7943704043 | DN12: =-AR12+AK12 -> -0.4162911631 | DO12: =AX12-AR12 -> -0.9474181399 | DP12: =AJ12-AI12 -> 0.4606949014 | DQ12: =AO12-AI12 -> -0.2316958533 | DR12: =AQ12-AP12 -> 0.4126549253 | DS12: =AS12-AP12 -> -1.138002447 | DT12: =AT12-AP12 -> -5.388603108 | DU12: =AW12-AV12 -> 0.4715355051 | DV12: =AI12-AK12 -> 0.6263247639 | DW12: =AM12-AK12 -> -3.573051077 | DX12: =AJ12-AL12 -> 1.077860108 | DY12: =AN12-AL12 -> -1.046453635 | DZ12: =AP12-AR12 -> 0.4881251909 | EA12: =AU12-AR12 -> -0.3751560802 | EB12: =AV12-AX12 -> 0.5822923466 | ED12: 2 | EE12: 151 | EF12: 3255 | EG12: 5 | EH12: 987 | EI12: 0 | EJ12: 0 | EK12: 0 | EL12: 2246 | EM12: 2132 | EN12: 346 | EO12: 0 | EP12: 0 | EQ12: 5 | ER12: 55 | ES12: 808 | ET12: 10 | EV12: 1000
A13: 3 | B13: 97945.62816 | C13: 92718.00083 | D13: 103204.2794 | E13: 90827.04191 | F13: 169624.6087 | G13: 132505.0842 | H13: 109577.5775 | I13: 93645.15324 | J13: 89017.47703 | K13: 97815.94872 | L13: 109428.5004 | M13: 206914.4969 | N13: 107853.6373 | O13: 99909.01702 | P13: 95375.27451 | Q13: 103568.1151 | R13: 11.33062543 | S13: 11.24517904 | T13: 11.07078835 | U13: 11.13834548 | V13: 11.44979802 | W13: 10.65125421 | X13: 10.97774457 | Y13: 11.55529947 | Z13: 11.48911643 | AA13: 11.34377183 | AB13: 11.40614273 | AC13: 11.76488664 | AD13: 11.68559694 | AE13: 11.45795383 | AF13: 11.40339147 | AG13: 11.26820689 | AI13: 6.433344025 | AJ13: 6.609278997 | AK13: 5.910574377 | AL13: 6.596993381 | AM13: 2.968567579 | AN13: 4.026000004 | AO13: 5.498865691 | AP13: 6.87304181 | AQ13: 7.038242583 | AR13: 6.452974399 | AS13: 5.934717708 | AT13: 1.419161793 | AU13: 6.292915073 | AV13: 6.462502978 | AW13: 6.634627741 | AX13: 6.089801133 | AY13: FALSE | AZ13: FALSE | BA13: FALSE | BB13: FALSE | BC13: FALSE | BD13: FALSE | BE13: FALSE | BF13: FALSE | BG13: TRUE | BH13: FALSE | BI13: FALSE | BJ13: FALSE | BK13: FALSE | BL13: FALSE | BM13: FALSE | BN13: FALSE | BO13: 8 | BP13: 4 | BQ13: 12 | BR13: 5 | BS13: 15 | BT13: 14 | BU13: 13 | BV13: 2 | BW13: 1 | BX13: 7 | BY13: 11 | BZ13: 16 | CA13: 9 | CB13: 6 | CC13: 3 | CD13: 10 | CE13: FALSE | CF13: TRUE | CG13: FALSE | CH13: FALSE | CI13: TRUE | CJ13: FALSE | CK13: FALSE | CL13: TRUE | CM13: FALSE | CN13: FALSE | CO13: TRUE | CP13: FALSE | CQ13: FALSE | CR13: TRUE | CS13: FALSE | CT13: TRUE | CU13: FALSE | CV13: FALSE | CW13: FALSE | CX13: TRUE | CY13: FALSE | CZ13: TRUE | DA13: FALSE | DB13: FALSE | DC13: TRUE | DD13: FALSE | DE13: FALSE | DF13: TRUE | DG13: FALSE | DH13: FALSE | DI13: TRUE | DJ13: -0.439697785 | DK13: -0.4105388324 | DL13: -0.428963586 | DM13: -0.4036148423 | DN13: -0.5424000217 | DO13: -0.3631732654 | DP13: 0.1759349717 | DQ13: -0.9344783344 | DR13: 0.1652007728 | DS13: -0.9383241023 | DT13: -5.453880017 | DU13: 0.1721247628 | DV13: 0.5227696485 | DW13: -2.942006798 | DX13: 0.01228561638 | DY13: -2.570993376 | DZ13: 0.4200674117 | EA13: -0.1600593252 | EB13: 0.3727018447 | ED13: 3 | EE13: 436 | EF13: 3022 | EG13: 31 | EH13: 1335 | EI13: 0 | EJ13: 0 | EK13: 5 | EL13: 2551 | EM13: 584 | EN13: 615 | EO13: 0 | EP13: 0 | EQ13: 19 | ER13: 172 | ES13: 1200 | ET13: 30 | EV13: 2000
A14: 4 | B14: 102020.8191 | C14: 93965.3082 | D14: 108838.6497 | E14: 107257.6944 | F14: 167703.6082 | G14: 127033.3242 | H14: 110264.2293 | I14: 98883.17641 | J14: 91850.12102 | K14: 104216.0463 | L14: 120498.8573 | M14: 209858.0824 | N14: 113801.5636 | O14: 99620.7005 | P14: 92832.84014 | Q14: 102345.118 | R14: 11.15961789 | S14: 11.18270491 | T14: 11.08958445 | U14: 10.99512973 | V14: 11.13542105 | W14: 10.80481132 | X14: 11.12244081 | Y14: 11.41366175 | Z14: 11.46609389 | AA14: 11.32923148 | AB14: 11.25352214 | AC14: 11.64597153 | AD14: 11.36558523 | AE14: 11.50814938 | AF14: 11.57144376 | AG14: 11.47215319 | AI14: 6.058576933 | AJ14: 6.484439498 | AK14: 5.647651961 | AL14: 5.632245011 | AM14: 2.750240643 | AN14: 4.453145107 | AO14: 5.609229346 | AP14: 6.46950293 | AQ14: 6.873587837 | AR14: 6.118429162 | AS14: 5.228579275 | AT14: 1.153067408 | AU14: 5.675507053 | AV14: 6.527114354 | AW14: 6.929801755 | AX14: 6.354897291 | AY14: FALSE | AZ14: FALSE | BA14: FALSE | BB14: FALSE | BC14: FALSE | BD14: FALSE | BE14: FALSE | BF14: FALSE | BG14: FALSE | BH14: FALSE | BI14: FALSE | BJ14: FALSE | BK14: FALSE | BL14: FALSE | BM14: TRUE | BN14: FALSE | BO14: 8 | BP14: 4 | BQ14: 10 | BR14: 11 | BS14: 15 | BT14: 14 | BU14: 12 | BV14: 5 | BW14: 2 | BX14: 7 | BY14: 13 | BZ14: 16 | CA14: 9 | CB14: 3 | CC14: 1 | CD14: 6 | CE14: FALSE | CF14: FALSE | CG14: TRUE | CH14: FALSE | CI14: FALSE | CJ14: TRUE | CK14: FALSE | CL14: FALSE | CM14: TRUE | CN14: FALSE | CO14: TRUE | CP14: FALSE | CQ14: TRUE | CR14: FALSE | CS14: FALSE | CT14: TRUE | CU14: FALSE | CV14: FALSE | CW14: FALSE | CX14: TRUE | CY14: FALSE | CZ14: TRUE | DA14: FALSE | DB14: FALSE | DC14: TRUE | DD14: FALSE | DE14: FALSE | DF14: TRUE | DG14: FALSE | DH14: FALSE | DI14: TRUE | DJ14: -0.4109259972 | DK14: 0.05761142423 | DL14: -0.3891483386 | DM14: 0.0562139177 | DN14: -0.4707772003 | DO14: 0.2364681295 | DP14: 0.4258625654 | DQ14: -0.4493475864 | DR14: 0.4040849068 | DS14: -1.240923655 | DT14: -5.316435522 | DU14: 0.4026874003 | DV14: 0.4109249714 | DW14: -2.897411318 | DX14: 0.8521944876 | DY14: -1.179099904 | DZ14: 0.3510737683 | EA14: -0.4429221084 | EB14: 0.1722170631 | ED14: 4 | EE14: 1561 | EF14: 1644 | EG14: 68 | EH14: 1084 | EI14: 0 | EJ14: 0 | EK14: 18 | EL14: 2565 | EM14: 244 | EN14: 993 | EO14: 0 | EP14: 0 | EQ14: 49 | ER14: 302 | ES14: 1405 | ET14: 67 | EV14: 3000
A15: 5 | B15: 97508.30496 | C15: 95715.25854 | D15: 100482.364 | E15: 89804.2754 | F15: 185369.5316 | G15: 130161.2311 | H15: 112523.4631 | I15: 92974.47379 | J15: 91297.11079 | K15: 94792.54142 | L15: 112095.5144 | M15: 207735.6809 | N15: 108531.2356 | O15: 102008.8439 | P15: 100704.4342 | Q15: 103852.3424 | R15: 11.43133121 | S15: 11.33357716 | T15: 11.2824549 | U15: 11.42639545 | V15: 11.40687805 | W15: 11.1146182 | X15: 11.11819984 | Y15: 11.55166836 | Z15: 11.41126435 | AA15: 11.4107354 | AB15: 11.4462402 | AC15: 11.66389945 | AD15: 11.68520394 | AE15: 11.431834 | AF15: 11.32667394 | AG15: 11.3042169 | AI15: 6.55591596 | AJ15: 6.547814235 | AK15: 6.2583367 | AL15: 6.936181676 | AM15: 2.138401466 | AN15: 4.60655665 | AO15: 5.492026684 | AP15: 6.902944668 | AQ15: 6.846408815 | AR15: 6.671108332 | AS15: 5.841464481 | AT15: 1.277115406 | AU15: 6.258642161 | AV15: 6.331391809 | AW15: 6.291452226 | AX15: 6.111599777 | AY15: FALSE | AZ15: FALSE | BA15: FALSE | BB15: TRUE | BC15: FALSE | BD15: FALSE | BE15: FALSE | BF15: FALSE | BG15: FALSE | BH15: FALSE | BI15: FALSE | BJ15: FALSE | BK15: FALSE | BL15: FALSE | BM15: FALSE | BN15: FALSE | BO15: 5 | BP15: 6 | BQ15: 10 | BR15: 1 | BS15: 15 | BT15: 14 | BU15: 13 | BV15: 2 | BW15: 3 | BX15: 4 | BY15: 12 | BZ15: 16 | CA15: 9 | CB15: 7 | CC15: 8 | CD15: 11 | CE15: FALSE | CF15: TRUE | CG15: FALSE | CH15: FALSE | CI15: TRUE | CJ15: FALSE | CK15: FALSE | CL15: TRUE | CM15: FALSE | CN15: TRUE | CO15: FALSE | CP15: FALSE | CQ15: FALSE | CR15: TRUE | CS15: TRUE | CT15: FALSE | CU15: FALSE | CV15: FALSE | CW15: TRUE | CX15: FALSE | CY15: FALSE | CZ15: TRUE | DA15: FALSE | DB15: TRUE | DC15: FALSE | DD15: FALSE | DE15: FALSE | DF15: TRUE | DG15: FALSE | DH15: FALSE | DI15: TRUE | DJ15: -0.3470287082 | DK15: -0.5715528592 | DL15: -0.2985945794 | DM15: -0.5549565889 | DN15: -0.4127716323 | DO15: -0.5595085551 | DP15: -0.008101724573 | DQ15: -1.063889276 | DR15: -0.05653585333 | DS15: -1.061480188 | DT15: -5.625829262 | DU15: -0.03993958295 | DV15: 0.2975792603 | DW15: -4.119935234 | DX15: -0.3883674404 | DY15: -2.329625026 | DZ15: 0.2318363363 | EA15: -0.4124661709 | EB15: 0.2197920321 | ED15: 5 | EE15: 2334 | EF15: 1001 | EG15: 159 | EH15: 1265 | EI15: 0 | EJ15: 0 | EK15: 99 | EL15: 1181 | EM15: 88 | EN15: 1532 | EO15: 1 | EP15: 0 | EQ15: 143 | ER15: 751 | ES15: 1337 | ET15: 109 | EV15: 4000
A16: 6 | B16: 98965.83424 | C16: 88217.9489 | D16: 105080.2058 | E16: 100113.9435 | F16: 185453.1726 | G16: 122941.3746 | H16: 101796.9715 | I16: 97569.45632 | J16: 87668.54213 | K16: 102635.8364 | L16: 113704.2784 | M16: 206774.3127 | N16: 118069.4142 | O16: 95967.16177 | P16: 86869.62627 | Q16: 97995.82828 | R16: 10.77538674 | S16: 10.8888048 | T16: 10.61142441 | U16: 10.60529053 | V16: 10.68873607 | W16: 10.73043333 | X16: 10.53814039 | Y16: 10.98290866 | Z16: 11.11998966 | AA16: 10.83863724 | AB16: 10.89960094 | AC16: 11.29814301 | AD16: 11.12275089 | AE16: 11.06089672 | AF16: 11.16724637 | AG16: 10.97794471 | AI16: 5.827095027 | AJ16: 6.477907356 | AK16: 5.357414115 | AL16: 5.59959336 | AM16: 1.416077439 | AN16: 4.583364602 | AO16: 5.448291818 | AP16: 6.104435847 | AQ16: 6.736562558 | AR16: 5.706845422 | AS16: 5.214387021 | AT16: 0.959427371 | AU16: 5.219280179 | AV16: 6.26253863 | AW16: 6.823765055 | AX16: 6.0781533 | AY16: FALSE | AZ16: FALSE | BA16: FALSE | BB16: FALSE | BC16: FALSE | BD16: FALSE | BE16: FALSE | BF16: FALSE | BG16: FALSE | BH16: FALSE | BI16: FALSE | BJ16: FALSE | BK16: FALSE | BL16: FALSE | BM16: TRUE | BN16: FALSE | BO16: 7 | BP16: 3 | BQ16: 11 | BR16: 9 | BS16: 15 | BT16: 14 | BU16: 10 | BV16: 5 | BW16: 2 | BX16: 8 | BY16: 13 | BZ16: 16 | CA16: 12 | CB16: 4 | CC16: 1 | CD16: 6 | CE16: FALSE | CF16: FALSE | CG16: TRUE | CH16: FALSE | CI16: FALSE | CJ16: TRUE | CK16: FALSE | CL16: FALSE | CM16: TRUE | CN16: FALSE | CO16: TRUE | CP16: FALSE | CQ16: FALSE | CR16: TRUE | CS16: FALSE | CT16: TRUE | CU16: FALSE | CV16: FALSE | CW16: FALSE | CX16: TRUE | CY16: FALSE | CZ16: TRUE | DA16: FALSE | DB16: FALSE | DC16: TRUE | DD16: FALSE | DE16: FALSE | DF16: TRUE | DG16: FALSE | DH16: FALSE | DI16: TRUE | DJ16: -0.2773408195 | DK16: 0.1581027837 | DL16: -0.2586552022 | DM16: 0.08720249633 | DN16: -0.3494313066 | DO16: 0.3713078783 | DP16: 0.6508123288 | DQ16: -0.3788032088 | DR16: 0.6321267115 | DS16: -0.8900488261 | DT16: -5.145008476 | DU16: 0.5612264242 | DV16: 0.4696809122 | DW16: -3.941336676 | DX16: 0.8783139964 | DY16: -1.016228758 | DZ16: 0.3975904251 | EA16: -0.4875652425 | EB16: 0.1843853305 | ED16: 6 | EE16: 2367 | EF16: 498 | EG16: 401 | EH16: 887 | EI16: 0 | EJ16: 0 | EK16: 209 | EL16: 365 | EM16: 35 | EN16: 2075 | EO16: 4 | EP16: 0 | EQ16: 287 | ER16: 1211 | ES16: 1480 | ET16: 181 | EV16: 5000
A17: 7 | B17: 100813.2945 | C17: 91931.76914 | D17: 101289.484 | E17: 98820.26633 | F17: 179426.3716 | G17: 125324.0421 | H17: 103800.4167 | I17: 96619.88864 | J17: 88011.19795 | K17: 96108.45789 | L17: 113027.3793 | M17: 208533.0956 | N17: 114062.1024 | O17: 102826.5725 | P17: 94439.25218 | Q17: 101108.2395 | R17: 10.88937572 | S17: 10.98449656 | T17: 10.86359946 | U17: 10.86780314 | V17: 10.93318293 | W17: 10.75863029 | X17: 10.92690669 | Y17: 10.9691821 | Z17: 11.03361881 | AA17: 10.97308188 | AB17: 10.79691427 | AC17: 11.22858402 | AD17: 11.10019737 | AE17: 10.93046772 | AF17: 11.01332232 | AG17: 10.94554545 | AI17: 5.848710995 | AJ17: 6.387908101 | AK17: 5.799125257 | AL17: 5.926789824 | AM17: 1.961864348 | AN17: 4.492428191 | AO17: 5.736885849 | AP17: 6.138187666 | AQ17: 6.633058911 | AR17: 6.167658988 | AS17: 5.145545301 | AT17: 0.8019292385 | AU17: 5.397092253 | AV17: 5.789139098 | AW17: 6.291359708 | AX17: 5.890133474 | AY17: FALSE | AZ17: FALSE | BA17: FALSE | BB17: FALSE | BC17: FALSE | BD17: FALSE | BE17: FALSE | BF17: FALSE | BG17: TRUE | BH17: FALSE | BI17: FALSE | BJ17: FALSE | BK17: FALSE | BL17: FALSE | BM17: FALSE | BN17: FALSE | BO17: 8 | BP17: 2 | BQ17: 9 | BR17: 6 | BS17: 15 | BT17: 14 | BU17: 11 | BV17: 5 | BW17: 1 | BX17: 4 | BY17: 13 | BZ17: 16 | CA17: 12 | CB17: 10 | CC17: 3 | CD17: 7 | CE17: FALSE | CF17: TRUE | CG17: FALSE | CH17: FALSE | CI17: TRUE | CJ17: FALSE | CK17: FALSE | CL17: TRUE | CM17: FALSE | CN17: FALSE | CO17: TRUE | CP17: FALSE | CQ17: FALSE | CR17: TRUE | CS17: FALSE | CT17: TRUE | CU17: FALSE | CV17: FALSE | CW17: FALSE | CX17: TRUE | CY17: FALSE | CZ17: TRUE | DA17: FALSE | DB17: FALSE | DC17: TRUE | DD17: FALSE | DE17: TRUE | DF17: FALSE | DG17: FALSE | DH17: TRUE | DI17: FALSE | DJ17: -0.2894766703 | DK17: -0.3490485671 | DL17: -0.2451508105 | DM17: -0.3416992031 | DN17: -0.3685337312 | DO17: -0.2775255145 | DP17: 0.5391971055 | DQ17: -0.111825146 | DR17: 0.4948712458 | DS17: -0.9926423649 | DT17: -5.336258427 | DU17: 0.5022206097 | DV17: 0.04958573841 | DW17: -3.837260908 | DX17: 0.4611182771 | DY17: -1.434361633 | DZ17: -0.02947132253 | EA17: -0.7705667354 | EB17: -0.1009943751 | ED17: 7 | EE17: 1677 | EF17: 241 | EG17: 1303 | EH17: 861 | EI17: 0 | EJ17: 0 | EK17: 439 | EL17: 127 | EM17: 16 | EN17: 1623 | EO17: 17 | EP17: 0 | EQ17: 466 | ER17: 1516 | ES17: 1275 | ET17: 439 | EV17: 6000
A18: 8 | B18: 93418.53062 | C18: 89907.96278 | D18: 100730.926 | E18: 98377.00531 | F18: 176013.3306 | G18: 120023.0995 | H18: 106204.7971 | I18: 91138.4718 | J18: 87528.5548 | K18: 97414.13621 | L18: 107650.5093 | M18: 211531.7883 | N18: 109063.5553 | O18: 101140.504 | P18: 98000.90797 | Q18: 107377.7949 | R18: 9.196020035 | S18: 9.106314716 | T18: 9.063334444 | U18: 9.056667203 | V18: 9.238873533 | W18: 9.079471166 | X18: 8.941999125 | Y18: 9.245355782 | Z18: 9.132960296 | AA18: 9.125645176 | AB18: 9.185686067 | AC18: 9.372122347 | AD18: 9.306003987 | AE18: 9.143819916 | AF18: 9.072655426 | AG18: 9.024212223 | AI18: 4.525093504 | AJ18: 4.610916577 | AK18: 4.026788146 | AL18: 4.137816937 | AM18: 0.438207002 | AN18: 3.078316192 | AO18: 3.631759271 | AP18: 4.688432192 | AQ18: 4.756532556 | AR18: 4.254938366 | AS18: 3.803160604 | AT18: -1.204467069 | AU18: 3.852826221 | AV18: 4.086794717 | AW18: 4.172610028 | AX18: 3.65532248 | AY18: FALSE | AZ18: FALSE | BA18: FALSE | BB18: FALSE | BC18: FALSE | BD18: FALSE | BE18: FALSE | BF18: FALSE | BG18: TRUE | BH18: FALSE | BI18: FALSE | BJ18: FALSE | BK18: FALSE | BL18: FALSE | BM18: FALSE | BN18: FALSE | BO18: 4 | BP18: 3 | BQ18: 9 | BR18: 7 | BS18: 15 | BT18: 14 | BU18: 13 | BV18: 2 | BW18: 1 | BX18: 5 | BY18: 11 | BZ18: 16 | CA18: 10 | CB18: 8 | CC18: 6 | CD18: 12 | CE18: FALSE | CF18: TRUE | CG18: FALSE | CH18: FALSE | CI18: TRUE | CJ18: FALSE | CK18: FALSE | CL18: TRUE | CM18: FALSE | CN18: FALSE | CO18: TRUE | CP18: FALSE | CQ18: FALSE | CR18: TRUE | CS18: FALSE | CT18: TRUE | CU18: FALSE | CV18: FALSE | CW18: FALSE | CX18: TRUE | CY18: FALSE | CZ18: TRUE | DA18: FALSE | DB18: FALSE | DC18: TRUE | DD18: FALSE | DE18: FALSE | DF18: TRUE | DG18: FALSE | DH18: FALSE | DI18: TRUE | DJ18: -0.1633386873 | DK18: -0.6016374746 | DL18: -0.1456159786 | DM18: -0.5839225279 | DN18: -0.2281502199 | DO18: -0.5996158858 | DP18: 0.08582307271 | DQ18: -0.8933342331 | DR18: 0.06810036395 | DS18: -0.8852715878 | DT18: -5.892899261 | DU18: 0.0858153106 | DV18: 0.4983053585 | DW18: -3.588581144 | DX18: 0.4730996401 | DY18: -1.059500745 | DZ18: 0.4334938259 | EA18: -0.402112145 | EB18: 0.4314722372 | ED18: 8 | EE18: 698 | EF18: 108 | EG18: 1354 | EH18: 696 | EI18: 0 | EJ18: 0 | EK18: 708 | EL18: 54 | EM18: 1 | EN18: 1670 | EO18: 64 | EP18: 0 | EQ18: 747 | ER18: 1922 | ES18: 1242 | ET18: 736 | EV18: 7000
A19: 9 | B19: 95228.14397 | C19: 93615.49005 | D19: 101721.017 | E19: 89909.16188 | F19: 186804.1657 | G19: 128134.8479 | H19: 109758.1175 | I19: 94213.76725 | J19: 91778.24857 | K19: 99487.45369 | L19: 114041.308 | M19: 210292.4723 | N19: 107373.1589 | O19: 106536.2687 | P19: 103902.638 | Q19: 111362.6938 | R19: 11.26500142 | S19: 11.20707038 | T19: 11.1474918 | U19: 11.30470251 | V19: 11.12981013 | W19: 10.89397436 | X19: 11.08279999 | Y19: 11.3259688 | Z19: 11.27177335 | AA19: 11.24327879 | AB19: 11.21614068 | AC19: 11.60936117 | AD19: 11.53869389 | AE19: 11.04710606 | AF19: 10.98533361 | AG19: 10.98453208 | AI19: 6.503594225 | AJ19: 6.526295878 | AK19: 6.061440953 | AL19: 6.809244419 | AM19: 1.789601846 | AN19: 4.487231967 | AO19: 5.594894118 | AP19: 6.61528044 | AQ19: 6.682860924 | AR19: 6.268906105 | AS19: 5.514075282 | AT19: 1.094737552 | AU19: 6.170035949 | AV19: 5.720292625 | AW19: 5.790201705 | AX19: 5.416397397 | AY19: FALSE | AZ19: FALSE | BA19: FALSE | BB19: TRUE | BC19: FALSE | BD19: FALSE | BE19: FALSE | BF19: FALSE | BG19: FALSE | BH19: FALSE | BI19: FALSE | BJ19: FALSE | BK19: FALSE | BL19: FALSE | BM19: FALSE | BN19: FALSE | BO19: 5 | BP19: 4 | BQ19: 8 | BR19: 1 | BS19: 15 | BT19: 14 | BU19: 11 | BV19: 3 | BW19: 2 | BX19: 6 | BY19: 12 | BZ19: 16 | CA19: 7 | CB19: 10 | CC19: 9 | CD19: 13 | CE19: FALSE | CF19: TRUE | CG19: FALSE | CH19: FALSE | CI19: TRUE | CJ19: FALSE | CK19: FALSE | CL19: TRUE | CM19: FALSE | CN19: FALSE | CO19: TRUE | CP19: FALSE | CQ19: FALSE | CR19: TRUE | CS19: FALSE | CT19: TRUE | CU19: FALSE | CV19: FALSE | CW19: FALSE | CX19: TRUE | CY19: FALSE | CZ19: TRUE | DA19: FALSE | DB19: TRUE | DC19: FALSE | DD19: FALSE | DE19: FALSE | DF19: TRUE | DG19: FALSE | DH19: FALSE | DI19: TRUE | DJ19: -0.1116862156 | DK19: -0.8949878151 | DL19: -0.1565650463 | DM19: -0.8926592193 | DN19: -0.2074651523 | DO19: -0.8525087085 | DP19: 0.02270165319 | DQ19: -0.9087001062 | DR19: 0.0675804839 | DS19: -1.101205158 | DT19: -5.520542888 | DU19: 0.06990907972 | DV19: 0.4421532717 | DW19: -4.271839107 | DX19: -0.2829485409 | DY19: -2.322012452 | DZ19: 0.346374335 | EA19: -0.09887015662 | EB19: 0.3038952284 | ED19: 9 | EE19: 536 | EF19: 52 | EG19: 1767 | EH19: 474 | EI19: 0 | EJ19: 0 | EK19: 1062 | EL19: 11 | EM19: 2 | EN19: 774 | EO19: 224 | EP19: 0 | EQ19: 1051 | ER19: 1703 | ES19: 635 | ET19: 1709 | EV19: 8000
A20: 10 | B20: 94949.75467 | C20: 95098.20448 | D20: 100074.6531 | E20: 90081.39657 | F20: 175068.8033 | G20: 131454.3389 | H20: 113060.8584 | I20: 91074.16408 | J20: 91310.10738 | K20: 95033.49195 | L20: 112661.4307 | M20: 207736.2453 | N20: 98410.50105 | O20: 96858.75498 | P20: 96973.64269 | Q20: 100047.8796 | R20: 11.09672975 | S20: 11.01849692 | T20: 11.07243793 | U20: 11.13468223 | V20: 11.04372191 | W20: 10.71984431 | X20: 10.87982493 | Y20: 11.23313733 | Z20: 11.14789832 | AA20: 11.23706645 | AB20: 11.28236322 | AC20: 11.4542249 | AD20: 10.75386885 | AE20: 11.2028961 | AF20: 11.15325147 | AG20: 11.21445981 | AI20: 6.349242012 | AJ20: 6.263586697 | AK20: 6.068705279 | AL20: 6.630612399 | AM20: 2.29028175 | AN20: 4.147127361 | AO20: 5.226782007 | AP20: 6.679429128 | AQ20: 6.582392951 | AR20: 6.485391854 | AS20: 5.64929168 | AT20: 1.067412639 | AU20: 5.833343793 | AV20: 6.359958349 | AW20: 6.304569339 | AX20: 6.212065824 | AY20: FALSE | AZ20: FALSE | BA20: FALSE | BB20: FALSE | BC20: FALSE | BD20: FALSE | BE20: FALSE | BF20: TRUE | BG20: FALSE | BH20: FALSE | BI20: FALSE | BJ20: FALSE | BK20: FALSE | BL20: FALSE | BM20: FALSE | BN20: FALSE | BO20: 6 | BP20: 8 | BQ20: 10 | BR20: 2 | BS20: 15 | BT20: 14 | BU20: 13 | BV20: 1 | BW20: 3 | BX20: 4 | BY20: 12 | BZ20: 16 | CA20: 11 | CB20: 5 | CC20: 7 | CD20: 9 | CE20: FALSE | CF20: TRUE | CG20: FALSE | CH20: FALSE | CI20: TRUE | CJ20: FALSE | CK20: FALSE | CL20: TRUE | CM20: FALSE | CN20: TRUE | CO20: FALSE | CP20: FALSE | CQ20: FALSE | CR20: TRUE | CS20: TRUE | CT20: FALSE | CU20: FALSE | CV20: FALSE | CW20: TRUE | CX20: FALSE | CY20: FALSE | CZ20: TRUE | DA20: FALSE | DB20: TRUE | DC20: FALSE | DD20: FALSE | DE20: FALSE | DF20: TRUE | DG20: FALSE | DH20: FALSE | DI20: TRUE | DJ20: -0.3301871162 | DK20: -0.3194707796 | DL20: -0.3188062546 | DM20: -0.2778236123 | DN20: -0.4166865753 | DO20: -0.2733260302 | DP20: -0.0856553154 | DQ20: -1.122460005 | DR20: -0.09703617706 | DS20: -1.030137448 | DT20: -5.612016489 | DU20: -0.05538900974 | DV20: 0.2805367333 | DW20: -3.778423529 | DX20: -0.3670257028 | DY20: -2.483485038 | DZ20: 0.1940372742 | EA20: -0.6520480608 | EB20: 0.1478925248 | ED20: 10 | EE20: 201 | EF20: 22 | EG20: 2397 | EH20: 331 | EI20: 0 | EJ20: 0 | EK20: 1172 | EL20: 3 | EM20: 1 | EN20: 223 | EO20: 441 | EP20: 0 | EQ20: 1211 | ER20: 1490 | ES20: 313 | ET20: 2195 | EV20: 9000
A21: 11 | B21: 91691.62135 | C21: 87501.84871 | D21: 97288.86486 | E21: 95330.24259 | F21: 169468.4132 | G21: 117826.1106 | H21: 104365.402 | I21: 92302.7947 | J21: 88557.35891 | K21: 97983.82282 | L21: 113801.9895 | M21: 207094.9044 | N21: 116941.5161 | O21: 103774.2199 | P21: 99866.17158 | Q21: 109680.4109 | R21: 11.24579459 | S21: 11.03337322 | T21: 10.91723056 | U21: 10.61945896 | V21: 11.38127853 | W21: 10.1676048 | X21: 10.92141388 | Y21: 11.2989833 | Z21: 11.11260752 | AA21: 10.98700707 | AB21: 10.88651478 | AC21: 11.48478086 | AD21: 11.05880697 | AE21: 11.01209924 | AF21: 10.85529966 | AG21: 10.71283929 | AI21: 6.661213519 | AJ21: 6.658280788 | AK21: 6.052787315 | AL21: 5.852946831 | AM21: 2.907857873 | AN21: 4.276299271 | AO21: 5.703143779 | AP21: 6.683843563 | AQ21: 6.684739576 | AR21: 6.087815929 | AS21: 5.196415305 | AT21: 1.130035637 | AU21: 5.211731161 | AV21: 5.823388249 | AW21: 5.86199108 | AX21: 5.228818749 | AY21: FALSE | AZ21: FALSE | BA21: FALSE | BB21: FALSE | BC21: FALSE | BD21: FALSE | BE21: FALSE | BF21: FALSE | BG21: TRUE | BH21: FALSE | BI21: FALSE | BJ21: FALSE | BK21: FALSE | BL21: FALSE | BM21: FALSE | BN21: FALSE | BO21: 3 | BP21: 4 | BQ21: 6 | BR21: 8 | BS21: 15 | BT21: 14 | BU21: 10 | BV21: 2 | BW21: 1 | BX21: 5 | BY21: 13 | BZ21: 16 | CA21: 12 | CB21: 9 | CC21: 7 | CD21: 11 | CE21: FALSE | CF21: TRUE | CG21: FALSE | CH21: FALSE | CI21: TRUE | CJ21: FALSE | CK21: FALSE | CL21: TRUE | CM21: FALSE | CN21: TRUE | CO21: FALSE | CP21: FALSE | CQ21: TRUE | CR21: FALSE | CS21: FALSE | CT21: TRUE | CU21: FALSE | CV21: FALSE | CW21: FALSE | CX21: TRUE | CY21: FALSE | CZ21: TRUE | DA21: FALSE | DB21: FALSE | DC21: TRUE | DD21: FALSE | DE21: FALSE | DF21: TRUE | DG21: FALSE | DH21: FALSE | DI21: TRUE | DJ21: -0.02263004408 | DK21: -0.8604553138 | DL21: -0.02645878792 | DM21: -0.8227484958 | DN21: -0.03502861392 | DO21: -0.8589971805 | DP21: -0.002932730953 | DQ21: -0.9580697396 | DR21: 0.0008960128873 | DS21: -1.487428258 | DT21: -5.553807926 | DU21: 0.03860283093 | DV21: 0.6084262036 | DW21: -3.144929442 | DX21: 0.8053339566 | DY21: -1.57664756 | DZ21: 0.5960276338 | EA21: -0.876084768 | EB21: 0.5945695005 | ED21: 11 | EE21: 29 | EF21: 2 | EG21: 1459 | EH21: 167 | EI21: 0 | EJ21: 5 | EK21: 2339 | EL21: 0 | EM21: 0 | EN21: 48 | EO21: 1073 | EP21: 0 | EQ21: 2181 | ER21: 651 | ES21: 76 | ET21: 1970 | EV21: 10000
A22: 12 | B22: 94167.60157 | C22: 88948.85272 | D22: 101244.1106 | E22: 89474.16364 | F22: 179078.1386 | G22: 113204.3462 | H22: 102389.9139 | I22: 93632.20716 | J22: 89387.47359 | K22: 100711.3763 | L22: 118625.4067 | M22: 209395.6515 | N22: 95199.31043 | O22: 105615.9774 | P22: 101163.7464 | Q22: 111194.5406 | R22: 11.33554815 | S22: 11.43528837 | T22: 11.13319742 | U22: 11.47293141 | V22: 11.15647276 | W22: 11.38868735 | X22: 11.40307476 | Y22: 11.44297895 | Z22: 11.51472101 | AA22: 11.24602088 | AB22: 11.36922271 | AC22: 11.71291284 | AD22: 10.08395888 | AE22: 11.1981057 | AF22: 11.28144908 | AG22: 11.05498028 | AI22: 6.62716807 | AJ22: 6.987845732 | AK22: 6.070991886 | AL22: 6.999223227 | AM22: 2.202565831 | AN22: 5.728470041 | AO22: 6.283579065 | AP22: 6.76136859 | AQ22: 7.045347335 | AR22: 6.210452066 | AS22: 5.437952376 | AT22: 1.243130264 | AU22: 5.323993354 | AV22: 5.917306827 | AW22: 6.22326176 | AX22: 5.495253249 | AY22: FALSE | AZ22: FALSE | BA22: FALSE | BB22: FALSE | BC22: FALSE | BD22: FALSE | BE22: FALSE | BF22: FALSE | BG22: TRUE | BH22: FALSE | BI22: FALSE | BJ22: FALSE | BK22: FALSE | BL22: FALSE | BM22: FALSE | BN22: FALSE | BO22: 5 | BP22: 3 | BQ22: 9 | BR22: 2 | BS22: 15 | BT22: 11 | BU22: 6 | BV22: 4 | BW22: 1 | BX22: 8 | BY22: 13 | BZ22: 16 | CA22: 14 | CB22: 10 | CC22: 7 | CD22: 12 | CE22: FALSE | CF22: TRUE | CG22: FALSE | CH22: FALSE | CI22: TRUE | CJ22: FALSE | CK22: FALSE | CL22: TRUE | CM22: FALSE | CN22: FALSE | CO22: TRUE | CP22: FALSE | CQ22: FALSE | CR22: TRUE | CS22: FALSE | CT22: TRUE | CU22: FALSE | CV22: FALSE | CW22: FALSE | CX22: TRUE | CY22: FALSE | CZ22: TRUE | DA22: FALSE | DB22: TRUE | DC22: FALSE | DD22: FALSE | DE22: FALSE | DF22: TRUE | DG22: FALSE | DH22: FALSE | DI22: TRUE | DJ22: -0.1342005201 | DK22: -0.8440617629 | DL22: -0.05750160316 | DM22: -0.8220855742 | DN22: -0.1394601802 | DO22: -0.7151988175 | DP22: 0.3606776615 | DQ22: -0.3435890048 | DR22: 0.2839787445 | DS22: -1.323416214 | DT22: -5.518238326 | DU22: 0.3059549331 | DV22: 0.5561761842 | DW22: -3.868426055 | DX22: -0.01137749521 | DY22: -1.270753186 | DZ22: 0.5509165241 | EA22: -0.8864587124 | EB22: 0.4220535788 | ED22: 12 | EE22: 1 | EF22: 0 | EG22: 755 | EH22: 114 | EI22: 0 | EJ22: 21 | EK22: 2421 | EL22: 0 | EM22: 0 | EN22: 5 | EO22: 2877 | EP22: 0 | EQ22: 2189 | ER22: 172 | ES22: 11 | ET22: 1434 | EV22: 11000
A23: 13 | B23: 100751.0865 | C23: 94551.0561 | D23: 107625.5194 | E23: 98475.59781 | F23: 179346.4152 | G23: 131923.8546 | H23: 111624.2125 | I23: 99110.61546 | J23: 93415.04926 | K23: 104756.3468 | L23: 114528.1788 | M23: 212782.8484 | N23: 113465.5132 | O23: 105733.8221 | P23: 100337.9499 | Q23: 110106.0017 | R23: 11.35503624 | S23: 11.27671986 | T23: 11.04752189 | U23: 11.14553652 | V23: 11.51490124 | W23: 10.97234096 | X23: 11.2200496 | Y23: 11.45630748 | Z23: 11.3736277 | AA23: 11.17806713 | AB23: 11.34816486 | AC23: 11.71723417 | AD23: 11.44397554 | AE23: 11.31750106 | AF23: 11.21447226 | AG23: 11.05026607 | AI23: 6.317481918 | AJ23: 6.549167055 | AK23: 5.666245925 | AL23: 6.221756629 | AM23: 2.54758048 | AN23: 4.376148229 | AO23: 5.638838977 | AP23: 6.500776711 | AQ23: 6.702875242 | AR23: 5.940249792 | AS23: 5.62175592 | AT23: 1.078091746 | AU23: 5.770699884 | AV23: 6.030809956 | AW23: 6.197574764 | AX23: 5.544965981 | AY23: FALSE | AZ23: FALSE | BA23: FALSE | BB23: FALSE | BC23: FALSE | BD23: FALSE | BE23: FALSE | BF23: FALSE | BG23: TRUE | BH23: FALSE | BI23: FALSE | BJ23: FALSE | BK23: FALSE | BL23: FALSE | BM23: FALSE | BN23: FALSE | BO23: 4 | BP23: 2 | BQ23: 10 | BR23: 5 | BS23: 15 | BT23: 14 | BU23: 11 | BV23: 3 | BW23: 1 | BX23: 8 | BY23: 12 | BZ23: 16 | CA23: 9 | CB23: 7 | CC23: 6 | CD23: 13 | CE23: FALSE | CF23: TRUE | CG23: FALSE | CH23: FALSE | CI23: TRUE | CJ23: FALSE | CK23: FALSE | CL23: TRUE | CM23: FALSE | CN23: FALSE | CO23: TRUE | CP23: FALSE | CQ23: FALSE | CR23: TRUE | CS23: FALSE | CT23: TRUE | CU23: FALSE | CV23: FALSE | CW23: FALSE | CX23: TRUE | CY23: FALSE | CZ23: TRUE | DA23: FALSE | DB23: FALSE | DC23: TRUE | DD23: FALSE | DE23: FALSE | DF23: TRUE | DG23: FALSE | DH23: FALSE | DI23: TRUE | DJ23: -0.1832947932 | DK23: -0.4699667548 | DL23: -0.153708187 | DM23: -0.5053004774 | DN23: -0.2740038677 | DO23: -0.3952838117 | DP23: 0.2316851374 | DQ23: -0.6786429404 | DR23: 0.2020985311 | DS23: -0.8790207904 | DT23: -5.422684964 | DU23: 0.1667648084 | DV23: 0.651235993 | DW23: -3.118665445 | DX23: 0.3274104258 | DY23: -1.8456084 | DZ23: 0.5605269186 | EA23: -0.1695499084 | EB23: 0.4858439755 | ED23: 13 | EE23: 0 | EF23: 0 | EG23: 290 | EH23: 102 | EI23: 0 | EJ23: 238 | EK23: 1513 | EL23: 0 | EM23: 0 | EN23: 0 | EO23: 5229 | EP23: 0 | EQ23: 1539 | ER23: 22 | ES23: 0 | ET23: 1067 | EV23: 12000
A24: 14 | B24: 91492.09654 | C24: 88629.38061 | D24: 93596.9643 | E24: 85442.97323 | F24: 165729.0073 | G24: 116791.4146 | H24: 101012.9051 | I24: 86780.33201 | J24: 84603.19457 | K24: 88254.80847 | L24: 108211.912 | M24: 199709.3923 | N24: 106460.7748 | O24: 92148.07658 | P24: 89440.32247 | Q24: 92909.09587 | R24: 10.95740949 | S24: 10.91127104 | T24: 10.78539775 | U24: 11.12209018 | V24: 11.10246417 | W24: 10.56897813 | X24: 10.87729476 | Y24: 11.21129129 | Z24: 11.13461599 | AA24: 11.04930123 | AB24: 11.09769425 | AC24: 11.56826445 | AD24: 11.42253362 | AE24: 11.08470613 | AF24: 11.02574134 | AG24: 10.94758283 | AI24: 6.38280466 | AJ24: 6.479802006 | AK24: 6.105549531 | AL24: 6.849941521 | AM24: 2.816013804 | AN24: 4.729407395 | AO24: 5.826649507 | AP24: 6.872274688 | AQ24: 6.904456259 | AR24: 6.636560811 | AS24: 5.687098645 | AT24: 1.582794835 | AU24: 6.099494886 | AV24: 6.477302298 | AW24: 6.553725218 | AX24: 6.30212804 | AY24: FALSE | AZ24: FALSE | BA24: FALSE | BB24: FALSE | BC24: FALSE | BD24: FALSE | BE24: FALSE | BF24: FALSE | BG24: TRUE | BH24: FALSE | BI24: FALSE | BJ24: FALSE | BK24: FALSE | BL24: FALSE | BM24: FALSE | BN24: FALSE | BO24: 8 | BP24: 6 | BQ24: 10 | BR24: 3 | BS24: 15 | BT24: 14 | BU24: 12 | BV24: 2 | BW24: 1 | BX24: 4 | BY24: 13 | BZ24: 16 | CA24: 11 | CB24: 7 | CC24: 5 | CD24: 9 | CE24: FALSE | CF24: TRUE | CG24: FALSE | CH24: FALSE | CI24: TRUE | CJ24: FALSE | CK24: FALSE | CL24: TRUE | CM24: FALSE | CN24: FALSE | CO24: TRUE | CP24: FALSE | CQ24: FALSE | CR24: TRUE | CS24: FALSE | CT24: TRUE | CU24: FALSE | CV24: FALSE | CW24: FALSE | CX24: TRUE | CY24: FALSE | CZ24: TRUE | DA24: FALSE | DB24: TRUE | DC24: FALSE | DD24: FALSE | DE24: FALSE | DF24: TRUE | DG24: FALSE | DH24: FALSE | DI24: TRUE | DJ24: -0.4894700272 | DK24: -0.3949723901 | DL24: -0.4246542537 | DM24: -0.3507310412 | DN24: -0.53101128 | DO24: -0.3344327711 | DP24: 0.09699734528 | DQ24: -0.5561551536 | DR24: 0.03218157177 | DS24: -1.185176043 | DT24: -5.289479853 | DU24: 0.07642292072 | DV24: 0.2772551296 | DW24: -3.289535727 | DX24: -0.3701395157 | DY24: -2.120534127 | DZ24: 0.2357138767 | EA24: -0.537065925 | EB24: 0.1751742577 | ED24: 14 | EE24: 0 | EF24: 0 | EG24: 11 | EH24: 11 | EI24: 0 | EJ24: 9736 | EK24: 15 | EL24: 0 | EM24: 0 | EN24: 0 | EO24: 70 | EP24: 0 | EQ24: 112 | ER24: 0 | ES24: 0 | ET24: 45 | EV24: 13000
A25: 15 | B25: 101234.2364 | C25: 91279.15539 | D25: 103930.5263 | E25: 95053.62912 | F25: 177726.1452 | G25: 131888.6825 | H25: 104416.4739 | I25: 100708.8254 | J25: 91371.63388 | K25: 102814.9331 | L25: 114611.4241 | M25: 216412.9719 | N25: 116421.36 | O25: 107175.3023 | P25: 97917.35593 | Q25: 108657.221 | R25: 11.43492131 | S25: 11.30787461 | T25: 11.27779201 | U25: 11.37988495 | V25: 11.50083764 | W25: 11.01020829 | X25: 10.42268229 | Y25: 11.5316091 | Z25: 11.46706274 | AA25: 11.38931779 | AB25: 11.41280166 | AC25: 11.91301644 | AD25: 11.55675162 | AE25: 11.4197019 | AF25: 11.37674296 | AG25: 11.29681687 | AI25: 6.373209488 | AJ25: 6.743916838 | AK25: 6.081265691 | AL25: 6.627203493 | AM25: 2.614530379 | AN25: 4.41577417 | AO25: 5.201858593 | AP25: 6.496167834 | AQ25: 6.898481045 | AR25: 6.248571137 | AS25: 5.68223045 | AT25: 1.092367846 | AU25: 5.735683617 | AV25: 6.060936785 | AW25: 6.480875159 | AX25: 5.863955819 | AY25: FALSE | AZ25: FALSE | BA25: FALSE | BB25: FALSE | BC25: FALSE | BD25: FALSE | BE25: FALSE | BF25: FALSE | BG25: TRUE | BH25: FALSE | BI25: FALSE | BJ25: FALSE | BK25: FALSE | BL25: FALSE | BM25: FALSE | BN25: FALSE | BO25: 6 | BP25: 2 | BQ25: 8 | BR25: 3 | BS25: 15 | BT25: 14 | BU25: 13 | BV25: 4 | BW25: 1 | BX25: 7 | BY25: 12 | BZ25: 16 | CA25: 11 | CB25: 9 | CC25: 5 | CD25: 10 | CE25: FALSE | CF25: TRUE | CG25: FALSE | CH25: FALSE | CI25: TRUE | CJ25: FALSE | CK25: FALSE | CL25: TRUE | CM25: FALSE | CN25: FALSE | CO25: TRUE | CP25: FALSE | CQ25: FALSE | CR25: TRUE | CS25: FALSE | CT25: TRUE | CU25: FALSE | CV25: FALSE | CW25: FALSE | CX25: TRUE | CY25: FALSE | CZ25: TRUE | DA25: FALSE | DB25: FALSE | DC25: TRUE | DD25: FALSE | DE25: FALSE | DF25: TRUE | DG25: FALSE | DH25: FALSE | DI25: TRUE | DJ25: -0.1229583457 | DK25: -0.4352310495 | DL25: -0.1545642078 | DM25: -0.4176058861 | DN25: -0.1673054457 | DO25: -0.3846153177 | DP25: 0.3707073491 | DQ25: -1.171350895 | DR25: 0.4023132112 | DS25: -0.8139373846 | DT25: -5.403799988 | DU25: 0.4199383746 | DV25: 0.291943797 | DW25: -3.466735313 | DX25: 0.1167133445 | DY25: -2.211429323 | DZ25: 0.2475966971 | EA25: -0.5128875206 | EB25: 0.1969809653 | ED25: 15 | EE25: 0 | EF25: 0 | EG25: 0 | EH25: 0 | EI25: 9982 | EJ25: 0 | EK25: 0 | EL25: 0 | EM25: 0 | EN25: 0 | EO25: 0 | EP25: 18 | EQ25: 0 | ER25: 0 | ES25: 0 | ET25: 0 | EV25: 14000
A26: 16 | B26: 92477.62519 | C26: 87688.30285 | D26: 95835.06255 | E26: 90729.05524 | F26: 175571.4825 | G26: 121328.802 | H26: 100456.9252 | I26: 90864.52459 | J26: 85714.96814 | K26: 93422.3601 | L26: 110536.9927 | M26: 203388.8594 | N26: 112802.6377 | O26: 98059.49222 | P26: 93355.38679 | Q26: 100534.7341 | R26: 10.61914158 | S26: 10.59960057 | T26: 10.51372177 | U26: 10.62260524 | V26: 10.73234645 | W26: 10.34975494 | X26: 10.55275428 | Y26: 10.69716808 | Z26: 10.67827536 | AA26: 10.60560931 | AB26: 10.66553435 | AC26: 10.90971115 | AD26: 10.76700927 | AE26: 10.58290609 | AF26: 10.54934231 | AG26: 10.49586524 | AI26: 5.995260322 | AJ26: 6.215185427 | AK26: 5.721968639 | AL26: 6.086152482 | AM26: 1.953772321 | AN26: 4.283314838 | AO26: 5.52990802 | AP26: 6.153941853 | AQ26: 6.392526949 | AR26: 5.934491304 | AS26: 5.138684712 | AT26: 0.7402681825 | AU26: 5.126877383 | AV26: 5.679931474 | AW26: 5.881572967 | AX26: 5.469128531 | AY26: FALSE | AZ26: FALSE | BA26: FALSE | BB26: FALSE | BC26: FALSE | BD26: FALSE | BE26: FALSE | BF26: FALSE | BG26: TRUE | BH26: FALSE | BI26: FALSE | BJ26: FALSE | BK26: FALSE | BL26: FALSE | BM26: FALSE | BN26: FALSE | BO26: 5 | BP26: 2 | BQ26: 8 | BR26: 4 | BS26: 15 | BT26: 14 | BU26: 10 | BV26: 3 | BW26: 1 | BX26: 6 | BY26: 12 | BZ26: 16 | CA26: 13 | CB26: 9 | CC26: 7 | CD26: 11 | CE26: FALSE | CF26: TRUE | CG26: FALSE | CH26: FALSE | CI26: TRUE | CJ26: FALSE | CK26: FALSE | CL26: TRUE | CM26: FALSE | CN26: FALSE | CO26: TRUE | CP26: FALSE | CQ26: FALSE | CR26: TRUE | CS26: FALSE | CT26: TRUE | CU26: FALSE | CV26: FALSE | CW26: FALSE | CX26: TRUE | CY26: FALSE | CZ26: TRUE | DA26: FALSE | DB26: FALSE | DC26: TRUE | DD26: FALSE | DE26: FALSE | DF26: TRUE | DG26: FALSE | DH26: FALSE | DI26: TRUE | DJ26: -0.1586815306 | DK26: -0.4740103789 | DL26: -0.1773415228 | DM26: -0.5109539821 | DN26: -0.2125226647 | DO26: -0.4653627727 | DP26: 0.2199251044 | DQ26: -0.4653523021 | DR26: 0.2385850966 | DS26: -1.015257141 | DT26: -5.41367367 | DU26: 0.2016414933 | DV26: 0.2732916834 | DW26: -3.768196318 | DX26: 0.1290329446 | DY26: -1.802837644 | DZ26: 0.2194505492 | EA26: -0.8076139208 | EB26: 0.210802943 | ED26: 16 | EE26: 0 | EF26: 0 | EG26: 0 | EH26: 0 | EI26: 18 | EJ26: 0 | EK26: 0 | EL26: 0 | EM26: 0 | EN26: 0 | EO26: 0 | EP26: 9982 | EQ26: 0 | ER26: 0 | ES26: 0 | ET26: 0 | EV26: 15000
A27: 17 | B27: 96820.96735 | C27: 90942.79162 | D27: 97786.98405 | E27: 82221.40378 | F27: 179229.6597 | G27: 126606.7904 | H27: 104668.5851 | I27: 97516.61981 | J27: 91744.33996 | K27: 97682.39648 | L27: 116108.6197 | M27: 212217.481 | N27: 113959.3479 | O27: 103872.0535 | P27: 97341.94228 | Q27: 103420.303 | R27: 10.8954213 | S27: 10.87766666 | T27: 10.86431589 | U27: 11.0003705 | V27: 10.91454431 | W27: 10.74480312 | X27: 10.83768556 | Y27: 10.90679406 | Z27: 10.87447828 | AA27: 10.8864016 | AB27: 10.81550342 | AC27: 11.02610875 | AD27: 11.03734839 | AE27: 10.77972213 | AF27: 10.72098606 | AG27: 10.76506033 | AI27: 6.054372931 | AJ27: 6.330527078 | AK27: 5.974966685 | AL27: 6.889300315 | AM27: 1.953061327 | AN27: 4.414463596 | AO27: 5.604256304 | AP27: 6.03096307 | AQ27: 6.287261287 | AR27: 6.002281776 | AS27: 5.010072438 | AT27: 0.4152346977 | AU27: 5.339380996 | AV27: 5.586119451 | AW27: 5.853888943 | AX27: 5.594045181 | AY27: FALSE | AZ27: FALSE | BA27: FALSE | BB27: TRUE | BC27: FALSE | BD27: FALSE | BE27: FALSE | BF27: FALSE | BG27: FALSE | BH27: FALSE | BI27: FALSE | BJ27: FALSE | BK27: FALSE | BL27: FALSE | BM27: FALSE | BN27: FALSE | BO27: 4 | BP27: =_xlfn.RANK.AVG(AJ27,$AI27:$AX27) -> 2 | BQ27: =_xlfn.RANK.AVG(AK27,$AI27:$AX27) -> 7 | BR27: =_xlfn.RANK.AVG(AL27,$AI27:$AX27) -> 1 | BS27: =_xlfn.RANK.AVG(AM27,$AI27:$AX27) -> 15 | BT27: =_xlfn.RANK.AVG(AN27,$AI27:$AX27) -> 14 | BU27: =_xlfn.RANK.AVG(AO27,$AI27:$AX27) -> 9 | BV27: =_xlfn.RANK.AVG(AP27,$AI27:$AX27) -> 5 | BW27: =_xlfn.RANK.AVG(AQ27,$AI27:$AX27) -> 3 | BX27: =_xlfn.RANK.AVG(AR27,$AI27:$AX27) -> 6 | BY27: =_xlfn.RANK.AVG(AS27,$AI27:$AX27) -> 13 | BZ27: =_xlfn.RANK.AVG(AT27,$AI27:$AX27) -> 16 | CA27: =_xlfn.RANK.AVG(AU27,$AI27:$AX27) -> 12 | CB27: =_xlfn.RANK.AVG(AV27,$AI27:$AX27) -> 11 | CC27: =_xlfn.RANK.AVG(AW27,$AI27:$AX27) -> 8 | CD27: =_xlfn.RANK.AVG(AX27,$AI27:$AX27) -> 10 | CE27: TRUE | CF27: FALSE | CG27: FALSE | CH27: TRUE | CI27: FALSE | CJ27: FALSE | CK27: FALSE | CL27: TRUE | CM27: FALSE | CN27: FALSE | CO27: TRUE | CP27: FALSE | CQ27: FALSE | CR27: TRUE | CS27: FALSE | CT27: TRUE | CU27: FALSE | CV27: FALSE | CW27: FALSE | CX27: TRUE | CY27: FALSE | CZ27: TRUE | DA27: FALSE | DB27: TRUE | DC27: FALSE | DD27: FALSE | DE27: FALSE | DF27: TRUE | DG27: FALSE | DH27: TRUE | DI27: FALSE | DJ27: 0.02340986072 | DK27: -0.4448436191 | DL27: 0.04326579146 | DM27: -0.433372344 | DN27: -0.02731509034 | DO27: -0.4082365947 | DP27: 0.2761541477 | DQ27: -0.4501166262 | DR27: 0.256298217 | DS27: -1.020890632 | DT27: -5.615728372 | DU27: 0.2677694921 | DV27: 0.07940624514 | DW27: -4.021905359 | DX27: -0.558773237 | DY27: -2.474836719 | DZ27: 0.02868129409 | EA27: -0.6629007801 | EB27: -0.007925730306 | EE27: =SUMPRODUCT($ED$11:$ED$26,EE11:EE26)/SUM(EE11:EE26) -> 5.8223 | EF27: =SUMPRODUCT($ED$11:$ED$26,EF11:EF26)/SUM(EF11:EF26) -> 3.3561 | EG27: 9.2435 | EH27: 4.7504 | EI27: 15.0018 | EJ27: 13.9705 | EK27: 10.6511 | EL27: 3.2847 | EM27: 1.4687 | EN27: 6.122 | EO27: 12.237 | EP27: 15.9982 | EQ27: 10.5342 | ER27: 7.8614 | ES27: 5.5293 | ET27: 10.1688 | EV27: 16000
A28: 18 | B28: 98666.87469 | C28: 94570.34611 | D28: 102670.7315 | E28: 93631.19494 | F28: 180926.0172 | G28: 128886.4728 | H28: 107257.6873 | I28: 97314.235 | J28: 93010.27371 | K28: 99611.05223 | L28: 115853.3528 | M28: 207802.0485 | N28: 108840.6464 | O28: 102543.3284 | P28: 97606.95794 | Q28: 103605.6855 | R28: 8.587202142 | S28: 8.532150705 | T28: 8.489398401 | U28: 8.515130885 | V28: 8.604999357 | W28: 8.41304578 | X28: 8.46545642 | Y28: 8.608392607 | Z28: 8.531214816 | AA28: 8.511928548 | AB28: 8.506006376 | AC28: 8.776095819 | AD28: 8.700356402 | AE28: 8.61699673 | AF28: 8.585314262 | AG28: 8.559081328 | AI28: 3.653858407 | AJ28: 3.803633399 | AK28: 3.355861824 | AL28: 3.833571138 | AM28: -0.441301502 | AN28: 1.968722141 | AO28: 3.102572055 | AP28: 3.742680856 | AQ28: 3.880701131 | AR28: 3.531375937 | AS28: 2.713338734 | AT28: -1.614006606 | AU28: 3.258324083 | AV28: 3.489830308 | AW28: 3.704966365 | AX28: 3.378797054 | AY28: FALSE | AZ28: FALSE | BA28: FALSE | BB28: FALSE | BC28: FALSE | BD28: FALSE | BE28: FALSE | BF28: FALSE | BG28: TRUE | BH28: FALSE | BI28: FALSE | BJ28: FALSE | BK28: FALSE | BL28: FALSE | BM28: FALSE | BN28: FALSE | BO28: 6 | BP28: 3 | BQ28: 10 | BR28: 2 | BS28: 15 | BT28: 14 | BU28: 12 | BV28: 4 | BW28: 1 | BX28: 7 | BY28: 13 | BZ28: 16 | CA28: 11 | CB28: 8 | CC28: 5 | CD28: 9 | CE28: FALSE | CF28: TRUE | CG28: FALSE | CH28: FALSE | CI28: TRUE | CJ28: FALSE | CK28: FALSE | CL28: TRUE | CM28: FALSE | CN28: FALSE | CO28: TRUE | CP28: FALSE | CQ28: FALSE | CR28: TRUE | CS28: FALSE | CT28: TRUE | CU28: FALSE | CV28: FALSE | CW28: FALSE | CX28: TRUE | CY28: FALSE | CZ28: TRUE | DA28: FALSE | DB28: TRUE | DC28: FALSE | DD28: FALSE | DE28: FALSE | DF28: TRUE | DG28: FALSE | DH28: FALSE | DI28: TRUE | DJ28: -0.08882244901 | DK28: -0.2528505485 | DL28: -0.07706773115 | DM28: -0.1757347652 | DN28: -0.1755141131 | DO28: -0.1525788835 | DP28: 0.1497749919 | DQ28: -0.5512863521 | DR28: 0.1380202741 | DS28: -1.029342123 | DT28: -5.356687462 | DU28: 0.2151360574 | DV28: 0.2979965835 | DW28: -3.797163326 | DX28: -0.02993773835 | DY28: -1.864848997 | DZ28: 0.2113049194 | EA28: -0.2730518539 | EB28: 0.1110332543 | EV28: 17000
A29: 19 | B29: 95206.46277 | C29: 93122.90695 | D29: 103218.596 | E29: 96140.47075 | F29: 169072.962 | G29: 131589.7641 | H29: 105685.992 | I29: 92013.15221 | J29: 90513.23588 | K29: 98399.86329 | L29: 109101.8361 | M29: 210366.2341 | N29: 105906.2422 | O29: 100108.1246 | P29: 98976.59741 | Q29: 105838.9245 | R29: 10.83535645 | S29: 10.64691104 | T29: 10.6834843 | U29: 10.50774169 | V29: 10.85392064 | W29: 10.28349014 | X29: 10.58508106 | Y29: 10.98655075 | Z29: 10.81022425 | AA29: 10.86066845 | AB29: 10.93027939 | AC29: 11.21028843 | AD29: 11.0894823 | AE29: 10.8961231 | AF29: 10.74566471 | AG29: 10.78386716 | AI29: 6.075033308 | AJ29: 5.990765696 | AK29: 5.522554505 | AL29: 5.700718156 | AM29: 2.400272544 | AN29: 3.704001939 | AO29: 5.300781458 | AP29: 6.385893138 | AQ29: 6.284562451 | AR29: 5.940675283 | AS29: 5.475187586 | AT29: 0.6919767317 | AU29: 5.794170194 | AV29: 5.890716867 | AW29: 5.79683484 | AX29: 5.491920933 | AY29: FALSE | AZ29: FALSE | BA29: FALSE | BB29: FALSE | BC29: FALSE | BD29: FALSE | BE29: FALSE | BF29: TRUE | BG29: FALSE | BH29: FALSE | BI29: FALSE | BJ29: FALSE | BK29: FALSE | BL29: FALSE | BM29: FALSE | BN29: FALSE | BO29: 3 | BP29: 4 | BQ29: 10 | BR29: 9 | BS29: 15 | BT29: 14 | BU29: 13 | BV29: 1 | BW29: 2 | BX29: 5 | BY29: 12 | BZ29: 16 | CA29: 8 | CB29: 6 | CC29: 7 | CD29: 11 | CE29: FALSE | CF29: TRUE | CG29: FALSE | CH29: FALSE | CI29: TRUE | CJ29: FALSE | CK29: FALSE | CL29: TRUE | CM29: FALSE | CN29: TRUE | CO29: FALSE | CP29: FALSE | CQ29: FALSE | CR29: TRUE | CS29: TRUE | CT29: FALSE | CU29: FALSE | CV29: FALSE | CW29: TRUE | CX29: FALSE | CY29: FALSE | CZ29: TRUE | DA29: FALSE | DB29: FALSE | DC29: TRUE | DD29: FALSE | DE29: FALSE | DF29: TRUE | DG29: FALSE | DH29: FALSE | DI29: TRUE | DJ29: -0.3108598304 | DK29: -0.4951762712 | DL29: -0.2937967548 | DM29: -0.4877276113 | DN29: -0.4181207785 | DO29: -0.44875435 | DP29: -0.08426761173 | DQ29: -0.7742518495 | DR29: -0.1013306873 | DS29: -0.9107055528 | DT29: -5.693916407 | DU29: -0.09388202748 | DV29: 0.5524788034 | DW29: -3.122281961 | DX29: 0.29004754 | DY29: -1.996716217 | DZ29: 0.4452178553 | EA29: -0.1465050892 | EB29: 0.3987959341 | EV29: 18000
A30: 20 | B30: 101779.8047 | C30: 92685.68667 | D30: 110910.3499 | E30: 108071.9529 | F30: 177862.852 | G30: 124624.6126 | H30: 106387.8803 | I30: 98814.95507 | J30: 89959.4976 | K30: 106898.6097 | L30: 110481.5419 | M30: 202693.0054 | N30: 112669.8325 | O30: 103316.397 | P30: 94102.39082 | Q30: 111223.3514 | R30: 11.59585631 | S30: 11.6633441 | T30: 11.39836546 | U30: 11.43906306 | V30: 11.65824606 | W30: 11.37306906 | X30: 11.43603522 | Y30: 11.6712875 | Z30: 11.71300038 | AA30: 11.49260574 | AB30: 11.52030523 | AC30: 11.9008085 | AD30: 11.834594 | AE30: 11.54732755 | AF30: 11.53545808 | AG30: 11.41090173 | AI30: 6.506866077 | AJ30: 7.029059767 | AK30: 5.852847965 | AL30: 6.03546541 | AM30: 2.765103464 | AN30: 5.141838427 | AO30: 6.116641201 | AP30: 6.730539743 | AQ30: 7.215025504 | AR30: 6.147675251 | AS30: 5.996228139 | AT30: 1.766158234 | AU30: 6.201102376 | AV30: 6.381507701 | AW30: 6.830338538 | AX30: 5.849734158 | AY30: FALSE | AZ30: FALSE | BA30: FALSE | BB30: FALSE | BC30: FALSE | BD30: FALSE | BE30: FALSE | BF30: FALSE | BG30: TRUE | BH30: FALSE | BI30: FALSE | BJ30: FALSE | BK30: FALSE | BL30: FALSE | BM30: FALSE | BN30: FALSE | BO30: 5 | BP30: 2 | BQ30: 12 | BR30: 10 | BS30: 15 | BT30: 14 | BU30: 9 | BV30: 4 | BW30: 1 | BX30: 8 | BY30: 11 | BZ30: 16 | CA30: 7 | CB30: 6 | CC30: 3 | CD30: 13 | CE30: FALSE | CF30: TRUE | CG30: FALSE | CH30: FALSE | CI30: TRUE | CJ30: FALSE | CK30: FALSE | CL30: TRUE | CM30: FALSE | CN30: FALSE | CO30: TRUE | CP30: FALSE | CQ30: FALSE | CR30: TRUE | CS30: FALSE | CT30: TRUE | CU30: FALSE | CV30: FALSE | CW30: FALSE | CX30: TRUE | CY30: FALSE | CZ30: TRUE | DA30: FALSE | DB30: FALSE | DC30: TRUE | DD30: FALSE | DE30: FALSE | DF30: TRUE | DG30: FALSE | DH30: FALSE | DI30: TRUE | DJ30: -0.2236736657 | DK30: -0.349032042 | DL30: -0.1859657369 | DM30: -0.3846869657 | DN30: -0.2948272863 | DO30: -0.2979410933 | DP30: 0.5221936894 | DQ30: -0.3902248768 | DR30: 0.4844857606 | DS30: -0.7343116037 | DT30: -4.964381509 | DU30: 0.4488308369 | DV30: 0.6540181124 | DW30: -3.087744501 | DX30: 0.9935943571 | DY30: -0.8936269821 | DZ30: 0.5828644917 | EA30: 0.0534271249 | EB30: 0.5317735431 | EV30: 19000
A31: 21 | B31: 97070.73444 | C31: 93856.92549 | D31: 100131.6924 | E31: 99355.5513 | F31: 170413.0129 | G31: 139951.9747 | H31: 107348.448 | I31: 96806.22567 | J31: 93626.62601 | K31: 98786.05599 | L31: 117693.3962 | M31: 214181.2943 | N31: 98808.35804 | O31: 103384.1645 | P31: 100216.5866 | Q31: 105085.8109 | R31: 11.64906826 | S31: 11.48446096 | T31: 11.49190399 | U31: 11.42105209 | V31: 11.50977966 | W31: 10.52777881 | X31: 11.31076832 | Y31: 11.72564233 | Z31: 11.57398644 | AA31: 11.58950019 | AB31: 11.34853266 | AC31: 12.06077322 | AD31: 10.1102174 | AE31: 11.61092875 | AF31: 11.47279713 | AG31: 11.48534833 | AI31: 6.795531543 | AJ31: 6.791614685 | AK31: 6.48531937 | AL31: 6.453274527 | AM31: 2.989129018 | AN31: 3.53018008 | AO31: 5.943345921 | AP31: 6.885331043 | AQ31: 6.892655135 | AR31: 6.650197392 | AS31: 5.463862849 | AT31: 1.351708502 | AU31: 5.169799497 | AV31: 6.441720528 | AW31: 6.461967806 | AX31: 6.23105779 | AY31: FALSE | AZ31: FALSE | BA31: FALSE | BB31: FALSE | BC31: FALSE | BD31: FALSE | BE31: FALSE | BF31: FALSE | BG31: TRUE | BH31: FALSE | BI31: FALSE | BJ31: FALSE | BK31: FALSE | BL31: FALSE | BM31: FALSE | BN31: FALSE | BO31: 3 | BP31: 4 | BQ31: 6 | BR31: 8 | BS31: 15 | BT31: 14 | BU31: 11 | BV31: 2 | BW31: 1 | BX31: 5 | BY31: 12 | BZ31: 16 | CA31: 13 | CB31: 9 | CC31: 7 | CD31: 10 | CE31: FALSE | CF31: TRUE | CG31: FALSE | CH31: FALSE | CI31: TRUE | CJ31: FALSE | CK31: FALSE | CL31: TRUE | CM31: FALSE | CN31: TRUE | CO31: FALSE | CP31: FALSE | CQ31: TRUE | CR31: FALSE | CS31: FALSE | CT31: TRUE | CU31: FALSE | CV31: FALSE | CW31: FALSE | CX31: TRUE | CY31: FALSE | CZ31: TRUE | DA31: FALSE | DB31: FALSE | DC31: TRUE | DD31: FALSE | DE31: FALSE | DF31: TRUE | DG31: FALSE | DH31: FALSE | DI31: TRUE | DJ31: -0.08979949974 | DK31: -0.4436105147 | DL31: -0.1010404508 | DM31: -0.4306873292 | DN31: -0.1648780217 | DO31: -0.419139602 | DP31: -0.00391685823 | DQ31: -0.8521856218 | DR31: 0.007324092861 | DS31: -1.421468194 | DT31: -5.533622541 | DU31: 0.02024727841 | DV31: 0.3102121728 | DW31: -3.496190352 | DX31: 0.3383401572 | DY31: -2.923094447 | DZ31: 0.2351336508 | EA31: -1.480397894 | EB31: 0.2106627381 | EV31: 20000
A32: 22 | B32: 99941.6661 | C32: 91968.46615 | D32: 97150.44549 | E32: 95169.67194 | F32: 192185.8812 | G32: 122910.8982 | H32: 100130.0937 | I32: 99507.27129 | J32: 92365.59728 | K32: 96064.13347 | L32: 120520.3609 | M32: 208118.6968 | N32: 119671.9708 | O32: 105334.971 | P32: 98602.78491 | Q32: 101479.9372 | R32: 11.06858003 | S32: 10.96819491 | T32: 11.09847376 | U32: 11.10858733 | V32: 11.05098312 | W32: 10.89220714 | X32: 10.7436359 | Y32: 11.17526654 | Z32: 11.12366864 | AA32: 11.2138621 | AB32: 11.0000815 | AC32: 11.45015281 | AD32: 11.1285931 | AE32: 11.08846355 | AF32: 11.04880966 | AG32: 11.13537767 | AI32: 6.071496727 | AJ32: 6.369771599 | AK32: 6.24095149 | AL32: 6.350103736 | AM32: 1.441689064 | AN32: 4.74666223 | AO32: 5.737131208 | AP32: 6.199902971 | AQ32: 6.505388773 | AR32: 6.410655425 | AS32: 4.97406346 | AT32: 1.044217974 | AU32: 5.144994558 | AV32: 5.821715001 | AW32: 6.118670416 | AX32: 6.061380807 | AY32: FALSE | AZ32: FALSE | BA32: FALSE | BB32: FALSE | BC32: FALSE | BD32: FALSE | BE32: FALSE | BF32: FALSE | BG32: TRUE | BH32: FALSE | BI32: FALSE | BJ32: FALSE | BK32: FALSE | BL32: FALSE | BM32: FALSE | BN32: FALSE | BO32: 8 | BP32: 3 | BQ32: 5 | BR32: 4 | BS32: 15 | BT32: 14 | BU32: 11 | BV32: 6 | BW32: 1 | BX32: 2 | BY32: 13 | BZ32: 16 | CA32: 12 | CB32: 10 | CC32: 7 | CD32: 9 | CE32: FALSE | CF32: TRUE | CG32: FALSE | CH32: FALSE | CI32: TRUE | CJ32: FALSE | CK32: FALSE | CL32: TRUE | CM32: FALSE | CN32: FALSE | CO32: TRUE | CP32: FALSE | CQ32: FALSE | CR32: TRUE | CS32: FALSE | CT32: TRUE | CU32: FALSE | CV32: FALSE | CW32: FALSE | CX32: TRUE | CY32: TRUE | CZ32: FALSE | DA32: FALSE | DB32: FALSE | DC32: TRUE | DD32: FALSE | DE32: TRUE | DF32: FALSE | DG32: FALSE | DH32: TRUE | DI32: FALSE | DJ32: -0.1284062446 | DK32: -0.3781879703 | DL32: -0.1356171742 | DM32: -0.386718357 | DN32: -0.1697039352 | DO32: -0.3492746183 | DP32: 0.298274872 | DQ32: -0.3343655191 | DR32: 0.3054858016 | DS32: -1.225839511 | DT32: -5.155684997 | DU32: 0.2969554149 | DV32: -0.1694547633 | DW32: -4.799262426 | DX32: 0.01966786325 | DY32: -1.603441505 | DZ32: -0.2107524539 | EA32: -1.265660867 | EB32: -0.2396658058 | EV32: 21000
A33: 23 | B33: 97481.68716 | C33: 93906.23842 | D33: 107022.1857 | E33: 91952.90533 | F33: 173001.0135 | G33: 127741.5021 | H33: 106094.4757 | I33: 96030.36436 | J33: 93230.88521 | K33: 104835.652 | L33: 118831.838 | M33: 210869.5954 | N33: 114963.7686 | O33: 100485.2664 | P33: 97849.38577 | Q33: 107780.0192 | R33: 11.51876748 | S33: 11.42281223 | T33: 11.26725834 | U33: 11.56105777 | V33: 11.54524354 | W33: 11.12480625 | X33: 10.68538844 | Y33: 11.63354297 | Z33: 11.54373242 | AA33: 11.39841736 | AB33: 11.55390173 | AC33: 11.71380119 | AD33: 11.60880907 | AE33: 11.60983266 | AF33: 11.5909649 | AG33: 11.41253314 | AI33: 6.64468312 | AJ33: 6.727500307 | AK33: 5.91614905 | AL33: 6.963412499 | AM33: 2.895192868 | AN33: 4.737731139 | AO33: 5.380664653 | AP33: 6.832024751 | AQ33: 6.882188157 | AR33: 6.156634758 | AS33: 5.612309823 | AT33: 1.17032142 | AU33: 5.86062064 | AV33: 6.585569342 | AW33: 6.698495608 | AX33: 6.023532183 | AY33: FALSE | AZ33: FALSE | BA33: FALSE | BB33: TRUE | BC33: FALSE | BD33: FALSE | BE33: FALSE | BF33: FALSE | BG33: FALSE | BH33: FALSE | BI33: FALSE | BJ33: FALSE | BK33: FALSE | BL33: FALSE | BM33: FALSE | BN33: FALSE | BO33: 6 | BP33: 4 | BQ33: 10 | BR33: 1 | BS33: 15 | BT33: 14 | BU33: 13 | BV33: 3 | BW33: 2 | BX33: 8 | BY33: 12 | BZ33: 16 | CA33: 11 | CB33: 7 | CC33: 5 | CD33: 9 | CE33: FALSE | CF33: TRUE | CG33: FALSE | CH33: FALSE | CI33: TRUE | CJ33: FALSE | CK33: FALSE | CL33: TRUE | CM33: FALSE | CN33: FALSE | CO33: TRUE | CP33: FALSE | CQ33: FALSE | CR33: TRUE | CS33: FALSE | CT33: TRUE | CU33: FALSE | CV33: FALSE | CW33: FALSE | CX33: TRUE | CY33: FALSE | CZ33: TRUE | DA33: FALSE | DB33: TRUE | DC33: FALSE | DD33: FALSE | DE33: FALSE | DF33: TRUE | DG33: FALSE | DH33: FALSE | DI33: TRUE | DJ33: -0.1873416304 | DK33: -0.2464554084 | DL33: -0.1546878502 | DM33: -0.1836925495 | DN33: -0.2404857079 | DO33: -0.1331025746 | DP33: 0.08281718666 | DQ33: -1.264018467 | DR33: 0.05016340646 | DS33: -1.219714928 | DT33: -5.661703331 | DU33: 0.1129262654 | DV33: 0.7285340705 | DW33: -3.020956182 | DX33: -0.235912192 | DY33: -2.22568136 | DZ33: 0.675389993 | EA33: -0.2960141176 | EB33: 0.5620371592 | EV33: 22000
A34: 24 | B34: 97048.72597 | C34: 93243.98739 | D34: 105701.9559 | E34: 97763.14514 | F34: 172966.9108 | G34: 125662.6756 | H34: 106698.8815 | I34: 94062.44084 | J34: 90436.17907 | K34: 101631.6885 | L34: 112987.5317 | M34: 205241.2922 | N34: 109274.131 | O34: 101793.8205 | P34: 97997.23824 | Q34: 108211.9073 | R34: 10.76795547 | S34: 10.70013138 | T34: 10.51395752 | U34: 10.66415252 | V34: 10.91466851 | W34: 10.3648871 | X34: 10.62102537 | Y34: 10.84987302 | Z34: 10.74984514 | AA34: 10.608654 | AB34: 10.70766332 | AC34: 11.21099458 | AD34: 11.0027465 | AE34: 10.74911002 | AF34: 10.67164075 | AG34: 10.54265734 | AI34: 5.915519173 | AJ34: 6.03793201 | AK34: 5.228859726 | AL34: 5.77599526 | AM34: 2.266322973 | AN34: 4.081753318 | AO34: 5.286081299 | AP34: 6.146750979 | AQ34: 6.228036188 | AR34: 5.527069572 | AS34: 5.058286733 | AT34: 0.948929973 | AU34: 5.539039953 | AV34: 5.659419001 | AW34: 5.771778838 | AX34: 5.132061969 | AY34: FALSE | AZ34: FALSE | BA34: FALSE | BB34: FALSE | BC34: FALSE | BD34: FALSE | BE34: FALSE | BF34: FALSE | BG34: TRUE | BH34: FALSE | BI34: FALSE | BJ34: FALSE | BK34: FALSE | BL34: FALSE | BM34: FALSE | BN34: FALSE | BO34: 4 | BP34: 3 | BQ34: 11 | BR34: 5 | BS34: 15 | BT34: 14 | BU34: 10 | BV34: 2 | BW34: 1 | BX34: 9 | BY34: 13 | BZ34: 16 | CA34: 8 | CB34: 7 | CC34: 6 | CD34: 12 | CE34: FALSE | CF34: TRUE | CG34: FALSE | CH34: FALSE | CI34: TRUE | CJ34: FALSE | CK34: FALSE | CL34: TRUE | CM34: FALSE | CN34: FALSE | CO34: TRUE | CP34: FALSE | CQ34: FALSE | CR34: TRUE | CS34: FALSE | CT34: TRUE | CU34: FALSE | CV34: FALSE | CW34: FALSE | CX34: TRUE | CY34: FALSE | CZ34: TRUE | DA34: FALSE | DB34: FALSE | DC34: TRUE | DD34: FALSE | DE34: FALSE | DF34: TRUE | DG34: FALSE | DH34: FALSE | DI34: TRUE | DJ34: -0.2312318066 | DK34: -0.4873319786 | DL34: -0.1901041781 | DM34: -0.4562573501 | DN34: -0.2982098454 | DO34: -0.3950076025 | DP34: 0.1224128375 | DQ34: -0.629437874 | DR34: 0.08128520904 | DS34: -1.088464246 | DT34: -5.197821006 | DU34: 0.1123598375 | DV34: 0.6866594463 | DW34: -2.962536753 | DX34: 0.2619367499 | DY34: -1.694241942 | DZ34: 0.6196814074 | EA34: 0.01197038108 | EB34: 0.5273570314 | EV34: 23000
A35: 25 | B35: 98325.26923 | C35: 93469.08321 | D35: 96394.81969 | E35: 93176.82362 | F35: 182892.4156 | G35: 124623.0674 | H35: 113530.0653 | I35: 98117.60447 | J35: 93269.85946 | K35: 95469.58029 | L35: 118343.811 | M35: 213522.5423 | N35: 114161.2735 | O35: 106835.3968 | P35: 101440.9248 | Q35: 105456.1148 | R35: 11.15664103 | S35: 11.16040927 | T35: 11.0498117 | U35: 10.88930111 | V35: 11.26189526 | W35: 10.94433414 | X35: 10.80667521 | Y35: 11.21224949 | Z35: 11.21492937 | AA35: 11.11989841 | AB35: 11.02393525 | AC35: 11.629045 | AD35: 11.4454862 | AE35: 11.13000433 | AF35: 11.15846136 | AG35: 11.06554705 | AI35: 6.24037757 | AJ35: 6.48695511 | AK35: 6.230070716 | AL35: 6.230459933 | AM35: 2.117274477 | AN35: 4.713180772 | AO35: 5.130171944 | AP35: 6.306369263 | AQ35: 6.551436399 | AR35: 6.346419398 | AS35: 5.106744703 | AT35: 0.9529178826 | AU35: 5.737422526 | AV35: 5.788234493 | AW35: 6.086415122 | AX35: 5.792741305 | AY35: FALSE | AZ35: FALSE | BA35: FALSE | BB35: FALSE | BC35: FALSE | BD35: FALSE | BE35: FALSE | BF35: FALSE | BG35: TRUE | BH35: FALSE | BI35: FALSE | BJ35: FALSE | BK35: FALSE | BL35: FALSE | BM35: FALSE | BN35: FALSE | BO35: 5 | BP35: 2 | BQ35: 7 | BR35: 6 | BS35: 15 | BT35: 14 | BU35: 12 | BV35: 4 | BW35: 1 | BX35: 3 | BY35: 13 | BZ35: 16 | CA35: 11 | CB35: 10 | CC35: 8 | CD35: 9 | CE35: FALSE | CF35: TRUE | CG35: FALSE | CH35: FALSE | CI35: TRUE | CJ35: FALSE | CK35: FALSE | CL35: TRUE | CM35: FALSE | CN35: FALSE | CO35: TRUE | CP35: FALSE | CQ35: FALSE | CR35: TRUE | CS35: FALSE | CT35: TRUE | CU35: FALSE | CV35: FALSE | CW35: FALSE | CX35: TRUE | CY35: FALSE | CZ35: TRUE | DA35: FALSE | DB35: FALSE | DC35: TRUE | DD35: FALSE | DE35: TRUE | DF35: FALSE | DG35: FALSE | DH35: TRUE | DI35: FALSE | DJ35: -0.06599169291 | DK35: -0.5181347708 | DL35: -0.06448128862 | DM35: -0.4650212772 | DN35: -0.1163486822 | DO35: -0.5536780923 | DP35: 0.2465775399 | DQ35: -1.110205627 | DR35: 0.2450671356 | DS35: -1.199624561 | DT35: -5.353451381 | DU35: 0.2981806292 | DV35: 0.01030685497 | DW35: -4.112796238 | DX35: 0.2564951776 | DY35: -1.51727916 | DZ35: -0.04005013433 | EA35: -0.6089968717 | EB35: -0.00450681282 | EV35: 24000
A36: 26 | B36: 101573.0686 | C36: 91653.26215 | D36: 104730.0363 | E36: 94138.43462 | F36: 172409.4669 | G36: 132719.2377 | H36: 105550.8539 | I36: 98498.19154 | J36: 90036.53009 | K36: 100271.6141 | L36: 115639.7407 | M36: 210912.3536 | N36: 114653.1901 | O36: 104071.3903 | P36: 95747.32974 | Q36: 106049.3425 | R36: 10.51347544 | S36: 10.64787438 | T36: 10.35004479 | U36: 10.4164553 | V36: 10.63708756 | W36: 10.07181062 | X36: 10.68212249 | Y36: 10.63989953 | Z36: 10.73341913 | AA36: 10.49895417 | AB36: 10.42680195 | AC36: 10.97812615 | AD36: 10.7951857 | AE36: 10.60786316 | AF36: 10.74524901 | AG36: 10.49675397 | AI36: 5.434822007 | AJ36: 6.065211274 | AK36: 5.113542976 | AL36: 5.709533568 | AM36: 2.016614215 | AN36: 3.435848741 | AO36: 5.404579799 | AP36: 5.714989955 | AQ36: 6.231592622 | AR36: 5.485373466 | AS36: 4.644814914 | AT36: 0.4325084723 | AU36: 5.062526197 | AV36: 5.404293642 | AW36: 5.957882518 | AX36: 5.194286846 | AY36: FALSE | AZ36: FALSE | BA36: FALSE | BB36: FALSE | BC36: FALSE | BD36: FALSE | BE36: FALSE | BF36: FALSE | BG36: TRUE | BH36: FALSE | BI36: FALSE | BJ36: FALSE | BK36: FALSE | BL36: FALSE | BM36: FALSE | BN36: FALSE | BO36: 7 | BP36: 2 | BQ36: 11 | BR36: 5 | BS36: 15 | BT36: 14 | BU36: 8 | BV36: 4 | BW36: 1 | BX36: 6 | BY36: 13 | BZ36: 16 | CA36: 12 | CB36: 9 | CC36: 3 | CD36: 10 | CE36: FALSE | CF36: TRUE | CG36: FALSE | CH36: FALSE | CI36: TRUE | CJ36: FALSE | CK36: FALSE | CL36: TRUE | CM36: FALSE | CN36: FALSE | CO36: TRUE | CP36: FALSE | CQ36: FALSE | CR36: TRUE | CS36: FALSE | CT36: TRUE | CU36: FALSE | CV36: FALSE | CW36: FALSE | CX36: TRUE | CY36: FALSE | CZ36: TRUE | DA36: FALSE | DB36: FALSE | DC36: TRUE | DD36: FALSE | DE36: FALSE | DF36: TRUE | DG36: FALSE | DH36: FALSE | DI36: TRUE | DJ36: -0.2801679482 | DK36: -0.3106963132 | DL36: -0.1663813479 | DM36: -0.2737101039 | DN36: -0.3718304891 | DO36: -0.2910866192 | DP36: 0.6303892673 | DQ36: -0.03024220795 | DR36: 0.516602667 | DS36: -1.070175041 | DT36: -5.282481483 | DU36: 0.5535888763 | DV36: 0.3212790305 | DW36: -3.096928762 | DX36: 0.3556777067 | DY36: -2.273684826 | DZ36: 0.2296164896 | EA36: -0.4228472688 | EB36: 0.2100067956 | EV36: 25000
A37: 27 | B37: 99217.76825 | C37: 93033.34697 | D37: 102695.5014 | E37: 87702.10172 | F37: 175388.4437 | G37: 122673.5163 | H37: 106392.363 | I37: 96014.69856 | J37: 90120.31518 | K37: 98678.05637 | L37: 112284.3362 | M37: 210517.2587 | N37: 111732.4304 | O37: 100304.1539 | P37: 94567.03792 | Q37: 102791.8071 | R37: 11.22793189 | S37: 11.2977305 | T37: 11.09666999 | U37: 11.55643159 | V37: 11.26413526 | W37: 11.10121591 | X37: 11.2655195 | Y37: 11.42142409 | Z37: 11.4763996 | AA37: 11.31175881 | AB37: 11.45572092 | AC37: 11.78925825 | AD37: 11.52803235 | AE37: 11.35220304 | AF37: 11.3880823 | AG37: 11.25833833 | AI37: 6.267043482 | AJ37: 6.646063151 | AK37: 5.961894923 | AL37: 7.171326508 | AM37: 2.49471308 | AN37: 4.967540096 | AO37: 5.945901349 | AP37: 6.620689164 | AQ37: 6.970383837 | AR37: 6.37785599 | AS37: 5.84150411 | AT37: 1.263395314 | AU37: 5.94141083 | AV37: 6.336995347 | AW37: 6.659730404 | AX37: 6.118747972 | AY37: FALSE | AZ37: FALSE | BA37: FALSE | BB37: TRUE | BC37: FALSE | BD37: FALSE | BE37: FALSE | BF37: FALSE | BG37: FALSE | BH37: FALSE | BI37: FALSE | BJ37: FALSE | BK37: FALSE | BL37: FALSE | BM37: FALSE | BN37: FALSE | BO37: 8 | BP37: 4 | BQ37: 10 | BR37: 1 | BS37: 15 | BT37: 14 | BU37: 11 | BV37: 5 | BW37: 2 | BX37: 6 | BY37: 13 | BZ37: 16 | CA37: 12 | CB37: 7 | CC37: 3 | CD37: 9 | CE37: FALSE | CF37: TRUE | CG37: FALSE | CH37: FALSE | CI37: TRUE | CJ37: FALSE | CK37: FALSE | CL37: TRUE | CM37: FALSE | CN37: FALSE | CO37: TRUE | CP37: FALSE | CQ37: FALSE | CR37: TRUE | CS37: FALSE | CT37: TRUE | CU37: FALSE | CV37: FALSE | CW37: FALSE | CX37: TRUE | CY37: FALSE | CZ37: TRUE | DA37: FALSE | DB37: TRUE | DC37: FALSE | DD37: FALSE | DE37: FALSE | DF37: TRUE | DG37: FALSE | DH37: FALSE | DI37: TRUE | DJ37: -0.3536456818 | DK37: -0.2836938171 | DL37: -0.3243206853 | DM37: -0.3106534323 | DN37: -0.4159610672 | DO37: -0.2591080174 | DP37: 0.3790196695 | DQ37: -0.3211421331 | DR37: 0.349694673 | DS37: -0.7791850534 | DT37: -5.357293849 | DU37: 0.3227350577 | DV37: 0.3051485593 | DW37: -3.467181842 | DX37: -0.5252633562 | DY37: -2.203786412 | DZ37: 0.2428331739 | EA37: -0.43644516 | EB37: 0.2182473742 | EV37: 26000
A38: 28 | B38: 100338.8531 | C38: 91711.67491 | D38: 104082.4185 | E38: 94536.8667 | F38: 179252.4647 | G38: 130997.1356 | H38: 108279.6725 | I38: 100351.3598 | J38: 91690.43362 | K38: 102774.0523 | L38: 117543.3236 | M38: 214215.2909 | N38: 112616.5299 | O38: 105325.0206 | P38: 96262.16556 | Q38: 106506.2571 | R38: 10.67438474 | S38: 10.70006142 | T38: 10.47569892 | U38: 10.44868077 | V38: 10.5732363 | W38: 10.46719978 | X38: 10.63827925 | Y38: 10.73867799 | Z38: 10.77559855 | AA38: 10.57039169 | AB38: 10.7093269 | AC38: 10.84960055 | AD38: 10.84923693 | AE38: 10.719161 | AF38: 10.79144402 | AG38: 10.5971105 | AI38: 5.65744209 | AJ38: 6.114477674 | AK38: 5.271578 | AL38: 5.72183744 | AM38: 1.610613068 | AN38: 3.917343 | AO38: 5.22429563 | AP38: 5.721109999 | AQ38: 6.191076874 | AR38: 5.431689071 | AS38: 4.83216072 | AT38: 0.1388360096 | AU38: 5.218410434 | AV38: 5.452909972 | AW38: 5.978335742 | AX38: 5.271797646 | AY38: FALSE | AZ38: FALSE | BA38: FALSE | BB38: FALSE | BC38: FALSE | BD38: FALSE | BE38: FALSE | BF38: FALSE | BG38: TRUE | BH38: FALSE | BI38: FALSE | BJ38: FALSE | BK38: FALSE | BL38: FALSE | BM38: FALSE | BN38: FALSE | BO38: 6 | BP38: 2 | BQ38: 10 | BR38: 4 | BS38: 15 | BT38: 14 | BU38: 11 | BV38: 5 | BW38: 1 | BX38: 8 | BY38: 13 | BZ38: 16 | CA38: 12 | CB38: 7 | CC38: 3 | CD38: 9 | CE38: FALSE | CF38: TRUE | CG38: FALSE | CH38: FALSE | CI38: TRUE | CJ38: FALSE | CK38: FALSE | CL38: TRUE | CM38: FALSE | CN38: FALSE | CO38: TRUE | CP38: FALSE | CQ38: FALSE | CR38: TRUE | CS38: FALSE | CT38: TRUE | CU38: FALSE | CV38: FALSE | CW38: FALSE | CX38: TRUE | CY38: FALSE | CZ38: TRUE | DA38: FALSE | DB38: FALSE | DC38: TRUE | DD38: FALSE | DE38: FALSE | DF38: TRUE | DG38: FALSE | DH38: FALSE | DI38: TRUE | DJ38: -0.06366790973 | DK38: -0.2682000277 | DL38: -0.07659919966 | DM38: -0.2127411316 | DN38: -0.1601110706 | DO38: -0.1598914251 | DP38: 0.4570355846 | DQ38: -0.43314646 | DR38: 0.4699668745 | DS38: -0.888949279 | DT38: -5.58227399 | DU38: 0.5254257706 | DV38: 0.3858640895 | DW38: -3.660964932 | DX38: 0.3926402344 | DY38: -1.80449444 | DZ38: 0.2894209286 | EA38: -0.2132786369 | EB38: 0.1811123259 | EV38: 27000
A39: 29 | B39: 103290.0235 | C39: 99208.7194 | D39: 109271.6936 | E39: 102141.5907 | F39: 188060.8545 | G39: 135441.4687 | H39: 117489.8567 | I39: 102756.5862 | J39: 99815.04933 | K39: 107953.5373 | L39: 120934.1216 | M39: 217237.1916 | N39: 126345.7059 | O39: 106905.3205 | P39: 104401.301 | Q39: 110928.3901 | R39: 11.55584961 | S39: 11.39475863 | T39: 11.43683859 | U39: 11.52721816 | V39: 11.54330589 | W39: 10.94637611 | X39: 11.25406339 | Y39: 11.73456995 | Z39: 11.59846706 | AA39: 11.58968624 | AB39: 11.68486088 | AC39: 11.97003762 | AD39: 11.72877151 | AE39: 11.65243514 | AF39: 11.49090747 | AG39: 11.54746347 | AI39: 6.39134844 | AJ39: 6.434322661 | AK39: 5.973253913 | AL39: 6.420138625 | AM39: 2.140263166 | AN39: 4.174302674 | AO39: 5.379570552 | AP39: 6.596740643 | AQ39: 6.607714596 | AR39: 6.192009375 | AS39: 5.638154799 | AT39: 1.108178043 | AU39: 5.411486208 | AV39: 6.307169119 | AW39: 6.270842424 | AX39: 6.00104396 | AY39: FALSE | AZ39: FALSE | BA39: FALSE | BB39: FALSE | BC39: FALSE | BD39: FALSE | BE39: FALSE | BF39: FALSE | BG39: TRUE | BH39: FALSE | BI39: FALSE | BJ39: FALSE | BK39: FALSE | BL39: FALSE | BM39: FALSE | BN39: FALSE | BO39: 5 | BP39: 3 | BQ39: 10 | BR39: 4 | BS39: 15 | BT39: 14 | BU39: 13 | BV39: 2 | BW39: 1 | BX39: 8 | BY39: 11 | BZ39: 16 | CA39: 12 | CB39: 6 | CC39: 7 | CD39: 9 | CE39: FALSE | CF39: TRUE | CG39: FALSE | CH39: FALSE | CI39: TRUE | CJ39: FALSE | CK39: FALSE | CL39: TRUE | CM39: FALSE | CN39: FALSE | CO39: TRUE | CP39: FALSE | CQ39: FALSE | CR39: TRUE | CS39: FALSE | CT39: TRUE | CU39: FALSE | CV39: FALSE | CW39: TRUE | CX39: FALSE | CY39: FALSE | CZ39: TRUE | DA39: FALSE | DB39: FALSE | DC39: TRUE | DD39: FALSE | DE39: FALSE | DF39: TRUE | DG39: FALSE | DH39: FALSE | DI39: TRUE | DJ39: -0.2053922037 | DK39: -0.2895715247 | DL39: -0.1733919343 | DM39: -0.3368721713 | DN39: -0.2187554618 | DO39: -0.1909654144 | DP39: 0.0429742217 | DQ39: -1.011777888 | DR39: 0.01097395233 | DS39: -0.958585844 | DT39: -5.4885626 | DU39: -0.03632669429 | DV39: 0.4180945268 | DW39: -3.832990747 | DX39: 0.01418403604 | DY39: -2.245835952 | DZ39: 0.4047312687 | EA39: -0.7805231663 | EB39: 0.3061251583 | EV39: 28000
A40: 30 | B40: 95731.87682 | C40: 92654.86678 | D40: 94601.41535 | E40: 89116.4852 | F40: 167912.247 | G40: 128235.1328 | H40: 110925.0144 | I40: 92281.87349 | J40: 89470.75101 | K40: 90712.03823 | L40: 107144.2087 | M40: 202949.2818 | N40: 109060.2085 | O40: 98303.58152 | P40: 95451.61539 | Q40: 96967.16539 | R40: 11.34957422 | S40: 11.45937228 | T40: 11.24321656 | U40: 11.38681191 | V40: 11.13276186 | W40: 11.16777397 | X40: 11.35651278 | Y40: 11.53153066 | Z40: 11.62984525 | AA40: 11.45613827 | AB40: 11.56583767 | AC40: 11.78500224 | AD40: 11.65544939 | AE40: 11.52478101 | AF40: 11.61523426 | AG40: 11.47583466 | AI40: 6.562980384 | AJ40: 6.826628944 | AK40: 6.51314579 | AL40: 6.930987648 | AM40: 2.737149516 | AN40: 4.756017333 | AO40: 5.81026206 | AP40: 6.917436983 | AQ40: 7.156307704 | AR40: 6.920536354 | AS40: 6.208627234 | AT40: 1.637538147 | AU40: 6.202438965 | AV40: 6.609601932 | AW40: 6.84265349 | AX40: 6.627476387 | AY40: FALSE | AZ40: FALSE | BA40: FALSE | BB40: FALSE | BC40: FALSE | BD40: FALSE | BE40: FALSE | BF40: FALSE | BG40: TRUE | BH40: FALSE | BI40: FALSE | BJ40: FALSE | BK40: FALSE | BL40: FALSE | BM40: FALSE | BN40: FALSE | BO40: 9 | BP40: 6 | BQ40: 10 | BR40: 2 | BS40: 15 | BT40: 14 | BU40: 13 | BV40: 4 | BW40: 1 | BX40: 3 | BY40: 11 | BZ40: 16 | CA40: 12 | CB40: 8 | CC40: 5 | CD40: 7 | CE40: FALSE | CF40: TRUE | CG40: FALSE | CH40: FALSE | CI40: TRUE | CJ40: FALSE | CK40: FALSE | CL40: TRUE | CM40: FALSE | CN40: FALSE | CO40: TRUE | CP40: FALSE | CQ40: FALSE | CR40: TRUE | CS40: FALSE | CT40: TRUE | CU40: FALSE | CV40: FALSE | CW40: FALSE | CX40: TRUE | CY40: FALSE | CZ40: TRUE | DA40: FALSE | DB40: TRUE | DC40: FALSE | DD40: FALSE | DE40: TRUE | DF40: FALSE | DG40: FALSE | DH40: TRUE | DI40: FALSE | DJ40: -0.3544565997 | DK40: -0.3078350512 | DL40: -0.3296787609 | DM40: -0.3136542145 | DN40: -0.4073905637 | DO40: -0.2930599664 | DP40: 0.2636485598 | DQ40: -0.7527183237 | DR40: 0.238870721 | DS40: -0.7088097497 | DT40: -5.279898836 | DU40: 0.2330515577 | DV40: 0.04983459367 | DW40: -3.775996274 | DX40: -0.1043587043 | DY40: -2.174970315 | DZ40: -0.003099370359 | EA40: -0.7180973885 | EB40: -0.01787445524 | EV40: 29000
A41: 31 | B41: 99790.3441 | C41: 92563.20612 | D41: 97426.16149 | E41: 92628.64742 | F41: 174108.1459 | G41: 122048.2645 | H41: 105440.682 | I41: 97062.06534 | J41: 90406.23107 | K41: 94310.71627 | L41: 117715.7745 | M41: 211339.3392 | N41: 112704.6913 | O41: 102808.8444 | P41: 96154.93614 | Q41: 100203.6941 | R41: 11.78626068 | S41: 11.82851387 | T41: 11.73957052 | U41: 11.78346625 | V41: 11.88684604 | W41: 11.74006665 | X41: 11.80161978 | Y41: 11.87869611 | Z41: 11.9001292 | AA41: 11.82964477 | AB41: 11.78162272 | AC41: 12.14781097 | AD41: 11.75424855 | AE41: 11.81368093 | AF41: 11.84421972 | AG41: 11.77132899 | AI41: 6.796743472 | AJ41: 7.200353565 | AK41: 6.868262446 | AL41: 7.152033877 | AM41: 3.181438745 | AN41: 5.637653425 | AO41: 6.529585682 | AP41: 7.025592846 | AQ41: 7.379817644 | AR41: 7.114108956 | AS41: 5.895834001 | AT41: 1.580844008 | AU41: 6.119013985 | AV41: 6.673238705 | AW41: 7.036472909 | AX41: 6.76114429 | AY41: FALSE | AZ41: FALSE | BA41: FALSE | BB41: FALSE | BC41: FALSE | BD41: FALSE | BE41: FALSE | BF41: FALSE | BG41: TRUE | BH41: FALSE | BI41: FALSE | BJ41: FALSE | BK41: FALSE | BL41: FALSE | BM41: FALSE | BN41: FALSE | BO41: 8 | BP41: 2 | BQ41: 7 | BR41: 3 | BS41: 15 | BT41: 14 | BU41: 11 | BV41: 6 | BW41: 1 | BX41: 4 | BY41: 13 | BZ41: 16 | CA41: 12 | CB41: 10 | CC41: 5 | CD41: 9 | CE41: FALSE | CF41: TRUE | CG41: FALSE | CH41: FALSE | CI41: TRUE | CJ41: FALSE | CK41: FALSE | CL41: TRUE | CM41: FALSE | CN41: FALSE | CO41: TRUE | CP41: FALSE | CQ41: FALSE | CR41: TRUE | CS41: FALSE | CT41: TRUE | CU41: FALSE | CV41: FALSE | CW41: FALSE | CX41: TRUE | CY41: TRUE | CZ41: FALSE | DA41: FALSE | DB41: FALSE | DC41: TRUE | DD41: FALSE | DE41: TRUE | DF41: FALSE | DG41: FALSE | DH41: TRUE | DI41: FALSE | DJ41: -0.2288493734 | DK41: -0.3523541409 | DL41: -0.1794640798 | DM41: -0.3433447356 | DN41: -0.2458465101 | DO41: -0.3529646655 | DP41: 0.4036100924 | DQ41: -0.2671577906 | DR41: 0.3542247988 | DS41: -1.129758844 | DT41: -5.444748837 | DU41: 0.3632342041 | DV41: -0.07151897354 | DW41: -3.686823701 | DX41: 0.04831968773 | DY41: -1.514380452 | DZ41: -0.08851611026 | EA41: -0.9950949704 | EB41: -0.08790558568 | EV41: 30000
A42: 32 | B42: 99058.06502 | C42: 86280.5413 | D42: 99215.10823 | E42: 91423.77218 | F42: 168406.266 | G42: 120281.889 | H42: 96344.43245 | I42: 98565.45031 | J42: 85959.41994 | K42: 98513.72883 | L42: 112464.0453 | M42: 213208.8438 | N42: 117763.0123 | O42: 103245.9015 | P42: 91655.91701 | Q42: 102847.6166 | R42: 11.48383166 | S42: 11.61803641 | T42: 11.38172548 | U42: 11.57239873 | V42: 11.57530933 | W42: 11.43130342 | X42: 11.49976638 | Y42: 11.58601654 | Z42: 11.72256229 | AA42: 11.48908724 | AB42: 11.49044144 | AC42: 11.93446017 | AD42: 11.70517388 | AE42: 11.48309047 | AF42: 11.59222784 | AG42: 11.39266452 | AI42: 6.530928411 | AJ42: 7.30400935 | AK42: 6.420970067 | AL42: 7.001210117 | AM42: 3.154996024 | AN42: 5.417208968 | AO42: 6.682544756 | AP42: 6.657744021 | AQ42: 7.424591294 | AR42: 6.563400798 | AS42: 5.867239173 | AT42: 1.274017976 | AU42: 5.817023267 | AV42: 6.320795389 | AW42: 7.00943199 | AX42: 6.250283692 | AY42: FALSE | AZ42: FALSE | BA42: FALSE | BB42: FALSE | BC42: FALSE | BD42: FALSE | BE42: FALSE | BF42: FALSE | BG42: TRUE | BH42: FALSE | BI42: FALSE | BJ42: FALSE | BK42: FALSE | BL42: FALSE | BM42: FALSE | BN42: FALSE | BO42: 8 | BP42: 2 | BQ42: 9 | BR42: 4 | BS42: 15 | BT42: 14 | BU42: 5 | BV42: 6 | BW42: 1 | BX42: 7 | BY42: 12 | BZ42: 16 | CA42: 13 | CB42: 10 | CC42: 3 | CD42: 11 | CE42: FALSE | CF42: TRUE | CG42: FALSE | CH42: FALSE | CI42: TRUE | CJ42: FALSE | CK42: FALSE | CL42: TRUE | CM42: FALSE | CN42: FALSE | CO42: TRUE | CP42: FALSE | CQ42: FALSE | CR42: TRUE | CS42: FALSE | CT42: TRUE | CU42: FALSE | CV42: FALSE | CW42: FALSE | CX42: TRUE | CY42: FALSE | CZ42: TRUE | DA42: FALSE | DB42: FALSE | DC42: TRUE | DD42: FALSE | DE42: FALSE | DF42: TRUE | DG42: FALSE | DH42: FALSE | DI42: TRUE | DJ42: -0.1268156098 | DK42: -0.3369486318 | DL42: -0.1205819443 | DM42: -0.415159304 | DN42: -0.142430731 | DO42: -0.3131171068 | DP42: 0.7730809388 | DQ42: 0.1516163445 | DR42: 0.7668472733 | DS42: -0.7905048477 | DT42: -5.383726045 | DU42: 0.6886366011 | DV42: 0.1099583438 | DW42: -3.265974044 | DX42: 0.3027992325 | DY42: -1.584001149 | DZ42: 0.09434322259 | EA42: -0.7463775316 | EB42: 0.07051169761 | EV42: 31000
A43: 33 | B43: 105191.4675 | C43: 98072.56688 | D43: 107529.2112 | E43: 96063.51466 | F43: 172252.4226 | G43: 132364.2468 | H43: 115335.8662 | I43: 99982.31468 | J43: 94557.27482 | K43: 102366.2778 | L43: 122411.6526 | M43: 218492.8141 | N43: 117414.4872 | O43: 107794.8778 | P43: 102061.8644 | Q43: 109643.6073 | R43: 11.41352674 | S43: 11.54580296 | T43: 11.31078038 | U43: 11.39105189 | V43: 11.31636829 | W43: 11.24299563 | X43: 10.74183768 | Y43: 11.71646195 | Z43: 11.80007283 | AA43: 11.58524404 | AB43: 11.46558178 | AC43: 12.02016032 | AD43: 11.85110342 | AE43: 11.63890145 | AF43: 11.73092939 | AG43: 11.50923073 | AI43: 6.153953368 | AJ43: 6.642174617 | AK43: 5.934319819 | AL43: 6.587876159 | AM43: 2.703747157 | AN43: 4.624783286 | AO43: 4.975044371 | AP43: 6.717346218 | AQ43: 7.072209093 | AR43: 6.466930146 | AS43: 5.344999149 | AT43: 1.095519617 | AU43: 5.980379056 | AV43: 6.249157563 | AW43: 6.627836177 | AX43: 6.027050369 | AY43: FALSE | AZ43: FALSE | BA43: FALSE | BB43: FALSE | BC43: FALSE | BD43: FALSE | BE43: FALSE | BF43: FALSE | BG43: TRUE | BH43: FALSE | BI43: FALSE | BJ43: FALSE | BK43: FALSE | BL43: FALSE | BM43: FALSE | BN43: FALSE | BO43: 8 | BP43: 3 | BQ43: 11 | BR43: 5 | BS43: 15 | BT43: 14 | BU43: 13 | BV43: 2 | BW43: 1 | BX43: 6 | BY43: 12 | BZ43: 16 | CA43: 10 | CB43: 7 | CC43: 4 | CD43: 9 | CE43: FALSE | CF43: TRUE | CG43: FALSE | CH43: FALSE | CI43: TRUE | CJ43: FALSE | CK43: FALSE | CL43: TRUE | CM43: FALSE | CN43: FALSE | CO43: TRUE | CP43: FALSE | CQ43: FALSE | CR43: TRUE | CS43: FALSE | CT43: TRUE | CU43: FALSE | CV43: FALSE | CW43: FALSE | CX43: TRUE | CY43: FALSE | CZ43: TRUE | DA43: FALSE | DB43: FALSE | DC43: TRUE | DD43: FALSE | DE43: FALSE | DF43: TRUE | DG43: FALSE | DH43: FALSE | DI43: TRUE | DJ43: -0.5633928498 | DK43: -0.4681886553 | DL43: -0.4300344759 | DM43: -0.4443729168 | DN43: -0.5326103265 | DO43: -0.4398797767 | DP43: 0.4882212492 | DQ43: -1.178908998 | DR43: 0.3548628753 | DS43: -1.372347069 | DT43: -5.621826601 | DU43: 0.3786786138 | DV43: 0.2196335491 | DW43: -3.230572663 | DX43: 0.0542984585 | DY43: -1.963092873 | DZ43: 0.2504160724 | EA43: -0.4865510897 | EB43: 0.2221071938 | EV43: 32000
A44: 34 | B44: 107714.0809 | C44: 97320.61788 | D44: 111716.0592 | E44: 100262.966 | F44: 186170.2343 | G44: 138362.8418 | H44: 111581.6528 | I44: 105550.5883 | J44: 95736.5057 | K44: 108486.8039 | L44: 122951.8159 | M44: 214772.0437 | N44: 118229.4032 | O44: 107751.2693 | P44: 99549.66734 | Q44: 108796.0383 | R44: 11.02502872 | S44: 11.03354243 | T44: 10.92279652 | U44: 10.97990014 | V44: 11.13211627 | W44: 10.48352552 | X44: 11.02001698 | Y44: 11.05417942 | Z44: 11.03360183 | AA44: 10.95069915 | AB44: 10.96077915 | AC44: 11.25768991 | AD44: 11.09659549 | AE44: 11.00771932 | AF44: 10.95428205 | AG44: 10.92359583 | AI44: 5.639324671 | AJ44: 6.167511531 | AK44: 5.336993558 | AL44: 5.966751845 | AM44: 1.823604561 | AN44: 3.565383424 | AO44: 5.440934344 | AP44: 5.77665001 | AQ44: 6.246776543 | AR44: 5.526358957 | AS44: 4.813188355 | AT44: 0.5190877306 | AU44: 5.185125336 | AV44: 5.620155856 | AW44: 5.976798679 | AX44: 5.483793918 | AY44: FALSE | AZ44: FALSE | BA44: FALSE | BB44: FALSE | BC44: FALSE | BD44: FALSE | BE44: FALSE | BF44: FALSE | BG44: TRUE | BH44: FALSE | BI44: FALSE | BJ44: FALSE | BK44: FALSE | BL44: FALSE | BM44: FALSE | BN44: FALSE | BO44: 6 | BP44: 2 | BQ44: 11 | BR44: 4 | BS44: 15 | BT44: 14 | BU44: 10 | BV44: 5 | BW44: 1 | BX44: 8 | BY44: 13 | BZ44: 16 | CA44: 12 | CB44: 7 | CC44: 3 | CD44: 9 | CE44: FALSE | CF44: TRUE | CG44: FALSE | CH44: FALSE | CI44: TRUE | CJ44: FALSE | CK44: FALSE | CL44: TRUE | CM44: FALSE | CN44: FALSE | CO44: TRUE | CP44: FALSE | CQ44: FALSE | CR44: TRUE | CS44: FALSE | CT44: TRUE | CU44: FALSE | CV44: FALSE | CW44: FALSE | CX44: TRUE | CY44: FALSE | CZ44: TRUE | DA44: FALSE | DB44: FALSE | DC44: TRUE | DD44: FALSE | DE44: FALSE | DF44: TRUE | DG44: FALSE | DH44: FALSE | DI44: TRUE | DJ44: -0.1373253388 | DK44: -0.1564941548 | DL44: -0.0792650116 | DM44: -0.2699778635 | DN44: -0.1893653992 | DO44: -0.04256503945 | DP44: 0.5281868599 | DQ44: -0.1983903271 | DR44: 0.4701265326 | DS44: -0.9634616548 | DT44: -5.25756228 | DU44: 0.3566428239 | DV44: 0.3023311137 | DW44: -3.513388997 | DX44: 0.2007596865 | DY44: -2.401368421 | DZ44: 0.2502910533 | EA44: -0.341233621 | EB44: 0.136361938 | EV44: 33000
